Workbook

Sheet INTRO
B2: Formulaire de Rapport Commun v.3.1
B4: Le but de ce formulaire de rapport commun - disponible sous forme de fichier Excel - est de mettre à disposition des autorités sanitaires nationales et des gestionnaires de données un outil standardisé qui réponde aux défis, facilite l'intégration et par conséquent contribue à améliorer la gestion de programme. Ce formulaire tend à standardiser le rapport de résultats des programmes nationaux, améliore la disponibilité et la coordination des données de chimioprévention à travers les Bureaux des Régions de l'Organisation mondiale de la Santé. Les autorités nationales sont priées de compléter ce formulaire et de le soumettre à l'Organisation mondiale de la Santé avant le 15 août de l'année en cours pour rapporter les données des activités de chimioprévention mises en oeuvre l'année précédente.
B6: Structure de l'application (feuilles de travail) :
B8: INTRO | C8: Cette feuille contient des instructions pour compléter le formulaire de rapport commun et des informations sur le statut de la chimioprévention pour les maladies d'endémie du pays.
B9: COUNTRY_INFO | C9: Cette feuille contient des informations sur la structure administrative du pays, la population par groupe d'âge, le statut d'endémicité pour chaque maladie, la population devant être traitée par chimioprévention, les interventions prévues et les interventions mises en oeuvre.
B10: MDA1, MDA2, MDA3, T1, T2 et T3 | C10: Ces feuilles contiennent des informations sur l'endémicité des districts ciblés pour le traitement aux médicaments spécifiques pour la chimioprévention, les plans de traitement, et le nombre de personnes traitées par groupe d'âge.
B11: DISTRICT | C11: Cette feuille contient un résumé sur les personnes traitées, par maladie, au niveau de mise en oeuvre. Si les données par genre (sexe) sont disponibles, merci de les saisir.
B12: SUMMARY | C12: Cette feuille contient un résumé sur les personnes traitées, par maladie et par type d'intervention de chimioprévention. Avant de générer le rapport (exécuter macro), veuillez sélectionner la maladie pour laquelle vous souhaitez un rapport. Veuillez suivre le même processus pour générer les divers rapports. Cette feuille doit être imprimée et soumise comme formulaire de rapport commun (voir les instructions pour la soumission du formulaire sous la feuille SUMMARY).
B14: Instructions pour la saisie des données
B16: La plupart des cellules des feuilles de travail mentionnées ci-dessus contiennent des formules calculées automatiquement en fonction du protocole de traitement recommandé par l'OMS pour chaque maladie. Voir : http://www.who.int/neglected_diseases/preventive_chemotherapy/pct_manual/en/index.html
B18: Veuillez entrer vos données dans les cellules en fonction de leur code de couleur :
C20: Blanc - la cellule n'est pas protégée. Veuillez entrer la valeur de l'indicateur demandé.
C22: Jaune - la cellule est protégée et inclut le nom de l'indicateur. Aucune entrée de données requise.
C24: Orange - la cellule n'est pas protégée et contient un menu déroulant. Veuillez sélectionner la valeur dans le menu déroulant.
C27: Vert - la cellule n'est pas protégée et contient des formules. Veuillez changer la valeur indiquée uniquement si vos données sont différentes de celles calculées automatiquement.
C30: Bleu - la cellule est protégée et contient des formules. Aucune entrée de données requise.
B32: Données pays
B34: PAYS | E34: Guinea Bissau
B36: Année de rapport des données | E36: 2021
B38: Le pays est-il endémique à la filariose lymphatique (FL) ? | E38: Endémique
B40: Le pays est-il endémique à l'onchocercose (ONCHO) ? | E40: Endémique
B42: Le pays est-il endémique aux géohelminthiases (STH) ? | E42: Endémique
B44: Le pays est-il endémique à la schistosomiase (SCH) ? | E44: Endémique
B46: Combien d'unités administratives compte le pays ? | E46: 117
B47: Si les données démographiques par groupe d'âge ne sont pas disponibles au second niveau administratif, veuillez entrer la proportion (%) de population, par groupe d'âge, du pays. Si les données sont disponibles, veuillez laisser les cellules vierges.
B48: 1-4 ans | C48: Enfants d'âge pré-scolaire (EAPréS) | E48: 0.133
B49: 5-14 ans | C49: Enfants d'âge scolaire (EAS) | E49: 0.2562
B50: 15 ans et plus | C50: Adultes | E50: 0.5665

Sheet COUNTRY_INFO
A1: INFORMATIONS PAYS
A2: Structure administrative, population par groupe d'âge, statut d'endémicité, interventions planifiées et interventions mises en oeuvre
A4: TOTAL | D4: =SUM(D$9:D$1000) -> 2068669 | E4: =SUM(E$9:E$1000) -> 275134 | F4: =SUM(F$9:F$1000) -> 529995 | G4: =SUM(G$9:G$1000) -> 1171902 | L4: =SUM(L$9:L$1000) -> 1941909 | M4: =SUM(M$9:M$1000) -> 579506 | N4: =SUM(N$9:N$1000) -> 387264 | O4: =SUM(O$9:O$1000) -> 164887.45
A6: Structure administrative du pays | D6: Population | H6: Endémicité | L6: Population nécessitant la CP | P6: Nombre de tournées de traitement prévues pour l'année | T6: Mise en oeuvre de la chimioprévention | V6: Cliquer ci-dessous pour voir la stratégie recommandée | AB6: mda1 | AC6: mda3 | AD6: t1 | AE6: t2 | AF6: t3r1 | AG6: t3r2
A7: Pays | B7: Région/Département | C7: District | D7: Total | E7: EAPréS | F7: EAS | G7: Adultes | H7: FL | I7: Oncho | J7: STH | K7: SCH | L7: FL | M7: Oncho | N7: STH | O7: SCH | P7: FL | Q7: Oncho | R7: STH | S7: SCH | T7: TOURNEE 1 | U7: TOURNEE 2 | Y7: IU_ID | Z7: IU_Name | AA7: x | AB7: x | AC7: x | AD7: x | AE7: x | AF7: x | AG7: x | AH7: x | AI7: x | AJ7: x | AK7: x | AL7: x | AM7: x | AN7: x | AO7: x | AP7: x
A9: =IF(INTRO!$E$34<>0,INTRO!$E$34,"") -> Guinea Bissau | B9: SAB | C9: AJUDA | D9: 15446 | E9: =IF(INTRO!$E$48="","",ROUND($D9*INTRO!$E$48,0)) -> 2054 | F9: =IF(INTRO!$E$49="","",ROUND($D9*INTRO!$E$49,0)) -> 3957 | G9: =IF(INTRO!$E$50="","",ROUND($D9*INTRO!$E$50,0)) -> 8750 | H9: 1 | I9: 4 | J9: 2 | K9: 1 | L9: =IF(INTRO!$E$38="Endémique", IF($H9>0, IF($H9=4,"Inconnu", IF($H9=99,"Interrompu", $D9)), 0),"Non requis") -> 15446 | M9: =IF(INTRO!$E$40="Endémique", IF($I9>0, IF($I9=4,"Inconnu",IF($I9=99,"Interrompu", $D9)), 0),"Non requis") -> Inconnu | N9: =IF(INTRO!$E$42="Endémique", IF(AND($J9>1,$J9<5), IF($J9=4, "Inconnu", E9+F9), 0),"Non requis") -> 6011 | O9: =IF(INTRO!$E$44="Endémique", IF(AND($K9>0,$K9<5), IF($K9=4,"Inconnu", IF($K9=1, $F9*0.33, IF($K9=2, $F9*0.5+$G9*0.2, SUM(F9:G9)))), 0),"Non requis") -> 1305.81 | P9: 0 | Q9: 0 | R9: 0 | S9: 0 | Y9: 23648 | Z9: AJUDA | AB9: ='MDA1'!M9 -> 0 | AC9: ='MDA3'!Q9 -> 0 | AD9: ='T1'!O9 -> 0 | AE9: ='T2'!M9 -> 0 | AF9: =T3_R1!N9 -> 0 | AG9: =T3_R2!N9 -> 0
A10: =IF(INTRO!$E$34<>0,INTRO!$E$34,"") -> Guinea Bissau | B10: SAB | C10: ANTULA | D10: 45580 | E10: =IF(INTRO!$E$48="","",ROUND($D10*INTRO!$E$48,0)) -> 6062 | F10: =IF(INTRO!$E$49="","",ROUND($D10*INTRO!$E$49,0)) -> 11678 | G10: =IF(INTRO!$E$50="","",ROUND($D10*INTRO!$E$50,0)) -> 25821 | H10: 1 | I10: 4 | J10: 2 | K10: 1 | L10: =IF(INTRO!$E$38="Endémique", IF($H10>0, IF($H10=4,"Inconnu", IF($H10=99,"Interrompu", $D10)), 0),"Non requis") -> 45580 | M10: =IF(INTRO!$E$40="Endémique", IF($I10>0, IF($I10=4,"Inconnu",IF($I10=99,"Interrompu", $D10)), 0),"Non requis") -> Inconnu | N10: =IF(INTRO!$E$42="Endémique", IF(AND($J10>1,$J10<5), IF($J10=4, "Inconnu", E10+F10), 0),"Non requis") -> 17740 | O10: =IF(INTRO!$E$44="Endémique", IF(AND($K10>0,$K10<5), IF($K10=4,"Inconnu", IF($K10=1, $F10*0.33, IF($K10=2, $F10*0.5+$G10*0.2, SUM(F10:G10)))), 0),"Non requis") -> 3853.74 | P10: 0 | Q10: 0 | R10: 0 | S10: 0 | Y10: 23649 | Z10: ANTULA | AB10: ='MDA1'!M10 -> 0 | AC10: ='MDA3'!Q10 -> 0 | AD10: ='T1'!O10 -> 0 | AE10: ='T2'!M10 -> 0 | AF10: =T3_R1!N10 -> 0 | AG10: =T3_R2!N10 -> 0
A11: =IF(INTRO!$E$34<>0,INTRO!$E$34,"") -> Guinea Bissau | B11: SAB | C11: B. MILITAR | D11: 96797 | E11: =IF(INTRO!$E$48="","",ROUND($D11*INTRO!$E$48,0)) -> 12874 | F11: =IF(INTRO!$E$49="","",ROUND($D11*INTRO!$E$49,0)) -> 24799 | G11: =IF(INTRO!$E$50="","",ROUND($D11*INTRO!$E$50,0)) -> 54836 | H11: 1 | I11: 4 | J11: 1 | K11: 0 | L11: =IF(INTRO!$E$38="Endémique", IF($H11>0, IF($H11=4,"Inconnu", IF($H11=99,"Interrompu", $D11)), 0),"Non requis") -> 96797 | M11: =IF(INTRO!$E$40="Endémique", IF($I11>0, IF($I11=4,"Inconnu",IF($I11=99,"Interrompu", $D11)), 0),"Non requis") -> Inconnu | N11: =IF(INTRO!$E$42="Endémique", IF(AND($J11>1,$J11<5), IF($J11=4, "Inconnu", E11+F11), 0),"Non requis") -> 0 | O11: =IF(INTRO!$E$44="Endémique", IF(AND($K11>0,$K11<5), IF($K11=4,"Inconnu", IF($K11=1, $F11*0.33, IF($K11=2, $F11*0.5+$G11*0.2, SUM(F11:G11)))), 0),"Non requis") -> 0 | P11: 0 | Q11: 0 | R11: 0 | S11: 0 | Y11: 23650 | Z11: B. MILITAR | AB11: ='MDA1'!M11 -> 0 | AC11: ='MDA3'!Q11 -> 0 | AD11: ='T1'!O11 -> 0 | AE11: ='T2'!M11 -> 0 | AF11: =T3_R1!N11 -> 0 | AG11: =T3_R2!N11 -> 0
A12: =IF(INTRO!$E$34<>0,INTRO!$E$34,"") -> Guinea Bissau | B12: SAB | C12: BANDIM | D12: 66226 | E12: =IF(INTRO!$E$48="","",ROUND($D12*INTRO!$E$48,0)) -> 8808 | F12: =IF(INTRO!$E$49="","",ROUND($D12*INTRO!$E$49,0)) -> 16967 | G12: =IF(INTRO!$E$50="","",ROUND($D12*INTRO!$E$50,0)) -> 37517 | H12: 1 | I12: 4 | J12: 2 | K12: 1 | L12: =IF(INTRO!$E$38="Endémique", IF($H12>0, IF($H12=4,"Inconnu", IF($H12=99,"Interrompu", $D12)), 0),"Non requis") -> 66226 | M12: =IF(INTRO!$E$40="Endémique", IF($I12>0, IF($I12=4,"Inconnu",IF($I12=99,"Interrompu", $D12)), 0),"Non requis") -> Inconnu | N12: =IF(INTRO!$E$42="Endémique", IF(AND($J12>1,$J12<5), IF($J12=4, "Inconnu", E12+F12), 0),"Non requis") -> 25775 | O12: =IF(INTRO!$E$44="Endémique", IF(AND($K12>0,$K12<5), IF($K12=4,"Inconnu", IF($K12=1, $F12*0.33, IF($K12=2, $F12*0.5+$G12*0.2, SUM(F12:G12)))), 0),"Non requis") -> 5599.11 | P12: 0 | Q12: 0 | R12: 0 | S12: 0 | Y12: 23651 | Z12: BANDIM | AB12: ='MDA1'!M12 -> 0 | AC12: ='MDA3'!Q12 -> 0 | AD12: ='T1'!O12 -> 0 | AE12: ='T2'!M12 -> 0 | AF12: =T3_R1!N12 -> 0 | AG12: =T3_R2!N12 -> 0
A13: =IF(INTRO!$E$34<>0,INTRO!$E$34,"") -> Guinea Bissau | B13: SAB | C13: BELEM | D13: 25566 | E13: =IF(INTRO!$E$48="","",ROUND($D13*INTRO!$E$48,0)) -> 3400 | F13: =IF(INTRO!$E$49="","",ROUND($D13*INTRO!$E$49,0)) -> 6550 | G13: =IF(INTRO!$E$50="","",ROUND($D13*INTRO!$E$50,0)) -> 14483 | H13: 1 | I13: 4 | J13: 2 | K13: 1 | L13: =IF(INTRO!$E$38="Endémique", IF($H13>0, IF($H13=4,"Inconnu", IF($H13=99,"Interrompu", $D13)), 0),"Non requis") -> 25566 | M13: =IF(INTRO!$E$40="Endémique", IF($I13>0, IF($I13=4,"Inconnu",IF($I13=99,"Interrompu", $D13)), 0),"Non requis") -> Inconnu | N13: =IF(INTRO!$E$42="Endémique", IF(AND($J13>1,$J13<5), IF($J13=4, "Inconnu", E13+F13), 0),"Non requis") -> 9950 | O13: =IF(INTRO!$E$44="Endémique", IF(AND($K13>0,$K13<5), IF($K13=4,"Inconnu", IF($K13=1, $F13*0.33, IF($K13=2, $F13*0.5+$G13*0.2, SUM(F13:G13)))), 0),"Non requis") -> 2161.5 | P13: 0 | Q13: 0 | R13: 0 | S13: 0 | Y13: 23652 | Z13: BELEM | AB13: ='MDA1'!M13 -> 0 | AC13: ='MDA3'!Q13 -> 0 | AD13: ='T1'!O13 -> 0 | AE13: ='T2'!M13 -> 0 | AF13: =T3_R1!N13 -> 0 | AG13: =T3_R2!N13 -> 0
A14: =IF(INTRO!$E$34<>0,INTRO!$E$34,"") -> Guinea Bissau | B14: SAB | C14: CMI | D14: 22194 | E14: =IF(INTRO!$E$48="","",ROUND($D14*INTRO!$E$48,0)) -> 2952 | F14: =IF(INTRO!$E$49="","",ROUND($D14*INTRO!$E$49,0)) -> 5686 | G14: =IF(INTRO!$E$50="","",ROUND($D14*INTRO!$E$50,0)) -> 12573 | H14: 1 | I14: 4 | J14: 1 | K14: 0 | L14: =IF(INTRO!$E$38="Endémique", IF($H14>0, IF($H14=4,"Inconnu", IF($H14=99,"Interrompu", $D14)), 0),"Non requis") -> 22194 | M14: =IF(INTRO!$E$40="Endémique", IF($I14>0, IF($I14=4,"Inconnu",IF($I14=99,"Interrompu", $D14)), 0),"Non requis") -> Inconnu | N14: =IF(INTRO!$E$42="Endémique", IF(AND($J14>1,$J14<5), IF($J14=4, "Inconnu", E14+F14), 0),"Non requis") -> 0 | O14: =IF(INTRO!$E$44="Endémique", IF(AND($K14>0,$K14<5), IF($K14=4,"Inconnu", IF($K14=1, $F14*0.33, IF($K14=2, $F14*0.5+$G14*0.2, SUM(F14:G14)))), 0),"Non requis") -> 0 | P14: 0 | Q14: 0 | R14: 0 | S14: 0 | Y14: 23746 | Z14: CMI | AB14: ='MDA1'!M14 -> 0 | AC14: ='MDA3'!Q14 -> 0 | AD14: ='T1'!O14 -> 0 | AE14: ='T2'!M14 -> 0 | AF14: =T3_R1!N14 -> 0 | AG14: =T3_R2!N14 -> 0
A15: =IF(INTRO!$E$34<>0,INTRO!$E$34,"") -> Guinea Bissau | B15: SAB | C15: CUNTUM | D15: 67357 | E15: =IF(INTRO!$E$48="","",ROUND($D15*INTRO!$E$48,0)) -> 8958 | F15: =IF(INTRO!$E$49="","",ROUND($D15*INTRO!$E$49,0)) -> 17257 | G15: =IF(INTRO!$E$50="","",ROUND($D15*INTRO!$E$50,0)) -> 38158 | H15: 1 | I15: 4 | J15: 1 | K15: 0 | L15: =IF(INTRO!$E$38="Endémique", IF($H15>0, IF($H15=4,"Inconnu", IF($H15=99,"Interrompu", $D15)), 0),"Non requis") -> 67357 | M15: =IF(INTRO!$E$40="Endémique", IF($I15>0, IF($I15=4,"Inconnu",IF($I15=99,"Interrompu", $D15)), 0),"Non requis") -> Inconnu | N15: =IF(INTRO!$E$42="Endémique", IF(AND($J15>1,$J15<5), IF($J15=4, "Inconnu", E15+F15), 0),"Non requis") -> 0 | O15: =IF(INTRO!$E$44="Endémique", IF(AND($K15>0,$K15<5), IF($K15=4,"Inconnu", IF($K15=1, $F15*0.33, IF($K15=2, $F15*0.5+$G15*0.2, SUM(F15:G15)))), 0),"Non requis") -> 0 | P15: 0 | Q15: 0 | R15: 0 | S15: 0 | Y15: 23653 | Z15: CUNTUM | AB15: ='MDA1'!M15 -> 0 | AC15: ='MDA3'!Q15 -> 0 | AD15: ='T1'!O15 -> 0 | AE15: ='T2'!M15 -> 0 | AF15: =T3_R1!N15 -> 0 | AG15: =T3_R2!N15 -> 0
A16: =IF(INTRO!$E$34<>0,INTRO!$E$34,"") -> Guinea Bissau | B16: SAB | C16: LUANDA | D16: 37374 | E16: =IF(INTRO!$E$48="","",ROUND($D16*INTRO!$E$48,0)) -> 4971 | F16: =IF(INTRO!$E$49="","",ROUND($D16*INTRO!$E$49,0)) -> 9575 | G16: =IF(INTRO!$E$50="","",ROUND($D16*INTRO!$E$50,0)) -> 21172 | H16: 1 | I16: 4 | J16: 2 | K16: 1 | L16: =IF(INTRO!$E$38="Endémique", IF($H16>0, IF($H16=4,"Inconnu", IF($H16=99,"Interrompu", $D16)), 0),"Non requis") -> 37374 | M16: =IF(INTRO!$E$40="Endémique", IF($I16>0, IF($I16=4,"Inconnu",IF($I16=99,"Interrompu", $D16)), 0),"Non requis") -> Inconnu | N16: =IF(INTRO!$E$42="Endémique", IF(AND($J16>1,$J16<5), IF($J16=4, "Inconnu", E16+F16), 0),"Non requis") -> 14546 | O16: =IF(INTRO!$E$44="Endémique", IF(AND($K16>0,$K16<5), IF($K16=4,"Inconnu", IF($K16=1, $F16*0.33, IF($K16=2, $F16*0.5+$G16*0.2, SUM(F16:G16)))), 0),"Non requis") -> 3159.75 | P16: 0 | Q16: 0 | R16: 0 | S16: 0 | Y16: 23747 | Z16: LUANDA | AB16: ='MDA1'!M16 -> 0 | AC16: ='MDA3'!Q16 -> 0 | AD16: ='T1'!O16 -> 0 | AE16: ='T2'!M16 -> 0 | AF16: =T3_R1!N16 -> 0 | AG16: =T3_R2!N16 -> 0
A17: =IF(INTRO!$E$34<>0,INTRO!$E$34,"") -> Guinea Bissau | B17: SAB | C17: MISSIRA | D17: 57473 | E17: =IF(INTRO!$E$48="","",ROUND($D17*INTRO!$E$48,0)) -> 7644 | F17: =IF(INTRO!$E$49="","",ROUND($D17*INTRO!$E$49,0)) -> 14725 | G17: =IF(INTRO!$E$50="","",ROUND($D17*INTRO!$E$50,0)) -> 32558 | H17: 1 | I17: 4 | J17: 0 | K17: 1 | L17: =IF(INTRO!$E$38="Endémique", IF($H17>0, IF($H17=4,"Inconnu", IF($H17=99,"Interrompu", $D17)), 0),"Non requis") -> 57473 | M17: =IF(INTRO!$E$40="Endémique", IF($I17>0, IF($I17=4,"Inconnu",IF($I17=99,"Interrompu", $D17)), 0),"Non requis") -> Inconnu | N17: =IF(INTRO!$E$42="Endémique", IF(AND($J17>1,$J17<5), IF($J17=4, "Inconnu", E17+F17), 0),"Non requis") -> 0 | O17: =IF(INTRO!$E$44="Endémique", IF(AND($K17>0,$K17<5), IF($K17=4,"Inconnu", IF($K17=1, $F17*0.33, IF($K17=2, $F17*0.5+$G17*0.2, SUM(F17:G17)))), 0),"Non requis") -> 4859.25 | P17: 0 | Q17: 0 | R17: 0 | S17: 0 | Y17: 23748 | Z17: MISSIRA | AB17: ='MDA1'!M17 -> 0 | AC17: ='MDA3'!Q17 -> 0 | AD17: ='T1'!O17 -> 0 | AE17: ='T2'!M17 -> 0 | AF17: =T3_R1!N17 -> 0 | AG17: =T3_R2!N17 -> 0
A18: =IF(INTRO!$E$34<>0,INTRO!$E$34,"") -> Guinea Bissau | B18: SAB | C18: PEFINE | D18: 21931 | E18: =IF(INTRO!$E$48="","",ROUND($D18*INTRO!$E$48,0)) -> 2917 | F18: =IF(INTRO!$E$49="","",ROUND($D18*INTRO!$E$49,0)) -> 5619 | G18: =IF(INTRO!$E$50="","",ROUND($D18*INTRO!$E$50,0)) -> 12424 | H18: 1 | I18: 4 | J18: 1 | K18: 1 | L18: =IF(INTRO!$E$38="Endémique", IF($H18>0, IF($H18=4,"Inconnu", IF($H18=99,"Interrompu", $D18)), 0),"Non requis") -> 21931 | M18: =IF(INTRO!$E$40="Endémique", IF($I18>0, IF($I18=4,"Inconnu",IF($I18=99,"Interrompu", $D18)), 0),"Non requis") -> Inconnu | N18: =IF(INTRO!$E$42="Endémique", IF(AND($J18>1,$J18<5), IF($J18=4, "Inconnu", E18+F18), 0),"Non requis") -> 0 | O18: =IF(INTRO!$E$44="Endémique", IF(AND($K18>0,$K18<5), IF($K18=4,"Inconnu", IF($K18=1, $F18*0.33, IF($K18=2, $F18*0.5+$G18*0.2, SUM(F18:G18)))), 0),"Non requis") -> 1854.27 | P18: 0 | Q18: 0 | R18: 0 | S18: 0 | Y18: 23749 | Z18: PEFINE | AB18: ='MDA1'!M18 -> 0 | AC18: ='MDA3'!Q18 -> 0 | AD18: ='T1'!O18 -> 0 | AE18: ='T2'!M18 -> 0 | AF18: =T3_R1!N18 -> 0 | AG18: =T3_R2!N18 -> 0
A19: =IF(INTRO!$E$34<>0,INTRO!$E$34,"") -> Guinea Bissau | B19: SAB | C19: PLACK II | D19: 40925 | E19: =IF(INTRO!$E$48="","",ROUND($D19*INTRO!$E$48,0)) -> 5443 | F19: =IF(INTRO!$E$49="","",ROUND($D19*INTRO!$E$49,0)) -> 10485 | G19: =IF(INTRO!$E$50="","",ROUND($D19*INTRO!$E$50,0)) -> 23184 | H19: 1 | I19: 4 | J19: 2 | K19: 0 | L19: =IF(INTRO!$E$38="Endémique", IF($H19>0, IF($H19=4,"Inconnu", IF($H19=99,"Interrompu", $D19)), 0),"Non requis") -> 40925 | M19: =IF(INTRO!$E$40="Endémique", IF($I19>0, IF($I19=4,"Inconnu",IF($I19=99,"Interrompu", $D19)), 0),"Non requis") -> Inconnu | N19: =IF(INTRO!$E$42="Endémique", IF(AND($J19>1,$J19<5), IF($J19=4, "Inconnu", E19+F19), 0),"Non requis") -> 15928 | O19: =IF(INTRO!$E$44="Endémique", IF(AND($K19>0,$K19<5), IF($K19=4,"Inconnu", IF($K19=1, $F19*0.33, IF($K19=2, $F19*0.5+$G19*0.2, SUM(F19:G19)))), 0),"Non requis") -> 0 | P19: 0 | Q19: 0 | R19: 0 | S19: 0 | Y19: 23750 | Z19: PLACK II | AB19: ='MDA1'!M19 -> 0 | AC19: ='MDA3'!Q19 -> 0 | AD19: ='T1'!O19 -> 0 | AE19: ='T2'!M19 -> 0 | AF19: =T3_R1!N19 -> 0 | AG19: =T3_R2!N19 -> 0
A20: =IF(INTRO!$E$34<>0,INTRO!$E$34,"") -> Guinea Bissau | B20: SAB | C20: QUELELE | D20: 42798 | E20: =IF(INTRO!$E$48="","",ROUND($D20*INTRO!$E$48,0)) -> 5692 | F20: =IF(INTRO!$E$49="","",ROUND($D20*INTRO!$E$49,0)) -> 10965 | G20: =IF(INTRO!$E$50="","",ROUND($D20*INTRO!$E$50,0)) -> 24245 | H20: 1 | I20: 4 | J20: 2 | K20: 0 | L20: =IF(INTRO!$E$38="Endémique", IF($H20>0, IF($H20=4,"Inconnu", IF($H20=99,"Interrompu", $D20)), 0),"Non requis") -> 42798 | M20: =IF(INTRO!$E$40="Endémique", IF($I20>0, IF($I20=4,"Inconnu",IF($I20=99,"Interrompu", $D20)), 0),"Non requis") -> Inconnu | N20: =IF(INTRO!$E$42="Endémique", IF(AND($J20>1,$J20<5), IF($J20=4, "Inconnu", E20+F20), 0),"Non requis") -> 16657 | O20: =IF(INTRO!$E$44="Endémique", IF(AND($K20>0,$K20<5), IF($K20=4,"Inconnu", IF($K20=1, $F20*0.33, IF($K20=2, $F20*0.5+$G20*0.2, SUM(F20:G20)))), 0),"Non requis") -> 0 | P20: 0 | Q20: 0 | R20: 0 | S20: 0 | Y20: 23654 | Z20: QUELELE | AB20: ='MDA1'!M20 -> 0 | AC20: ='MDA3'!Q20 -> 0 | AD20: ='T1'!O20 -> 0 | AE20: ='T2'!M20 -> 0 | AF20: =T3_R1!N20 -> 0 | AG20: =T3_R2!N20 -> 0
A21: =IF(INTRO!$E$34<>0,INTRO!$E$34,"") -> Guinea Bissau | B21: SAB | C21: SANTA LUZIA | D21: 25479 | E21: =IF(INTRO!$E$48="","",ROUND($D21*INTRO!$E$48,0)) -> 3389 | F21: =IF(INTRO!$E$49="","",ROUND($D21*INTRO!$E$49,0)) -> 6528 | G21: =IF(INTRO!$E$50="","",ROUND($D21*INTRO!$E$50,0)) -> 14434 | H21: 1 | I21: 4 | J21: 2 | K21: 1 | L21: =IF(INTRO!$E$38="Endémique", IF($H21>0, IF($H21=4,"Inconnu", IF($H21=99,"Interrompu", $D21)), 0),"Non requis") -> 25479 | M21: =IF(INTRO!$E$40="Endémique", IF($I21>0, IF($I21=4,"Inconnu",IF($I21=99,"Interrompu", $D21)), 0),"Non requis") -> Inconnu | N21: =IF(INTRO!$E$42="Endémique", IF(AND($J21>1,$J21<5), IF($J21=4, "Inconnu", E21+F21), 0),"Non requis") -> 9917 | O21: =IF(INTRO!$E$44="Endémique", IF(AND($K21>0,$K21<5), IF($K21=4,"Inconnu", IF($K21=1, $F21*0.33, IF($K21=2, $F21*0.5+$G21*0.2, SUM(F21:G21)))), 0),"Non requis") -> 2154.24 | P21: 0 | Q21: 0 | R21: 0 | S21: 0 | Y21: 23751 | Z21: SANTA LUZIA | AB21: ='MDA1'!M21 -> 0 | AC21: ='MDA3'!Q21 -> 0 | AD21: ='T1'!O21 -> 0 | AE21: ='T2'!M21 -> 0 | AF21: =T3_R1!N21 -> 0 | AG21: =T3_R2!N21 -> 0
A22: =IF(INTRO!$E$34<>0,INTRO!$E$34,"") -> Guinea Bissau | B22: SAB | C22: SINTRA NEMA | D22: 31768 | E22: =IF(INTRO!$E$48="","",ROUND($D22*INTRO!$E$48,0)) -> 4225 | F22: =IF(INTRO!$E$49="","",ROUND($D22*INTRO!$E$49,0)) -> 8139 | G22: =IF(INTRO!$E$50="","",ROUND($D22*INTRO!$E$50,0)) -> 17997 | H22: 1 | I22: 4 | J22: 2 | K22: 1 | L22: =IF(INTRO!$E$38="Endémique", IF($H22>0, IF($H22=4,"Inconnu", IF($H22=99,"Interrompu", $D22)), 0),"Non requis") -> 31768 | M22: =IF(INTRO!$E$40="Endémique", IF($I22>0, IF($I22=4,"Inconnu",IF($I22=99,"Interrompu", $D22)), 0),"Non requis") -> Inconnu | N22: =IF(INTRO!$E$42="Endémique", IF(AND($J22>1,$J22<5), IF($J22=4, "Inconnu", E22+F22), 0),"Non requis") -> 12364 | O22: =IF(INTRO!$E$44="Endémique", IF(AND($K22>0,$K22<5), IF($K22=4,"Inconnu", IF($K22=1, $F22*0.33, IF($K22=2, $F22*0.5+$G22*0.2, SUM(F22:G22)))), 0),"Non requis") -> 2685.87 | P22: 0 | Q22: 0 | R22: 0 | S22: 0 | Y22: 23752 | Z22: SINTRA NEMA | AB22: ='MDA1'!M22 -> 0 | AC22: ='MDA3'!Q22 -> 0 | AD22: ='T1'!O22 -> 0 | AE22: ='T2'!M22 -> 0 | AF22: =T3_R1!N22 -> 0 | AG22: =T3_R2!N22 -> 0
A23: =IF(INTRO!$E$34<>0,INTRO!$E$34,"") -> Guinea Bissau | B23: Bijagos | C23: Bubaque | D23: 7916 | E23: =IF(INTRO!$E$48="","",ROUND($D23*INTRO!$E$48,0)) -> 1053 | F23: =IF(INTRO!$E$49="","",ROUND($D23*INTRO!$E$49,0)) -> 2028 | G23: =IF(INTRO!$E$50="","",ROUND($D23*INTRO!$E$50,0)) -> 4484 | H23: 1 | I23: 4 | J23: 3 | K23: 0 | L23: =IF(INTRO!$E$38="Endémique", IF($H23>0, IF($H23=4,"Inconnu", IF($H23=99,"Interrompu", $D23)), 0),"Non requis") -> 7916 | M23: =IF(INTRO!$E$40="Endémique", IF($I23>0, IF($I23=4,"Inconnu",IF($I23=99,"Interrompu", $D23)), 0),"Non requis") -> Inconnu | N23: =IF(INTRO!$E$42="Endémique", IF(AND($J23>1,$J23<5), IF($J23=4, "Inconnu", E23+F23), 0),"Non requis") -> 3081 | O23: =IF(INTRO!$E$44="Endémique", IF(AND($K23>0,$K23<5), IF($K23=4,"Inconnu", IF($K23=1, $F23*0.33, IF($K23=2, $F23*0.5+$G23*0.2, SUM(F23:G23)))), 0),"Non requis") -> 0 | P23: 1 | Q23: 0 | R23: 1 | S23: 0 | T23: MDA1 (IVM+ALB) | Y23: 23670 | Z23: Bubaque | AB23: ='MDA1'!M23 -> 4991 | AC23: ='MDA3'!Q23 -> 0 | AD23: ='T1'!O23 -> 0 | AE23: ='T2'!M23 -> 0 | AF23: =T3_R1!N23 -> 0 | AG23: =T3_R2!N23 -> 0
A24: =IF(INTRO!$E$34<>0,INTRO!$E$34,"") -> Guinea Bissau | B24: Bijagos | C24: Canhabaque | D24: 3114 | E24: =IF(INTRO!$E$48="","",ROUND($D24*INTRO!$E$48,0)) -> 414 | F24: =IF(INTRO!$E$49="","",ROUND($D24*INTRO!$E$49,0)) -> 798 | G24: =IF(INTRO!$E$50="","",ROUND($D24*INTRO!$E$50,0)) -> 1764 | H24: 1 | I24: 4 | J24: 3 | K24: 0 | L24: =IF(INTRO!$E$38="Endémique", IF($H24>0, IF($H24=4,"Inconnu", IF($H24=99,"Interrompu", $D24)), 0),"Non requis") -> 3114 | M24: =IF(INTRO!$E$40="Endémique", IF($I24>0, IF($I24=4,"Inconnu",IF($I24=99,"Interrompu", $D24)), 0),"Non requis") -> Inconnu | N24: =IF(INTRO!$E$42="Endémique", IF(AND($J24>1,$J24<5), IF($J24=4, "Inconnu", E24+F24), 0),"Non requis") -> 1212 | O24: =IF(INTRO!$E$44="Endémique", IF(AND($K24>0,$K24<5), IF($K24=4,"Inconnu", IF($K24=1, $F24*0.33, IF($K24=2, $F24*0.5+$G24*0.2, SUM(F24:G24)))), 0),"Non requis") -> 0 | P24: 1 | Q24: 0 | R24: 1 | S24: 0 | T24: MDA1 (IVM+ALB) | Y24: 23642 | Z24: Canhabaque | AB24: ='MDA1'!M24 -> 2463 | AC24: ='MDA3'!Q24 -> 0 | AD24: ='T1'!O24 -> 0 | AE24: ='T2'!M24 -> 0 | AF24: =T3_R1!N24 -> 0 | AG24: =T3_R2!N24 -> 0
A25: =IF(INTRO!$E$34<>0,INTRO!$E$34,"") -> Guinea Bissau | B25: Bijagos | C25: Canogo | D25: 711 | E25: =IF(INTRO!$E$48="","",ROUND($D25*INTRO!$E$48,0)) -> 95 | F25: =IF(INTRO!$E$49="","",ROUND($D25*INTRO!$E$49,0)) -> 182 | G25: =IF(INTRO!$E$50="","",ROUND($D25*INTRO!$E$50,0)) -> 403 | H25: 1 | I25: 4 | J25: 3 | K25: 0 | L25: =IF(INTRO!$E$38="Endémique", IF($H25>0, IF($H25=4,"Inconnu", IF($H25=99,"Interrompu", $D25)), 0),"Non requis") -> 711 | M25: =IF(INTRO!$E$40="Endémique", IF($I25>0, IF($I25=4,"Inconnu",IF($I25=99,"Interrompu", $D25)), 0),"Non requis") -> Inconnu | N25: =IF(INTRO!$E$42="Endémique", IF(AND($J25>1,$J25<5), IF($J25=4, "Inconnu", E25+F25), 0),"Non requis") -> 277 | O25: =IF(INTRO!$E$44="Endémique", IF(AND($K25>0,$K25<5), IF($K25=4,"Inconnu", IF($K25=1, $F25*0.33, IF($K25=2, $F25*0.5+$G25*0.2, SUM(F25:G25)))), 0),"Non requis") -> 0 | P25: 1 | Q25: 0 | R25: 1 | S25: 0 | T25: MDA1 (IVM+ALB) | Y25: 23643 | Z25: Canogo | AB25: ='MDA1'!M25 -> 542 | AC25: ='MDA3'!Q25 -> 0 | AD25: ='T1'!O25 -> 0 | AE25: ='T2'!M25 -> 0 | AF25: =T3_R1!N25 -> 0 | AG25: =T3_R2!N25 -> 0
A26: =IF(INTRO!$E$34<>0,INTRO!$E$34,"") -> Guinea Bissau | B26: Bijagos | C26: Caravela | D26: 2206 | E26: =IF(INTRO!$E$48="","",ROUND($D26*INTRO!$E$48,0)) -> 293 | F26: =IF(INTRO!$E$49="","",ROUND($D26*INTRO!$E$49,0)) -> 565 | G26: =IF(INTRO!$E$50="","",ROUND($D26*INTRO!$E$50,0)) -> 1250 | H26: 1 | I26: 4 | J26: 3 | K26: 0 | L26: =IF(INTRO!$E$38="Endémique", IF($H26>0, IF($H26=4,"Inconnu", IF($H26=99,"Interrompu", $D26)), 0),"Non requis") -> 2206 | M26: =IF(INTRO!$E$40="Endémique", IF($I26>0, IF($I26=4,"Inconnu",IF($I26=99,"Interrompu", $D26)), 0),"Non requis") -> Inconnu | N26: =IF(INTRO!$E$42="Endémique", IF(AND($J26>1,$J26<5), IF($J26=4, "Inconnu", E26+F26), 0),"Non requis") -> 858 | O26: =IF(INTRO!$E$44="Endémique", IF(AND($K26>0,$K26<5), IF($K26=4,"Inconnu", IF($K26=1, $F26*0.33, IF($K26=2, $F26*0.5+$G26*0.2, SUM(F26:G26)))), 0),"Non requis") -> 0 | P26: 1 | Q26: 0 | R26: 1 | S26: 0 | T26: MDA1 (IVM+ALB) | Y26: 23671 | Z26: Caravela | AB26: ='MDA1'!M26 -> 1480 | AC26: ='MDA3'!Q26 -> 0 | AD26: ='T1'!O26 -> 0 | AE26: ='T2'!M26 -> 0 | AF26: =T3_R1!N26 -> 0 | AG26: =T3_R2!N26 -> 0
A27: =IF(INTRO!$E$34<>0,INTRO!$E$34,"") -> Guinea Bissau | B27: Bijagos | C27: Formosa | D27: 3644 | E27: =IF(INTRO!$E$48="","",ROUND($D27*INTRO!$E$48,0)) -> 485 | F27: =IF(INTRO!$E$49="","",ROUND($D27*INTRO!$E$49,0)) -> 934 | G27: =IF(INTRO!$E$50="","",ROUND($D27*INTRO!$E$50,0)) -> 2064 | H27: 1 | I27: 4 | J27: 3 | K27: 0 | L27: =IF(INTRO!$E$38="Endémique", IF($H27>0, IF($H27=4,"Inconnu", IF($H27=99,"Interrompu", $D27)), 0),"Non requis") -> 3644 | M27: =IF(INTRO!$E$40="Endémique", IF($I27>0, IF($I27=4,"Inconnu",IF($I27=99,"Interrompu", $D27)), 0),"Non requis") -> Inconnu | N27: =IF(INTRO!$E$42="Endémique", IF(AND($J27>1,$J27<5), IF($J27=4, "Inconnu", E27+F27), 0),"Non requis") -> 1419 | O27: =IF(INTRO!$E$44="Endémique", IF(AND($K27>0,$K27<5), IF($K27=4,"Inconnu", IF($K27=1, $F27*0.33, IF($K27=2, $F27*0.5+$G27*0.2, SUM(F27:G27)))), 0),"Non requis") -> 0 | P27: 1 | Q27: 0 | R27: 1 | S27: 0 | T27: MDA1 (IVM+ALB) | Y27: 23672 | Z27: Formosa | AB27: ='MDA1'!M27 -> 2629 | AC27: ='MDA3'!Q27 -> 0 | AD27: ='T1'!O27 -> 0 | AE27: ='T2'!M27 -> 0 | AF27: =T3_R1!N27 -> 0 | AG27: =T3_R2!N27 -> 0
A28: =IF(INTRO!$E$34<>0,INTRO!$E$34,"") -> Guinea Bissau | B28: Bijagos | C28: Orango Grande | D28: 1531 | E28: =IF(INTRO!$E$48="","",ROUND($D28*INTRO!$E$48,0)) -> 204 | F28: =IF(INTRO!$E$49="","",ROUND($D28*INTRO!$E$49,0)) -> 392 | G28: =IF(INTRO!$E$50="","",ROUND($D28*INTRO!$E$50,0)) -> 867 | H28: 1 | I28: 4 | J28: 3 | K28: 0 | L28: =IF(INTRO!$E$38="Endémique", IF($H28>0, IF($H28=4,"Inconnu", IF($H28=99,"Interrompu", $D28)), 0),"Non requis") -> 1531 | M28: =IF(INTRO!$E$40="Endémique", IF($I28>0, IF($I28=4,"Inconnu",IF($I28=99,"Interrompu", $D28)), 0),"Non requis") -> Inconnu | N28: =IF(INTRO!$E$42="Endémique", IF(AND($J28>1,$J28<5), IF($J28=4, "Inconnu", E28+F28), 0),"Non requis") -> 596 | O28: =IF(INTRO!$E$44="Endémique", IF(AND($K28>0,$K28<5), IF($K28=4,"Inconnu", IF($K28=1, $F28*0.33, IF($K28=2, $F28*0.5+$G28*0.2, SUM(F28:G28)))), 0),"Non requis") -> 0 | P28: 1 | Q28: 0 | R28: 1 | S28: 0 | T28: MDA1 (IVM+ALB) | Y28: 23673 | Z28: Orango Grande | AB28: ='MDA1'!M28 -> 1116 | AC28: ='MDA3'!Q28 -> 0 | AD28: ='T1'!O28 -> 0 | AE28: ='T2'!M28 -> 0 | AF28: =T3_R1!N28 -> 0 | AG28: =T3_R2!N28 -> 0
A29: =IF(INTRO!$E$34<>0,INTRO!$E$34,"") -> Guinea Bissau | B29: Bijagos | C29: Orango zinho | D29: 865 | E29: =IF(INTRO!$E$48="","",ROUND($D29*INTRO!$E$48,0)) -> 115 | F29: =IF(INTRO!$E$49="","",ROUND($D29*INTRO!$E$49,0)) -> 222 | G29: =IF(INTRO!$E$50="","",ROUND($D29*INTRO!$E$50,0)) -> 490 | H29: 1 | I29: 4 | J29: 3 | K29: 0 | L29: =IF(INTRO!$E$38="Endémique", IF($H29>0, IF($H29=4,"Inconnu", IF($H29=99,"Interrompu", $D29)), 0),"Non requis") -> 865 | M29: =IF(INTRO!$E$40="Endémique", IF($I29>0, IF($I29=4,"Inconnu",IF($I29=99,"Interrompu", $D29)), 0),"Non requis") -> Inconnu | N29: =IF(INTRO!$E$42="Endémique", IF(AND($J29>1,$J29<5), IF($J29=4, "Inconnu", E29+F29), 0),"Non requis") -> 337 | O29: =IF(INTRO!$E$44="Endémique", IF(AND($K29>0,$K29<5), IF($K29=4,"Inconnu", IF($K29=1, $F29*0.33, IF($K29=2, $F29*0.5+$G29*0.2, SUM(F29:G29)))), 0),"Non requis") -> 0 | P29: 1 | Q29: 0 | R29: 1 | S29: 0 | T29: MDA1 (IVM+ALB) | Y29: 23674 | Z29: Orango zinho | AB29: ='MDA1'!M29 -> 854 | AC29: ='MDA3'!Q29 -> 0 | AD29: ='T1'!O29 -> 0 | AE29: ='T2'!M29 -> 0 | AF29: =T3_R1!N29 -> 0 | AG29: =T3_R2!N29 -> 0
A30: =IF(INTRO!$E$34<>0,INTRO!$E$34,"") -> Guinea Bissau | B30: Bijagos | C30: Soga | D30: 1032 | E30: =IF(INTRO!$E$48="","",ROUND($D30*INTRO!$E$48,0)) -> 137 | F30: =IF(INTRO!$E$49="","",ROUND($D30*INTRO!$E$49,0)) -> 264 | G30: =IF(INTRO!$E$50="","",ROUND($D30*INTRO!$E$50,0)) -> 585 | H30: 1 | I30: 4 | J30: 3 | K30: 0 | L30: =IF(INTRO!$E$38="Endémique", IF($H30>0, IF($H30=4,"Inconnu", IF($H30=99,"Interrompu", $D30)), 0),"Non requis") -> 1032 | M30: =IF(INTRO!$E$40="Endémique", IF($I30>0, IF($I30=4,"Inconnu",IF($I30=99,"Interrompu", $D30)), 0),"Non requis") -> Inconnu | N30: =IF(INTRO!$E$42="Endémique", IF(AND($J30>1,$J30<5), IF($J30=4, "Inconnu", E30+F30), 0),"Non requis") -> 401 | O30: =IF(INTRO!$E$44="Endémique", IF(AND($K30>0,$K30<5), IF($K30=4,"Inconnu", IF($K30=1, $F30*0.33, IF($K30=2, $F30*0.5+$G30*0.2, SUM(F30:G30)))), 0),"Non requis") -> 0 | P30: 1 | Q30: 0 | R30: 1 | S30: 0 | T30: MDA1 (IVM+ALB) | Y30: 23675 | Z30: Soga | AB30: ='MDA1'!M30 -> 710 | AC30: ='MDA3'!Q30 -> 0 | AD30: ='T1'!O30 -> 0 | AE30: ='T2'!M30 -> 0 | AF30: =T3_R1!N30 -> 0 | AG30: =T3_R2!N30 -> 0
A31: =IF(INTRO!$E$34<>0,INTRO!$E$34,"") -> Guinea Bissau | B31: Bijagos | C31: Unhocomo | D31: 1038 | E31: =IF(INTRO!$E$48="","",ROUND($D31*INTRO!$E$48,0)) -> 138 | F31: =IF(INTRO!$E$49="","",ROUND($D31*INTRO!$E$49,0)) -> 266 | G31: =IF(INTRO!$E$50="","",ROUND($D31*INTRO!$E$50,0)) -> 588 | H31: 1 | I31: 4 | J31: 3 | K31: 0 | L31: =IF(INTRO!$E$38="Endémique", IF($H31>0, IF($H31=4,"Inconnu", IF($H31=99,"Interrompu", $D31)), 0),"Non requis") -> 1038 | M31: =IF(INTRO!$E$40="Endémique", IF($I31>0, IF($I31=4,"Inconnu",IF($I31=99,"Interrompu", $D31)), 0),"Non requis") -> Inconnu | N31: =IF(INTRO!$E$42="Endémique", IF(AND($J31>1,$J31<5), IF($J31=4, "Inconnu", E31+F31), 0),"Non requis") -> 404 | O31: =IF(INTRO!$E$44="Endémique", IF(AND($K31>0,$K31<5), IF($K31=4,"Inconnu", IF($K31=1, $F31*0.33, IF($K31=2, $F31*0.5+$G31*0.2, SUM(F31:G31)))), 0),"Non requis") -> 0 | P31: 1 | Q31: 0 | R31: 1 | S31: 0 | T31: MDA1 (IVM+ALB) | Y31: 23644 | Z31: Unhocomo | AB31: ='MDA1'!M31 -> 655 | AC31: ='MDA3'!Q31 -> 0 | AD31: ='T1'!O31 -> 0 | AE31: ='T2'!M31 -> 0 | AF31: =T3_R1!N31 -> 0 | AG31: =T3_R2!N31 -> 0
A32: =IF(INTRO!$E$34<>0,INTRO!$E$34,"") -> Guinea Bissau | B32: Bijagos | C32: Uno | D32: 4074 | E32: =IF(INTRO!$E$48="","",ROUND($D32*INTRO!$E$48,0)) -> 542 | F32: =IF(INTRO!$E$49="","",ROUND($D32*INTRO!$E$49,0)) -> 1044 | G32: =IF(INTRO!$E$50="","",ROUND($D32*INTRO!$E$50,0)) -> 2308 | H32: 1 | I32: 4 | J32: 3 | K32: 0 | L32: =IF(INTRO!$E$38="Endémique", IF($H32>0, IF($H32=4,"Inconnu", IF($H32=99,"Interrompu", $D32)), 0),"Non requis") -> 4074 | M32: =IF(INTRO!$E$40="Endémique", IF($I32>0, IF($I32=4,"Inconnu",IF($I32=99,"Interrompu", $D32)), 0),"Non requis") -> Inconnu | N32: =IF(INTRO!$E$42="Endémique", IF(AND($J32>1,$J32<5), IF($J32=4, "Inconnu", E32+F32), 0),"Non requis") -> 1586 | O32: =IF(INTRO!$E$44="Endémique", IF(AND($K32>0,$K32<5), IF($K32=4,"Inconnu", IF($K32=1, $F32*0.33, IF($K32=2, $F32*0.5+$G32*0.2, SUM(F32:G32)))), 0),"Non requis") -> 0 | P32: 1 | Q32: 0 | R32: 1 | S32: 0 | T32: MDA1 (IVM+ALB) | Y32: 23676 | Z32: Uno | AB32: ='MDA1'!M32 -> 3466 | AC32: ='MDA3'!Q32 -> 0 | AD32: ='T1'!O32 -> 0 | AE32: ='T2'!M32 -> 0 | AF32: =T3_R1!N32 -> 0 | AG32: =T3_R2!N32 -> 0
A33: =IF(INTRO!$E$34<>0,INTRO!$E$34,"") -> Guinea Bissau | B33: Bijagos | C33: Uracane | D33: 1892 | E33: =IF(INTRO!$E$48="","",ROUND($D33*INTRO!$E$48,0)) -> 252 | F33: =IF(INTRO!$E$49="","",ROUND($D33*INTRO!$E$49,0)) -> 485 | G33: =IF(INTRO!$E$50="","",ROUND($D33*INTRO!$E$50,0)) -> 1072 | H33: 1 | I33: 4 | J33: 3 | K33: 0 | L33: =IF(INTRO!$E$38="Endémique", IF($H33>0, IF($H33=4,"Inconnu", IF($H33=99,"Interrompu", $D33)), 0),"Non requis") -> 1892 | M33: =IF(INTRO!$E$40="Endémique", IF($I33>0, IF($I33=4,"Inconnu",IF($I33=99,"Interrompu", $D33)), 0),"Non requis") -> Inconnu | N33: =IF(INTRO!$E$42="Endémique", IF(AND($J33>1,$J33<5), IF($J33=4, "Inconnu", E33+F33), 0),"Non requis") -> 737 | O33: =IF(INTRO!$E$44="Endémique", IF(AND($K33>0,$K33<5), IF($K33=4,"Inconnu", IF($K33=1, $F33*0.33, IF($K33=2, $F33*0.5+$G33*0.2, SUM(F33:G33)))), 0),"Non requis") -> 0 | P33: 1 | Q33: 0 | R33: 1 | S33: 0 | T33: MDA1 (IVM+ALB) | Y33: 23677 | Z33: Uracane | AB33: ='MDA1'!M33 -> 1411 | AC33: ='MDA3'!Q33 -> 0 | AD33: ='T1'!O33 -> 0 | AE33: ='T2'!M33 -> 0 | AF33: =T3_R1!N33 -> 0 | AG33: =T3_R2!N33 -> 0
A34: =IF(INTRO!$E$34<>0,INTRO!$E$34,"") -> Guinea Bissau | B34: Biombo | C34: BIJIMITA | D34: 12356 | E34: =IF(INTRO!$E$48="","",ROUND($D34*INTRO!$E$48,0)) -> 1643 | F34: =IF(INTRO!$E$49="","",ROUND($D34*INTRO!$E$49,0)) -> 3166 | G34: =IF(INTRO!$E$50="","",ROUND($D34*INTRO!$E$50,0)) -> 7000 | H34: 1 | I34: 4 | J34: 3 | K34: 0 | L34: =IF(INTRO!$E$38="Endémique", IF($H34>0, IF($H34=4,"Inconnu", IF($H34=99,"Interrompu", $D34)), 0),"Non requis") -> 12356 | M34: =IF(INTRO!$E$40="Endémique", IF($I34>0, IF($I34=4,"Inconnu",IF($I34=99,"Interrompu", $D34)), 0),"Non requis") -> Inconnu | N34: =IF(INTRO!$E$42="Endémique", IF(AND($J34>1,$J34<5), IF($J34=4, "Inconnu", E34+F34), 0),"Non requis") -> 4809 | O34: =IF(INTRO!$E$44="Endémique", IF(AND($K34>0,$K34<5), IF($K34=4,"Inconnu", IF($K34=1, $F34*0.33, IF($K34=2, $F34*0.5+$G34*0.2, SUM(F34:G34)))), 0),"Non requis") -> 0 | P34: 0 | Q34: 0 | R34: 0 | S34: 0 | Y34: 23645 | Z34: BIJIMITA | AB34: ='MDA1'!M34 -> 0 | AC34: ='MDA3'!Q34 -> 0 | AD34: ='T1'!O34 -> 0 | AE34: ='T2'!M34 -> 0 | AF34: =T3_R1!N34 -> 0 | AG34: =T3_R2!N34 -> 0
A35: =IF(INTRO!$E$34<>0,INTRO!$E$34,"") -> Guinea Bissau | B35: Biombo | C35: CUMURA | D35: 17181 | E35: =IF(INTRO!$E$48="","",ROUND($D35*INTRO!$E$48,0)) -> 2285 | F35: =IF(INTRO!$E$49="","",ROUND($D35*INTRO!$E$49,0)) -> 4402 | G35: =IF(INTRO!$E$50="","",ROUND($D35*INTRO!$E$50,0)) -> 9733 | H35: 1 | I35: 4 | J35: 3 | K35: 0 | L35: =IF(INTRO!$E$38="Endémique", IF($H35>0, IF($H35=4,"Inconnu", IF($H35=99,"Interrompu", $D35)), 0),"Non requis") -> 17181 | M35: =IF(INTRO!$E$40="Endémique", IF($I35>0, IF($I35=4,"Inconnu",IF($I35=99,"Interrompu", $D35)), 0),"Non requis") -> Inconnu | N35: =IF(INTRO!$E$42="Endémique", IF(AND($J35>1,$J35<5), IF($J35=4, "Inconnu", E35+F35), 0),"Non requis") -> 6687 | O35: =IF(INTRO!$E$44="Endémique", IF(AND($K35>0,$K35<5), IF($K35=4,"Inconnu", IF($K35=1, $F35*0.33, IF($K35=2, $F35*0.5+$G35*0.2, SUM(F35:G35)))), 0),"Non requis") -> 0 | P35: 0 | Q35: 0 | R35: 0 | S35: 0 | Y35: 23678 | Z35: CUMURA | AB35: ='MDA1'!M35 -> 0 | AC35: ='MDA3'!Q35 -> 0 | AD35: ='T1'!O35 -> 0 | AE35: ='T2'!M35 -> 0 | AF35: =T3_R1!N35 -> 0 | AG35: =T3_R2!N35 -> 0
A36: =IF(INTRO!$E$34<>0,INTRO!$E$34,"") -> Guinea Bissau | B36: Biombo | C36: DORSE | D36: 8054 | E36: =IF(INTRO!$E$48="","",ROUND($D36*INTRO!$E$48,0)) -> 1071 | F36: =IF(INTRO!$E$49="","",ROUND($D36*INTRO!$E$49,0)) -> 2063 | G36: =IF(INTRO!$E$50="","",ROUND($D36*INTRO!$E$50,0)) -> 4563 | H36: 1 | I36: 4 | J36: 3 | K36: 0 | L36: =IF(INTRO!$E$38="Endémique", IF($H36>0, IF($H36=4,"Inconnu", IF($H36=99,"Interrompu", $D36)), 0),"Non requis") -> 8054 | M36: =IF(INTRO!$E$40="Endémique", IF($I36>0, IF($I36=4,"Inconnu",IF($I36=99,"Interrompu", $D36)), 0),"Non requis") -> Inconnu | N36: =IF(INTRO!$E$42="Endémique", IF(AND($J36>1,$J36<5), IF($J36=4, "Inconnu", E36+F36), 0),"Non requis") -> 3134 | O36: =IF(INTRO!$E$44="Endémique", IF(AND($K36>0,$K36<5), IF($K36=4,"Inconnu", IF($K36=1, $F36*0.33, IF($K36=2, $F36*0.5+$G36*0.2, SUM(F36:G36)))), 0),"Non requis") -> 0 | P36: 0 | Q36: 0 | R36: 0 | S36: 0 | Y36: 23646 | Z36: DORSE | AB36: ='MDA1'!M36 -> 0 | AC36: ='MDA3'!Q36 -> 0 | AD36: ='T1'!O36 -> 0 | AE36: ='T2'!M36 -> 0 | AF36: =T3_R1!N36 -> 0 | AG36: =T3_R2!N36 -> 0
A37: =IF(INTRO!$E$34<>0,INTRO!$E$34,"") -> Guinea Bissau | B37: Biombo | C37: ILONDE | D37: 9533 | E37: =IF(INTRO!$E$48="","",ROUND($D37*INTRO!$E$48,0)) -> 1268 | F37: =IF(INTRO!$E$49="","",ROUND($D37*INTRO!$E$49,0)) -> 2442 | G37: =IF(INTRO!$E$50="","",ROUND($D37*INTRO!$E$50,0)) -> 5400 | H37: 1 | I37: 4 | J37: 1 | K37: 0 | L37: =IF(INTRO!$E$38="Endémique", IF($H37>0, IF($H37=4,"Inconnu", IF($H37=99,"Interrompu", $D37)), 0),"Non requis") -> 9533 | M37: =IF(INTRO!$E$40="Endémique", IF($I37>0, IF($I37=4,"Inconnu",IF($I37=99,"Interrompu", $D37)), 0),"Non requis") -> Inconnu | N37: =IF(INTRO!$E$42="Endémique", IF(AND($J37>1,$J37<5), IF($J37=4, "Inconnu", E37+F37), 0),"Non requis") -> 0 | O37: =IF(INTRO!$E$44="Endémique", IF(AND($K37>0,$K37<5), IF($K37=4,"Inconnu", IF($K37=1, $F37*0.33, IF($K37=2, $F37*0.5+$G37*0.2, SUM(F37:G37)))), 0),"Non requis") -> 0 | P37: 0 | Q37: 0 | R37: 0 | S37: 0 | Y37: 23647 | Z37: ILONDE | AB37: ='MDA1'!M37 -> 0 | AC37: ='MDA3'!Q37 -> 0 | AD37: ='T1'!O37 -> 0 | AE37: ='T2'!M37 -> 0 | AF37: =T3_R1!N37 -> 0 | AG37: =T3_R2!N37 -> 0
A38: =IF(INTRO!$E$34<>0,INTRO!$E$34,"") -> Guinea Bissau | B38: Biombo | C38: ONDAME | D38: 16783 | E38: =IF(INTRO!$E$48="","",ROUND($D38*INTRO!$E$48,0)) -> 2232 | F38: =IF(INTRO!$E$49="","",ROUND($D38*INTRO!$E$49,0)) -> 4300 | G38: =IF(INTRO!$E$50="","",ROUND($D38*INTRO!$E$50,0)) -> 9508 | H38: 1 | I38: 4 | J38: 3 | K38: 0 | L38: =IF(INTRO!$E$38="Endémique", IF($H38>0, IF($H38=4,"Inconnu", IF($H38=99,"Interrompu", $D38)), 0),"Non requis") -> 16783 | M38: =IF(INTRO!$E$40="Endémique", IF($I38>0, IF($I38=4,"Inconnu",IF($I38=99,"Interrompu", $D38)), 0),"Non requis") -> Inconnu | N38: =IF(INTRO!$E$42="Endémique", IF(AND($J38>1,$J38<5), IF($J38=4, "Inconnu", E38+F38), 0),"Non requis") -> 6532 | O38: =IF(INTRO!$E$44="Endémique", IF(AND($K38>0,$K38<5), IF($K38=4,"Inconnu", IF($K38=1, $F38*0.33, IF($K38=2, $F38*0.5+$G38*0.2, SUM(F38:G38)))), 0),"Non requis") -> 0 | P38: 0 | Q38: 0 | R38: 0 | S38: 0 | Y38: 23679 | Z38: ONDAME | AB38: ='MDA1'!M38 -> 0 | AC38: ='MDA3'!Q38 -> 0 | AD38: ='T1'!O38 -> 0 | AE38: ='T2'!M38 -> 0 | AF38: =T3_R1!N38 -> 0 | AG38: =T3_R2!N38 -> 0
A39: =IF(INTRO!$E$34<>0,INTRO!$E$34,"") -> Guinea Bissau | B39: Biombo | C39: PRABIS | D39: 11688 | E39: =IF(INTRO!$E$48="","",ROUND($D39*INTRO!$E$48,0)) -> 1555 | F39: =IF(INTRO!$E$49="","",ROUND($D39*INTRO!$E$49,0)) -> 2994 | G39: =IF(INTRO!$E$50="","",ROUND($D39*INTRO!$E$50,0)) -> 6621 | H39: 1 | I39: 4 | J39: 3 | K39: 0 | L39: =IF(INTRO!$E$38="Endémique", IF($H39>0, IF($H39=4,"Inconnu", IF($H39=99,"Interrompu", $D39)), 0),"Non requis") -> 11688 | M39: =IF(INTRO!$E$40="Endémique", IF($I39>0, IF($I39=4,"Inconnu",IF($I39=99,"Interrompu", $D39)), 0),"Non requis") -> Inconnu | N39: =IF(INTRO!$E$42="Endémique", IF(AND($J39>1,$J39<5), IF($J39=4, "Inconnu", E39+F39), 0),"Non requis") -> 4549 | O39: =IF(INTRO!$E$44="Endémique", IF(AND($K39>0,$K39<5), IF($K39=4,"Inconnu", IF($K39=1, $F39*0.33, IF($K39=2, $F39*0.5+$G39*0.2, SUM(F39:G39)))), 0),"Non requis") -> 0 | P39: 0 | Q39: 0 | R39: 0 | S39: 0 | Y39: 23680 | Z39: PRABIS | AB39: ='MDA1'!M39 -> 0 | AC39: ='MDA3'!Q39 -> 0 | AD39: ='T1'!O39 -> 0 | AE39: ='T2'!M39 -> 0 | AF39: =T3_R1!N39 -> 0 | AG39: =T3_R2!N39 -> 0
A40: =IF(INTRO!$E$34<>0,INTRO!$E$34,"") -> Guinea Bissau | B40: Biombo | C40: QUINHAMEL | D40: 17202 | E40: =IF(INTRO!$E$48="","",ROUND($D40*INTRO!$E$48,0)) -> 2288 | F40: =IF(INTRO!$E$49="","",ROUND($D40*INTRO!$E$49,0)) -> 4407 | G40: =IF(INTRO!$E$50="","",ROUND($D40*INTRO!$E$50,0)) -> 9745 | H40: 1 | I40: 4 | J40: 3 | K40: 0 | L40: =IF(INTRO!$E$38="Endémique", IF($H40>0, IF($H40=4,"Inconnu", IF($H40=99,"Interrompu", $D40)), 0),"Non requis") -> 17202 | M40: =IF(INTRO!$E$40="Endémique", IF($I40>0, IF($I40=4,"Inconnu",IF($I40=99,"Interrompu", $D40)), 0),"Non requis") -> Inconnu | N40: =IF(INTRO!$E$42="Endémique", IF(AND($J40>1,$J40<5), IF($J40=4, "Inconnu", E40+F40), 0),"Non requis") -> 6695 | O40: =IF(INTRO!$E$44="Endémique", IF(AND($K40>0,$K40<5), IF($K40=4,"Inconnu", IF($K40=1, $F40*0.33, IF($K40=2, $F40*0.5+$G40*0.2, SUM(F40:G40)))), 0),"Non requis") -> 0 | P40: 0 | Q40: 0 | R40: 0 | S40: 0 | Y40: 23681 | Z40: QUINHAMEL | AB40: ='MDA1'!M40 -> 0 | AC40: ='MDA3'!Q40 -> 0 | AD40: ='T1'!O40 -> 0 | AE40: ='T2'!M40 -> 0 | AF40: =T3_R1!N40 -> 0 | AG40: =T3_R2!N40 -> 0
A41: =IF(INTRO!$E$34<>0,INTRO!$E$34,"") -> Guinea Bissau | B41: Biombo | C41: SAFIM | D41: 17209 | E41: =IF(INTRO!$E$48="","",ROUND($D41*INTRO!$E$48,0)) -> 2289 | F41: =IF(INTRO!$E$49="","",ROUND($D41*INTRO!$E$49,0)) -> 4409 | G41: =IF(INTRO!$E$50="","",ROUND($D41*INTRO!$E$50,0)) -> 9749 | H41: 1 | I41: 4 | J41: 2 | K41: 0 | L41: =IF(INTRO!$E$38="Endémique", IF($H41>0, IF($H41=4,"Inconnu", IF($H41=99,"Interrompu", $D41)), 0),"Non requis") -> 17209 | M41: =IF(INTRO!$E$40="Endémique", IF($I41>0, IF($I41=4,"Inconnu",IF($I41=99,"Interrompu", $D41)), 0),"Non requis") -> Inconnu | N41: =IF(INTRO!$E$42="Endémique", IF(AND($J41>1,$J41<5), IF($J41=4, "Inconnu", E41+F41), 0),"Non requis") -> 6698 | O41: =IF(INTRO!$E$44="Endémique", IF(AND($K41>0,$K41<5), IF($K41=4,"Inconnu", IF($K41=1, $F41*0.33, IF($K41=2, $F41*0.5+$G41*0.2, SUM(F41:G41)))), 0),"Non requis") -> 0 | P41: 0 | Q41: 0 | R41: 0 | S41: 0 | Y41: 23682 | Z41: SAFIM | AB41: ='MDA1'!M41 -> 0 | AC41: ='MDA3'!Q41 -> 0 | AD41: ='T1'!O41 -> 0 | AE41: ='T2'!M41 -> 0 | AF41: =T3_R1!N41 -> 0 | AG41: =T3_R2!N41 -> 0
A42: =IF(INTRO!$E$34<>0,INTRO!$E$34,"") -> Guinea Bissau | B42: Farim | C42: BINTA | D42: 7807 | E42: =IF(INTRO!$E$48="","",ROUND($D42*INTRO!$E$48,0)) -> 1038 | F42: =IF(INTRO!$E$49="","",ROUND($D42*INTRO!$E$49,0)) -> 2000 | G42: =IF(INTRO!$E$50="","",ROUND($D42*INTRO!$E$50,0)) -> 4423 | H42: 1 | I42: 4 | J42: 0 | K42: 2 | L42: =IF(INTRO!$E$38="Endémique", IF($H42>0, IF($H42=4,"Inconnu", IF($H42=99,"Interrompu", $D42)), 0),"Non requis") -> 7807 | M42: =IF(INTRO!$E$40="Endémique", IF($I42>0, IF($I42=4,"Inconnu",IF($I42=99,"Interrompu", $D42)), 0),"Non requis") -> Inconnu | N42: =IF(INTRO!$E$42="Endémique", IF(AND($J42>1,$J42<5), IF($J42=4, "Inconnu", E42+F42), 0),"Non requis") -> 0 | O42: =IF(INTRO!$E$44="Endémique", IF(AND($K42>0,$K42<5), IF($K42=4,"Inconnu", IF($K42=1, $F42*0.33, IF($K42=2, $F42*0.5+$G42*0.2, SUM(F42:G42)))), 0),"Non requis") -> 1884.6 | P42: 0 | Q42: 0 | R42: 1 | S42: 0 | T42: T2 (PZQ) | Y42: 23704 | Z42: BINTA | AB42: ='MDA1'!M42 -> 0 | AC42: ='MDA3'!Q42 -> 0 | AD42: ='T1'!O42 -> 0 | AE42: ='T2'!M42 -> 2007 | AF42: =T3_R1!N42 -> 0 | AG42: =T3_R2!N42 -> 0
A43: =IF(INTRO!$E$34<>0,INTRO!$E$34,"") -> Guinea Bissau | B43: Farim | C43: CANDJAMBARI | D43: 5860 | E43: =IF(INTRO!$E$48="","",ROUND($D43*INTRO!$E$48,0)) -> 779 | F43: =IF(INTRO!$E$49="","",ROUND($D43*INTRO!$E$49,0)) -> 1501 | G43: =IF(INTRO!$E$50="","",ROUND($D43*INTRO!$E$50,0)) -> 3320 | H43: 1 | I43: 4 | J43: 0 | K43: 2 | L43: =IF(INTRO!$E$38="Endémique", IF($H43>0, IF($H43=4,"Inconnu", IF($H43=99,"Interrompu", $D43)), 0),"Non requis") -> 5860 | M43: =IF(INTRO!$E$40="Endémique", IF($I43>0, IF($I43=4,"Inconnu",IF($I43=99,"Interrompu", $D43)), 0),"Non requis") -> Inconnu | N43: =IF(INTRO!$E$42="Endémique", IF(AND($J43>1,$J43<5), IF($J43=4, "Inconnu", E43+F43), 0),"Non requis") -> 0 | O43: =IF(INTRO!$E$44="Endémique", IF(AND($K43>0,$K43<5), IF($K43=4,"Inconnu", IF($K43=1, $F43*0.33, IF($K43=2, $F43*0.5+$G43*0.2, SUM(F43:G43)))), 0),"Non requis") -> 1414.5 | P43: 0 | Q43: 0 | R43: 1 | S43: 0 | T43: T2 (PZQ) | Y43: 23705 | Z43: CANDJAMBARI | AB43: ='MDA1'!M43 -> 0 | AC43: ='MDA3'!Q43 -> 0 | AD43: ='T1'!O43 -> 0 | AE43: ='T2'!M43 -> 1828 | AF43: =T3_R1!N43 -> 0 | AG43: =T3_R2!N43 -> 0
A44: =IF(INTRO!$E$34<>0,INTRO!$E$34,"") -> Guinea Bissau | B44: Farim | C44: CUNTIMA | D44: 13219 | E44: =IF(INTRO!$E$48="","",ROUND($D44*INTRO!$E$48,0)) -> 1758 | F44: =IF(INTRO!$E$49="","",ROUND($D44*INTRO!$E$49,0)) -> 3387 | G44: =IF(INTRO!$E$50="","",ROUND($D44*INTRO!$E$50,0)) -> 7489 | H44: 1 | I44: 4 | J44: 1 | K44: 3 | L44: =IF(INTRO!$E$38="Endémique", IF($H44>0, IF($H44=4,"Inconnu", IF($H44=99,"Interrompu", $D44)), 0),"Non requis") -> 13219 | M44: =IF(INTRO!$E$40="Endémique", IF($I44>0, IF($I44=4,"Inconnu",IF($I44=99,"Interrompu", $D44)), 0),"Non requis") -> Inconnu | N44: =IF(INTRO!$E$42="Endémique", IF(AND($J44>1,$J44<5), IF($J44=4, "Inconnu", E44+F44), 0),"Non requis") -> 0 | O44: =IF(INTRO!$E$44="Endémique", IF(AND($K44>0,$K44<5), IF($K44=4,"Inconnu", IF($K44=1, $F44*0.33, IF($K44=2, $F44*0.5+$G44*0.2, SUM(F44:G44)))), 0),"Non requis") -> 10876 | P44: 0 | Q44: 0 | R44: 1 | S44: 0 | T44: T2 (PZQ) | Y44: 23706 | Z44: CUNTIMA | AB44: ='MDA1'!M44 -> 0 | AC44: ='MDA3'!Q44 -> 0 | AD44: ='T1'!O44 -> 0 | AE44: ='T2'!M44 -> 3200 | AF44: =T3_R1!N44 -> 0 | AG44: =T3_R2!N44 -> 0
A45: =IF(INTRO!$E$34<>0,INTRO!$E$34,"") -> Guinea Bissau | B45: Farim | C45: FARIM | D45: 31030 | E45: =IF(INTRO!$E$48="","",ROUND($D45*INTRO!$E$48,0)) -> 4127 | F45: =IF(INTRO!$E$49="","",ROUND($D45*INTRO!$E$49,0)) -> 7950 | G45: =IF(INTRO!$E$50="","",ROUND($D45*INTRO!$E$50,0)) -> 17578 | H45: 1 | I45: 4 | J45: 1 | K45: 1 | L45: =IF(INTRO!$E$38="Endémique", IF($H45>0, IF($H45=4,"Inconnu", IF($H45=99,"Interrompu", $D45)), 0),"Non requis") -> 31030 | M45: =IF(INTRO!$E$40="Endémique", IF($I45>0, IF($I45=4,"Inconnu",IF($I45=99,"Interrompu", $D45)), 0),"Non requis") -> Inconnu | N45: =IF(INTRO!$E$42="Endémique", IF(AND($J45>1,$J45<5), IF($J45=4, "Inconnu", E45+F45), 0),"Non requis") -> 0 | O45: =IF(INTRO!$E$44="Endémique", IF(AND($K45>0,$K45<5), IF($K45=4,"Inconnu", IF($K45=1, $F45*0.33, IF($K45=2, $F45*0.5+$G45*0.2, SUM(F45:G45)))), 0),"Non requis") -> 2623.5 | P45: 0 | Q45: 0 | R45: 1 | S45: 0 | T45: T2 (PZQ) | Y45: 23708 | Z45: FARIM | AB45: ='MDA1'!M45 -> 0 | AC45: ='MDA3'!Q45 -> 0 | AD45: ='T1'!O45 -> 0 | AE45: ='T2'!M45 -> 5378 | AF45: =T3_R1!N45 -> 0 | AG45: =T3_R2!N45 -> 0
A46: =IF(INTRO!$E$34<>0,INTRO!$E$34,"") -> Guinea Bissau | B46: Farim | C46: GUIDAGE | D46: 5052 | E46: =IF(INTRO!$E$48="","",ROUND($D46*INTRO!$E$48,0)) -> 672 | F46: =IF(INTRO!$E$49="","",ROUND($D46*INTRO!$E$49,0)) -> 1294 | G46: =IF(INTRO!$E$50="","",ROUND($D46*INTRO!$E$50,0)) -> 2862 | H46: 1 | I46: 4 | J46: 0 | K46: 2 | L46: =IF(INTRO!$E$38="Endémique", IF($H46>0, IF($H46=4,"Inconnu", IF($H46=99,"Interrompu", $D46)), 0),"Non requis") -> 5052 | M46: =IF(INTRO!$E$40="Endémique", IF($I46>0, IF($I46=4,"Inconnu",IF($I46=99,"Interrompu", $D46)), 0),"Non requis") -> Inconnu | N46: =IF(INTRO!$E$42="Endémique", IF(AND($J46>1,$J46<5), IF($J46=4, "Inconnu", E46+F46), 0),"Non requis") -> 0 | O46: =IF(INTRO!$E$44="Endémique", IF(AND($K46>0,$K46<5), IF($K46=4,"Inconnu", IF($K46=1, $F46*0.33, IF($K46=2, $F46*0.5+$G46*0.2, SUM(F46:G46)))), 0),"Non requis") -> 1219.4 | P46: 0 | Q46: 0 | R46: 1 | S46: 0 | T46: T2 (PZQ) | Y46: 23707 | Z46: GUIDAGE | AB46: ='MDA1'!M46 -> 0 | AC46: ='MDA3'!Q46 -> 0 | AD46: ='T1'!O46 -> 0 | AE46: ='T2'!M46 -> 1118 | AF46: =T3_R1!N46 -> 0 | AG46: =T3_R2!N46 -> 0
A47: =IF(INTRO!$E$34<>0,INTRO!$E$34,"") -> Guinea Bissau | B47: Oio | C47: BINAR | D47: 15689 | E47: =IF(INTRO!$E$48="","",ROUND($D47*INTRO!$E$48,0)) -> 2087 | F47: =IF(INTRO!$E$49="","",ROUND($D47*INTRO!$E$49,0)) -> 4020 | G47: =IF(INTRO!$E$50="","",ROUND($D47*INTRO!$E$50,0)) -> 8888 | H47: 1 | I47: 4 | J47: 3 | K47: 0 | L47: =IF(INTRO!$E$38="Endémique", IF($H47>0, IF($H47=4,"Inconnu", IF($H47=99,"Interrompu", $D47)), 0),"Non requis") -> 15689 | M47: =IF(INTRO!$E$40="Endémique", IF($I47>0, IF($I47=4,"Inconnu",IF($I47=99,"Interrompu", $D47)), 0),"Non requis") -> Inconnu | N47: =IF(INTRO!$E$42="Endémique", IF(AND($J47>1,$J47<5), IF($J47=4, "Inconnu", E47+F47), 0),"Non requis") -> 6107 | O47: =IF(INTRO!$E$44="Endémique", IF(AND($K47>0,$K47<5), IF($K47=4,"Inconnu", IF($K47=1, $F47*0.33, IF($K47=2, $F47*0.5+$G47*0.2, SUM(F47:G47)))), 0),"Non requis") -> 0 | P47: 1 | Q47: 0 | R47: 1 | S47: 0 | T47: MDA1 (IVM+ALB) | Y47: 23731 | Z47: BINAR | AB47: ='MDA1'!M47 -> 11656 | AC47: ='MDA3'!Q47 -> 0 | AD47: ='T1'!O47 -> 0 | AE47: ='T2'!M47 -> 0 | AF47: =T3_R1!N47 -> 0 | AG47: =T3_R2!N47 -> 0
A48: =IF(INTRO!$E$34<>0,INTRO!$E$34,"") -> Guinea Bissau | B48: Oio | C48: BISSORA | D48: 46372 | E48: =IF(INTRO!$E$48="","",ROUND($D48*INTRO!$E$48,0)) -> 6167 | F48: =IF(INTRO!$E$49="","",ROUND($D48*INTRO!$E$49,0)) -> 11881 | G48: =IF(INTRO!$E$50="","",ROUND($D48*INTRO!$E$50,0)) -> 26270 | H48: 1 | I48: 4 | J48: 1 | K48: 0 | L48: =IF(INTRO!$E$38="Endémique", IF($H48>0, IF($H48=4,"Inconnu", IF($H48=99,"Interrompu", $D48)), 0),"Non requis") -> 46372 | M48: =IF(INTRO!$E$40="Endémique", IF($I48>0, IF($I48=4,"Inconnu",IF($I48=99,"Interrompu", $D48)), 0),"Non requis") -> Inconnu | N48: =IF(INTRO!$E$42="Endémique", IF(AND($J48>1,$J48<5), IF($J48=4, "Inconnu", E48+F48), 0),"Non requis") -> 0 | O48: =IF(INTRO!$E$44="Endémique", IF(AND($K48>0,$K48<5), IF($K48=4,"Inconnu", IF($K48=1, $F48*0.33, IF($K48=2, $F48*0.5+$G48*0.2, SUM(F48:G48)))), 0),"Non requis") -> 0 | P48: 1 | Q48: 0 | R48: 0 | S48: 0 | T48: MDA1 (IVM+ALB) | Y48: 23732 | Z48: BISSORA | AB48: ='MDA1'!M48 -> 29381 | AC48: ='MDA3'!Q48 -> 0 | AD48: ='T1'!O48 -> 0 | AE48: ='T2'!M48 -> 0 | AF48: =T3_R1!N48 -> 0 | AG48: =T3_R2!N48 -> 0
A49: =IF(INTRO!$E$34<>0,INTRO!$E$34,"") -> Guinea Bissau | B49: Oio | C49: ENCHEIA | D49: 14835 | E49: =IF(INTRO!$E$48="","",ROUND($D49*INTRO!$E$48,0)) -> 1973 | F49: =IF(INTRO!$E$49="","",ROUND($D49*INTRO!$E$49,0)) -> 3801 | G49: =IF(INTRO!$E$50="","",ROUND($D49*INTRO!$E$50,0)) -> 8404 | H49: 1 | I49: 4 | J49: 3 | K49: 0 | L49: =IF(INTRO!$E$38="Endémique", IF($H49>0, IF($H49=4,"Inconnu", IF($H49=99,"Interrompu", $D49)), 0),"Non requis") -> 14835 | M49: =IF(INTRO!$E$40="Endémique", IF($I49>0, IF($I49=4,"Inconnu",IF($I49=99,"Interrompu", $D49)), 0),"Non requis") -> Inconnu | N49: =IF(INTRO!$E$42="Endémique", IF(AND($J49>1,$J49<5), IF($J49=4, "Inconnu", E49+F49), 0),"Non requis") -> 5774 | O49: =IF(INTRO!$E$44="Endémique", IF(AND($K49>0,$K49<5), IF($K49=4,"Inconnu", IF($K49=1, $F49*0.33, IF($K49=2, $F49*0.5+$G49*0.2, SUM(F49:G49)))), 0),"Non requis") -> 0 | P49: 1 | Q49: 0 | R49: 1 | S49: 0 | T49: MDA1 (IVM+ALB) | Y49: 23733 | Z49: ENCHEIA | AB49: ='MDA1'!M49 -> 10556 | AC49: ='MDA3'!Q49 -> 0 | AD49: ='T1'!O49 -> 0 | AE49: ='T2'!M49 -> 0 | AF49: =T3_R1!N49 -> 0 | AG49: =T3_R2!N49 -> 0
A50: =IF(INTRO!$E$34<>0,INTRO!$E$34,"") -> Guinea Bissau | B50: Oio | C50: GÃ-MAMUDO | D50: 12044 | E50: =IF(INTRO!$E$48="","",ROUND($D50*INTRO!$E$48,0)) -> 1602 | F50: =IF(INTRO!$E$49="","",ROUND($D50*INTRO!$E$49,0)) -> 3086 | G50: =IF(INTRO!$E$50="","",ROUND($D50*INTRO!$E$50,0)) -> 6823 | H50: 1 | I50: 4 | J50: 3 | K50: 1 | L50: =IF(INTRO!$E$38="Endémique", IF($H50>0, IF($H50=4,"Inconnu", IF($H50=99,"Interrompu", $D50)), 0),"Non requis") -> 12044 | M50: =IF(INTRO!$E$40="Endémique", IF($I50>0, IF($I50=4,"Inconnu",IF($I50=99,"Interrompu", $D50)), 0),"Non requis") -> Inconnu | N50: =IF(INTRO!$E$42="Endémique", IF(AND($J50>1,$J50<5), IF($J50=4, "Inconnu", E50+F50), 0),"Non requis") -> 4688 | O50: =IF(INTRO!$E$44="Endémique", IF(AND($K50>0,$K50<5), IF($K50=4,"Inconnu", IF($K50=1, $F50*0.33, IF($K50=2, $F50*0.5+$G50*0.2, SUM(F50:G50)))), 0),"Non requis") -> 1018.38 | P50: 1 | Q50: 0 | R50: 1 | S50: 0 | T50: MDA1 (IVM+ALB) | Y50: 23734 | Z50: GÃ-MAMUDO | AB50: ='MDA1'!M50 -> 8685 | AC50: ='MDA3'!Q50 -> 0 | AD50: ='T1'!O50 -> 0 | AE50: ='T2'!M50 -> 0 | AF50: =T3_R1!N50 -> 0 | AG50: =T3_R2!N50 -> 0
A51: =IF(INTRO!$E$34<>0,INTRO!$E$34,"") -> Guinea Bissau | B51: Oio | C51: MANSABA | D51: 27411 | E51: =IF(INTRO!$E$48="","",ROUND($D51*INTRO!$E$48,0)) -> 3646 | F51: =IF(INTRO!$E$49="","",ROUND($D51*INTRO!$E$49,0)) -> 7023 | G51: =IF(INTRO!$E$50="","",ROUND($D51*INTRO!$E$50,0)) -> 15528 | H51: 1 | I51: 4 | J51: 1 | K51: 0 | L51: =IF(INTRO!$E$38="Endémique", IF($H51>0, IF($H51=4,"Inconnu", IF($H51=99,"Interrompu", $D51)), 0),"Non requis") -> 27411 | M51: =IF(INTRO!$E$40="Endémique", IF($I51>0, IF($I51=4,"Inconnu",IF($I51=99,"Interrompu", $D51)), 0),"Non requis") -> Inconnu | N51: =IF(INTRO!$E$42="Endémique", IF(AND($J51>1,$J51<5), IF($J51=4, "Inconnu", E51+F51), 0),"Non requis") -> 0 | O51: =IF(INTRO!$E$44="Endémique", IF(AND($K51>0,$K51<5), IF($K51=4,"Inconnu", IF($K51=1, $F51*0.33, IF($K51=2, $F51*0.5+$G51*0.2, SUM(F51:G51)))), 0),"Non requis") -> 0 | P51: 1 | Q51: 0 | R51: 0 | S51: 0 | T51: MDA1 (IVM+ALB) | Y51: 23735 | Z51: MANSABA | AB51: ='MDA1'!M51 -> 17812 | AC51: ='MDA3'!Q51 -> 0 | AD51: ='T1'!O51 -> 0 | AE51: ='T2'!M51 -> 0 | AF51: =T3_R1!N51 -> 0 | AG51: =T3_R2!N51 -> 0
A52: =IF(INTRO!$E$34<>0,INTRO!$E$34,"") -> Guinea Bissau | B52: Oio | C52: MANSOA | D52: 44132 | E52: =IF(INTRO!$E$48="","",ROUND($D52*INTRO!$E$48,0)) -> 5870 | F52: =IF(INTRO!$E$49="","",ROUND($D52*INTRO!$E$49,0)) -> 11307 | G52: =IF(INTRO!$E$50="","",ROUND($D52*INTRO!$E$50,0)) -> 25001 | H52: 1 | I52: 4 | J52: 1 | K52: 0 | L52: =IF(INTRO!$E$38="Endémique", IF($H52>0, IF($H52=4,"Inconnu", IF($H52=99,"Interrompu", $D52)), 0),"Non requis") -> 44132 | M52: =IF(INTRO!$E$40="Endémique", IF($I52>0, IF($I52=4,"Inconnu",IF($I52=99,"Interrompu", $D52)), 0),"Non requis") -> Inconnu | N52: =IF(INTRO!$E$42="Endémique", IF(AND($J52>1,$J52<5), IF($J52=4, "Inconnu", E52+F52), 0),"Non requis") -> 0 | O52: =IF(INTRO!$E$44="Endémique", IF(AND($K52>0,$K52<5), IF($K52=4,"Inconnu", IF($K52=1, $F52*0.33, IF($K52=2, $F52*0.5+$G52*0.2, SUM(F52:G52)))), 0),"Non requis") -> 0 | P52: 1 | Q52: 0 | R52: 0 | S52: 0 | T52: MDA1 (IVM+ALB) | Y52: 23736 | Z52: MANSOA | AB52: ='MDA1'!M52 -> 27869 | AC52: ='MDA3'!Q52 -> 0 | AD52: ='T1'!O52 -> 0 | AE52: ='T2'!M52 -> 0 | AF52: =T3_R1!N52 -> 0 | AG52: =T3_R2!N52 -> 0
A53: =IF(INTRO!$E$34<>0,INTRO!$E$34,"") -> Guinea Bissau | B53: Oio | C53: MORES | D53: 11653 | E53: =IF(INTRO!$E$48="","",ROUND($D53*INTRO!$E$48,0)) -> 1550 | F53: =IF(INTRO!$E$49="","",ROUND($D53*INTRO!$E$49,0)) -> 2985 | G53: =IF(INTRO!$E$50="","",ROUND($D53*INTRO!$E$50,0)) -> 6601 | H53: 1 | I53: 4 | J53: 3 | K53: 0 | L53: =IF(INTRO!$E$38="Endémique", IF($H53>0, IF($H53=4,"Inconnu", IF($H53=99,"Interrompu", $D53)), 0),"Non requis") -> 11653 | M53: =IF(INTRO!$E$40="Endémique", IF($I53>0, IF($I53=4,"Inconnu",IF($I53=99,"Interrompu", $D53)), 0),"Non requis") -> Inconnu | N53: =IF(INTRO!$E$42="Endémique", IF(AND($J53>1,$J53<5), IF($J53=4, "Inconnu", E53+F53), 0),"Non requis") -> 4535 | O53: =IF(INTRO!$E$44="Endémique", IF(AND($K53>0,$K53<5), IF($K53=4,"Inconnu", IF($K53=1, $F53*0.33, IF($K53=2, $F53*0.5+$G53*0.2, SUM(F53:G53)))), 0),"Non requis") -> 0 | P53: 1 | Q53: 0 | R53: 1 | S53: 0 | T53: MDA1 (IVM+ALB) | Y53: 23737 | Z53: MORES | AB53: ='MDA1'!M53 -> 7951 | AC53: ='MDA3'!Q53 -> 0 | AD53: ='T1'!O53 -> 0 | AE53: ='T2'!M53 -> 0 | AF53: =T3_R1!N53 -> 0 | AG53: =T3_R2!N53 -> 0
A54: =IF(INTRO!$E$34<>0,INTRO!$E$34,"") -> Guinea Bissau | B54: Oio | C54: NHACRA | D54: 28333 | E54: =IF(INTRO!$E$48="","",ROUND($D54*INTRO!$E$48,0)) -> 3768 | F54: =IF(INTRO!$E$49="","",ROUND($D54*INTRO!$E$49,0)) -> 7259 | G54: =IF(INTRO!$E$50="","",ROUND($D54*INTRO!$E$50,0)) -> 16051 | H54: 1 | I54: 4 | J54: 1 | K54: 0 | L54: =IF(INTRO!$E$38="Endémique", IF($H54>0, IF($H54=4,"Inconnu", IF($H54=99,"Interrompu", $D54)), 0),"Non requis") -> 28333 | M54: =IF(INTRO!$E$40="Endémique", IF($I54>0, IF($I54=4,"Inconnu",IF($I54=99,"Interrompu", $D54)), 0),"Non requis") -> Inconnu | N54: =IF(INTRO!$E$42="Endémique", IF(AND($J54>1,$J54<5), IF($J54=4, "Inconnu", E54+F54), 0),"Non requis") -> 0 | O54: =IF(INTRO!$E$44="Endémique", IF(AND($K54>0,$K54<5), IF($K54=4,"Inconnu", IF($K54=1, $F54*0.33, IF($K54=2, $F54*0.5+$G54*0.2, SUM(F54:G54)))), 0),"Non requis") -> 0 | P54: 1 | Q54: 0 | R54: 0 | S54: 0 | T54: MDA1 (IVM+ALB) | Y54: 23738 | Z54: NHACRA | AB54: ='MDA1'!M54 -> 18459 | AC54: ='MDA3'!Q54 -> 0 | AD54: ='T1'!O54 -> 0 | AE54: ='T2'!M54 -> 0 | AF54: =T3_R1!N54 -> 0 | AG54: =T3_R2!N54 -> 0
A55: =IF(INTRO!$E$34<>0,INTRO!$E$34,"") -> Guinea Bissau | B55: Oio | C55: OLOSSATO | D55: 17592 | E55: =IF(INTRO!$E$48="","",ROUND($D55*INTRO!$E$48,0)) -> 2340 | F55: =IF(INTRO!$E$49="","",ROUND($D55*INTRO!$E$49,0)) -> 4507 | G55: =IF(INTRO!$E$50="","",ROUND($D55*INTRO!$E$50,0)) -> 9966 | H55: 1 | I55: 4 | J55: 3 | K55: 0 | L55: =IF(INTRO!$E$38="Endémique", IF($H55>0, IF($H55=4,"Inconnu", IF($H55=99,"Interrompu", $D55)), 0),"Non requis") -> 17592 | M55: =IF(INTRO!$E$40="Endémique", IF($I55>0, IF($I55=4,"Inconnu",IF($I55=99,"Interrompu", $D55)), 0),"Non requis") -> Inconnu | N55: =IF(INTRO!$E$42="Endémique", IF(AND($J55>1,$J55<5), IF($J55=4, "Inconnu", E55+F55), 0),"Non requis") -> 6847 | O55: =IF(INTRO!$E$44="Endémique", IF(AND($K55>0,$K55<5), IF($K55=4,"Inconnu", IF($K55=1, $F55*0.33, IF($K55=2, $F55*0.5+$G55*0.2, SUM(F55:G55)))), 0),"Non requis") -> 0 | P55: 1 | Q55: 0 | R55: 1 | S55: 0 | T55: MDA1 (IVM+ALB) | Y55: 23739 | Z55: OLOSSATO | AB55: ='MDA1'!M55 -> 16224 | AC55: ='MDA3'!Q55 -> 0 | AD55: ='T1'!O55 -> 0 | AE55: ='T2'!M55 -> 0 | AF55: =T3_R1!N55 -> 0 | AG55: =T3_R2!N55 -> 0
A56: =IF(INTRO!$E$34<>0,INTRO!$E$34,"") -> Guinea Bissau | B56: Oio | C56: PORTUGOL | D56: 6461 | E56: =IF(INTRO!$E$48="","",ROUND($D56*INTRO!$E$48,0)) -> 859 | F56: =IF(INTRO!$E$49="","",ROUND($D56*INTRO!$E$49,0)) -> 1655 | G56: =IF(INTRO!$E$50="","",ROUND($D56*INTRO!$E$50,0)) -> 3660 | H56: 1 | I56: 4 | J56: 3 | K56: 0 | L56: =IF(INTRO!$E$38="Endémique", IF($H56>0, IF($H56=4,"Inconnu", IF($H56=99,"Interrompu", $D56)), 0),"Non requis") -> 6461 | M56: =IF(INTRO!$E$40="Endémique", IF($I56>0, IF($I56=4,"Inconnu",IF($I56=99,"Interrompu", $D56)), 0),"Non requis") -> Inconnu | N56: =IF(INTRO!$E$42="Endémique", IF(AND($J56>1,$J56<5), IF($J56=4, "Inconnu", E56+F56), 0),"Non requis") -> 2514 | O56: =IF(INTRO!$E$44="Endémique", IF(AND($K56>0,$K56<5), IF($K56=4,"Inconnu", IF($K56=1, $F56*0.33, IF($K56=2, $F56*0.5+$G56*0.2, SUM(F56:G56)))), 0),"Non requis") -> 0 | P56: 1 | Q56: 0 | R56: 1 | S56: 0 | T56: MDA1 (IVM+ALB) | Y56: 23730 | Z56: PORTUGOL | AB56: ='MDA1'!M56 -> 4342 | AC56: ='MDA3'!Q56 -> 0 | AD56: ='T1'!O56 -> 0 | AE56: ='T2'!M56 -> 0 | AF56: =T3_R1!N56 -> 0 | AG56: =T3_R2!N56 -> 0
A57: =IF(INTRO!$E$34<>0,INTRO!$E$34,"") -> Guinea Bissau | B57: Bolama | C57: BOLAMA | D57: 7180 | E57: =IF(INTRO!$E$48="","",ROUND($D57*INTRO!$E$48,0)) -> 955 | F57: =IF(INTRO!$E$49="","",ROUND($D57*INTRO!$E$49,0)) -> 1840 | G57: =IF(INTRO!$E$50="","",ROUND($D57*INTRO!$E$50,0)) -> 4067 | H57: 1 | I57: 4 | J57: 1 | K57: 0 | L57: =IF(INTRO!$E$38="Endémique", IF($H57>0, IF($H57=4,"Inconnu", IF($H57=99,"Interrompu", $D57)), 0),"Non requis") -> 7180 | M57: =IF(INTRO!$E$40="Endémique", IF($I57>0, IF($I57=4,"Inconnu",IF($I57=99,"Interrompu", $D57)), 0),"Non requis") -> Inconnu | N57: =IF(INTRO!$E$42="Endémique", IF(AND($J57>1,$J57<5), IF($J57=4, "Inconnu", E57+F57), 0),"Non requis") -> 0 | O57: =IF(INTRO!$E$44="Endémique", IF(AND($K57>0,$K57<5), IF($K57=4,"Inconnu", IF($K57=1, $F57*0.33, IF($K57=2, $F57*0.5+$G57*0.2, SUM(F57:G57)))), 0),"Non requis") -> 0 | P57: 0 | Q57: 0 | R57: 0 | S57: 0 | Y57: 23683 | Z57: BOLAMA | AB57: ='MDA1'!M57 -> 0 | AC57: ='MDA3'!Q57 -> 0 | AD57: ='T1'!O57 -> 0 | AE57: ='T2'!M57 -> 0 | AF57: =T3_R1!N57 -> 0 | AG57: =T3_R2!N57 -> 0
A58: =IF(INTRO!$E$34<>0,INTRO!$E$34,"") -> Guinea Bissau | B58: Bolama | C58: I. GALINHAS | D58: 1946 | E58: =IF(INTRO!$E$48="","",ROUND($D58*INTRO!$E$48,0)) -> 259 | F58: =IF(INTRO!$E$49="","",ROUND($D58*INTRO!$E$49,0)) -> 499 | G58: =IF(INTRO!$E$50="","",ROUND($D58*INTRO!$E$50,0)) -> 1102 | H58: 1 | I58: 4 | J58: 0 | K58: 0 | L58: =IF(INTRO!$E$38="Endémique", IF($H58>0, IF($H58=4,"Inconnu", IF($H58=99,"Interrompu", $D58)), 0),"Non requis") -> 1946 | M58: =IF(INTRO!$E$40="Endémique", IF($I58>0, IF($I58=4,"Inconnu",IF($I58=99,"Interrompu", $D58)), 0),"Non requis") -> Inconnu | N58: =IF(INTRO!$E$42="Endémique", IF(AND($J58>1,$J58<5), IF($J58=4, "Inconnu", E58+F58), 0),"Non requis") -> 0 | O58: =IF(INTRO!$E$44="Endémique", IF(AND($K58>0,$K58<5), IF($K58=4,"Inconnu", IF($K58=1, $F58*0.33, IF($K58=2, $F58*0.5+$G58*0.2, SUM(F58:G58)))), 0),"Non requis") -> 0 | P58: 0 | Q58: 0 | R58: 0 | S58: 0 | Y58: 23655 | Z58: ILHA DE GALINHAS | AB58: ='MDA1'!M58 -> 0 | AC58: ='MDA3'!Q58 -> 0 | AD58: ='T1'!O58 -> 0 | AE58: ='T2'!M58 -> 0 | AF58: =T3_R1!N58 -> 0 | AG58: =T3_R2!N58 -> 0
A59: =IF(INTRO!$E$34<>0,INTRO!$E$34,"") -> Guinea Bissau | B59: Bolama | C59: SÃO-JOÃO | D59: 3039 | E59: =IF(INTRO!$E$48="","",ROUND($D59*INTRO!$E$48,0)) -> 404 | F59: =IF(INTRO!$E$49="","",ROUND($D59*INTRO!$E$49,0)) -> 779 | G59: =IF(INTRO!$E$50="","",ROUND($D59*INTRO!$E$50,0)) -> 1722 | H59: 1 | I59: 4 | J59: 1 | K59: 0 | L59: =IF(INTRO!$E$38="Endémique", IF($H59>0, IF($H59=4,"Inconnu", IF($H59=99,"Interrompu", $D59)), 0),"Non requis") -> 3039 | M59: =IF(INTRO!$E$40="Endémique", IF($I59>0, IF($I59=4,"Inconnu",IF($I59=99,"Interrompu", $D59)), 0),"Non requis") -> Inconnu | N59: =IF(INTRO!$E$42="Endémique", IF(AND($J59>1,$J59<5), IF($J59=4, "Inconnu", E59+F59), 0),"Non requis") -> 0 | O59: =IF(INTRO!$E$44="Endémique", IF(AND($K59>0,$K59<5), IF($K59=4,"Inconnu", IF($K59=1, $F59*0.33, IF($K59=2, $F59*0.5+$G59*0.2, SUM(F59:G59)))), 0),"Non requis") -> 0 | P59: 0 | Q59: 0 | R59: 0 | S59: 0 | Y59: 23684 | Z59: SÃO-JOÃO | AB59: ='MDA1'!M59 -> 0 | AC59: ='MDA3'!Q59 -> 0 | AD59: ='T1'!O59 -> 0 | AE59: ='T2'!M59 -> 0 | AF59: =T3_R1!N59 -> 0 | AG59: =T3_R2!N59 -> 0
A60: =IF(INTRO!$E$34<>0,INTRO!$E$34,"") -> Guinea Bissau | B60: Gabu | C60: BAJOCUNDA | D60: 6921 | E60: =IF(INTRO!$E$48="","",ROUND($D60*INTRO!$E$48,0)) -> 920 | F60: =IF(INTRO!$E$49="","",ROUND($D60*INTRO!$E$49,0)) -> 1773 | G60: =IF(INTRO!$E$50="","",ROUND($D60*INTRO!$E$50,0)) -> 3921 | H60: 1 | I60: 1 | J60: 2 | K60: 1 | L60: =IF(INTRO!$E$38="Endémique", IF($H60>0, IF($H60=4,"Inconnu", IF($H60=99,"Interrompu", $D60)), 0),"Non requis") -> 6921 | M60: =IF(INTRO!$E$40="Endémique", IF($I60>0, IF($I60=4,"Inconnu",IF($I60=99,"Interrompu", $D60)), 0),"Non requis") -> 6921 | N60: =IF(INTRO!$E$42="Endémique", IF(AND($J60>1,$J60<5), IF($J60=4, "Inconnu", E60+F60), 0),"Non requis") -> 2693 | O60: =IF(INTRO!$E$44="Endémique", IF(AND($K60>0,$K60<5), IF($K60=4,"Inconnu", IF($K60=1, $F60*0.33, IF($K60=2, $F60*0.5+$G60*0.2, SUM(F60:G60)))), 0),"Non requis") -> 585.09 | P60: 0 | Q60: 0 | R60: 1 | S60: 0 | T60: T2 (PZQ) | Y60: 23709 | Z60: BAJOCUNDA | AB60: ='MDA1'!M60 -> 0 | AC60: ='MDA3'!Q60 -> 0 | AD60: ='T1'!O60 -> 0 | AE60: ='T2'!M60 -> 1748 | AF60: =T3_R1!N60 -> 0 | AG60: =T3_R2!N60 -> 0
A61: =IF(INTRO!$E$34<>0,INTRO!$E$34,"") -> Guinea Bissau | B61: Gabu | C61: BELI | D61: 6242 | E61: =IF(INTRO!$E$48="","",ROUND($D61*INTRO!$E$48,0)) -> 830 | F61: =IF(INTRO!$E$49="","",ROUND($D61*INTRO!$E$49,0)) -> 1599 | G61: =IF(INTRO!$E$50="","",ROUND($D61*INTRO!$E$50,0)) -> 3536 | H61: 1 | I61: 1 | J61: 1 | K61: 2 | L61: =IF(INTRO!$E$38="Endémique", IF($H61>0, IF($H61=4,"Inconnu", IF($H61=99,"Interrompu", $D61)), 0),"Non requis") -> 6242 | M61: =IF(INTRO!$E$40="Endémique", IF($I61>0, IF($I61=4,"Inconnu",IF($I61=99,"Interrompu", $D61)), 0),"Non requis") -> 6242 | N61: =IF(INTRO!$E$42="Endémique", IF(AND($J61>1,$J61<5), IF($J61=4, "Inconnu", E61+F61), 0),"Non requis") -> 0 | O61: =IF(INTRO!$E$44="Endémique", IF(AND($K61>0,$K61<5), IF($K61=4,"Inconnu", IF($K61=1, $F61*0.33, IF($K61=2, $F61*0.5+$G61*0.2, SUM(F61:G61)))), 0),"Non requis") -> 1506.7 | P61: 0 | Q61: 0 | R61: 1 | S61: 0 | T61: T2 (PZQ) | Y61: 23710 | Z61: BELI | AB61: ='MDA1'!M61 -> 0 | AC61: ='MDA3'!Q61 -> 0 | AD61: ='T1'!O61 -> 0 | AE61: ='T2'!M61 -> 1554 | AF61: =T3_R1!N61 -> 0 | AG61: =T3_R2!N61 -> 0
A62: =IF(INTRO!$E$34<>0,INTRO!$E$34,"") -> Guinea Bissau | B62: Gabu | C62: BURUNTUMA | D62: 12135 | E62: =IF(INTRO!$E$48="","",ROUND($D62*INTRO!$E$48,0)) -> 1614 | F62: =IF(INTRO!$E$49="","",ROUND($D62*INTRO!$E$49,0)) -> 3109 | G62: =IF(INTRO!$E$50="","",ROUND($D62*INTRO!$E$50,0)) -> 6874 | H62: 1 | I62: 1 | J62: 2 | K62: 1 | L62: =IF(INTRO!$E$38="Endémique", IF($H62>0, IF($H62=4,"Inconnu", IF($H62=99,"Interrompu", $D62)), 0),"Non requis") -> 12135 | M62: =IF(INTRO!$E$40="Endémique", IF($I62>0, IF($I62=4,"Inconnu",IF($I62=99,"Interrompu", $D62)), 0),"Non requis") -> 12135 | N62: =IF(INTRO!$E$42="Endémique", IF(AND($J62>1,$J62<5), IF($J62=4, "Inconnu", E62+F62), 0),"Non requis") -> 4723 | O62: =IF(INTRO!$E$44="Endémique", IF(AND($K62>0,$K62<5), IF($K62=4,"Inconnu", IF($K62=1, $F62*0.33, IF($K62=2, $F62*0.5+$G62*0.2, SUM(F62:G62)))), 0),"Non requis") -> 1025.97 | P62: 0 | Q62: 0 | R62: 1 | S62: 0 | T62: T2 (PZQ) | Y62: 23711 | Z62: BURUNTUMA | AB62: ='MDA1'!M62 -> 0 | AC62: ='MDA3'!Q62 -> 0 | AD62: ='T1'!O62 -> 0 | AE62: ='T2'!M62 -> 2797 | AF62: =T3_R1!N62 -> 0 | AG62: =T3_R2!N62 -> 0
A63: =IF(INTRO!$E$34<>0,INTRO!$E$34,"") -> Guinea Bissau | B63: Gabu | C63: CANJADUDE | D63: 9021 | E63: =IF(INTRO!$E$48="","",ROUND($D63*INTRO!$E$48,0)) -> 1200 | F63: =IF(INTRO!$E$49="","",ROUND($D63*INTRO!$E$49,0)) -> 2311 | G63: =IF(INTRO!$E$50="","",ROUND($D63*INTRO!$E$50,0)) -> 5110 | H63: 1 | I63: 1 | J63: 0 | K63: 0 | L63: =IF(INTRO!$E$38="Endémique", IF($H63>0, IF($H63=4,"Inconnu", IF($H63=99,"Interrompu", $D63)), 0),"Non requis") -> 9021 | M63: =IF(INTRO!$E$40="Endémique", IF($I63>0, IF($I63=4,"Inconnu",IF($I63=99,"Interrompu", $D63)), 0),"Non requis") -> 9021 | N63: =IF(INTRO!$E$42="Endémique", IF(AND($J63>1,$J63<5), IF($J63=4, "Inconnu", E63+F63), 0),"Non requis") -> 0 | O63: =IF(INTRO!$E$44="Endémique", IF(AND($K63>0,$K63<5), IF($K63=4,"Inconnu", IF($K63=1, $F63*0.33, IF($K63=2, $F63*0.5+$G63*0.2, SUM(F63:G63)))), 0),"Non requis") -> 0 | P63: 0 | Q63: 0 | R63: 1 | S63: 0 | T63: T2 (PZQ) | Y63: 23719 | Z63: CANJADUDE | AB63: ='MDA1'!M63 -> 0 | AC63: ='MDA3'!Q63 -> 0 | AD63: ='T1'!O63 -> 0 | AE63: ='T2'!M63 -> 2180 | AF63: =T3_R1!N63 -> 0 | AG63: =T3_R2!N63 -> 0
A64: =IF(INTRO!$E$34<>0,INTRO!$E$34,"") -> Guinea Bissau | B64: Gabu | C64: CANQUELIFA | D64: 7401 | E64: =IF(INTRO!$E$48="","",ROUND($D64*INTRO!$E$48,0)) -> 984 | F64: =IF(INTRO!$E$49="","",ROUND($D64*INTRO!$E$49,0)) -> 1896 | G64: =IF(INTRO!$E$50="","",ROUND($D64*INTRO!$E$50,0)) -> 4193 | H64: 1 | I64: 1 | J64: 2 | K64: 1 | L64: =IF(INTRO!$E$38="Endémique", IF($H64>0, IF($H64=4,"Inconnu", IF($H64=99,"Interrompu", $D64)), 0),"Non requis") -> 7401 | M64: =IF(INTRO!$E$40="Endémique", IF($I64>0, IF($I64=4,"Inconnu",IF($I64=99,"Interrompu", $D64)), 0),"Non requis") -> 7401 | N64: =IF(INTRO!$E$42="Endémique", IF(AND($J64>1,$J64<5), IF($J64=4, "Inconnu", E64+F64), 0),"Non requis") -> 2880 | O64: =IF(INTRO!$E$44="Endémique", IF(AND($K64>0,$K64<5), IF($K64=4,"Inconnu", IF($K64=1, $F64*0.33, IF($K64=2, $F64*0.5+$G64*0.2, SUM(F64:G64)))), 0),"Non requis") -> 625.68 | P64: 0 | Q64: 0 | R64: 1 | S64: 0 | T64: T2 (PZQ) | Y64: 23712 | Z64: CANQUELIFA | AB64: ='MDA1'!M64 -> 0 | AC64: ='MDA3'!Q64 -> 0 | AD64: ='T1'!O64 -> 0 | AE64: ='T2'!M64 -> 1739 | AF64: =T3_R1!N64 -> 0 | AG64: =T3_R2!N64 -> 0
A65: =IF(INTRO!$E$34<>0,INTRO!$E$34,"") -> Guinea Bissau | B65: Gabu | C65: CANSISSE | D65: 7146 | E65: =IF(INTRO!$E$48="","",ROUND($D65*INTRO!$E$48,0)) -> 950 | F65: =IF(INTRO!$E$49="","",ROUND($D65*INTRO!$E$49,0)) -> 1831 | G65: =IF(INTRO!$E$50="","",ROUND($D65*INTRO!$E$50,0)) -> 4048 | H65: 1 | I65: 1 | J65: 2 | K65: 2 | L65: =IF(INTRO!$E$38="Endémique", IF($H65>0, IF($H65=4,"Inconnu", IF($H65=99,"Interrompu", $D65)), 0),"Non requis") -> 7146 | M65: =IF(INTRO!$E$40="Endémique", IF($I65>0, IF($I65=4,"Inconnu",IF($I65=99,"Interrompu", $D65)), 0),"Non requis") -> 7146 | N65: =IF(INTRO!$E$42="Endémique", IF(AND($J65>1,$J65<5), IF($J65=4, "Inconnu", E65+F65), 0),"Non requis") -> 2781 | O65: =IF(INTRO!$E$44="Endémique", IF(AND($K65>0,$K65<5), IF($K65=4,"Inconnu", IF($K65=1, $F65*0.33, IF($K65=2, $F65*0.5+$G65*0.2, SUM(F65:G65)))), 0),"Non requis") -> 1725.1 | P65: 0 | Q65: 0 | R65: 1 | S65: 0 | T65: T2 (PZQ) | Y65: 23713 | Z65: CANSISSE | AB65: ='MDA1'!M65 -> 0 | AC65: ='MDA3'!Q65 -> 0 | AD65: ='T1'!O65 -> 0 | AE65: ='T2'!M65 -> 1701 | AF65: =T3_R1!N65 -> 0 | AG65: =T3_R2!N65 -> 0
A66: =IF(INTRO!$E$34<>0,INTRO!$E$34,"") -> Guinea Bissau | B66: Gabu | C66: FASSE | D66: 10844 | E66: =IF(INTRO!$E$48="","",ROUND($D66*INTRO!$E$48,0)) -> 1442 | F66: =IF(INTRO!$E$49="","",ROUND($D66*INTRO!$E$49,0)) -> 2778 | G66: =IF(INTRO!$E$50="","",ROUND($D66*INTRO!$E$50,0)) -> 6143 | H66: 1 | I66: 1 | J66: 2 | K66: 2 | L66: =IF(INTRO!$E$38="Endémique", IF($H66>0, IF($H66=4,"Inconnu", IF($H66=99,"Interrompu", $D66)), 0),"Non requis") -> 10844 | M66: =IF(INTRO!$E$40="Endémique", IF($I66>0, IF($I66=4,"Inconnu",IF($I66=99,"Interrompu", $D66)), 0),"Non requis") -> 10844 | N66: =IF(INTRO!$E$42="Endémique", IF(AND($J66>1,$J66<5), IF($J66=4, "Inconnu", E66+F66), 0),"Non requis") -> 4220 | O66: =IF(INTRO!$E$44="Endémique", IF(AND($K66>0,$K66<5), IF($K66=4,"Inconnu", IF($K66=1, $F66*0.33, IF($K66=2, $F66*0.5+$G66*0.2, SUM(F66:G66)))), 0),"Non requis") -> 2617.6 | P66: 0 | Q66: 0 | R66: 1 | S66: 0 | T66: T2 (PZQ) | Y66: 23716 | Z66: FASSE | AB66: ='MDA1'!M66 -> 0 | AC66: ='MDA3'!Q66 -> 0 | AD66: ='T1'!O66 -> 0 | AE66: ='T2'!M66 -> 2222 | AF66: =T3_R1!N66 -> 0 | AG66: =T3_R2!N66 -> 0
A67: =IF(INTRO!$E$34<>0,INTRO!$E$34,"") -> Guinea Bissau | B67: Gabu | C67: PAUNCA | D67: 18226 | E67: =IF(INTRO!$E$48="","",ROUND($D67*INTRO!$E$48,0)) -> 2424 | F67: =IF(INTRO!$E$49="","",ROUND($D67*INTRO!$E$49,0)) -> 4670 | G67: =IF(INTRO!$E$50="","",ROUND($D67*INTRO!$E$50,0)) -> 10325 | H67: 1 | I67: 1 | J67: 2 | K67: 1 | L67: =IF(INTRO!$E$38="Endémique", IF($H67>0, IF($H67=4,"Inconnu", IF($H67=99,"Interrompu", $D67)), 0),"Non requis") -> 18226 | M67: =IF(INTRO!$E$40="Endémique", IF($I67>0, IF($I67=4,"Inconnu",IF($I67=99,"Interrompu", $D67)), 0),"Non requis") -> 18226 | N67: =IF(INTRO!$E$42="Endémique", IF(AND($J67>1,$J67<5), IF($J67=4, "Inconnu", E67+F67), 0),"Non requis") -> 7094 | O67: =IF(INTRO!$E$44="Endémique", IF(AND($K67>0,$K67<5), IF($K67=4,"Inconnu", IF($K67=1, $F67*0.33, IF($K67=2, $F67*0.5+$G67*0.2, SUM(F67:G67)))), 0),"Non requis") -> 1541.1 | P67: 0 | Q67: 0 | R67: 1 | S67: 0 | T67: T2 (PZQ) | Y67: 23717 | Z67: PAUNCA | AB67: ='MDA1'!M67 -> 0 | AC67: ='MDA3'!Q67 -> 0 | AD67: ='T1'!O67 -> 0 | AE67: ='T2'!M67 -> 4313 | AF67: =T3_R1!N67 -> 0 | AG67: =T3_R2!N67 -> 0
A68: =IF(INTRO!$E$34<>0,INTRO!$E$34,"") -> Guinea Bissau | B68: Gabu | C68: PITCHE | D68: 23565 | E68: =IF(INTRO!$E$48="","",ROUND($D68*INTRO!$E$48,0)) -> 3134 | F68: =IF(INTRO!$E$49="","",ROUND($D68*INTRO!$E$49,0)) -> 6037 | G68: =IF(INTRO!$E$50="","",ROUND($D68*INTRO!$E$50,0)) -> 13350 | H68: 1 | I68: 1 | J68: 0 | K68: 1 | L68: =IF(INTRO!$E$38="Endémique", IF($H68>0, IF($H68=4,"Inconnu", IF($H68=99,"Interrompu", $D68)), 0),"Non requis") -> 23565 | M68: =IF(INTRO!$E$40="Endémique", IF($I68>0, IF($I68=4,"Inconnu",IF($I68=99,"Interrompu", $D68)), 0),"Non requis") -> 23565 | N68: =IF(INTRO!$E$42="Endémique", IF(AND($J68>1,$J68<5), IF($J68=4, "Inconnu", E68+F68), 0),"Non requis") -> 0 | O68: =IF(INTRO!$E$44="Endémique", IF(AND($K68>0,$K68<5), IF($K68=4,"Inconnu", IF($K68=1, $F68*0.33, IF($K68=2, $F68*0.5+$G68*0.2, SUM(F68:G68)))), 0),"Non requis") -> 1992.21 | P68: 0 | Q68: 0 | R68: 1 | S68: 0 | T68: T2 (PZQ) | Y68: 23726 | Z68: PITCHE | AB68: ='MDA1'!M68 -> 0 | AC68: ='MDA3'!Q68 -> 0 | AD68: ='T1'!O68 -> 0 | AE68: ='T2'!M68 -> 6847 | AF68: =T3_R1!N68 -> 0 | AG68: =T3_R2!N68 -> 0
A69: =IF(INTRO!$E$34<>0,INTRO!$E$34,"") -> Guinea Bissau | B69: Gabu | C69: DARA | D69: 17549 | E69: =IF(INTRO!$E$48="","",ROUND($D69*INTRO!$E$48,0)) -> 2334 | F69: =IF(INTRO!$E$49="","",ROUND($D69*INTRO!$E$49,0)) -> 4496 | G69: =IF(INTRO!$E$50="","",ROUND($D69*INTRO!$E$50,0)) -> 9942 | H69: 1 | I69: 1 | J69: 2 | K69: 2 | L69: =IF(INTRO!$E$38="Endémique", IF($H69>0, IF($H69=4,"Inconnu", IF($H69=99,"Interrompu", $D69)), 0),"Non requis") -> 17549 | M69: =IF(INTRO!$E$40="Endémique", IF($I69>0, IF($I69=4,"Inconnu",IF($I69=99,"Interrompu", $D69)), 0),"Non requis") -> 17549 | N69: =IF(INTRO!$E$42="Endémique", IF(AND($J69>1,$J69<5), IF($J69=4, "Inconnu", E69+F69), 0),"Non requis") -> 6830 | O69: =IF(INTRO!$E$44="Endémique", IF(AND($K69>0,$K69<5), IF($K69=4,"Inconnu", IF($K69=1, $F69*0.33, IF($K69=2, $F69*0.5+$G69*0.2, SUM(F69:G69)))), 0),"Non requis") -> 4236.4 | P69: 0 | Q69: 0 | R69: 1 | S69: 0 | T69: T2 (PZQ) | Y69: 23715 | Z69: DARA | AB69: ='MDA1'!M69 -> 0 | AC69: ='MDA3'!Q69 -> 0 | AD69: ='T1'!O69 -> 0 | AE69: ='T2'!M69 -> 4300 | AF69: =T3_R1!N69 -> 0 | AG69: =T3_R2!N69 -> 0
A70: =IF(INTRO!$E$34<>0,INTRO!$E$34,"") -> Guinea Bissau | B70: Gabu | C70: PIRADA | D70: 14276 | E70: =IF(INTRO!$E$48="","",ROUND($D70*INTRO!$E$48,0)) -> 1899 | F70: =IF(INTRO!$E$49="","",ROUND($D70*INTRO!$E$49,0)) -> 3658 | G70: =IF(INTRO!$E$50="","",ROUND($D70*INTRO!$E$50,0)) -> 8087 | H70: 1 | I70: 1 | J70: 1 | K70: 1 | L70: =IF(INTRO!$E$38="Endémique", IF($H70>0, IF($H70=4,"Inconnu", IF($H70=99,"Interrompu", $D70)), 0),"Non requis") -> 14276 | M70: =IF(INTRO!$E$40="Endémique", IF($I70>0, IF($I70=4,"Inconnu",IF($I70=99,"Interrompu", $D70)), 0),"Non requis") -> 14276 | N70: =IF(INTRO!$E$42="Endémique", IF(AND($J70>1,$J70<5), IF($J70=4, "Inconnu", E70+F70), 0),"Non requis") -> 0 | O70: =IF(INTRO!$E$44="Endémique", IF(AND($K70>0,$K70<5), IF($K70=4,"Inconnu", IF($K70=1, $F70*0.33, IF($K70=2, $F70*0.5+$G70*0.2, SUM(F70:G70)))), 0),"Non requis") -> 1207.14 | P70: 0 | Q70: 0 | R70: 1 | S70: 0 | T70: T2 (PZQ) | Y70: 23725 | Z70: PIRADA | AB70: ='MDA1'!M70 -> 0 | AC70: ='MDA3'!Q70 -> 0 | AD70: ='T1'!O70 -> 0 | AE70: ='T2'!M70 -> 3404 | AF70: =T3_R1!N70 -> 0 | AG70: =T3_R2!N70 -> 0
A71: =IF(INTRO!$E$34<>0,INTRO!$E$34,"") -> Guinea Bissau | B71: Gabu | C71: DANDUM | D71: 4353 | E71: =IF(INTRO!$E$48="","",ROUND($D71*INTRO!$E$48,0)) -> 579 | F71: =IF(INTRO!$E$49="","",ROUND($D71*INTRO!$E$49,0)) -> 1115 | G71: =IF(INTRO!$E$50="","",ROUND($D71*INTRO!$E$50,0)) -> 2466 | H71: 1 | I71: 1 | J71: 2 | K71: 2 | L71: =IF(INTRO!$E$38="Endémique", IF($H71>0, IF($H71=4,"Inconnu", IF($H71=99,"Interrompu", $D71)), 0),"Non requis") -> 4353 | M71: =IF(INTRO!$E$40="Endémique", IF($I71>0, IF($I71=4,"Inconnu",IF($I71=99,"Interrompu", $D71)), 0),"Non requis") -> 4353 | N71: =IF(INTRO!$E$42="Endémique", IF(AND($J71>1,$J71<5), IF($J71=4, "Inconnu", E71+F71), 0),"Non requis") -> 1694 | O71: =IF(INTRO!$E$44="Endémique", IF(AND($K71>0,$K71<5), IF($K71=4,"Inconnu", IF($K71=1, $F71*0.33, IF($K71=2, $F71*0.5+$G71*0.2, SUM(F71:G71)))), 0),"Non requis") -> 1050.7 | P71: 0 | Q71: 0 | R71: 1 | S71: 0 | T71: T2 (PZQ) | Y71: 23714 | Z71: DANDUM | AB71: ='MDA1'!M71 -> 0 | AC71: ='MDA3'!Q71 -> 0 | AD71: ='T1'!O71 -> 0 | AE71: ='T2'!M71 -> 1272 | AF71: =T3_R1!N71 -> 0 | AG71: =T3_R2!N71 -> 0
A72: =IF(INTRO!$E$34<>0,INTRO!$E$34,"") -> Guinea Bissau | B72: Gabu | C72: MANSADJAM | D72: 16471 | E72: =IF(INTRO!$E$48="","",ROUND($D72*INTRO!$E$48,0)) -> 2191 | F72: =IF(INTRO!$E$49="","",ROUND($D72*INTRO!$E$49,0)) -> 4220 | G72: =IF(INTRO!$E$50="","",ROUND($D72*INTRO!$E$50,0)) -> 9331 | H72: 1 | I72: 1 | J72: 2 | K72: 2 | L72: =IF(INTRO!$E$38="Endémique", IF($H72>0, IF($H72=4,"Inconnu", IF($H72=99,"Interrompu", $D72)), 0),"Non requis") -> 16471 | M72: =IF(INTRO!$E$40="Endémique", IF($I72>0, IF($I72=4,"Inconnu",IF($I72=99,"Interrompu", $D72)), 0),"Non requis") -> 16471 | N72: =IF(INTRO!$E$42="Endémique", IF(AND($J72>1,$J72<5), IF($J72=4, "Inconnu", E72+F72), 0),"Non requis") -> 6411 | O72: =IF(INTRO!$E$44="Endémique", IF(AND($K72>0,$K72<5), IF($K72=4,"Inconnu", IF($K72=1, $F72*0.33, IF($K72=2, $F72*0.5+$G72*0.2, SUM(F72:G72)))), 0),"Non requis") -> 3976.2 | P72: 0 | Q72: 0 | R72: 1 | S72: 0 | T72: T2 (PZQ) | Y72: 23724 | Z72: MANSADJAM | AB72: ='MDA1'!M72 -> 0 | AC72: ='MDA3'!Q72 -> 0 | AD72: ='T1'!O72 -> 0 | AE72: ='T2'!M72 -> 3927 | AF72: =T3_R1!N72 -> 0 | AG72: =T3_R2!N72 -> 0
A73: =IF(INTRO!$E$34<>0,INTRO!$E$34,"") -> Guinea Bissau | B73: Gabu | C73: SONACO | D73: 21338 | E73: =IF(INTRO!$E$48="","",ROUND($D73*INTRO!$E$48,0)) -> 2838 | F73: =IF(INTRO!$E$49="","",ROUND($D73*INTRO!$E$49,0)) -> 5467 | G73: =IF(INTRO!$E$50="","",ROUND($D73*INTRO!$E$50,0)) -> 12088 | H73: 1 | I73: 1 | J73: 1 | K73: 2 | L73: =IF(INTRO!$E$38="Endémique", IF($H73>0, IF($H73=4,"Inconnu", IF($H73=99,"Interrompu", $D73)), 0),"Non requis") -> 21338 | M73: =IF(INTRO!$E$40="Endémique", IF($I73>0, IF($I73=4,"Inconnu",IF($I73=99,"Interrompu", $D73)), 0),"Non requis") -> 21338 | N73: =IF(INTRO!$E$42="Endémique", IF(AND($J73>1,$J73<5), IF($J73=4, "Inconnu", E73+F73), 0),"Non requis") -> 0 | O73: =IF(INTRO!$E$44="Endémique", IF(AND($K73>0,$K73<5), IF($K73=4,"Inconnu", IF($K73=1, $F73*0.33, IF($K73=2, $F73*0.5+$G73*0.2, SUM(F73:G73)))), 0),"Non requis") -> 5151.1 | P73: 0 | Q73: 0 | R73: 1 | S73: 0 | T73: T2 (PZQ) | Y73: 23727 | Z73: SONACO | AB73: ='MDA1'!M73 -> 0 | AC73: ='MDA3'!Q73 -> 0 | AD73: ='T1'!O73 -> 0 | AE73: ='T2'!M73 -> 5118 | AF73: =T3_R1!N73 -> 0 | AG73: =T3_R2!N73 -> 0
A74: =IF(INTRO!$E$34<>0,INTRO!$E$34,"") -> Guinea Bissau | B74: Gabu | C74: LUGADJOLE | D74: 4775 | E74: =IF(INTRO!$E$48="","",ROUND($D74*INTRO!$E$48,0)) -> 635 | F74: =IF(INTRO!$E$49="","",ROUND($D74*INTRO!$E$49,0)) -> 1223 | G74: =IF(INTRO!$E$50="","",ROUND($D74*INTRO!$E$50,0)) -> 2705 | H74: 1 | I74: 1 | J74: 2 | K74: 2 | L74: =IF(INTRO!$E$38="Endémique", IF($H74>0, IF($H74=4,"Inconnu", IF($H74=99,"Interrompu", $D74)), 0),"Non requis") -> 4775 | M74: =IF(INTRO!$E$40="Endémique", IF($I74>0, IF($I74=4,"Inconnu",IF($I74=99,"Interrompu", $D74)), 0),"Non requis") -> 4775 | N74: =IF(INTRO!$E$42="Endémique", IF(AND($J74>1,$J74<5), IF($J74=4, "Inconnu", E74+F74), 0),"Non requis") -> 1858 | O74: =IF(INTRO!$E$44="Endémique", IF(AND($K74>0,$K74<5), IF($K74=4,"Inconnu", IF($K74=1, $F74*0.33, IF($K74=2, $F74*0.5+$G74*0.2, SUM(F74:G74)))), 0),"Non requis") -> 1152.5 | P74: 0 | Q74: 0 | R74: 1 | S74: 0 | T74: T2 (PZQ) | Y74: 23722 | Z74: LUGADJOL | AB74: ='MDA1'!M74 -> 0 | AC74: ='MDA3'!Q74 -> 0 | AD74: ='T1'!O74 -> 0 | AE74: ='T2'!M74 -> 1132 | AF74: =T3_R1!N74 -> 0 | AG74: =T3_R2!N74 -> 0
A75: =IF(INTRO!$E$34<>0,INTRO!$E$34,"") -> Guinea Bissau | B75: Gabu | C75: GABU | D75: 47738 | E75: =IF(INTRO!$E$48="","",ROUND($D75*INTRO!$E$48,0)) -> 6349 | F75: =IF(INTRO!$E$49="","",ROUND($D75*INTRO!$E$49,0)) -> 12230 | G75: =IF(INTRO!$E$50="","",ROUND($D75*INTRO!$E$50,0)) -> 27044 | H75: 1 | I75: 1 | J75: 0 | K75: 2 | L75: =IF(INTRO!$E$38="Endémique", IF($H75>0, IF($H75=4,"Inconnu", IF($H75=99,"Interrompu", $D75)), 0),"Non requis") -> 47738 | M75: =IF(INTRO!$E$40="Endémique", IF($I75>0, IF($I75=4,"Inconnu",IF($I75=99,"Interrompu", $D75)), 0),"Non requis") -> 47738 | N75: =IF(INTRO!$E$42="Endémique", IF(AND($J75>1,$J75<5), IF($J75=4, "Inconnu", E75+F75), 0),"Non requis") -> 0 | O75: =IF(INTRO!$E$44="Endémique", IF(AND($K75>0,$K75<5), IF($K75=4,"Inconnu", IF($K75=1, $F75*0.33, IF($K75=2, $F75*0.5+$G75*0.2, SUM(F75:G75)))), 0),"Non requis") -> 11523.8 | P75: 0 | Q75: 0 | R75: 1 | S75: 0 | T75: T2 (PZQ) | Y75: 23721 | Z75: GABU | AB75: ='MDA1'!M75 -> 0 | AC75: ='MDA3'!Q75 -> 0 | AD75: ='T1'!O75 -> 0 | AE75: ='T2'!M75 -> 11545 | AF75: =T3_R1!N75 -> 0 | AG75: =T3_R2!N75 -> 0
A76: =IF(INTRO!$E$34<>0,INTRO!$E$34,"") -> Guinea Bissau | B76: Gabu | C76: CANDJUFA | D76: 23094 | E76: =IF(INTRO!$E$48="","",ROUND($D76*INTRO!$E$48,0)) -> 3072 | F76: =IF(INTRO!$E$49="","",ROUND($D76*INTRO!$E$49,0)) -> 5917 | G76: =IF(INTRO!$E$50="","",ROUND($D76*INTRO!$E$50,0)) -> 13083 | H76: 1 | I76: 1 | J76: 2 | K76: 2 | L76: =IF(INTRO!$E$38="Endémique", IF($H76>0, IF($H76=4,"Inconnu", IF($H76=99,"Interrompu", $D76)), 0),"Non requis") -> 23094 | M76: =IF(INTRO!$E$40="Endémique", IF($I76>0, IF($I76=4,"Inconnu",IF($I76=99,"Interrompu", $D76)), 0),"Non requis") -> 23094 | N76: =IF(INTRO!$E$42="Endémique", IF(AND($J76>1,$J76<5), IF($J76=4, "Inconnu", E76+F76), 0),"Non requis") -> 8989 | O76: =IF(INTRO!$E$44="Endémique", IF(AND($K76>0,$K76<5), IF($K76=4,"Inconnu", IF($K76=1, $F76*0.33, IF($K76=2, $F76*0.5+$G76*0.2, SUM(F76:G76)))), 0),"Non requis") -> 5575.1 | P76: 0 | Q76: 0 | R76: 1 | S76: 0 | T76: T2 (PZQ) | Y76: 23720 | Z76: CANJUFA | AB76: ='MDA1'!M76 -> 0 | AC76: ='MDA3'!Q76 -> 0 | AD76: ='T1'!O76 -> 0 | AE76: ='T2'!M76 -> 5529 | AF76: =T3_R1!N76 -> 0 | AG76: =T3_R2!N76 -> 0
A77: =IF(INTRO!$E$34<>0,INTRO!$E$34,"") -> Guinea Bissau | B77: Gabu | C77: MAFANCO | D77: 18226 | E77: =IF(INTRO!$E$48="","",ROUND($D77*INTRO!$E$48,0)) -> 2424 | F77: =IF(INTRO!$E$49="","",ROUND($D77*INTRO!$E$49,0)) -> 4670 | G77: =IF(INTRO!$E$50="","",ROUND($D77*INTRO!$E$50,0)) -> 10325 | H77: 1 | I77: 1 | J77: 2 | K77: 2 | L77: =IF(INTRO!$E$38="Endémique", IF($H77>0, IF($H77=4,"Inconnu", IF($H77=99,"Interrompu", $D77)), 0),"Non requis") -> 18226 | M77: =IF(INTRO!$E$40="Endémique", IF($I77>0, IF($I77=4,"Inconnu",IF($I77=99,"Interrompu", $D77)), 0),"Non requis") -> 18226 | N77: =IF(INTRO!$E$42="Endémique", IF(AND($J77>1,$J77<5), IF($J77=4, "Inconnu", E77+F77), 0),"Non requis") -> 7094 | O77: =IF(INTRO!$E$44="Endémique", IF(AND($K77>0,$K77<5), IF($K77=4,"Inconnu", IF($K77=1, $F77*0.33, IF($K77=2, $F77*0.5+$G77*0.2, SUM(F77:G77)))), 0),"Non requis") -> 4400 | P77: 0 | Q77: 0 | R77: 1 | S77: 0 | T77: T2 (PZQ) | Y77: 23723 | Z77: MAFANCO | AB77: ='MDA1'!M77 -> 0 | AC77: ='MDA3'!Q77 -> 0 | AD77: ='T1'!O77 -> 0 | AE77: ='T2'!M77 -> 4342 | AF77: =T3_R1!N77 -> 0 | AG77: =T3_R2!N77 -> 0
A78: =IF(INTRO!$E$34<>0,INTRO!$E$34,"") -> Guinea Bissau | B78: Gabu | C78: TUMANA | D78: 17759 | E78: =IF(INTRO!$E$48="","",ROUND($D78*INTRO!$E$48,0)) -> 2362 | F78: =IF(INTRO!$E$49="","",ROUND($D78*INTRO!$E$49,0)) -> 4550 | G78: =IF(INTRO!$E$50="","",ROUND($D78*INTRO!$E$50,0)) -> 10060 | H78: 1 | I78: 1 | J78: 2 | K78: 2 | L78: =IF(INTRO!$E$38="Endémique", IF($H78>0, IF($H78=4,"Inconnu", IF($H78=99,"Interrompu", $D78)), 0),"Non requis") -> 17759 | M78: =IF(INTRO!$E$40="Endémique", IF($I78>0, IF($I78=4,"Inconnu",IF($I78=99,"Interrompu", $D78)), 0),"Non requis") -> 17759 | N78: =IF(INTRO!$E$42="Endémique", IF(AND($J78>1,$J78<5), IF($J78=4, "Inconnu", E78+F78), 0),"Non requis") -> 6912 | O78: =IF(INTRO!$E$44="Endémique", IF(AND($K78>0,$K78<5), IF($K78=4,"Inconnu", IF($K78=1, $F78*0.33, IF($K78=2, $F78*0.5+$G78*0.2, SUM(F78:G78)))), 0),"Non requis") -> 4287 | P78: 0 | Q78: 0 | R78: 1 | S78: 0 | T78: T2 (PZQ) | Y78: 23728 | Z78: TUMANA | AB78: ='MDA1'!M78 -> 0 | AC78: ='MDA3'!Q78 -> 0 | AD78: ='T1'!O78 -> 0 | AE78: ='T2'!M78 -> 4314 | AF78: =T3_R1!N78 -> 0 | AG78: =T3_R2!N78 -> 0
A79: =IF(INTRO!$E$34<>0,INTRO!$E$34,"") -> Guinea Bissau | B79: Bafata | C79: Xitole | D79: 20191 | E79: =IF(INTRO!$E$48="","",ROUND($D79*INTRO!$E$48,0)) -> 2685 | F79: =IF(INTRO!$E$49="","",ROUND($D79*INTRO!$E$49,0)) -> 5173 | G79: =IF(INTRO!$E$50="","",ROUND($D79*INTRO!$E$50,0)) -> 11438 | H79: 1 | I79: 1 | J79: 1 | K79: 1 | L79: =IF(INTRO!$E$38="Endémique", IF($H79>0, IF($H79=4,"Inconnu", IF($H79=99,"Interrompu", $D79)), 0),"Non requis") -> 20191 | M79: =IF(INTRO!$E$40="Endémique", IF($I79>0, IF($I79=4,"Inconnu",IF($I79=99,"Interrompu", $D79)), 0),"Non requis") -> 20191 | N79: =IF(INTRO!$E$42="Endémique", IF(AND($J79>1,$J79<5), IF($J79=4, "Inconnu", E79+F79), 0),"Non requis") -> 0 | O79: =IF(INTRO!$E$44="Endémique", IF(AND($K79>0,$K79<5), IF($K79=4,"Inconnu", IF($K79=1, $F79*0.33, IF($K79=2, $F79*0.5+$G79*0.2, SUM(F79:G79)))), 0),"Non requis") -> 1707.09 | P79: 0 | Q79: 0 | R79: 0 | S79: 0 | Y79: 23669 | Z79: XITOLE | AB79: ='MDA1'!M79 -> 0 | AC79: ='MDA3'!Q79 -> 0 | AD79: ='T1'!O79 -> 0 | AE79: ='T2'!M79 -> 0 | AF79: =T3_R1!N79 -> 0 | AG79: =T3_R2!N79 -> 0
A80: =IF(INTRO!$E$34<>0,INTRO!$E$34,"") -> Guinea Bissau | B80: Bafata | C80: Contubuel | D80: 30661 | E80: =IF(INTRO!$E$48="","",ROUND($D80*INTRO!$E$48,0)) -> 4078 | F80: =IF(INTRO!$E$49="","",ROUND($D80*INTRO!$E$49,0)) -> 7855 | G80: =IF(INTRO!$E$50="","",ROUND($D80*INTRO!$E$50,0)) -> 17369 | H80: 1 | I80: 1 | J80: 1 | K80: 2 | L80: =IF(INTRO!$E$38="Endémique", IF($H80>0, IF($H80=4,"Inconnu", IF($H80=99,"Interrompu", $D80)), 0),"Non requis") -> 30661 | M80: =IF(INTRO!$E$40="Endémique", IF($I80>0, IF($I80=4,"Inconnu",IF($I80=99,"Interrompu", $D80)), 0),"Non requis") -> 30661 | N80: =IF(INTRO!$E$42="Endémique", IF(AND($J80>1,$J80<5), IF($J80=4, "Inconnu", E80+F80), 0),"Non requis") -> 0 | O80: =IF(INTRO!$E$44="Endémique", IF(AND($K80>0,$K80<5), IF($K80=4,"Inconnu", IF($K80=1, $F80*0.33, IF($K80=2, $F80*0.5+$G80*0.2, SUM(F80:G80)))), 0),"Non requis") -> 7401.3 | P80: 0 | Q80: 0 | R80: 0 | S80: 0 | Y80: 23659 | Z80: CONTUBOEL | AB80: ='MDA1'!M80 -> 0 | AC80: ='MDA3'!Q80 -> 0 | AD80: ='T1'!O80 -> 0 | AE80: ='T2'!M80 -> 0 | AF80: =T3_R1!N80 -> 0 | AG80: =T3_R2!N80 -> 0
A81: =IF(INTRO!$E$34<>0,INTRO!$E$34,"") -> Guinea Bissau | B81: Bafata | C81: Tendinto | D81: 8405 | E81: =IF(INTRO!$E$48="","",ROUND($D81*INTRO!$E$48,0)) -> 1118 | F81: =IF(INTRO!$E$49="","",ROUND($D81*INTRO!$E$49,0)) -> 2153 | G81: =IF(INTRO!$E$50="","",ROUND($D81*INTRO!$E$50,0)) -> 4761 | H81: 1 | I81: 1 | J81: 1 | K81: 2 | L81: =IF(INTRO!$E$38="Endémique", IF($H81>0, IF($H81=4,"Inconnu", IF($H81=99,"Interrompu", $D81)), 0),"Non requis") -> 8405 | M81: =IF(INTRO!$E$40="Endémique", IF($I81>0, IF($I81=4,"Inconnu",IF($I81=99,"Interrompu", $D81)), 0),"Non requis") -> 8405 | N81: =IF(INTRO!$E$42="Endémique", IF(AND($J81>1,$J81<5), IF($J81=4, "Inconnu", E81+F81), 0),"Non requis") -> 0 | O81: =IF(INTRO!$E$44="Endémique", IF(AND($K81>0,$K81<5), IF($K81=4,"Inconnu", IF($K81=1, $F81*0.33, IF($K81=2, $F81*0.5+$G81*0.2, SUM(F81:G81)))), 0),"Non requis") -> 2028.7 | P81: 0 | Q81: 0 | R81: 0 | S81: 0 | Y81: 23668 | Z81: TENDINTO | AB81: ='MDA1'!M81 -> 0 | AC81: ='MDA3'!Q81 -> 0 | AD81: ='T1'!O81 -> 0 | AE81: ='T2'!M81 -> 0 | AF81: =T3_R1!N81 -> 0 | AG81: =T3_R2!N81 -> 0
A82: =IF(INTRO!$E$34<>0,INTRO!$E$34,"") -> Guinea Bissau | B82: Bafata | C82: Geba | D82: 14925 | E82: =IF(INTRO!$E$48="","",ROUND($D82*INTRO!$E$48,0)) -> 1985 | F82: =IF(INTRO!$E$49="","",ROUND($D82*INTRO!$E$49,0)) -> 3824 | G82: =IF(INTRO!$E$50="","",ROUND($D82*INTRO!$E$50,0)) -> 8455 | H82: 1 | I82: 1 | J82: 0 | K82: 1 | L82: =IF(INTRO!$E$38="Endémique", IF($H82>0, IF($H82=4,"Inconnu", IF($H82=99,"Interrompu", $D82)), 0),"Non requis") -> 14925 | M82: =IF(INTRO!$E$40="Endémique", IF($I82>0, IF($I82=4,"Inconnu",IF($I82=99,"Interrompu", $D82)), 0),"Non requis") -> 14925 | N82: =IF(INTRO!$E$42="Endémique", IF(AND($J82>1,$J82<5), IF($J82=4, "Inconnu", E82+F82), 0),"Non requis") -> 0 | O82: =IF(INTRO!$E$44="Endémique", IF(AND($K82>0,$K82<5), IF($K82=4,"Inconnu", IF($K82=1, $F82*0.33, IF($K82=2, $F82*0.5+$G82*0.2, SUM(F82:G82)))), 0),"Non requis") -> 1261.92 | P82: 0 | Q82: 0 | R82: 0 | S82: 0 | Y82: 23663 | Z82: GEBA | AB82: ='MDA1'!M82 -> 0 | AC82: ='MDA3'!Q82 -> 0 | AD82: ='T1'!O82 -> 0 | AE82: ='T2'!M82 -> 0 | AF82: =T3_R1!N82 -> 0 | AG82: =T3_R2!N82 -> 0
A83: =IF(INTRO!$E$34<>0,INTRO!$E$34,"") -> Guinea Bissau | B83: Bafata | C83: Tantancosse | D83: 17403 | E83: =IF(INTRO!$E$48="","",ROUND($D83*INTRO!$E$48,0)) -> 2315 | F83: =IF(INTRO!$E$49="","",ROUND($D83*INTRO!$E$49,0)) -> 4459 | G83: =IF(INTRO!$E$50="","",ROUND($D83*INTRO!$E$50,0)) -> 9859 | H83: 1 | I83: 1 | J83: 1 | K83: 1 | L83: =IF(INTRO!$E$38="Endémique", IF($H83>0, IF($H83=4,"Inconnu", IF($H83=99,"Interrompu", $D83)), 0),"Non requis") -> 17403 | M83: =IF(INTRO!$E$40="Endémique", IF($I83>0, IF($I83=4,"Inconnu",IF($I83=99,"Interrompu", $D83)), 0),"Non requis") -> 17403 | N83: =IF(INTRO!$E$42="Endémique", IF(AND($J83>1,$J83<5), IF($J83=4, "Inconnu", E83+F83), 0),"Non requis") -> 0 | O83: =IF(INTRO!$E$44="Endémique", IF(AND($K83>0,$K83<5), IF($K83=4,"Inconnu", IF($K83=1, $F83*0.33, IF($K83=2, $F83*0.5+$G83*0.2, SUM(F83:G83)))), 0),"Non requis") -> 1471.47 | P83: 0 | Q83: 0 | R83: 0 | S83: 0 | Y83: 23667 | Z83: TANTAM COSSÉ | AB83: ='MDA1'!M83 -> 0 | AC83: ='MDA3'!Q83 -> 0 | AD83: ='T1'!O83 -> 0 | AE83: ='T2'!M83 -> 0 | AF83: =T3_R1!N83 -> 0 | AG83: =T3_R2!N83 -> 0
A84: =IF(INTRO!$E$34<>0,INTRO!$E$34,"") -> Guinea Bissau | B84: Bafata | C84: Ga-mamudo | D84: 21832 | E84: =IF(INTRO!$E$48="","",ROUND($D84*INTRO!$E$48,0)) -> 2904 | F84: =IF(INTRO!$E$49="","",ROUND($D84*INTRO!$E$49,0)) -> 5593 | G84: =IF(INTRO!$E$50="","",ROUND($D84*INTRO!$E$50,0)) -> 12368 | H84: 1 | I84: 1 | J84: 1 | K84: 2 | L84: =IF(INTRO!$E$38="Endémique", IF($H84>0, IF($H84=4,"Inconnu", IF($H84=99,"Interrompu", $D84)), 0),"Non requis") -> 21832 | M84: =IF(INTRO!$E$40="Endémique", IF($I84>0, IF($I84=4,"Inconnu",IF($I84=99,"Interrompu", $D84)), 0),"Non requis") -> 21832 | N84: =IF(INTRO!$E$42="Endémique", IF(AND($J84>1,$J84<5), IF($J84=4, "Inconnu", E84+F84), 0),"Non requis") -> 0 | O84: =IF(INTRO!$E$44="Endémique", IF(AND($K84>0,$K84<5), IF($K84=4,"Inconnu", IF($K84=1, $F84*0.33, IF($K84=2, $F84*0.5+$G84*0.2, SUM(F84:G84)))), 0),"Non requis") -> 5270.1 | P84: 0 | Q84: 0 | R84: 0 | S84: 0 | Y84: 23662 | Z84: GÃ-GAMAMUDO | AB84: ='MDA1'!M84 -> 0 | AC84: ='MDA3'!Q84 -> 0 | AD84: ='T1'!O84 -> 0 | AE84: ='T2'!M84 -> 0 | AF84: =T3_R1!N84 -> 0 | AG84: =T3_R2!N84 -> 0
A85: =IF(INTRO!$E$34<>0,INTRO!$E$34,"") -> Guinea Bissau | B85: Bafata | C85: Bambadinca | D85: 32066 | E85: =IF(INTRO!$E$48="","",ROUND($D85*INTRO!$E$48,0)) -> 4265 | F85: =IF(INTRO!$E$49="","",ROUND($D85*INTRO!$E$49,0)) -> 8215 | G85: =IF(INTRO!$E$50="","",ROUND($D85*INTRO!$E$50,0)) -> 18165 | H85: 1 | I85: 1 | J85: 1 | K85: 1 | L85: =IF(INTRO!$E$38="Endémique", IF($H85>0, IF($H85=4,"Inconnu", IF($H85=99,"Interrompu", $D85)), 0),"Non requis") -> 32066 | M85: =IF(INTRO!$E$40="Endémique", IF($I85>0, IF($I85=4,"Inconnu",IF($I85=99,"Interrompu", $D85)), 0),"Non requis") -> 32066 | N85: =IF(INTRO!$E$42="Endémique", IF(AND($J85>1,$J85<5), IF($J85=4, "Inconnu", E85+F85), 0),"Non requis") -> 0 | O85: =IF(INTRO!$E$44="Endémique", IF(AND($K85>0,$K85<5), IF($K85=4,"Inconnu", IF($K85=1, $F85*0.33, IF($K85=2, $F85*0.5+$G85*0.2, SUM(F85:G85)))), 0),"Non requis") -> 2710.95 | P85: 0 | Q85: 0 | R85: 0 | S85: 0 | Y85: 23657 | Z85: BAMBADINCA | AB85: ='MDA1'!M85 -> 0 | AC85: ='MDA3'!Q85 -> 0 | AD85: ='T1'!O85 -> 0 | AE85: ='T2'!M85 -> 0 | AF85: =T3_R1!N85 -> 0 | AG85: =T3_R2!N85 -> 0
A86: =IF(INTRO!$E$34<>0,INTRO!$E$34,"") -> Guinea Bissau | B86: Bafata | C86: Ga carnes | D86: 4604 | E86: =IF(INTRO!$E$48="","",ROUND($D86*INTRO!$E$48,0)) -> 612 | F86: =IF(INTRO!$E$49="","",ROUND($D86*INTRO!$E$49,0)) -> 1180 | G86: =IF(INTRO!$E$50="","",ROUND($D86*INTRO!$E$50,0)) -> 2608 | H86: 1 | I86: 1 | J86: 1 | K86: 1 | L86: =IF(INTRO!$E$38="Endémique", IF($H86>0, IF($H86=4,"Inconnu", IF($H86=99,"Interrompu", $D86)), 0),"Non requis") -> 4604 | M86: =IF(INTRO!$E$40="Endémique", IF($I86>0, IF($I86=4,"Inconnu",IF($I86=99,"Interrompu", $D86)), 0),"Non requis") -> 4604 | N86: =IF(INTRO!$E$42="Endémique", IF(AND($J86>1,$J86<5), IF($J86=4, "Inconnu", E86+F86), 0),"Non requis") -> 0 | O86: =IF(INTRO!$E$44="Endémique", IF(AND($K86>0,$K86<5), IF($K86=4,"Inconnu", IF($K86=1, $F86*0.33, IF($K86=2, $F86*0.5+$G86*0.2, SUM(F86:G86)))), 0),"Non requis") -> 389.4 | P86: 0 | Q86: 0 | R86: 0 | S86: 0 | Y86: 23664 | Z86: GÃ-CARNÊS | AB86: ='MDA1'!M86 -> 0 | AC86: ='MDA3'!Q86 -> 0 | AD86: ='T1'!O86 -> 0 | AE86: ='T2'!M86 -> 0 | AF86: =T3_R1!N86 -> 0 | AG86: =T3_R2!N86 -> 0
A87: =IF(INTRO!$E$34<>0,INTRO!$E$34,"") -> Guinea Bissau | B87: Bafata | C87: Cambaju | D87: 8507 | E87: =IF(INTRO!$E$48="","",ROUND($D87*INTRO!$E$48,0)) -> 1131 | F87: =IF(INTRO!$E$49="","",ROUND($D87*INTRO!$E$49,0)) -> 2179 | G87: =IF(INTRO!$E$50="","",ROUND($D87*INTRO!$E$50,0)) -> 4819 | H87: 1 | I87: 1 | J87: 1 | K87: 1 | L87: =IF(INTRO!$E$38="Endémique", IF($H87>0, IF($H87=4,"Inconnu", IF($H87=99,"Interrompu", $D87)), 0),"Non requis") -> 8507 | M87: =IF(INTRO!$E$40="Endémique", IF($I87>0, IF($I87=4,"Inconnu",IF($I87=99,"Interrompu", $D87)), 0),"Non requis") -> 8507 | N87: =IF(INTRO!$E$42="Endémique", IF(AND($J87>1,$J87<5), IF($J87=4, "Inconnu", E87+F87), 0),"Non requis") -> 0 | O87: =IF(INTRO!$E$44="Endémique", IF(AND($K87>0,$K87<5), IF($K87=4,"Inconnu", IF($K87=1, $F87*0.33, IF($K87=2, $F87*0.5+$G87*0.2, SUM(F87:G87)))), 0),"Non requis") -> 719.07 | P87: 0 | Q87: 0 | R87: 0 | S87: 0 | Y87: 23658 | Z87: CAMBADJU | AB87: ='MDA1'!M87 -> 0 | AC87: ='MDA3'!Q87 -> 0 | AD87: ='T1'!O87 -> 0 | AE87: ='T2'!M87 -> 0 | AF87: =T3_R1!N87 -> 0 | AG87: =T3_R2!N87 -> 0
A88: =IF(INTRO!$E$34<>0,INTRO!$E$34,"") -> Guinea Bissau | B88: Bafata | C88: Gam ture | D88: 9131 | E88: =IF(INTRO!$E$48="","",ROUND($D88*INTRO!$E$48,0)) -> 1214 | F88: =IF(INTRO!$E$49="","",ROUND($D88*INTRO!$E$49,0)) -> 2339 | G88: =IF(INTRO!$E$50="","",ROUND($D88*INTRO!$E$50,0)) -> 5173 | H88: 1 | I88: 1 | J88: 1 | K88: 1 | L88: =IF(INTRO!$E$38="Endémique", IF($H88>0, IF($H88=4,"Inconnu", IF($H88=99,"Interrompu", $D88)), 0),"Non requis") -> 9131 | M88: =IF(INTRO!$E$40="Endémique", IF($I88>0, IF($I88=4,"Inconnu",IF($I88=99,"Interrompu", $D88)), 0),"Non requis") -> 9131 | N88: =IF(INTRO!$E$42="Endémique", IF(AND($J88>1,$J88<5), IF($J88=4, "Inconnu", E88+F88), 0),"Non requis") -> 0 | O88: =IF(INTRO!$E$44="Endémique", IF(AND($K88>0,$K88<5), IF($K88=4,"Inconnu", IF($K88=1, $F88*0.33, IF($K88=2, $F88*0.5+$G88*0.2, SUM(F88:G88)))), 0),"Non requis") -> 771.87 | P88: 0 | Q88: 0 | R88: 0 | S88: 0 | Y88: 23665 | Z88: GÃ-TURÉ | AB88: ='MDA1'!M88 -> 0 | AC88: ='MDA3'!Q88 -> 0 | AD88: ='T1'!O88 -> 0 | AE88: ='T2'!M88 -> 0 | AF88: =T3_R1!N88 -> 0 | AG88: =T3_R2!N88 -> 0
A89: =IF(INTRO!$E$34<>0,INTRO!$E$34,"") -> Guinea Bissau | B89: Bafata | C89: Sare bacar | D89: 8861 | E89: =IF(INTRO!$E$48="","",ROUND($D89*INTRO!$E$48,0)) -> 1179 | F89: =IF(INTRO!$E$49="","",ROUND($D89*INTRO!$E$49,0)) -> 2270 | G89: =IF(INTRO!$E$50="","",ROUND($D89*INTRO!$E$50,0)) -> 5020 | H89: 1 | I89: 1 | J89: 1 | K89: 2 | L89: =IF(INTRO!$E$38="Endémique", IF($H89>0, IF($H89=4,"Inconnu", IF($H89=99,"Interrompu", $D89)), 0),"Non requis") -> 8861 | M89: =IF(INTRO!$E$40="Endémique", IF($I89>0, IF($I89=4,"Inconnu",IF($I89=99,"Interrompu", $D89)), 0),"Non requis") -> 8861 | N89: =IF(INTRO!$E$42="Endémique", IF(AND($J89>1,$J89<5), IF($J89=4, "Inconnu", E89+F89), 0),"Non requis") -> 0 | O89: =IF(INTRO!$E$44="Endémique", IF(AND($K89>0,$K89<5), IF($K89=4,"Inconnu", IF($K89=1, $F89*0.33, IF($K89=2, $F89*0.5+$G89*0.2, SUM(F89:G89)))), 0),"Non requis") -> 2139 | P89: 0 | Q89: 0 | R89: 0 | S89: 0 | Y89: 23666 | Z89: SARE-BACAR | AB89: ='MDA1'!M89 -> 0 | AC89: ='MDA3'!Q89 -> 0 | AD89: ='T1'!O89 -> 0 | AE89: ='T2'!M89 -> 0 | AF89: =T3_R1!N89 -> 0 | AG89: =T3_R2!N89 -> 0
A90: =IF(INTRO!$E$34<>0,INTRO!$E$34,"") -> Guinea Bissau | B90: Bafata | C90: Fajonquito | D90: 15014 | E90: =IF(INTRO!$E$48="","",ROUND($D90*INTRO!$E$48,0)) -> 1997 | F90: =IF(INTRO!$E$49="","",ROUND($D90*INTRO!$E$49,0)) -> 3847 | G90: =IF(INTRO!$E$50="","",ROUND($D90*INTRO!$E$50,0)) -> 8505 | H90: 1 | I90: 1 | J90: 1 | K90: 2 | L90: =IF(INTRO!$E$38="Endémique", IF($H90>0, IF($H90=4,"Inconnu", IF($H90=99,"Interrompu", $D90)), 0),"Non requis") -> 15014 | M90: =IF(INTRO!$E$40="Endémique", IF($I90>0, IF($I90=4,"Inconnu",IF($I90=99,"Interrompu", $D90)), 0),"Non requis") -> 15014 | N90: =IF(INTRO!$E$42="Endémique", IF(AND($J90>1,$J90<5), IF($J90=4, "Inconnu", E90+F90), 0),"Non requis") -> 0 | O90: =IF(INTRO!$E$44="Endémique", IF(AND($K90>0,$K90<5), IF($K90=4,"Inconnu", IF($K90=1, $F90*0.33, IF($K90=2, $F90*0.5+$G90*0.2, SUM(F90:G90)))), 0),"Non requis") -> 3624.5 | P90: 0 | Q90: 0 | R90: 0 | S90: 0 | Y90: 23661 | Z90: FAJONQUITO | AB90: ='MDA1'!M90 -> 0 | AC90: ='MDA3'!Q90 -> 0 | AD90: ='T1'!O90 -> 0 | AE90: ='T2'!M90 -> 0 | AF90: =T3_R1!N90 -> 0 | AG90: =T3_R2!N90 -> 0
A91: =IF(INTRO!$E$34<>0,INTRO!$E$34,"") -> Guinea Bissau | B91: Bafata | C91: Cosse | D91: 24255 | E91: =IF(INTRO!$E$48="","",ROUND($D91*INTRO!$E$48,0)) -> 3226 | F91: =IF(INTRO!$E$49="","",ROUND($D91*INTRO!$E$49,0)) -> 6214 | G91: =IF(INTRO!$E$50="","",ROUND($D91*INTRO!$E$50,0)) -> 13740 | H91: 1 | I91: 1 | J91: 1 | K91: 1 | L91: =IF(INTRO!$E$38="Endémique", IF($H91>0, IF($H91=4,"Inconnu", IF($H91=99,"Interrompu", $D91)), 0),"Non requis") -> 24255 | M91: =IF(INTRO!$E$40="Endémique", IF($I91>0, IF($I91=4,"Inconnu",IF($I91=99,"Interrompu", $D91)), 0),"Non requis") -> 24255 | N91: =IF(INTRO!$E$42="Endémique", IF(AND($J91>1,$J91<5), IF($J91=4, "Inconnu", E91+F91), 0),"Non requis") -> 0 | O91: =IF(INTRO!$E$44="Endémique", IF(AND($K91>0,$K91<5), IF($K91=4,"Inconnu", IF($K91=1, $F91*0.33, IF($K91=2, $F91*0.5+$G91*0.2, SUM(F91:G91)))), 0),"Non requis") -> 2050.62 | P91: 0 | Q91: 0 | R91: 0 | S91: 0 | Y91: 23660 | Z91: COSSÉ | AB91: ='MDA1'!M91 -> 0 | AC91: ='MDA3'!Q91 -> 0 | AD91: ='T1'!O91 -> 0 | AE91: ='T2'!M91 -> 0 | AF91: =T3_R1!N91 -> 0 | AG91: =T3_R2!N91 -> 0
A92: =IF(INTRO!$E$34<>0,INTRO!$E$34,"") -> Guinea Bissau | B92: Bafata | C92: Bafata | D92: 76571 | E92: =IF(INTRO!$E$48="","",ROUND($D92*INTRO!$E$48,0)) -> 10184 | F92: =IF(INTRO!$E$49="","",ROUND($D92*INTRO!$E$49,0)) -> 19617 | G92: =IF(INTRO!$E$50="","",ROUND($D92*INTRO!$E$50,0)) -> 43377 | H92: 1 | I92: 1 | J92: 1 | K92: 2 | L92: =IF(INTRO!$E$38="Endémique", IF($H92>0, IF($H92=4,"Inconnu", IF($H92=99,"Interrompu", $D92)), 0),"Non requis") -> 76571 | M92: =IF(INTRO!$E$40="Endémique", IF($I92>0, IF($I92=4,"Inconnu",IF($I92=99,"Interrompu", $D92)), 0),"Non requis") -> 76571 | N92: =IF(INTRO!$E$42="Endémique", IF(AND($J92>1,$J92<5), IF($J92=4, "Inconnu", E92+F92), 0),"Non requis") -> 0 | O92: =IF(INTRO!$E$44="Endémique", IF(AND($K92>0,$K92<5), IF($K92=4,"Inconnu", IF($K92=1, $F92*0.33, IF($K92=2, $F92*0.5+$G92*0.2, SUM(F92:G92)))), 0),"Non requis") -> 18483.9 | P92: 0 | Q92: 0 | R92: 0 | S92: 0 | Y92: 23656 | Z92: BAFATA | AB92: ='MDA1'!M92 -> 0 | AC92: ='MDA3'!Q92 -> 0 | AD92: ='T1'!O92 -> 0 | AE92: ='T2'!M92 -> 0 | AF92: =T3_R1!N92 -> 0 | AG92: =T3_R2!N92 -> 0
A93: =IF(INTRO!$E$34<>0,INTRO!$E$34,"") -> Guinea Bissau | B93: Tombali | C93: BEDANDA | D93: 18605 | E93: =IF(INTRO!$E$48="","",ROUND($D93*INTRO!$E$48,0)) -> 2474 | F93: =IF(INTRO!$E$49="","",ROUND($D93*INTRO!$E$49,0)) -> 4767 | G93: =IF(INTRO!$E$50="","",ROUND($D93*INTRO!$E$50,0)) -> 10540 | H93: 0 | I93: 4 | J93: 2 | K93: 0 | L93: =IF(INTRO!$E$38="Endémique", IF($H93>0, IF($H93=4,"Inconnu", IF($H93=99,"Interrompu", $D93)), 0),"Non requis") -> 0 | M93: =IF(INTRO!$E$40="Endémique", IF($I93>0, IF($I93=4,"Inconnu",IF($I93=99,"Interrompu", $D93)), 0),"Non requis") -> Inconnu | N93: =IF(INTRO!$E$42="Endémique", IF(AND($J93>1,$J93<5), IF($J93=4, "Inconnu", E93+F93), 0),"Non requis") -> 7241 | O93: =IF(INTRO!$E$44="Endémique", IF(AND($K93>0,$K93<5), IF($K93=4,"Inconnu", IF($K93=1, $F93*0.33, IF($K93=2, $F93*0.5+$G93*0.2, SUM(F93:G93)))), 0),"Non requis") -> 0 | P93: 0 | Q93: 0 | R93: 1 | S93: 0 | T93: T3 (ALB/MBD) | Y93: 23754 | Z93: BEDANDA | AB93: ='MDA1'!M93 -> 0 | AC93: ='MDA3'!Q93 -> 0 | AD93: ='T1'!O93 -> 0 | AE93: ='T2'!M93 -> 0 | AF93: =T3_R1!N93 -> 3871 | AG93: =T3_R2!N93 -> 0
A94: =IF(INTRO!$E$34<>0,INTRO!$E$34,"") -> Guinea Bissau | B94: Tombali | C94: CACINE | D94: 13562 | E94: =IF(INTRO!$E$48="","",ROUND($D94*INTRO!$E$48,0)) -> 1804 | F94: =IF(INTRO!$E$49="","",ROUND($D94*INTRO!$E$49,0)) -> 3475 | G94: =IF(INTRO!$E$50="","",ROUND($D94*INTRO!$E$50,0)) -> 7683 | H94: 0 | I94: 4 | J94: 1 | K94: 0 | L94: =IF(INTRO!$E$38="Endémique", IF($H94>0, IF($H94=4,"Inconnu", IF($H94=99,"Interrompu", $D94)), 0),"Non requis") -> 0 | M94: =IF(INTRO!$E$40="Endémique", IF($I94>0, IF($I94=4,"Inconnu",IF($I94=99,"Interrompu", $D94)), 0),"Non requis") -> Inconnu | N94: =IF(INTRO!$E$42="Endémique", IF(AND($J94>1,$J94<5), IF($J94=4, "Inconnu", E94+F94), 0),"Non requis") -> 0 | O94: =IF(INTRO!$E$44="Endémique", IF(AND($K94>0,$K94<5), IF($K94=4,"Inconnu", IF($K94=1, $F94*0.33, IF($K94=2, $F94*0.5+$G94*0.2, SUM(F94:G94)))), 0),"Non requis") -> 0 | P94: 0 | Q94: 0 | R94: 1 | S94: 0 | T94: T3 (ALB/MBD) | Y94: 23755 | Z94: CACINE | AB94: ='MDA1'!M94 -> 0 | AC94: ='MDA3'!Q94 -> 0 | AD94: ='T1'!O94 -> 0 | AE94: ='T2'!M94 -> 0 | AF94: =T3_R1!N94 -> 2661 | AG94: =T3_R2!N94 -> 0
A95: =IF(INTRO!$E$34<>0,INTRO!$E$34,"") -> Guinea Bissau | B95: Tombali | C95: CALAQUE | D95: 17550 | E95: =IF(INTRO!$E$48="","",ROUND($D95*INTRO!$E$48,0)) -> 2334 | F95: =IF(INTRO!$E$49="","",ROUND($D95*INTRO!$E$49,0)) -> 4496 | G95: =IF(INTRO!$E$50="","",ROUND($D95*INTRO!$E$50,0)) -> 9942 | H95: 0 | I95: 4 | J95: 3 | K95: 1 | L95: =IF(INTRO!$E$38="Endémique", IF($H95>0, IF($H95=4,"Inconnu", IF($H95=99,"Interrompu", $D95)), 0),"Non requis") -> 0 | M95: =IF(INTRO!$E$40="Endémique", IF($I95>0, IF($I95=4,"Inconnu",IF($I95=99,"Interrompu", $D95)), 0),"Non requis") -> Inconnu | N95: =IF(INTRO!$E$42="Endémique", IF(AND($J95>1,$J95<5), IF($J95=4, "Inconnu", E95+F95), 0),"Non requis") -> 6830 | O95: =IF(INTRO!$E$44="Endémique", IF(AND($K95>0,$K95<5), IF($K95=4,"Inconnu", IF($K95=1, $F95*0.33, IF($K95=2, $F95*0.5+$G95*0.2, SUM(F95:G95)))), 0),"Non requis") -> 1483.68 | P95: 0 | Q95: 0 | R95: 1 | S95: 0 | T95: T3 (ALB/MBD) | Y95: 23753 | Z95: CALAQUE | AB95: ='MDA1'!M95 -> 0 | AC95: ='MDA3'!Q95 -> 0 | AD95: ='T1'!O95 -> 0 | AE95: ='T2'!M95 -> 0 | AF95: =T3_R1!N95 -> 4353 | AG95: =T3_R2!N95 -> 0
A96: =IF(INTRO!$E$34<>0,INTRO!$E$34,"") -> Guinea Bissau | B96: Tombali | C96: CATIO | D96: 20508 | E96: =IF(INTRO!$E$48="","",ROUND($D96*INTRO!$E$48,0)) -> 2728 | F96: =IF(INTRO!$E$49="","",ROUND($D96*INTRO!$E$49,0)) -> 5254 | G96: =IF(INTRO!$E$50="","",ROUND($D96*INTRO!$E$50,0)) -> 11618 | H96: 0 | I96: 4 | J96: 1 | K96: 1 | L96: =IF(INTRO!$E$38="Endémique", IF($H96>0, IF($H96=4,"Inconnu", IF($H96=99,"Interrompu", $D96)), 0),"Non requis") -> 0 | M96: =IF(INTRO!$E$40="Endémique", IF($I96>0, IF($I96=4,"Inconnu",IF($I96=99,"Interrompu", $D96)), 0),"Non requis") -> Inconnu | N96: =IF(INTRO!$E$42="Endémique", IF(AND($J96>1,$J96<5), IF($J96=4, "Inconnu", E96+F96), 0),"Non requis") -> 0 | O96: =IF(INTRO!$E$44="Endémique", IF(AND($K96>0,$K96<5), IF($K96=4,"Inconnu", IF($K96=1, $F96*0.33, IF($K96=2, $F96*0.5+$G96*0.2, SUM(F96:G96)))), 0),"Non requis") -> 1733.82 | P96: 0 | Q96: 0 | R96: 1 | S96: 0 | T96: T3 (ALB/MBD) | Y96: 23756 | Z96: CATIO | AB96: ='MDA1'!M96 -> 0 | AC96: ='MDA3'!Q96 -> 0 | AD96: ='T1'!O96 -> 0 | AE96: ='T2'!M96 -> 0 | AF96: =T3_R1!N96 -> 5308 | AG96: =T3_R2!N96 -> 0
A97: =IF(INTRO!$E$34<>0,INTRO!$E$34,"") -> Guinea Bissau | B97: Tombali | C97: KOMO | D97: 11650 | E97: =IF(INTRO!$E$48="","",ROUND($D97*INTRO!$E$48,0)) -> 1549 | F97: =IF(INTRO!$E$49="","",ROUND($D97*INTRO!$E$49,0)) -> 2985 | G97: =IF(INTRO!$E$50="","",ROUND($D97*INTRO!$E$50,0)) -> 6600 | H97: 0 | I97: 4 | J97: 2 | K97: 1 | L97: =IF(INTRO!$E$38="Endémique", IF($H97>0, IF($H97=4,"Inconnu", IF($H97=99,"Interrompu", $D97)), 0),"Non requis") -> 0 | M97: =IF(INTRO!$E$40="Endémique", IF($I97>0, IF($I97=4,"Inconnu",IF($I97=99,"Interrompu", $D97)), 0),"Non requis") -> Inconnu | N97: =IF(INTRO!$E$42="Endémique", IF(AND($J97>1,$J97<5), IF($J97=4, "Inconnu", E97+F97), 0),"Non requis") -> 4534 | O97: =IF(INTRO!$E$44="Endémique", IF(AND($K97>0,$K97<5), IF($K97=4,"Inconnu", IF($K97=1, $F97*0.33, IF($K97=2, $F97*0.5+$G97*0.2, SUM(F97:G97)))), 0),"Non requis") -> 985.05 | P97: 0 | Q97: 0 | R97: 1 | S97: 0 | T97: T3 (ALB/MBD) | Y97: 23757 | Z97: KOMO | AB97: ='MDA1'!M97 -> 0 | AC97: ='MDA3'!Q97 -> 0 | AD97: ='T1'!O97 -> 0 | AE97: ='T2'!M97 -> 0 | AF97: =T3_R1!N97 -> 2020 | AG97: =T3_R2!N97 -> 0
A98: =IF(INTRO!$E$34<>0,INTRO!$E$34,"") -> Guinea Bissau | B98: Tombali | C98: QUEBO | D98: 21846 | E98: =IF(INTRO!$E$48="","",ROUND($D98*INTRO!$E$48,0)) -> 2906 | F98: =IF(INTRO!$E$49="","",ROUND($D98*INTRO!$E$49,0)) -> 5597 | G98: =IF(INTRO!$E$50="","",ROUND($D98*INTRO!$E$50,0)) -> 12376 | H98: 0 | I98: 4 | J98: 2 | K98: 0 | L98: =IF(INTRO!$E$38="Endémique", IF($H98>0, IF($H98=4,"Inconnu", IF($H98=99,"Interrompu", $D98)), 0),"Non requis") -> 0 | M98: =IF(INTRO!$E$40="Endémique", IF($I98>0, IF($I98=4,"Inconnu",IF($I98=99,"Interrompu", $D98)), 0),"Non requis") -> Inconnu | N98: =IF(INTRO!$E$42="Endémique", IF(AND($J98>1,$J98<5), IF($J98=4, "Inconnu", E98+F98), 0),"Non requis") -> 8503 | O98: =IF(INTRO!$E$44="Endémique", IF(AND($K98>0,$K98<5), IF($K98=4,"Inconnu", IF($K98=1, $F98*0.33, IF($K98=2, $F98*0.5+$G98*0.2, SUM(F98:G98)))), 0),"Non requis") -> 0 | P98: 0 | Q98: 0 | R98: 1 | S98: 0 | T98: T3 (ALB/MBD) | Y98: 23758 | Z98: QUEBO | AB98: ='MDA1'!M98 -> 0 | AC98: ='MDA3'!Q98 -> 0 | AD98: ='T1'!O98 -> 0 | AE98: ='T2'!M98 -> 0 | AF98: =T3_R1!N98 -> 5586 | AG98: =T3_R2!N98 -> 0
A99: =IF(INTRO!$E$34<>0,INTRO!$E$34,"") -> Guinea Bissau | B99: Tombali | C99: SANCONHA | D99: 7941 | E99: =IF(INTRO!$E$48="","",ROUND($D99*INTRO!$E$48,0)) -> 1056 | F99: =IF(INTRO!$E$49="","",ROUND($D99*INTRO!$E$49,0)) -> 2034 | G99: =IF(INTRO!$E$50="","",ROUND($D99*INTRO!$E$50,0)) -> 4499 | H99: 0 | I99: 4 | J99: 3 | K99: 0 | L99: =IF(INTRO!$E$38="Endémique", IF($H99>0, IF($H99=4,"Inconnu", IF($H99=99,"Interrompu", $D99)), 0),"Non requis") -> 0 | M99: =IF(INTRO!$E$40="Endémique", IF($I99>0, IF($I99=4,"Inconnu",IF($I99=99,"Interrompu", $D99)), 0),"Non requis") -> Inconnu | N99: =IF(INTRO!$E$42="Endémique", IF(AND($J99>1,$J99<5), IF($J99=4, "Inconnu", E99+F99), 0),"Non requis") -> 3090 | O99: =IF(INTRO!$E$44="Endémique", IF(AND($K99>0,$K99<5), IF($K99=4,"Inconnu", IF($K99=1, $F99*0.33, IF($K99=2, $F99*0.5+$G99*0.2, SUM(F99:G99)))), 0),"Non requis") -> 0 | P99: 0 | Q99: 0 | R99: 1 | S99: 0 | T99: T3 (ALB/MBD) | Y99: 23759 | Z99: SANCONHA | AB99: ='MDA1'!M99 -> 0 | AC99: ='MDA3'!Q99 -> 0 | AD99: ='T1'!O99 -> 0 | AE99: ='T2'!M99 -> 0 | AF99: =T3_R1!N99 -> 1440 | AG99: =T3_R2!N99 -> 0
A100: =IF(INTRO!$E$34<>0,INTRO!$E$34,"") -> Guinea Bissau | B100: Tombali | C100: TIMBO | D100: 15098 | E100: =IF(INTRO!$E$48="","",ROUND($D100*INTRO!$E$48,0)) -> 2008 | F100: =IF(INTRO!$E$49="","",ROUND($D100*INTRO!$E$49,0)) -> 3868 | G100: =IF(INTRO!$E$50="","",ROUND($D100*INTRO!$E$50,0)) -> 8553 | H100: 0 | I100: 4 | J100: 3 | K100: 1 | L100: =IF(INTRO!$E$38="Endémique", IF($H100>0, IF($H100=4,"Inconnu", IF($H100=99,"Interrompu", $D100)), 0),"Non requis") -> 0 | M100: =IF(INTRO!$E$40="Endémique", IF($I100>0, IF($I100=4,"Inconnu",IF($I100=99,"Interrompu", $D100)), 0),"Non requis") -> Inconnu | N100: =IF(INTRO!$E$42="Endémique", IF(AND($J100>1,$J100<5), IF($J100=4, "Inconnu", E100+F100), 0),"Non requis") -> 5876 | O100: =IF(INTRO!$E$44="Endémique", IF(AND($K100>0,$K100<5), IF($K100=4,"Inconnu", IF($K100=1, $F100*0.33, IF($K100=2, $F100*0.5+$G100*0.2, SUM(F100:G100)))), 0),"Non requis") -> 1276.44 | P100: 0 | Q100: 0 | R100: 1 | S100: 0 | T100: T3 (ALB/MBD) | Y100: 23760 | Z100: TIMBO | AB100: ='MDA1'!M100 -> 0 | AC100: ='MDA3'!Q100 -> 0 | AD100: ='T1'!O100 -> 0 | AE100: ='T2'!M100 -> 0 | AF100: =T3_R1!N100 -> 4191 | AG100: =T3_R2!N100 -> 0
A101: =IF(INTRO!$E$34<>0,INTRO!$E$34,"") -> Guinea Bissau | B101: Quinara | C101: BRANDÃO | D101: 10252 | E101: =IF(INTRO!$E$48="","",ROUND($D101*INTRO!$E$48,0)) -> 1364 | F101: =IF(INTRO!$E$49="","",ROUND($D101*INTRO!$E$49,0)) -> 2627 | G101: =IF(INTRO!$E$50="","",ROUND($D101*INTRO!$E$50,0)) -> 5808 | H101: 1 | I101: 4 | J101: 3 | K101: 0 | L101: =IF(INTRO!$E$38="Endémique", IF($H101>0, IF($H101=4,"Inconnu", IF($H101=99,"Interrompu", $D101)), 0),"Non requis") -> 10252 | M101: =IF(INTRO!$E$40="Endémique", IF($I101>0, IF($I101=4,"Inconnu",IF($I101=99,"Interrompu", $D101)), 0),"Non requis") -> Inconnu | N101: =IF(INTRO!$E$42="Endémique", IF(AND($J101>1,$J101<5), IF($J101=4, "Inconnu", E101+F101), 0),"Non requis") -> 3991 | O101: =IF(INTRO!$E$44="Endémique", IF(AND($K101>0,$K101<5), IF($K101=4,"Inconnu", IF($K101=1, $F101*0.33, IF($K101=2, $F101*0.5+$G101*0.2, SUM(F101:G101)))), 0),"Non requis") -> 0 | P101: 1 | Q101: 0 | R101: 1 | S101: 0 | T101: MDA1 (IVM+ALB) | Y101: 23740 | Z101: BRANDÃO | AB101: ='MDA1'!M101 -> 5677 | AC101: ='MDA3'!Q101 -> 0 | AD101: ='T1'!O101 -> 0 | AE101: ='T2'!M101 -> 0 | AF101: =T3_R1!N101 -> 0 | AG101: =T3_R2!N101 -> 0
A102: =IF(INTRO!$E$34<>0,INTRO!$E$34,"") -> Guinea Bissau | B102: Quinara | C102: BUBA | D102: 23963 | E102: =IF(INTRO!$E$48="","",ROUND($D102*INTRO!$E$48,0)) -> 3187 | F102: =IF(INTRO!$E$49="","",ROUND($D102*INTRO!$E$49,0)) -> 6139 | G102: =IF(INTRO!$E$50="","",ROUND($D102*INTRO!$E$50,0)) -> 13575 | H102: 1 | I102: 4 | J102: 2 | K102: 0 | L102: =IF(INTRO!$E$38="Endémique", IF($H102>0, IF($H102=4,"Inconnu", IF($H102=99,"Interrompu", $D102)), 0),"Non requis") -> 23963 | M102: =IF(INTRO!$E$40="Endémique", IF($I102>0, IF($I102=4,"Inconnu",IF($I102=99,"Interrompu", $D102)), 0),"Non requis") -> Inconnu | N102: =IF(INTRO!$E$42="Endémique", IF(AND($J102>1,$J102<5), IF($J102=4, "Inconnu", E102+F102), 0),"Non requis") -> 9326 | O102: =IF(INTRO!$E$44="Endémique", IF(AND($K102>0,$K102<5), IF($K102=4,"Inconnu", IF($K102=1, $F102*0.33, IF($K102=2, $F102*0.5+$G102*0.2, SUM(F102:G102)))), 0),"Non requis") -> 0 | P102: 1 | Q102: 0 | R102: 1 | S102: 0 | T102: MDA1 (IVM+ALB) | Y102: 23742 | Z102: BUBA | AB102: ='MDA1'!M102 -> 16404 | AC102: ='MDA3'!Q102 -> 0 | AD102: ='T1'!O102 -> 0 | AE102: ='T2'!M102 -> 0 | AF102: =T3_R1!N102 -> 0 | AG102: =T3_R2!N102 -> 0
A103: =IF(INTRO!$E$34<>0,INTRO!$E$34,"") -> Guinea Bissau | B103: Quinara | C103: DAR-ES-SALAM | D103: 6681 | E103: =IF(INTRO!$E$48="","",ROUND($D103*INTRO!$E$48,0)) -> 889 | F103: =IF(INTRO!$E$49="","",ROUND($D103*INTRO!$E$49,0)) -> 1712 | G103: =IF(INTRO!$E$50="","",ROUND($D103*INTRO!$E$50,0)) -> 3785 | H103: 1 | I103: 4 | J103: 3 | K103: 0 | L103: =IF(INTRO!$E$38="Endémique", IF($H103>0, IF($H103=4,"Inconnu", IF($H103=99,"Interrompu", $D103)), 0),"Non requis") -> 6681 | M103: =IF(INTRO!$E$40="Endémique", IF($I103>0, IF($I103=4,"Inconnu",IF($I103=99,"Interrompu", $D103)), 0),"Non requis") -> Inconnu | N103: =IF(INTRO!$E$42="Endémique", IF(AND($J103>1,$J103<5), IF($J103=4, "Inconnu", E103+F103), 0),"Non requis") -> 2601 | O103: =IF(INTRO!$E$44="Endémique", IF(AND($K103>0,$K103<5), IF($K103=4,"Inconnu", IF($K103=1, $F103*0.33, IF($K103=2, $F103*0.5+$G103*0.2, SUM(F103:G103)))), 0),"Non requis") -> 0 | P103: 1 | Q103: 0 | R103: 1 | S103: 0 | T103: MDA1 (IVM+ALB) | Y103: 23741 | Z103: DAR-ES-SALAM | AB103: ='MDA1'!M103 -> 4174 | AC103: ='MDA3'!Q103 -> 0 | AD103: ='T1'!O103 -> 0 | AE103: ='T2'!M103 -> 0 | AF103: =T3_R1!N103 -> 0 | AG103: =T3_R2!N103 -> 0
A104: =IF(INTRO!$E$34<>0,INTRO!$E$34,"") -> Guinea Bissau | B104: Quinara | C104: EMPADA | D104: 17488 | E104: =IF(INTRO!$E$48="","",ROUND($D104*INTRO!$E$48,0)) -> 2326 | F104: =IF(INTRO!$E$49="","",ROUND($D104*INTRO!$E$49,0)) -> 4480 | G104: =IF(INTRO!$E$50="","",ROUND($D104*INTRO!$E$50,0)) -> 9907 | H104: 1 | I104: 4 | J104: 2 | K104: 0 | L104: =IF(INTRO!$E$38="Endémique", IF($H104>0, IF($H104=4,"Inconnu", IF($H104=99,"Interrompu", $D104)), 0),"Non requis") -> 17488 | M104: =IF(INTRO!$E$40="Endémique", IF($I104>0, IF($I104=4,"Inconnu",IF($I104=99,"Interrompu", $D104)), 0),"Non requis") -> Inconnu | N104: =IF(INTRO!$E$42="Endémique", IF(AND($J104>1,$J104<5), IF($J104=4, "Inconnu", E104+F104), 0),"Non requis") -> 6806 | O104: =IF(INTRO!$E$44="Endémique", IF(AND($K104>0,$K104<5), IF($K104=4,"Inconnu", IF($K104=1, $F104*0.33, IF($K104=2, $F104*0.5+$G104*0.2, SUM(F104:G104)))), 0),"Non requis") -> 0 | P104: 1 | Q104: 0 | R104: 1 | S104: 0 | T104: MDA1 (IVM+ALB) | Y104: 23743 | Z104: EMPADA | AB104: ='MDA1'!M104 -> 12795 | AC104: ='MDA3'!Q104 -> 0 | AD104: ='T1'!O104 -> 0 | AE104: ='T2'!M104 -> 0 | AF104: =T3_R1!N104 -> 0 | AG104: =T3_R2!N104 -> 0
A105: =IF(INTRO!$E$34<>0,INTRO!$E$34,"") -> Guinea Bissau | B105: Quinara | C105: FULACUNDA | D105: 14474 | E105: =IF(INTRO!$E$48="","",ROUND($D105*INTRO!$E$48,0)) -> 1925 | F105: =IF(INTRO!$E$49="","",ROUND($D105*INTRO!$E$49,0)) -> 3708 | G105: =IF(INTRO!$E$50="","",ROUND($D105*INTRO!$E$50,0)) -> 8200 | H105: 1 | I105: 4 | J105: 2 | K105: 0 | L105: =IF(INTRO!$E$38="Endémique", IF($H105>0, IF($H105=4,"Inconnu", IF($H105=99,"Interrompu", $D105)), 0),"Non requis") -> 14474 | M105: =IF(INTRO!$E$40="Endémique", IF($I105>0, IF($I105=4,"Inconnu",IF($I105=99,"Interrompu", $D105)), 0),"Non requis") -> Inconnu | N105: =IF(INTRO!$E$42="Endémique", IF(AND($J105>1,$J105<5), IF($J105=4, "Inconnu", E105+F105), 0),"Non requis") -> 5633 | O105: =IF(INTRO!$E$44="Endémique", IF(AND($K105>0,$K105<5), IF($K105=4,"Inconnu", IF($K105=1, $F105*0.33, IF($K105=2, $F105*0.5+$G105*0.2, SUM(F105:G105)))), 0),"Non requis") -> 0 | P105: 1 | Q105: 0 | R105: 1 | S105: 0 | T105: MDA1 (IVM+ALB) | Y105: 23744 | Z105: FULACUNDA | AB105: ='MDA1'!M105 -> 11659 | AC105: ='MDA3'!Q105 -> 0 | AD105: ='T1'!O105 -> 0 | AE105: ='T2'!M105 -> 0 | AF105: =T3_R1!N105 -> 0 | AG105: =T3_R2!N105 -> 0
A106: =IF(INTRO!$E$34<>0,INTRO!$E$34,"") -> Guinea Bissau | B106: Quinara | C106: TITE | D106: 11586 | E106: =IF(INTRO!$E$48="","",ROUND($D106*INTRO!$E$48,0)) -> 1541 | F106: =IF(INTRO!$E$49="","",ROUND($D106*INTRO!$E$49,0)) -> 2968 | G106: =IF(INTRO!$E$50="","",ROUND($D106*INTRO!$E$50,0)) -> 6563 | H106: 1 | I106: 4 | J106: 2 | K106: 0 | L106: =IF(INTRO!$E$38="Endémique", IF($H106>0, IF($H106=4,"Inconnu", IF($H106=99,"Interrompu", $D106)), 0),"Non requis") -> 11586 | M106: =IF(INTRO!$E$40="Endémique", IF($I106>0, IF($I106=4,"Inconnu",IF($I106=99,"Interrompu", $D106)), 0),"Non requis") -> Inconnu | N106: =IF(INTRO!$E$42="Endémique", IF(AND($J106>1,$J106<5), IF($J106=4, "Inconnu", E106+F106), 0),"Non requis") -> 4509 | O106: =IF(INTRO!$E$44="Endémique", IF(AND($K106>0,$K106<5), IF($K106=4,"Inconnu", IF($K106=1, $F106*0.33, IF($K106=2, $F106*0.5+$G106*0.2, SUM(F106:G106)))), 0),"Non requis") -> 0 | P106: 1 | Q106: 0 | R106: 1 | S106: 0 | T106: MDA1 (IVM+ALB) | Y106: 23745 | Z106: TITE | AB106: ='MDA1'!M106 -> 8600 | AC106: ='MDA3'!Q106 -> 0 | AD106: ='T1'!O106 -> 0 | AE106: ='T2'!M106 -> 0 | AF106: =T3_R1!N106 -> 0 | AG106: =T3_R2!N106 -> 0
A107: =IF(INTRO!$E$34<>0,INTRO!$E$34,"") -> Guinea Bissau | B107: Cacheu | C107: Bará | D107: 6106 | E107: =IF(INTRO!$E$48="","",ROUND($D107*INTRO!$E$48,0)) -> 812 | F107: =IF(INTRO!$E$49="","",ROUND($D107*INTRO!$E$49,0)) -> 1564 | G107: =IF(INTRO!$E$50="","",ROUND($D107*INTRO!$E$50,0)) -> 3459 | H107: 1 | I107: 4 | J107: 3 | K107: 0 | L107: =IF(INTRO!$E$38="Endémique", IF($H107>0, IF($H107=4,"Inconnu", IF($H107=99,"Interrompu", $D107)), 0),"Non requis") -> 6106 | M107: =IF(INTRO!$E$40="Endémique", IF($I107>0, IF($I107=4,"Inconnu",IF($I107=99,"Interrompu", $D107)), 0),"Non requis") -> Inconnu | N107: =IF(INTRO!$E$42="Endémique", IF(AND($J107>1,$J107<5), IF($J107=4, "Inconnu", E107+F107), 0),"Non requis") -> 2376 | O107: =IF(INTRO!$E$44="Endémique", IF(AND($K107>0,$K107<5), IF($K107=4,"Inconnu", IF($K107=1, $F107*0.33, IF($K107=2, $F107*0.5+$G107*0.2, SUM(F107:G107)))), 0),"Non requis") -> 0 | P107: 0 | Q107: 0 | R107: 0 | S107: 0 | Y107: 23689 | Z107: Bará | AB107: ='MDA1'!M107 -> 0 | AC107: ='MDA3'!Q107 -> 0 | AD107: ='T1'!O107 -> 0 | AE107: ='T2'!M107 -> 0 | AF107: =T3_R1!N107 -> 0 | AG107: =T3_R2!N107 -> 0
A108: =IF(INTRO!$E$34<>0,INTRO!$E$34,"") -> Guinea Bissau | B108: Cacheu | C108: Barro | D108: 8926 | E108: =IF(INTRO!$E$48="","",ROUND($D108*INTRO!$E$48,0)) -> 1187 | F108: =IF(INTRO!$E$49="","",ROUND($D108*INTRO!$E$49,0)) -> 2287 | G108: =IF(INTRO!$E$50="","",ROUND($D108*INTRO!$E$50,0)) -> 5057 | H108: 1 | I108: 4 | J108: 3 | K108: 0 | L108: =IF(INTRO!$E$38="Endémique", IF($H108>0, IF($H108=4,"Inconnu", IF($H108=99,"Interrompu", $D108)), 0),"Non requis") -> 8926 | M108: =IF(INTRO!$E$40="Endémique", IF($I108>0, IF($I108=4,"Inconnu",IF($I108=99,"Interrompu", $D108)), 0),"Non requis") -> Inconnu | N108: =IF(INTRO!$E$42="Endémique", IF(AND($J108>1,$J108<5), IF($J108=4, "Inconnu", E108+F108), 0),"Non requis") -> 3474 | O108: =IF(INTRO!$E$44="Endémique", IF(AND($K108>0,$K108<5), IF($K108=4,"Inconnu", IF($K108=1, $F108*0.33, IF($K108=2, $F108*0.5+$G108*0.2, SUM(F108:G108)))), 0),"Non requis") -> 0 | P108: 0 | Q108: 0 | R108: 0 | S108: 0 | Y108: 23688 | Z108: Barro | AB108: ='MDA1'!M108 -> 0 | AC108: ='MDA3'!Q108 -> 0 | AD108: ='T1'!O108 -> 0 | AE108: ='T2'!M108 -> 0 | AF108: =T3_R1!N108 -> 0 | AG108: =T3_R2!N108 -> 0
A109: =IF(INTRO!$E$34<>0,INTRO!$E$34,"") -> Guinea Bissau | B109: Cacheu | C109: Batucar | D109: 7272 | E109: =IF(INTRO!$E$48="","",ROUND($D109*INTRO!$E$48,0)) -> 967 | F109: =IF(INTRO!$E$49="","",ROUND($D109*INTRO!$E$49,0)) -> 1863 | G109: =IF(INTRO!$E$50="","",ROUND($D109*INTRO!$E$50,0)) -> 4120 | H109: 1 | I109: 4 | J109: 3 | K109: 0 | L109: =IF(INTRO!$E$38="Endémique", IF($H109>0, IF($H109=4,"Inconnu", IF($H109=99,"Interrompu", $D109)), 0),"Non requis") -> 7272 | M109: =IF(INTRO!$E$40="Endémique", IF($I109>0, IF($I109=4,"Inconnu",IF($I109=99,"Interrompu", $D109)), 0),"Non requis") -> Inconnu | N109: =IF(INTRO!$E$42="Endémique", IF(AND($J109>1,$J109<5), IF($J109=4, "Inconnu", E109+F109), 0),"Non requis") -> 2830 | O109: =IF(INTRO!$E$44="Endémique", IF(AND($K109>0,$K109<5), IF($K109=4,"Inconnu", IF($K109=1, $F109*0.33, IF($K109=2, $F109*0.5+$G109*0.2, SUM(F109:G109)))), 0),"Non requis") -> 0 | P109: 0 | Q109: 0 | R109: 0 | S109: 0 | Y109: 23690 | Z109: Batucar | AB109: ='MDA1'!M109 -> 0 | AC109: ='MDA3'!Q109 -> 0 | AD109: ='T1'!O109 -> 0 | AE109: ='T2'!M109 -> 0 | AF109: =T3_R1!N109 -> 0 | AG109: =T3_R2!N109 -> 0
A110: =IF(INTRO!$E$34<>0,INTRO!$E$34,"") -> Guinea Bissau | B110: Cacheu | C110: Begene | D110: 16267 | E110: =IF(INTRO!$E$48="","",ROUND($D110*INTRO!$E$48,0)) -> 2164 | F110: =IF(INTRO!$E$49="","",ROUND($D110*INTRO!$E$49,0)) -> 4168 | G110: =IF(INTRO!$E$50="","",ROUND($D110*INTRO!$E$50,0)) -> 9215 | H110: 1 | I110: 4 | J110: 3 | K110: 0 | L110: =IF(INTRO!$E$38="Endémique", IF($H110>0, IF($H110=4,"Inconnu", IF($H110=99,"Interrompu", $D110)), 0),"Non requis") -> 16267 | M110: =IF(INTRO!$E$40="Endémique", IF($I110>0, IF($I110=4,"Inconnu",IF($I110=99,"Interrompu", $D110)), 0),"Non requis") -> Inconnu | N110: =IF(INTRO!$E$42="Endémique", IF(AND($J110>1,$J110<5), IF($J110=4, "Inconnu", E110+F110), 0),"Non requis") -> 6332 | O110: =IF(INTRO!$E$44="Endémique", IF(AND($K110>0,$K110<5), IF($K110=4,"Inconnu", IF($K110=1, $F110*0.33, IF($K110=2, $F110*0.5+$G110*0.2, SUM(F110:G110)))), 0),"Non requis") -> 0 | P110: 0 | Q110: 0 | R110: 0 | S110: 0 | Y110: 23691 | Z110: Begene | AB110: ='MDA1'!M110 -> 0 | AC110: ='MDA3'!Q110 -> 0 | AD110: ='T1'!O110 -> 0 | AE110: ='T2'!M110 -> 0 | AF110: =T3_R1!N110 -> 0 | AG110: =T3_R2!N110 -> 0
A111: =IF(INTRO!$E$34<>0,INTRO!$E$34,"") -> Guinea Bissau | B111: Cacheu | C111: Bula | D111: 23593 | E111: =IF(INTRO!$E$48="","",ROUND($D111*INTRO!$E$48,0)) -> 3138 | F111: =IF(INTRO!$E$49="","",ROUND($D111*INTRO!$E$49,0)) -> 6045 | G111: =IF(INTRO!$E$50="","",ROUND($D111*INTRO!$E$50,0)) -> 13365 | H111: 1 | I111: 4 | J111: 1 | K111: 0 | L111: =IF(INTRO!$E$38="Endémique", IF($H111>0, IF($H111=4,"Inconnu", IF($H111=99,"Interrompu", $D111)), 0),"Non requis") -> 23593 | M111: =IF(INTRO!$E$40="Endémique", IF($I111>0, IF($I111=4,"Inconnu",IF($I111=99,"Interrompu", $D111)), 0),"Non requis") -> Inconnu | N111: =IF(INTRO!$E$42="Endémique", IF(AND($J111>1,$J111<5), IF($J111=4, "Inconnu", E111+F111), 0),"Non requis") -> 0 | O111: =IF(INTRO!$E$44="Endémique", IF(AND($K111>0,$K111<5), IF($K111=4,"Inconnu", IF($K111=1, $F111*0.33, IF($K111=2, $F111*0.5+$G111*0.2, SUM(F111:G111)))), 0),"Non requis") -> 0 | P111: 0 | Q111: 0 | R111: 0 | S111: 0 | Y111: 23685 | Z111: Bula | AB111: ='MDA1'!M111 -> 0 | AC111: ='MDA3'!Q111 -> 0 | AD111: ='T1'!O111 -> 0 | AE111: ='T2'!M111 -> 0 | AF111: =T3_R1!N111 -> 0 | AG111: =T3_R2!N111 -> 0
A112: =IF(INTRO!$E$34<>0,INTRO!$E$34,"") -> Guinea Bissau | B112: Cacheu | C112: Cacheu | D112: 14195 | E112: =IF(INTRO!$E$48="","",ROUND($D112*INTRO!$E$48,0)) -> 1888 | F112: =IF(INTRO!$E$49="","",ROUND($D112*INTRO!$E$49,0)) -> 3637 | G112: =IF(INTRO!$E$50="","",ROUND($D112*INTRO!$E$50,0)) -> 8041 | H112: 1 | I112: 4 | J112: 1 | K112: 0 | L112: =IF(INTRO!$E$38="Endémique", IF($H112>0, IF($H112=4,"Inconnu", IF($H112=99,"Interrompu", $D112)), 0),"Non requis") -> 14195 | M112: =IF(INTRO!$E$40="Endémique", IF($I112>0, IF($I112=4,"Inconnu",IF($I112=99,"Interrompu", $D112)), 0),"Non requis") -> Inconnu | N112: =IF(INTRO!$E$42="Endémique", IF(AND($J112>1,$J112<5), IF($J112=4, "Inconnu", E112+F112), 0),"Non requis") -> 0 | O112: =IF(INTRO!$E$44="Endémique", IF(AND($K112>0,$K112<5), IF($K112=4,"Inconnu", IF($K112=1, $F112*0.33, IF($K112=2, $F112*0.5+$G112*0.2, SUM(F112:G112)))), 0),"Non requis") -> 0 | P112: 0 | Q112: 0 | R112: 0 | S112: 0 | Y112: 23692 | Z112: Cacheu | AB112: ='MDA1'!M112 -> 0 | AC112: ='MDA3'!Q112 -> 0 | AD112: ='T1'!O112 -> 0 | AE112: ='T2'!M112 -> 0 | AF112: =T3_R1!N112 -> 0 | AG112: =T3_R2!N112 -> 0
A113: =IF(INTRO!$E$34<>0,INTRO!$E$34,"") -> Guinea Bissau | B113: Cacheu | C113: Caió | D113: 10898 | E113: =IF(INTRO!$E$48="","",ROUND($D113*INTRO!$E$48,0)) -> 1449 | F113: =IF(INTRO!$E$49="","",ROUND($D113*INTRO!$E$49,0)) -> 2792 | G113: =IF(INTRO!$E$50="","",ROUND($D113*INTRO!$E$50,0)) -> 6174 | H113: 1 | I113: 4 | J113: 1 | K113: 0 | L113: =IF(INTRO!$E$38="Endémique", IF($H113>0, IF($H113=4,"Inconnu", IF($H113=99,"Interrompu", $D113)), 0),"Non requis") -> 10898 | M113: =IF(INTRO!$E$40="Endémique", IF($I113>0, IF($I113=4,"Inconnu",IF($I113=99,"Interrompu", $D113)), 0),"Non requis") -> Inconnu | N113: =IF(INTRO!$E$42="Endémique", IF(AND($J113>1,$J113<5), IF($J113=4, "Inconnu", E113+F113), 0),"Non requis") -> 0 | O113: =IF(INTRO!$E$44="Endémique", IF(AND($K113>0,$K113<5), IF($K113=4,"Inconnu", IF($K113=1, $F113*0.33, IF($K113=2, $F113*0.5+$G113*0.2, SUM(F113:G113)))), 0),"Non requis") -> 0 | P113: 0 | Q113: 0 | R113: 0 | S113: 0 | Y113: 23693 | Z113: Caió | AB113: ='MDA1'!M113 -> 0 | AC113: ='MDA3'!Q113 -> 0 | AD113: ='T1'!O113 -> 0 | AE113: ='T2'!M113 -> 0 | AF113: =T3_R1!N113 -> 0 | AG113: =T3_R2!N113 -> 0
A114: =IF(INTRO!$E$34<>0,INTRO!$E$34,"") -> Guinea Bissau | B114: Cacheu | C114: Calequisse | D114: 9820 | E114: =IF(INTRO!$E$48="","",ROUND($D114*INTRO!$E$48,0)) -> 1306 | F114: =IF(INTRO!$E$49="","",ROUND($D114*INTRO!$E$49,0)) -> 2516 | G114: =IF(INTRO!$E$50="","",ROUND($D114*INTRO!$E$50,0)) -> 5563 | H114: 1 | I114: 4 | J114: 1 | K114: 0 | L114: =IF(INTRO!$E$38="Endémique", IF($H114>0, IF($H114=4,"Inconnu", IF($H114=99,"Interrompu", $D114)), 0),"Non requis") -> 9820 | M114: =IF(INTRO!$E$40="Endémique", IF($I114>0, IF($I114=4,"Inconnu",IF($I114=99,"Interrompu", $D114)), 0),"Non requis") -> Inconnu | N114: =IF(INTRO!$E$42="Endémique", IF(AND($J114>1,$J114<5), IF($J114=4, "Inconnu", E114+F114), 0),"Non requis") -> 0 | O114: =IF(INTRO!$E$44="Endémique", IF(AND($K114>0,$K114<5), IF($K114=4,"Inconnu", IF($K114=1, $F114*0.33, IF($K114=2, $F114*0.5+$G114*0.2, SUM(F114:G114)))), 0),"Non requis") -> 0 | P114: 0 | Q114: 0 | R114: 0 | S114: 0 | Y114: 23686 | Z114: Calequisse | AB114: ='MDA1'!M114 -> 0 | AC114: ='MDA3'!Q114 -> 0 | AD114: ='T1'!O114 -> 0 | AE114: ='T2'!M114 -> 0 | AF114: =T3_R1!N114 -> 0 | AG114: =T3_R2!N114 -> 0
A115: =IF(INTRO!$E$34<>0,INTRO!$E$34,"") -> Guinea Bissau | B115: Cacheu | C115: Canchungo | D115: 21724 | E115: =IF(INTRO!$E$48="","",ROUND($D115*INTRO!$E$48,0)) -> 2889 | F115: =IF(INTRO!$E$49="","",ROUND($D115*INTRO!$E$49,0)) -> 5566 | G115: =IF(INTRO!$E$50="","",ROUND($D115*INTRO!$E$50,0)) -> 12307 | H115: 1 | I115: 4 | J115: 1 | K115: 0 | L115: =IF(INTRO!$E$38="Endémique", IF($H115>0, IF($H115=4,"Inconnu", IF($H115=99,"Interrompu", $D115)), 0),"Non requis") -> 21724 | M115: =IF(INTRO!$E$40="Endémique", IF($I115>0, IF($I115=4,"Inconnu",IF($I115=99,"Interrompu", $D115)), 0),"Non requis") -> Inconnu | N115: =IF(INTRO!$E$42="Endémique", IF(AND($J115>1,$J115<5), IF($J115=4, "Inconnu", E115+F115), 0),"Non requis") -> 0 | O115: =IF(INTRO!$E$44="Endémique", IF(AND($K115>0,$K115<5), IF($K115=4,"Inconnu", IF($K115=1, $F115*0.33, IF($K115=2, $F115*0.5+$G115*0.2, SUM(F115:G115)))), 0),"Non requis") -> 0 | P115: 0 | Q115: 0 | R115: 0 | S115: 0 | Y115: 23694 | Z115: Canchungo | AB115: ='MDA1'!M115 -> 0 | AC115: ='MDA3'!Q115 -> 0 | AD115: ='T1'!O115 -> 0 | AE115: ='T2'!M115 -> 0 | AF115: =T3_R1!N115 -> 0 | AG115: =T3_R2!N115 -> 0
A116: =IF(INTRO!$E$34<>0,INTRO!$E$34,"") -> Guinea Bissau | B116: Cacheu | C116: Carenque | D116: 9489 | E116: =IF(INTRO!$E$48="","",ROUND($D116*INTRO!$E$48,0)) -> 1262 | F116: =IF(INTRO!$E$49="","",ROUND($D116*INTRO!$E$49,0)) -> 2431 | G116: =IF(INTRO!$E$50="","",ROUND($D116*INTRO!$E$50,0)) -> 5376 | H116: 1 | I116: 4 | J116: 3 | K116: 0 | L116: =IF(INTRO!$E$38="Endémique", IF($H116>0, IF($H116=4,"Inconnu", IF($H116=99,"Interrompu", $D116)), 0),"Non requis") -> 9489 | M116: =IF(INTRO!$E$40="Endémique", IF($I116>0, IF($I116=4,"Inconnu",IF($I116=99,"Interrompu", $D116)), 0),"Non requis") -> Inconnu | N116: =IF(INTRO!$E$42="Endémique", IF(AND($J116>1,$J116<5), IF($J116=4, "Inconnu", E116+F116), 0),"Non requis") -> 3693 | O116: =IF(INTRO!$E$44="Endémique", IF(AND($K116>0,$K116<5), IF($K116=4,"Inconnu", IF($K116=1, $F116*0.33, IF($K116=2, $F116*0.5+$G116*0.2, SUM(F116:G116)))), 0),"Non requis") -> 0 | P116: 0 | Q116: 0 | R116: 0 | S116: 0 | Y116: 23695 | Z116: Carenque | AB116: ='MDA1'!M116 -> 0 | AC116: ='MDA3'!Q116 -> 0 | AD116: ='T1'!O116 -> 0 | AE116: ='T2'!M116 -> 0 | AF116: =T3_R1!N116 -> 0 | AG116: =T3_R2!N116 -> 0
A117: =IF(INTRO!$E$34<>0,INTRO!$E$34,"") -> Guinea Bissau | B117: Cacheu | C117: Có | D117: 7709 | E117: =IF(INTRO!$E$48="","",ROUND($D117*INTRO!$E$48,0)) -> 1025 | F117: =IF(INTRO!$E$49="","",ROUND($D117*INTRO!$E$49,0)) -> 1975 | G117: =IF(INTRO!$E$50="","",ROUND($D117*INTRO!$E$50,0)) -> 4367 | H117: 1 | I117: 4 | J117: 3 | K117: 0 | L117: =IF(INTRO!$E$38="Endémique", IF($H117>0, IF($H117=4,"Inconnu", IF($H117=99,"Interrompu", $D117)), 0),"Non requis") -> 7709 | M117: =IF(INTRO!$E$40="Endémique", IF($I117>0, IF($I117=4,"Inconnu",IF($I117=99,"Interrompu", $D117)), 0),"Non requis") -> Inconnu | N117: =IF(INTRO!$E$42="Endémique", IF(AND($J117>1,$J117<5), IF($J117=4, "Inconnu", E117+F117), 0),"Non requis") -> 3000 | O117: =IF(INTRO!$E$44="Endémique", IF(AND($K117>0,$K117<5), IF($K117=4,"Inconnu", IF($K117=1, $F117*0.33, IF($K117=2, $F117*0.5+$G117*0.2, SUM(F117:G117)))), 0),"Non requis") -> 0 | P117: 0 | Q117: 0 | R117: 0 | S117: 0 | Y117: 23761 | Z117: Có | AB117: ='MDA1'!M117 -> 0 | AC117: ='MDA3'!Q117 -> 0 | AD117: ='T1'!O117 -> 0 | AE117: ='T2'!M117 -> 0 | AF117: =T3_R1!N117 -> 0 | AG117: =T3_R2!N117 -> 0
A118: =IF(INTRO!$E$34<>0,INTRO!$E$34,"") -> Guinea Bissau | B118: Cacheu | C118: Ingoré | D118: 26373 | E118: =IF(INTRO!$E$48="","",ROUND($D118*INTRO!$E$48,0)) -> 3508 | F118: =IF(INTRO!$E$49="","",ROUND($D118*INTRO!$E$49,0)) -> 6757 | G118: =IF(INTRO!$E$50="","",ROUND($D118*INTRO!$E$50,0)) -> 14940 | H118: 1 | I118: 4 | J118: 1 | K118: 0 | L118: =IF(INTRO!$E$38="Endémique", IF($H118>0, IF($H118=4,"Inconnu", IF($H118=99,"Interrompu", $D118)), 0),"Non requis") -> 26373 | M118: =IF(INTRO!$E$40="Endémique", IF($I118>0, IF($I118=4,"Inconnu",IF($I118=99,"Interrompu", $D118)), 0),"Non requis") -> Inconnu | N118: =IF(INTRO!$E$42="Endémique", IF(AND($J118>1,$J118<5), IF($J118=4, "Inconnu", E118+F118), 0),"Non requis") -> 0 | O118: =IF(INTRO!$E$44="Endémique", IF(AND($K118>0,$K118<5), IF($K118=4,"Inconnu", IF($K118=1, $F118*0.33, IF($K118=2, $F118*0.5+$G118*0.2, SUM(F118:G118)))), 0),"Non requis") -> 0 | P118: 0 | Q118: 0 | R118: 0 | S118: 0 | Y118: 23696 | Z118: Ingoré | AB118: ='MDA1'!M118 -> 0 | AC118: ='MDA3'!Q118 -> 0 | AD118: ='T1'!O118 -> 0 | AE118: ='T2'!M118 -> 0 | AF118: =T3_R1!N118 -> 0 | AG118: =T3_R2!N118 -> 0
A119: =IF(INTRO!$E$34<>0,INTRO!$E$34,"") -> Guinea Bissau | B119: Cacheu | C119: Jeta | D119: 1969 | E119: =IF(INTRO!$E$48="","",ROUND($D119*INTRO!$E$48,0)) -> 262 | F119: =IF(INTRO!$E$49="","",ROUND($D119*INTRO!$E$49,0)) -> 504 | G119: =IF(INTRO!$E$50="","",ROUND($D119*INTRO!$E$50,0)) -> 1115 | H119: 1 | I119: 4 | J119: 3 | K119: 1 | L119: =IF(INTRO!$E$38="Endémique", IF($H119>0, IF($H119=4,"Inconnu", IF($H119=99,"Interrompu", $D119)), 0),"Non requis") -> 1969 | M119: =IF(INTRO!$E$40="Endémique", IF($I119>0, IF($I119=4,"Inconnu",IF($I119=99,"Interrompu", $D119)), 0),"Non requis") -> Inconnu | N119: =IF(INTRO!$E$42="Endémique", IF(AND($J119>1,$J119<5), IF($J119=4, "Inconnu", E119+F119), 0),"Non requis") -> 766 | O119: =IF(INTRO!$E$44="Endémique", IF(AND($K119>0,$K119<5), IF($K119=4,"Inconnu", IF($K119=1, $F119*0.33, IF($K119=2, $F119*0.5+$G119*0.2, SUM(F119:G119)))), 0),"Non requis") -> 166.32 | P119: 0 | Q119: 0 | R119: 0 | S119: 0 | Y119: 23697 | Z119: Jeta | AB119: ='MDA1'!M119 -> 0 | AC119: ='MDA3'!Q119 -> 0 | AD119: ='T1'!O119 -> 0 | AE119: ='T2'!M119 -> 0 | AF119: =T3_R1!N119 -> 0 | AG119: =T3_R2!N119 -> 0
A120: =IF(INTRO!$E$34<>0,INTRO!$E$34,"") -> Guinea Bissau | B120: Cacheu | C120: Pecixe | D120: 7487 | E120: =IF(INTRO!$E$48="","",ROUND($D120*INTRO!$E$48,0)) -> 996 | F120: =IF(INTRO!$E$49="","",ROUND($D120*INTRO!$E$49,0)) -> 1918 | G120: =IF(INTRO!$E$50="","",ROUND($D120*INTRO!$E$50,0)) -> 4241 | H120: 1 | I120: 4 | J120: 3 | K120: 1 | L120: =IF(INTRO!$E$38="Endémique", IF($H120>0, IF($H120=4,"Inconnu", IF($H120=99,"Interrompu", $D120)), 0),"Non requis") -> 7487 | M120: =IF(INTRO!$E$40="Endémique", IF($I120>0, IF($I120=4,"Inconnu",IF($I120=99,"Interrompu", $D120)), 0),"Non requis") -> Inconnu | N120: =IF(INTRO!$E$42="Endémique", IF(AND($J120>1,$J120<5), IF($J120=4, "Inconnu", E120+F120), 0),"Non requis") -> 2914 | O120: =IF(INTRO!$E$44="Endémique", IF(AND($K120>0,$K120<5), IF($K120=4,"Inconnu", IF($K120=1, $F120*0.33, IF($K120=2, $F120*0.5+$G120*0.2, SUM(F120:G120)))), 0),"Non requis") -> 632.94 | P120: 0 | Q120: 0 | R120: 0 | S120: 0 | Y120: 23698 | Z120: Pecixe | AB120: ='MDA1'!M120 -> 0 | AC120: ='MDA3'!Q120 -> 0 | AD120: ='T1'!O120 -> 0 | AE120: ='T2'!M120 -> 0 | AF120: =T3_R1!N120 -> 0 | AG120: =T3_R2!N120 -> 0
A121: =IF(INTRO!$E$34<>0,INTRO!$E$34,"") -> Guinea Bissau | B121: Cacheu | C121: Pelundo | D121: 12557 | E121: =IF(INTRO!$E$48="","",ROUND($D121*INTRO!$E$48,0)) -> 1670 | F121: =IF(INTRO!$E$49="","",ROUND($D121*INTRO!$E$49,0)) -> 3217 | G121: =IF(INTRO!$E$50="","",ROUND($D121*INTRO!$E$50,0)) -> 7114 | H121: 1 | I121: 4 | J121: 3 | K121: 0 | L121: =IF(INTRO!$E$38="Endémique", IF($H121>0, IF($H121=4,"Inconnu", IF($H121=99,"Interrompu", $D121)), 0),"Non requis") -> 12557 | M121: =IF(INTRO!$E$40="Endémique", IF($I121>0, IF($I121=4,"Inconnu",IF($I121=99,"Interrompu", $D121)), 0),"Non requis") -> Inconnu | N121: =IF(INTRO!$E$42="Endémique", IF(AND($J121>1,$J121<5), IF($J121=4, "Inconnu", E121+F121), 0),"Non requis") -> 4887 | O121: =IF(INTRO!$E$44="Endémique", IF(AND($K121>0,$K121<5), IF($K121=4,"Inconnu", IF($K121=1, $F121*0.33, IF($K121=2, $F121*0.5+$G121*0.2, SUM(F121:G121)))), 0),"Non requis") -> 0 | P121: 0 | Q121: 0 | R121: 0 | S121: 0 | Y121: 23699 | Z121: Pelundo | AB121: ='MDA1'!M121 -> 0 | AC121: ='MDA3'!Q121 -> 0 | AD121: ='T1'!O121 -> 0 | AE121: ='T2'!M121 -> 0 | AF121: =T3_R1!N121 -> 0 | AG121: =T3_R2!N121 -> 0
A122: =IF(INTRO!$E$34<>0,INTRO!$E$34,"") -> Guinea Bissau | B122: Cacheu | C122: S.Domingos | D122: 21700 | E122: =IF(INTRO!$E$48="","",ROUND($D122*INTRO!$E$48,0)) -> 2886 | F122: =IF(INTRO!$E$49="","",ROUND($D122*INTRO!$E$49,0)) -> 5560 | G122: =IF(INTRO!$E$50="","",ROUND($D122*INTRO!$E$50,0)) -> 12293 | H122: 1 | I122: 4 | J122: 1 | K122: 2 | L122: =IF(INTRO!$E$38="Endémique", IF($H122>0, IF($H122=4,"Inconnu", IF($H122=99,"Interrompu", $D122)), 0),"Non requis") -> 21700 | M122: =IF(INTRO!$E$40="Endémique", IF($I122>0, IF($I122=4,"Inconnu",IF($I122=99,"Interrompu", $D122)), 0),"Non requis") -> Inconnu | N122: =IF(INTRO!$E$42="Endémique", IF(AND($J122>1,$J122<5), IF($J122=4, "Inconnu", E122+F122), 0),"Non requis") -> 0 | O122: =IF(INTRO!$E$44="Endémique", IF(AND($K122>0,$K122<5), IF($K122=4,"Inconnu", IF($K122=1, $F122*0.33, IF($K122=2, $F122*0.5+$G122*0.2, SUM(F122:G122)))), 0),"Non requis") -> 5238.6 | P122: 0 | Q122: 0 | R122: 0 | S122: 0 | Y122: 23687 | Z122: S.Domingos | AB122: ='MDA1'!M122 -> 0 | AC122: ='MDA3'!Q122 -> 0 | AD122: ='T1'!O122 -> 0 | AE122: ='T2'!M122 -> 0 | AF122: =T3_R1!N122 -> 0 | AG122: =T3_R2!N122 -> 0
A123: =IF(INTRO!$E$34<>0,INTRO!$E$34,"") -> Guinea Bissau | B123: Cacheu | C123: Sedengal | D123: 15002 | E123: =IF(INTRO!$E$48="","",ROUND($D123*INTRO!$E$48,0)) -> 1995 | F123: =IF(INTRO!$E$49="","",ROUND($D123*INTRO!$E$49,0)) -> 3844 | G123: =IF(INTRO!$E$50="","",ROUND($D123*INTRO!$E$50,0)) -> 8499 | H123: 1 | I123: 4 | J123: 3 | K123: 0 | L123: =IF(INTRO!$E$38="Endémique", IF($H123>0, IF($H123=4,"Inconnu", IF($H123=99,"Interrompu", $D123)), 0),"Non requis") -> 15002 | M123: =IF(INTRO!$E$40="Endémique", IF($I123>0, IF($I123=4,"Inconnu",IF($I123=99,"Interrompu", $D123)), 0),"Non requis") -> Inconnu | N123: =IF(INTRO!$E$42="Endémique", IF(AND($J123>1,$J123<5), IF($J123=4, "Inconnu", E123+F123), 0),"Non requis") -> 5839 | O123: =IF(INTRO!$E$44="Endémique", IF(AND($K123>0,$K123<5), IF($K123=4,"Inconnu", IF($K123=1, $F123*0.33, IF($K123=2, $F123*0.5+$G123*0.2, SUM(F123:G123)))), 0),"Non requis") -> 0 | P123: 0 | Q123: 0 | R123: 0 | S123: 0 | Y123: 23700 | Z123: Sedengal | AB123: ='MDA1'!M123 -> 0 | AC123: ='MDA3'!Q123 -> 0 | AD123: ='T1'!O123 -> 0 | AE123: ='T2'!M123 -> 0 | AF123: =T3_R1!N123 -> 0 | AG123: =T3_R2!N123 -> 0
A124: =IF(INTRO!$E$34<>0,INTRO!$E$34,"") -> Guinea Bissau | B124: Cacheu | C124: Suzana | D124: 10321 | E124: =IF(INTRO!$E$48="","",ROUND($D124*INTRO!$E$48,0)) -> 1373 | F124: =IF(INTRO!$E$49="","",ROUND($D124*INTRO!$E$49,0)) -> 2644 | G124: =IF(INTRO!$E$50="","",ROUND($D124*INTRO!$E$50,0)) -> 5847 | H124: 1 | I124: 4 | J124: 3 | K124: 2 | L124: =IF(INTRO!$E$38="Endémique", IF($H124>0, IF($H124=4,"Inconnu", IF($H124=99,"Interrompu", $D124)), 0),"Non requis") -> 10321 | M124: =IF(INTRO!$E$40="Endémique", IF($I124>0, IF($I124=4,"Inconnu",IF($I124=99,"Interrompu", $D124)), 0),"Non requis") -> Inconnu | N124: =IF(INTRO!$E$42="Endémique", IF(AND($J124>1,$J124<5), IF($J124=4, "Inconnu", E124+F124), 0),"Non requis") -> 4017 | O124: =IF(INTRO!$E$44="Endémique", IF(AND($K124>0,$K124<5), IF($K124=4,"Inconnu", IF($K124=1, $F124*0.33, IF($K124=2, $F124*0.5+$G124*0.2, SUM(F124:G124)))), 0),"Non requis") -> 2491.4 | P124: 0 | Q124: 0 | R124: 0 | S124: 0 | Y124: 23701 | Z124: Suzana | AB124: ='MDA1'!M124 -> 0 | AC124: ='MDA3'!Q124 -> 0 | AD124: ='T1'!O124 -> 0 | AE124: ='T2'!M124 -> 0 | AF124: =T3_R1!N124 -> 0 | AG124: =T3_R2!N124 -> 0
A125: =IF(INTRO!$E$34<>0,INTRO!$E$34,"") -> Guinea Bissau | B125: Cacheu | C125: Varela | D125: 11953 | E125: =IF(INTRO!$E$48="","",ROUND($D125*INTRO!$E$48,0)) -> 1590 | F125: =IF(INTRO!$E$49="","",ROUND($D125*INTRO!$E$49,0)) -> 3062 | G125: =IF(INTRO!$E$50="","",ROUND($D125*INTRO!$E$50,0)) -> 6771 | H125: 1 | I125: 4 | J125: 3 | K125: 0 | L125: =IF(INTRO!$E$38="Endémique", IF($H125>0, IF($H125=4,"Inconnu", IF($H125=99,"Interrompu", $D125)), 0),"Non requis") -> 11953 | M125: =IF(INTRO!$E$40="Endémique", IF($I125>0, IF($I125=4,"Inconnu",IF($I125=99,"Interrompu", $D125)), 0),"Non requis") -> Inconnu | N125: =IF(INTRO!$E$42="Endémique", IF(AND($J125>1,$J125<5), IF($J125=4, "Inconnu", E125+F125), 0),"Non requis") -> 4652 | O125: =IF(INTRO!$E$44="Endémique", IF(AND($K125>0,$K125<5), IF($K125=4,"Inconnu", IF($K125=1, $F125*0.33, IF($K125=2, $F125*0.5+$G125*0.2, SUM(F125:G125)))), 0),"Non requis") -> 0 | P125: 0 | Q125: 0 | R125: 0 | S125: 0 | Y125: 23702 | Z125: Varela | AB125: ='MDA1'!M125 -> 0 | AC125: ='MDA3'!Q125 -> 0 | AD125: ='T1'!O125 -> 0 | AE125: ='T2'!M125 -> 0 | AF125: =T3_R1!N125 -> 0 | AG125: =T3_R2!N125 -> 0

Sheet MDA1
A1: MDA 1 - Ivermectine (IVM) et Albendazole (ALB)
A2: Structure administrative, population nécessitant une chimioprévention par groupe d'âge, population traitée par groupe d'âge et couverture
A4: TOTAL | G4: =SUM(G$9:G$1000) -> 86338 | H4: =SUM(H$9:H$1000) -> 190905 | I4: =SUM(I$9:I$1000) -> 277243 | K4: =SUM(K$9:K$1000) -> 112702 | L4: =SUM(L$9:L$1000) -> 119859 | M4: =SUM(M$9:M$1000) -> 232561 | O4: =IF(G4<>0, IF(K4/G4*100=0, "-", K4/G4*100), " ") -> 130.5358012 | P4: =IF(H4<>0, IF(L4/H4*100=0, "-", L4/H4*100), " ") -> 62.7846311 | Q4: =IF(I4<>0, IF(M4/I4*100=0, "-", M4/I4*100), " ") -> 83.88345242
A6: Structure administrative du pays | D6: Mise en oeuvre de la CP | E6: Date | F6: Population ciblée pour MDA 1 | J6: Population traitée | N6: Couverture du Programme (%)
A7: Pays | B7: Région/Département | C7: District | F7: EAPréS | G7: EAS | H7: Adultes | I7: Total | J7: EAPréS | K7: EAS | L7: Adultes | M7: Total | N7: EAPréS | O7: EAS | P7: Adultes | Q7: Total
A9: =IF(COUNTRY_INFO!A9=0," ",COUNTRY_INFO!A9) -> Guinea Bissau | B9: =IF(COUNTRY_INFO!B9=0," ",COUNTRY_INFO!B9) -> SAB | C9: =IF(COUNTRY_INFO!C9=0," ",COUNTRY_INFO!C9) -> AJUDA | D9: =IF(COUNTRY_INFO!$T$9:$T$1000="MDA1 (IVM+ALB)", COUNTRY_INFO!$T$9:$T$1000, " ") ->  | I9: =SUM(F9:H9) -> 0 | M9: =SUM(J9:L9) -> 0 | O9: =IF(G9<>0, IF(K9/G9*100=0, "-", K9/G9*100), " ") ->  | P9: =IF(H9<>0, IF(L9/H9*100=0, "-", L9/H9*100), " ") -> 
A10: =IF(COUNTRY_INFO!A10=0," ",COUNTRY_INFO!A10) -> Guinea Bissau | B10: =IF(COUNTRY_INFO!B10=0," ",COUNTRY_INFO!B10) -> SAB | C10: =IF(COUNTRY_INFO!C10=0," ",COUNTRY_INFO!C10) -> ANTULA | D10: =IF(COUNTRY_INFO!$T$9:$T$1000="MDA1 (IVM+ALB)", COUNTRY_INFO!$T$9:$T$1000, " ") ->  | I10: =SUM(F10:H10) -> 0 | M10: =SUM(J10:L10) -> 0 | O10: =IF(G10<>0, IF(K10/G10*100=0, "-", K10/G10*100), " ") ->  | P10: =IF(H10<>0, IF(L10/H10*100=0, "-", L10/H10*100), " ") ->  | Q10: =IF(I10<>0, IF(M10/I10*100=0, "-", M10/I10*100), " ") -> 
A11: =IF(COUNTRY_INFO!A11=0," ",COUNTRY_INFO!A11) -> Guinea Bissau | B11: =IF(COUNTRY_INFO!B11=0," ",COUNTRY_INFO!B11) -> SAB | C11: =IF(COUNTRY_INFO!C11=0," ",COUNTRY_INFO!C11) -> B. MILITAR | D11: =IF(COUNTRY_INFO!$T$9:$T$1000="MDA1 (IVM+ALB)", COUNTRY_INFO!$T$9:$T$1000, " ") ->  | I11: 0 | M11: 0
A12: =IF(COUNTRY_INFO!A12=0," ",COUNTRY_INFO!A12) -> Guinea Bissau | B12: =IF(COUNTRY_INFO!B12=0," ",COUNTRY_INFO!B12) -> SAB | C12: =IF(COUNTRY_INFO!C12=0," ",COUNTRY_INFO!C12) -> BANDIM | D12: =IF(COUNTRY_INFO!$T$9:$T$1000="MDA1 (IVM+ALB)", COUNTRY_INFO!$T$9:$T$1000, " ") ->  | I12: 0 | M12: 0
A13: =IF(COUNTRY_INFO!A13=0," ",COUNTRY_INFO!A13) -> Guinea Bissau | B13: =IF(COUNTRY_INFO!B13=0," ",COUNTRY_INFO!B13) -> SAB | C13: =IF(COUNTRY_INFO!C13=0," ",COUNTRY_INFO!C13) -> BELEM | D13: =IF(COUNTRY_INFO!$T$9:$T$1000="MDA1 (IVM+ALB)", COUNTRY_INFO!$T$9:$T$1000, " ") ->  | I13: 0 | M13: 0
A14: =IF(COUNTRY_INFO!A14=0," ",COUNTRY_INFO!A14) -> Guinea Bissau | B14: =IF(COUNTRY_INFO!B14=0," ",COUNTRY_INFO!B14) -> SAB | C14: =IF(COUNTRY_INFO!C14=0," ",COUNTRY_INFO!C14) -> CMI | D14: =IF(COUNTRY_INFO!$T$9:$T$1000="MDA1 (IVM+ALB)", COUNTRY_INFO!$T$9:$T$1000, " ") ->  | I14: 0 | M14: 0
A15: =IF(COUNTRY_INFO!A15=0," ",COUNTRY_INFO!A15) -> Guinea Bissau | B15: =IF(COUNTRY_INFO!B15=0," ",COUNTRY_INFO!B15) -> SAB | C15: =IF(COUNTRY_INFO!C15=0," ",COUNTRY_INFO!C15) -> CUNTUM | D15: =IF(COUNTRY_INFO!$T$9:$T$1000="MDA1 (IVM+ALB)", COUNTRY_INFO!$T$9:$T$1000, " ") ->  | I15: 0 | M15: 0
A16: =IF(COUNTRY_INFO!A16=0," ",COUNTRY_INFO!A16) -> Guinea Bissau | B16: =IF(COUNTRY_INFO!B16=0," ",COUNTRY_INFO!B16) -> SAB | C16: =IF(COUNTRY_INFO!C16=0," ",COUNTRY_INFO!C16) -> LUANDA | D16: =IF(COUNTRY_INFO!$T$9:$T$1000="MDA1 (IVM+ALB)", COUNTRY_INFO!$T$9:$T$1000, " ") ->  | I16: 0 | M16: 0
A17: =IF(COUNTRY_INFO!A17=0," ",COUNTRY_INFO!A17) -> Guinea Bissau | B17: =IF(COUNTRY_INFO!B17=0," ",COUNTRY_INFO!B17) -> SAB | C17: =IF(COUNTRY_INFO!C17=0," ",COUNTRY_INFO!C17) -> MISSIRA | D17: =IF(COUNTRY_INFO!$T$9:$T$1000="MDA1 (IVM+ALB)", COUNTRY_INFO!$T$9:$T$1000, " ") ->  | I17: 0 | M17: 0
A18: =IF(COUNTRY_INFO!A18=0," ",COUNTRY_INFO!A18) -> Guinea Bissau | B18: =IF(COUNTRY_INFO!B18=0," ",COUNTRY_INFO!B18) -> SAB | C18: =IF(COUNTRY_INFO!C18=0," ",COUNTRY_INFO!C18) -> PEFINE | D18: =IF(COUNTRY_INFO!$T$9:$T$1000="MDA1 (IVM+ALB)", COUNTRY_INFO!$T$9:$T$1000, " ") ->  | I18: 0 | M18: 0
A19: =IF(COUNTRY_INFO!A19=0," ",COUNTRY_INFO!A19) -> Guinea Bissau | B19: =IF(COUNTRY_INFO!B19=0," ",COUNTRY_INFO!B19) -> SAB | C19: =IF(COUNTRY_INFO!C19=0," ",COUNTRY_INFO!C19) -> PLACK II | D19: =IF(COUNTRY_INFO!$T$9:$T$1000="MDA1 (IVM+ALB)", COUNTRY_INFO!$T$9:$T$1000, " ") ->  | I19: 0 | M19: 0
A20: =IF(COUNTRY_INFO!A20=0," ",COUNTRY_INFO!A20) -> Guinea Bissau | B20: =IF(COUNTRY_INFO!B20=0," ",COUNTRY_INFO!B20) -> SAB | C20: =IF(COUNTRY_INFO!C20=0," ",COUNTRY_INFO!C20) -> QUELELE | D20: =IF(COUNTRY_INFO!$T$9:$T$1000="MDA1 (IVM+ALB)", COUNTRY_INFO!$T$9:$T$1000, " ") ->  | I20: 0 | M20: 0
A21: =IF(COUNTRY_INFO!A21=0," ",COUNTRY_INFO!A21) -> Guinea Bissau | B21: =IF(COUNTRY_INFO!B21=0," ",COUNTRY_INFO!B21) -> SAB | C21: =IF(COUNTRY_INFO!C21=0," ",COUNTRY_INFO!C21) -> SANTA LUZIA | D21: =IF(COUNTRY_INFO!$T$9:$T$1000="MDA1 (IVM+ALB)", COUNTRY_INFO!$T$9:$T$1000, " ") ->  | I21: 0 | M21: 0
A22: =IF(COUNTRY_INFO!A22=0," ",COUNTRY_INFO!A22) -> Guinea Bissau | B22: =IF(COUNTRY_INFO!B22=0," ",COUNTRY_INFO!B22) -> SAB | C22: =IF(COUNTRY_INFO!C22=0," ",COUNTRY_INFO!C22) -> SINTRA NEMA | D22: =IF(COUNTRY_INFO!$T$9:$T$1000="MDA1 (IVM+ALB)", COUNTRY_INFO!$T$9:$T$1000, " ") ->  | I22: 0 | M22: 0
A23: =IF(COUNTRY_INFO!A23=0," ",COUNTRY_INFO!A23) -> Guinea Bissau | B23: =IF(COUNTRY_INFO!B23=0," ",COUNTRY_INFO!B23) -> Bijagos | C23: =IF(COUNTRY_INFO!C23=0," ",COUNTRY_INFO!C23) -> Bubaque | D23: =IF(COUNTRY_INFO!$T$9:$T$1000="MDA1 (IVM+ALB)", COUNTRY_INFO!$T$9:$T$1000, " ") -> MDA1 (IVM+ALB) | E23: 29/01/2021 | G23: 2028 | H23: 4484 | I23: 6512 | K23: 2451 | L23: 2540 | M23: 4991 | O23: 120.8579882 | P23: 56.64585192 | Q23: 76.64312039
A24: =IF(COUNTRY_INFO!A24=0," ",COUNTRY_INFO!A24) -> Guinea Bissau | B24: =IF(COUNTRY_INFO!B24=0," ",COUNTRY_INFO!B24) -> Bijagos | C24: =IF(COUNTRY_INFO!C24=0," ",COUNTRY_INFO!C24) -> Canhabaque | D24: =IF(COUNTRY_INFO!$T$9:$T$1000="MDA1 (IVM+ALB)", COUNTRY_INFO!$T$9:$T$1000, " ") -> MDA1 (IVM+ALB) | E24: 29/01/2021 | G24: 798 | H24: 1764 | I24: 2562 | K24: 1240 | L24: 1223 | M24: 2463 | O24: 155.3884712 | P24: 69.33106576 | Q24: 96.13583138
A25: =IF(COUNTRY_INFO!A25=0," ",COUNTRY_INFO!A25) -> Guinea Bissau | B25: =IF(COUNTRY_INFO!B25=0," ",COUNTRY_INFO!B25) -> Bijagos | C25: =IF(COUNTRY_INFO!C25=0," ",COUNTRY_INFO!C25) -> Canogo | D25: =IF(COUNTRY_INFO!$T$9:$T$1000="MDA1 (IVM+ALB)", COUNTRY_INFO!$T$9:$T$1000, " ") -> MDA1 (IVM+ALB) | E25: 29/01/2021 | G25: 182 | H25: 403 | I25: 585 | K25: 285 | L25: 257 | M25: 542 | O25: 156.5934066 | P25: 63.77171216 | Q25: 92.64957265
A26: =IF(COUNTRY_INFO!A26=0," ",COUNTRY_INFO!A26) -> Guinea Bissau | B26: =IF(COUNTRY_INFO!B26=0," ",COUNTRY_INFO!B26) -> Bijagos | C26: =IF(COUNTRY_INFO!C26=0," ",COUNTRY_INFO!C26) -> Caravela | D26: =IF(COUNTRY_INFO!$T$9:$T$1000="MDA1 (IVM+ALB)", COUNTRY_INFO!$T$9:$T$1000, " ") -> MDA1 (IVM+ALB) | E26: 29/01/2021 | G26: 565 | H26: 1250 | I26: 1815 | K26: 737 | L26: 743 | M26: 1480 | O26: 130.4424779 | P26: 59.44 | Q26: 81.54269972
A27: =IF(COUNTRY_INFO!A27=0," ",COUNTRY_INFO!A27) -> Guinea Bissau | B27: =IF(COUNTRY_INFO!B27=0," ",COUNTRY_INFO!B27) -> Bijagos | C27: =IF(COUNTRY_INFO!C27=0," ",COUNTRY_INFO!C27) -> Formosa | D27: =IF(COUNTRY_INFO!$T$9:$T$1000="MDA1 (IVM+ALB)", COUNTRY_INFO!$T$9:$T$1000, " ") -> MDA1 (IVM+ALB) | E27: 29/01/2021 | G27: 934 | H27: 2064 | I27: 2998 | K27: 1350 | L27: 1279 | M27: 2629 | O27: 144.5396146 | P27: 61.96705426 | Q27: 87.69179453
A28: =IF(COUNTRY_INFO!A28=0," ",COUNTRY_INFO!A28) -> Guinea Bissau | B28: =IF(COUNTRY_INFO!B28=0," ",COUNTRY_INFO!B28) -> Bijagos | C28: =IF(COUNTRY_INFO!C28=0," ",COUNTRY_INFO!C28) -> Orango Grande | D28: =IF(COUNTRY_INFO!$T$9:$T$1000="MDA1 (IVM+ALB)", COUNTRY_INFO!$T$9:$T$1000, " ") -> MDA1 (IVM+ALB) | E28: 29/01/2021 | G28: 392 | H28: 867 | I28: 1259 | K28: 566 | L28: 550 | M28: 1116 | O28: 144.3877551 | P28: 63.43713956 | Q28: 88.64177919
A29: =IF(COUNTRY_INFO!A29=0," ",COUNTRY_INFO!A29) -> Guinea Bissau | B29: =IF(COUNTRY_INFO!B29=0," ",COUNTRY_INFO!B29) -> Bijagos | C29: =IF(COUNTRY_INFO!C29=0," ",COUNTRY_INFO!C29) -> Orango zinho | D29: =IF(COUNTRY_INFO!$T$9:$T$1000="MDA1 (IVM+ALB)", COUNTRY_INFO!$T$9:$T$1000, " ") -> MDA1 (IVM+ALB) | E29: 29/01/2021 | G29: 222 | H29: 490 | I29: 712 | K29: 389 | L29: 465 | M29: 854 | O29: 175.2252252 | P29: 94.89795918 | Q29: 119.9438202
A30: =IF(COUNTRY_INFO!A30=0," ",COUNTRY_INFO!A30) -> Guinea Bissau | B30: =IF(COUNTRY_INFO!B30=0," ",COUNTRY_INFO!B30) -> Bijagos | C30: =IF(COUNTRY_INFO!C30=0," ",COUNTRY_INFO!C30) -> Soga | D30: =IF(COUNTRY_INFO!$T$9:$T$1000="MDA1 (IVM+ALB)", COUNTRY_INFO!$T$9:$T$1000, " ") -> MDA1 (IVM+ALB) | E30: 29/01/2021 | G30: 264 | H30: 585 | I30: 849 | K30: 322 | L30: 388 | M30: 710 | O30: 121.969697 | P30: 66.32478632 | Q30: 83.62779741
A31: =IF(COUNTRY_INFO!A31=0," ",COUNTRY_INFO!A31) -> Guinea Bissau | B31: =IF(COUNTRY_INFO!B31=0," ",COUNTRY_INFO!B31) -> Bijagos | C31: =IF(COUNTRY_INFO!C31=0," ",COUNTRY_INFO!C31) -> Unhocomo | D31: =IF(COUNTRY_INFO!$T$9:$T$1000="MDA1 (IVM+ALB)", COUNTRY_INFO!$T$9:$T$1000, " ") -> MDA1 (IVM+ALB) | E31: 29/01/2021 | G31: 266 | H31: 588 | I31: 854 | K31: 311 | L31: 344 | M31: 655 | O31: 116.9172932 | P31: 58.50340136 | Q31: 76.69789227
A32: =IF(COUNTRY_INFO!A32=0," ",COUNTRY_INFO!A32) -> Guinea Bissau | B32: =IF(COUNTRY_INFO!B32=0," ",COUNTRY_INFO!B32) -> Bijagos | C32: =IF(COUNTRY_INFO!C32=0," ",COUNTRY_INFO!C32) -> Uno | D32: =IF(COUNTRY_INFO!$T$9:$T$1000="MDA1 (IVM+ALB)", COUNTRY_INFO!$T$9:$T$1000, " ") -> MDA1 (IVM+ALB) | E32: 29/01/2021 | G32: 1044 | H32: 2308 | I32: 3352 | K32: 1734 | L32: 1732 | M32: 3466 | O32: 166.091954 | P32: 75.04332756 | Q32: 103.4009547
A33: =IF(COUNTRY_INFO!A33=0," ",COUNTRY_INFO!A33) -> Guinea Bissau | B33: =IF(COUNTRY_INFO!B33=0," ",COUNTRY_INFO!B33) -> Bijagos | C33: =IF(COUNTRY_INFO!C33=0," ",COUNTRY_INFO!C33) -> Uracane | D33: =IF(COUNTRY_INFO!$T$9:$T$1000="MDA1 (IVM+ALB)", COUNTRY_INFO!$T$9:$T$1000, " ") -> MDA1 (IVM+ALB) | E33: 29/01/2021 | G33: 485 | H33: 1072 | I33: 1557 | K33: 655 | L33: 756 | M33: 1411 | O33: 135.0515464 | P33: 70.52238806 | Q33: 90.62299294
A34: =IF(COUNTRY_INFO!A34=0," ",COUNTRY_INFO!A34) -> Guinea Bissau | B34: =IF(COUNTRY_INFO!B34=0," ",COUNTRY_INFO!B34) -> Biombo | C34: =IF(COUNTRY_INFO!C34=0," ",COUNTRY_INFO!C34) -> BIJIMITA | D34: =IF(COUNTRY_INFO!$T$9:$T$1000="MDA1 (IVM+ALB)", COUNTRY_INFO!$T$9:$T$1000, " ") ->  | I34: 0 | M34: 0
A35: =IF(COUNTRY_INFO!A35=0," ",COUNTRY_INFO!A35) -> Guinea Bissau | B35: =IF(COUNTRY_INFO!B35=0," ",COUNTRY_INFO!B35) -> Biombo | C35: =IF(COUNTRY_INFO!C35=0," ",COUNTRY_INFO!C35) -> CUMURA | D35: =IF(COUNTRY_INFO!$T$9:$T$1000="MDA1 (IVM+ALB)", COUNTRY_INFO!$T$9:$T$1000, " ") ->  | I35: 0 | M35: 0
A36: =IF(COUNTRY_INFO!A36=0," ",COUNTRY_INFO!A36) -> Guinea Bissau | B36: =IF(COUNTRY_INFO!B36=0," ",COUNTRY_INFO!B36) -> Biombo | C36: =IF(COUNTRY_INFO!C36=0," ",COUNTRY_INFO!C36) -> DORSE | D36: =IF(COUNTRY_INFO!$T$9:$T$1000="MDA1 (IVM+ALB)", COUNTRY_INFO!$T$9:$T$1000, " ") ->  | I36: 0 | M36: 0
A37: =IF(COUNTRY_INFO!A37=0," ",COUNTRY_INFO!A37) -> Guinea Bissau | B37: =IF(COUNTRY_INFO!B37=0," ",COUNTRY_INFO!B37) -> Biombo | C37: =IF(COUNTRY_INFO!C37=0," ",COUNTRY_INFO!C37) -> ILONDE | D37: =IF(COUNTRY_INFO!$T$9:$T$1000="MDA1 (IVM+ALB)", COUNTRY_INFO!$T$9:$T$1000, " ") ->  | I37: 0 | M37: 0
A38: =IF(COUNTRY_INFO!A38=0," ",COUNTRY_INFO!A38) -> Guinea Bissau | B38: =IF(COUNTRY_INFO!B38=0," ",COUNTRY_INFO!B38) -> Biombo | C38: =IF(COUNTRY_INFO!C38=0," ",COUNTRY_INFO!C38) -> ONDAME | D38: =IF(COUNTRY_INFO!$T$9:$T$1000="MDA1 (IVM+ALB)", COUNTRY_INFO!$T$9:$T$1000, " ") ->  | I38: 0 | M38: 0
A39: =IF(COUNTRY_INFO!A39=0," ",COUNTRY_INFO!A39) -> Guinea Bissau | B39: =IF(COUNTRY_INFO!B39=0," ",COUNTRY_INFO!B39) -> Biombo | C39: =IF(COUNTRY_INFO!C39=0," ",COUNTRY_INFO!C39) -> PRABIS | D39: =IF(COUNTRY_INFO!$T$9:$T$1000="MDA1 (IVM+ALB)", COUNTRY_INFO!$T$9:$T$1000, " ") ->  | I39: 0 | M39: 0
A40: =IF(COUNTRY_INFO!A40=0," ",COUNTRY_INFO!A40) -> Guinea Bissau | B40: =IF(COUNTRY_INFO!B40=0," ",COUNTRY_INFO!B40) -> Biombo | C40: =IF(COUNTRY_INFO!C40=0," ",COUNTRY_INFO!C40) -> QUINHAMEL | D40: =IF(COUNTRY_INFO!$T$9:$T$1000="MDA1 (IVM+ALB)", COUNTRY_INFO!$T$9:$T$1000, " ") ->  | I40: 0 | M40: 0
A41: =IF(COUNTRY_INFO!A41=0," ",COUNTRY_INFO!A41) -> Guinea Bissau | B41: =IF(COUNTRY_INFO!B41=0," ",COUNTRY_INFO!B41) -> Biombo | C41: =IF(COUNTRY_INFO!C41=0," ",COUNTRY_INFO!C41) -> SAFIM | D41: =IF(COUNTRY_INFO!$T$9:$T$1000="MDA1 (IVM+ALB)", COUNTRY_INFO!$T$9:$T$1000, " ") ->  | I41: 0 | M41: 0
A42: =IF(COUNTRY_INFO!A42=0," ",COUNTRY_INFO!A42) -> Guinea Bissau | B42: =IF(COUNTRY_INFO!B42=0," ",COUNTRY_INFO!B42) -> Farim | C42: =IF(COUNTRY_INFO!C42=0," ",COUNTRY_INFO!C42) -> BINTA | D42: =IF(COUNTRY_INFO!$T$9:$T$1000="MDA1 (IVM+ALB)", COUNTRY_INFO!$T$9:$T$1000, " ") ->  | I42: 0 | M42: 0
A43: =IF(COUNTRY_INFO!A43=0," ",COUNTRY_INFO!A43) -> Guinea Bissau | B43: =IF(COUNTRY_INFO!B43=0," ",COUNTRY_INFO!B43) -> Farim | C43: =IF(COUNTRY_INFO!C43=0," ",COUNTRY_INFO!C43) -> CANDJAMBARI | D43: =IF(COUNTRY_INFO!$T$9:$T$1000="MDA1 (IVM+ALB)", COUNTRY_INFO!$T$9:$T$1000, " ") ->  | I43: 0 | M43: 0
A44: =IF(COUNTRY_INFO!A44=0," ",COUNTRY_INFO!A44) -> Guinea Bissau | B44: =IF(COUNTRY_INFO!B44=0," ",COUNTRY_INFO!B44) -> Farim | C44: =IF(COUNTRY_INFO!C44=0," ",COUNTRY_INFO!C44) -> CUNTIMA | D44: =IF(COUNTRY_INFO!$T$9:$T$1000="MDA1 (IVM+ALB)", COUNTRY_INFO!$T$9:$T$1000, " ") ->  | I44: 0 | M44: 0
A45: =IF(COUNTRY_INFO!A45=0," ",COUNTRY_INFO!A45) -> Guinea Bissau | B45: =IF(COUNTRY_INFO!B45=0," ",COUNTRY_INFO!B45) -> Farim | C45: =IF(COUNTRY_INFO!C45=0," ",COUNTRY_INFO!C45) -> FARIM | D45: =IF(COUNTRY_INFO!$T$9:$T$1000="MDA1 (IVM+ALB)", COUNTRY_INFO!$T$9:$T$1000, " ") ->  | I45: 0 | M45: 0
A46: =IF(COUNTRY_INFO!A46=0," ",COUNTRY_INFO!A46) -> Guinea Bissau | B46: =IF(COUNTRY_INFO!B46=0," ",COUNTRY_INFO!B46) -> Farim | C46: =IF(COUNTRY_INFO!C46=0," ",COUNTRY_INFO!C46) -> GUIDAGE | D46: =IF(COUNTRY_INFO!$T$9:$T$1000="MDA1 (IVM+ALB)", COUNTRY_INFO!$T$9:$T$1000, " ") ->  | I46: 0 | M46: 0
A47: =IF(COUNTRY_INFO!A47=0," ",COUNTRY_INFO!A47) -> Guinea Bissau | B47: =IF(COUNTRY_INFO!B47=0," ",COUNTRY_INFO!B47) -> Oio | C47: =IF(COUNTRY_INFO!C47=0," ",COUNTRY_INFO!C47) -> BINAR | D47: =IF(COUNTRY_INFO!$T$9:$T$1000="MDA1 (IVM+ALB)", COUNTRY_INFO!$T$9:$T$1000, " ") -> MDA1 (IVM+ALB) | E47: 19/03/2021 | G47: 4020 | H47: 8888 | I47: 12908 | K47: 5871 | L47: 5785 | M47: 11656 | O47: 146.0447761 | P47: 65.08775878 | Q47: 90.30058878
A48: =IF(COUNTRY_INFO!A48=0," ",COUNTRY_INFO!A48) -> Guinea Bissau | B48: =IF(COUNTRY_INFO!B48=0," ",COUNTRY_INFO!B48) -> Oio | C48: =IF(COUNTRY_INFO!C48=0," ",COUNTRY_INFO!C48) -> BISSORA | D48: =IF(COUNTRY_INFO!$T$9:$T$1000="MDA1 (IVM+ALB)", COUNTRY_INFO!$T$9:$T$1000, " ") -> MDA1 (IVM+ALB) | E48: 19/03/2021 | G48: 11881 | H48: 26270 | I48: 38151 | K48: 14087 | L48: 15294 | M48: 29381 | O48: 118.5674607 | P48: 58.21850019 | Q48: 77.0123981
A49: =IF(COUNTRY_INFO!A49=0," ",COUNTRY_INFO!A49) -> Guinea Bissau | B49: =IF(COUNTRY_INFO!B49=0," ",COUNTRY_INFO!B49) -> Oio | C49: =IF(COUNTRY_INFO!C49=0," ",COUNTRY_INFO!C49) -> ENCHEIA | D49: =IF(COUNTRY_INFO!$T$9:$T$1000="MDA1 (IVM+ALB)", COUNTRY_INFO!$T$9:$T$1000, " ") -> MDA1 (IVM+ALB) | E49: 19/03/2021 | G49: 3801 | H49: 8404 | I49: 12205 | K49: 5241 | L49: 5315 | M49: 10556 | O49: 137.8847672 | P49: 63.24369348 | Q49: 86.48914379
A50: =IF(COUNTRY_INFO!A50=0," ",COUNTRY_INFO!A50) -> Guinea Bissau | B50: =IF(COUNTRY_INFO!B50=0," ",COUNTRY_INFO!B50) -> Oio | C50: =IF(COUNTRY_INFO!C50=0," ",COUNTRY_INFO!C50) -> GÃ-MAMUDO | D50: =IF(COUNTRY_INFO!$T$9:$T$1000="MDA1 (IVM+ALB)", COUNTRY_INFO!$T$9:$T$1000, " ") -> MDA1 (IVM+ALB) | E50: 19/03/2021 | G50: 3086 | H50: 6823 | I50: 9909 | K50: 4215 | L50: 4470 | M50: 8685 | O50: 136.5845755 | P50: 65.51370365 | Q50: 87.6475931
A51: =IF(COUNTRY_INFO!A51=0," ",COUNTRY_INFO!A51) -> Guinea Bissau | B51: =IF(COUNTRY_INFO!B51=0," ",COUNTRY_INFO!B51) -> Oio | C51: =IF(COUNTRY_INFO!C51=0," ",COUNTRY_INFO!C51) -> MANSABA | D51: =IF(COUNTRY_INFO!$T$9:$T$1000="MDA1 (IVM+ALB)", COUNTRY_INFO!$T$9:$T$1000, " ") -> MDA1 (IVM+ALB) | E51: 19/03/2021 | G51: 7023 | H51: 15528 | I51: 22551 | K51: 8247 | L51: 9565 | M51: 17812 | O51: 117.4284494 | P51: 61.59840289 | Q51: 78.98541085
A52: =IF(COUNTRY_INFO!A52=0," ",COUNTRY_INFO!A52) -> Guinea Bissau | B52: =IF(COUNTRY_INFO!B52=0," ",COUNTRY_INFO!B52) -> Oio | C52: =IF(COUNTRY_INFO!C52=0," ",COUNTRY_INFO!C52) -> MANSOA | D52: =IF(COUNTRY_INFO!$T$9:$T$1000="MDA1 (IVM+ALB)", COUNTRY_INFO!$T$9:$T$1000, " ") -> MDA1 (IVM+ALB) | E52: 19/03/2021 | G52: 11307 | H52: 25001 | I52: 36308 | K52: 13593 | L52: 14276 | M52: 27869 | O52: 120.2175643 | P52: 57.10171593 | Q52: 76.7571885
A53: =IF(COUNTRY_INFO!A53=0," ",COUNTRY_INFO!A53) -> Guinea Bissau | B53: =IF(COUNTRY_INFO!B53=0," ",COUNTRY_INFO!B53) -> Oio | C53: =IF(COUNTRY_INFO!C53=0," ",COUNTRY_INFO!C53) -> MORES | D53: =IF(COUNTRY_INFO!$T$9:$T$1000="MDA1 (IVM+ALB)", COUNTRY_INFO!$T$9:$T$1000, " ") -> MDA1 (IVM+ALB) | E53: 19/03/2021 | G53: 2985 | H53: 6601 | I53: 9586 | K53: 3646 | L53: 4305 | M53: 7951 | O53: 122.1440536 | P53: 65.2173913 | Q53: 82.94387649
A54: =IF(COUNTRY_INFO!A54=0," ",COUNTRY_INFO!A54) -> Guinea Bissau | B54: =IF(COUNTRY_INFO!B54=0," ",COUNTRY_INFO!B54) -> Oio | C54: =IF(COUNTRY_INFO!C54=0," ",COUNTRY_INFO!C54) -> NHACRA | D54: =IF(COUNTRY_INFO!$T$9:$T$1000="MDA1 (IVM+ALB)", COUNTRY_INFO!$T$9:$T$1000, " ") -> MDA1 (IVM+ALB) | E54: 19/03/2021 | G54: 7259 | H54: 16051 | I54: 23310 | K54: 8794 | L54: 9665 | M54: 18459 | O54: 121.1461634 | P54: 60.21431686 | Q54: 79.18918919
A55: =IF(COUNTRY_INFO!A55=0," ",COUNTRY_INFO!A55) -> Guinea Bissau | B55: =IF(COUNTRY_INFO!B55=0," ",COUNTRY_INFO!B55) -> Oio | C55: =IF(COUNTRY_INFO!C55=0," ",COUNTRY_INFO!C55) -> OLOSSATO | D55: =IF(COUNTRY_INFO!$T$9:$T$1000="MDA1 (IVM+ALB)", COUNTRY_INFO!$T$9:$T$1000, " ") -> MDA1 (IVM+ALB) | E55: 19/03/2021 | G55: 4507 | H55: 9966 | I55: 14473 | K55: 6996 | L55: 9228 | M55: 16224 | O55: 155.2252052 | P55: 92.5948224 | Q55: 112.0983901
A56: =IF(COUNTRY_INFO!A56=0," ",COUNTRY_INFO!A56) -> Guinea Bissau | B56: =IF(COUNTRY_INFO!B56=0," ",COUNTRY_INFO!B56) -> Oio | C56: =IF(COUNTRY_INFO!C56=0," ",COUNTRY_INFO!C56) -> PORTUGOL | D56: =IF(COUNTRY_INFO!$T$9:$T$1000="MDA1 (IVM+ALB)", COUNTRY_INFO!$T$9:$T$1000, " ") -> MDA1 (IVM+ALB) | E56: 19/03/2021 | G56: 1655 | H56: 3660 | I56: 5315 | K56: 2204 | L56: 2138 | M56: 4342 | O56: 133.1722054 | P56: 58.41530055 | Q56: 81.69332079
A57: =IF(COUNTRY_INFO!A57=0," ",COUNTRY_INFO!A57) -> Guinea Bissau | B57: =IF(COUNTRY_INFO!B57=0," ",COUNTRY_INFO!B57) -> Bolama | C57: =IF(COUNTRY_INFO!C57=0," ",COUNTRY_INFO!C57) -> BOLAMA | D57: =IF(COUNTRY_INFO!$T$9:$T$1000="MDA1 (IVM+ALB)", COUNTRY_INFO!$T$9:$T$1000, " ") ->  | I57: 0 | M57: 0
A58: =IF(COUNTRY_INFO!A58=0," ",COUNTRY_INFO!A58) -> Guinea Bissau | B58: =IF(COUNTRY_INFO!B58=0," ",COUNTRY_INFO!B58) -> Bolama | C58: =IF(COUNTRY_INFO!C58=0," ",COUNTRY_INFO!C58) -> I. GALINHAS | D58: =IF(COUNTRY_INFO!$T$9:$T$1000="MDA1 (IVM+ALB)", COUNTRY_INFO!$T$9:$T$1000, " ") ->  | I58: 0 | M58: 0
A59: =IF(COUNTRY_INFO!A59=0," ",COUNTRY_INFO!A59) -> Guinea Bissau | B59: =IF(COUNTRY_INFO!B59=0," ",COUNTRY_INFO!B59) -> Bolama | C59: =IF(COUNTRY_INFO!C59=0," ",COUNTRY_INFO!C59) -> SÃO-JOÃO | D59: =IF(COUNTRY_INFO!$T$9:$T$1000="MDA1 (IVM+ALB)", COUNTRY_INFO!$T$9:$T$1000, " ") ->  | I59: 0 | M59: 0
A60: =IF(COUNTRY_INFO!A60=0," ",COUNTRY_INFO!A60) -> Guinea Bissau | B60: =IF(COUNTRY_INFO!B60=0," ",COUNTRY_INFO!B60) -> Gabu | C60: =IF(COUNTRY_INFO!C60=0," ",COUNTRY_INFO!C60) -> BAJOCUNDA | D60: =IF(COUNTRY_INFO!$T$9:$T$1000="MDA1 (IVM+ALB)", COUNTRY_INFO!$T$9:$T$1000, " ") ->  | I60: 0 | M60: 0
A61: =IF(COUNTRY_INFO!A61=0," ",COUNTRY_INFO!A61) -> Guinea Bissau | B61: =IF(COUNTRY_INFO!B61=0," ",COUNTRY_INFO!B61) -> Gabu | C61: =IF(COUNTRY_INFO!C61=0," ",COUNTRY_INFO!C61) -> BELI | D61: =IF(COUNTRY_INFO!$T$9:$T$1000="MDA1 (IVM+ALB)", COUNTRY_INFO!$T$9:$T$1000, " ") ->  | I61: 0 | M61: 0
A62: =IF(COUNTRY_INFO!A62=0," ",COUNTRY_INFO!A62) -> Guinea Bissau | B62: =IF(COUNTRY_INFO!B62=0," ",COUNTRY_INFO!B62) -> Gabu | C62: =IF(COUNTRY_INFO!C62=0," ",COUNTRY_INFO!C62) -> BURUNTUMA | D62: =IF(COUNTRY_INFO!$T$9:$T$1000="MDA1 (IVM+ALB)", COUNTRY_INFO!$T$9:$T$1000, " ") ->  | I62: 0 | M62: 0
A63: =IF(COUNTRY_INFO!A63=0," ",COUNTRY_INFO!A63) -> Guinea Bissau | B63: =IF(COUNTRY_INFO!B63=0," ",COUNTRY_INFO!B63) -> Gabu | C63: =IF(COUNTRY_INFO!C63=0," ",COUNTRY_INFO!C63) -> CANJADUDE | D63: =IF(COUNTRY_INFO!$T$9:$T$1000="MDA1 (IVM+ALB)", COUNTRY_INFO!$T$9:$T$1000, " ") ->  | I63: 0 | M63: 0
A64: =IF(COUNTRY_INFO!A64=0," ",COUNTRY_INFO!A64) -> Guinea Bissau | B64: =IF(COUNTRY_INFO!B64=0," ",COUNTRY_INFO!B64) -> Gabu | C64: =IF(COUNTRY_INFO!C64=0," ",COUNTRY_INFO!C64) -> CANQUELIFA | D64: =IF(COUNTRY_INFO!$T$9:$T$1000="MDA1 (IVM+ALB)", COUNTRY_INFO!$T$9:$T$1000, " ") ->  | I64: 0 | M64: 0
A65: =IF(COUNTRY_INFO!A65=0," ",COUNTRY_INFO!A65) -> Guinea Bissau | B65: =IF(COUNTRY_INFO!B65=0," ",COUNTRY_INFO!B65) -> Gabu | C65: =IF(COUNTRY_INFO!C65=0," ",COUNTRY_INFO!C65) -> CANSISSE | D65: =IF(COUNTRY_INFO!$T$9:$T$1000="MDA1 (IVM+ALB)", COUNTRY_INFO!$T$9:$T$1000, " ") ->  | I65: 0 | M65: 0
A66: =IF(COUNTRY_INFO!A66=0," ",COUNTRY_INFO!A66) -> Guinea Bissau | B66: =IF(COUNTRY_INFO!B66=0," ",COUNTRY_INFO!B66) -> Gabu | C66: =IF(COUNTRY_INFO!C66=0," ",COUNTRY_INFO!C66) -> FASSE | D66: =IF(COUNTRY_INFO!$T$9:$T$1000="MDA1 (IVM+ALB)", COUNTRY_INFO!$T$9:$T$1000, " ") ->  | I66: 0 | M66: 0
A67: =IF(COUNTRY_INFO!A67=0," ",COUNTRY_INFO!A67) -> Guinea Bissau | B67: =IF(COUNTRY_INFO!B67=0," ",COUNTRY_INFO!B67) -> Gabu | C67: =IF(COUNTRY_INFO!C67=0," ",COUNTRY_INFO!C67) -> PAUNCA | D67: =IF(COUNTRY_INFO!$T$9:$T$1000="MDA1 (IVM+ALB)", COUNTRY_INFO!$T$9:$T$1000, " ") ->  | I67: 0 | M67: 0
A68: =IF(COUNTRY_INFO!A68=0," ",COUNTRY_INFO!A68) -> Guinea Bissau | B68: =IF(COUNTRY_INFO!B68=0," ",COUNTRY_INFO!B68) -> Gabu | C68: =IF(COUNTRY_INFO!C68=0," ",COUNTRY_INFO!C68) -> PITCHE | D68: =IF(COUNTRY_INFO!$T$9:$T$1000="MDA1 (IVM+ALB)", COUNTRY_INFO!$T$9:$T$1000, " ") ->  | I68: 0 | M68: 0
A69: =IF(COUNTRY_INFO!A69=0," ",COUNTRY_INFO!A69) -> Guinea Bissau | B69: =IF(COUNTRY_INFO!B69=0," ",COUNTRY_INFO!B69) -> Gabu | C69: =IF(COUNTRY_INFO!C69=0," ",COUNTRY_INFO!C69) -> DARA | D69: =IF(COUNTRY_INFO!$T$9:$T$1000="MDA1 (IVM+ALB)", COUNTRY_INFO!$T$9:$T$1000, " ") ->  | I69: 0 | M69: 0
A70: =IF(COUNTRY_INFO!A70=0," ",COUNTRY_INFO!A70) -> Guinea Bissau | B70: =IF(COUNTRY_INFO!B70=0," ",COUNTRY_INFO!B70) -> Gabu | C70: =IF(COUNTRY_INFO!C70=0," ",COUNTRY_INFO!C70) -> PIRADA | D70: =IF(COUNTRY_INFO!$T$9:$T$1000="MDA1 (IVM+ALB)", COUNTRY_INFO!$T$9:$T$1000, " ") ->  | I70: 0 | M70: 0
A71: =IF(COUNTRY_INFO!A71=0," ",COUNTRY_INFO!A71) -> Guinea Bissau | B71: =IF(COUNTRY_INFO!B71=0," ",COUNTRY_INFO!B71) -> Gabu | C71: =IF(COUNTRY_INFO!C71=0," ",COUNTRY_INFO!C71) -> DANDUM | D71: =IF(COUNTRY_INFO!$T$9:$T$1000="MDA1 (IVM+ALB)", COUNTRY_INFO!$T$9:$T$1000, " ") ->  | I71: 0 | M71: 0
A72: =IF(COUNTRY_INFO!A72=0," ",COUNTRY_INFO!A72) -> Guinea Bissau | B72: =IF(COUNTRY_INFO!B72=0," ",COUNTRY_INFO!B72) -> Gabu | C72: =IF(COUNTRY_INFO!C72=0," ",COUNTRY_INFO!C72) -> MANSADJAM | D72: =IF(COUNTRY_INFO!$T$9:$T$1000="MDA1 (IVM+ALB)", COUNTRY_INFO!$T$9:$T$1000, " ") ->  | I72: 0 | M72: 0
A73: =IF(COUNTRY_INFO!A73=0," ",COUNTRY_INFO!A73) -> Guinea Bissau | B73: =IF(COUNTRY_INFO!B73=0," ",COUNTRY_INFO!B73) -> Gabu | C73: =IF(COUNTRY_INFO!C73=0," ",COUNTRY_INFO!C73) -> SONACO | D73: =IF(COUNTRY_INFO!$T$9:$T$1000="MDA1 (IVM+ALB)", COUNTRY_INFO!$T$9:$T$1000, " ") ->  | I73: 0 | M73: 0
A74: =IF(COUNTRY_INFO!A74=0," ",COUNTRY_INFO!A74) -> Guinea Bissau | B74: =IF(COUNTRY_INFO!B74=0," ",COUNTRY_INFO!B74) -> Gabu | C74: =IF(COUNTRY_INFO!C74=0," ",COUNTRY_INFO!C74) -> LUGADJOLE | D74: =IF(COUNTRY_INFO!$T$9:$T$1000="MDA1 (IVM+ALB)", COUNTRY_INFO!$T$9:$T$1000, " ") ->  | I74: =SUM(F74:H74) -> 0 | M74: =SUM(J74:L74) -> 0 | O74: =IF(G74<>0, IF(K74/G74*100=0, "-", K74/G74*100), " ") ->  | P74: =IF(H74<>0, IF(L74/H74*100=0, "-", L74/H74*100), " ") ->  | Q74: =IF(I74<>0, IF(M74/I74*100=0, "-", M74/I74*100), " ") -> 
A75: =IF(COUNTRY_INFO!A75=0," ",COUNTRY_INFO!A75) -> Guinea Bissau | B75: =IF(COUNTRY_INFO!B75=0," ",COUNTRY_INFO!B75) -> Gabu | C75: =IF(COUNTRY_INFO!C75=0," ",COUNTRY_INFO!C75) -> GABU | D75: =IF(COUNTRY_INFO!$T$9:$T$1000="MDA1 (IVM+ALB)", COUNTRY_INFO!$T$9:$T$1000, " ") ->  | I75: 0 | M75: 0
A76: =IF(COUNTRY_INFO!A76=0," ",COUNTRY_INFO!A76) -> Guinea Bissau | B76: =IF(COUNTRY_INFO!B76=0," ",COUNTRY_INFO!B76) -> Gabu | C76: =IF(COUNTRY_INFO!C76=0," ",COUNTRY_INFO!C76) -> CANDJUFA | D76: =IF(COUNTRY_INFO!$T$9:$T$1000="MDA1 (IVM+ALB)", COUNTRY_INFO!$T$9:$T$1000, " ") ->  | I76: 0 | M76: 0
A77: =IF(COUNTRY_INFO!A77=0," ",COUNTRY_INFO!A77) -> Guinea Bissau | B77: =IF(COUNTRY_INFO!B77=0," ",COUNTRY_INFO!B77) -> Gabu | C77: =IF(COUNTRY_INFO!C77=0," ",COUNTRY_INFO!C77) -> MAFANCO | D77: =IF(COUNTRY_INFO!$T$9:$T$1000="MDA1 (IVM+ALB)", COUNTRY_INFO!$T$9:$T$1000, " ") ->  | I77: 0 | M77: 0
A78: =IF(COUNTRY_INFO!A78=0," ",COUNTRY_INFO!A78) -> Guinea Bissau | B78: =IF(COUNTRY_INFO!B78=0," ",COUNTRY_INFO!B78) -> Gabu | C78: =IF(COUNTRY_INFO!C78=0," ",COUNTRY_INFO!C78) -> TUMANA | D78: =IF(COUNTRY_INFO!$T$9:$T$1000="MDA1 (IVM+ALB)", COUNTRY_INFO!$T$9:$T$1000, " ") ->  | I78: 0 | M78: 0
A79: =IF(COUNTRY_INFO!A79=0," ",COUNTRY_INFO!A79) -> Guinea Bissau | B79: =IF(COUNTRY_INFO!B79=0," ",COUNTRY_INFO!B79) -> Bafata | C79: =IF(COUNTRY_INFO!C79=0," ",COUNTRY_INFO!C79) -> Xitole | D79: =IF(COUNTRY_INFO!$T$9:$T$1000="MDA1 (IVM+ALB)", COUNTRY_INFO!$T$9:$T$1000, " ") ->  | I79: 0 | M79: 0
A80: =IF(COUNTRY_INFO!A80=0," ",COUNTRY_INFO!A80) -> Guinea Bissau | B80: =IF(COUNTRY_INFO!B80=0," ",COUNTRY_INFO!B80) -> Bafata | C80: =IF(COUNTRY_INFO!C80=0," ",COUNTRY_INFO!C80) -> Contubuel | D80: =IF(COUNTRY_INFO!$T$9:$T$1000="MDA1 (IVM+ALB)", COUNTRY_INFO!$T$9:$T$1000, " ") ->  | I80: 0 | M80: 0
A81: =IF(COUNTRY_INFO!A81=0," ",COUNTRY_INFO!A81) -> Guinea Bissau | B81: =IF(COUNTRY_INFO!B81=0," ",COUNTRY_INFO!B81) -> Bafata | C81: =IF(COUNTRY_INFO!C81=0," ",COUNTRY_INFO!C81) -> Tendinto | D81: =IF(COUNTRY_INFO!$T$9:$T$1000="MDA1 (IVM+ALB)", COUNTRY_INFO!$T$9:$T$1000, " ") ->  | I81: 0 | M81: 0
A82: =IF(COUNTRY_INFO!A82=0," ",COUNTRY_INFO!A82) -> Guinea Bissau | B82: =IF(COUNTRY_INFO!B82=0," ",COUNTRY_INFO!B82) -> Bafata | C82: =IF(COUNTRY_INFO!C82=0," ",COUNTRY_INFO!C82) -> Geba | D82: =IF(COUNTRY_INFO!$T$9:$T$1000="MDA1 (IVM+ALB)", COUNTRY_INFO!$T$9:$T$1000, " ") ->  | I82: 0 | M82: 0
A83: =IF(COUNTRY_INFO!A83=0," ",COUNTRY_INFO!A83) -> Guinea Bissau | B83: =IF(COUNTRY_INFO!B83=0," ",COUNTRY_INFO!B83) -> Bafata | C83: =IF(COUNTRY_INFO!C83=0," ",COUNTRY_INFO!C83) -> Tantancosse | D83: =IF(COUNTRY_INFO!$T$9:$T$1000="MDA1 (IVM+ALB)", COUNTRY_INFO!$T$9:$T$1000, " ") ->  | I83: 0 | M83: 0
A84: =IF(COUNTRY_INFO!A84=0," ",COUNTRY_INFO!A84) -> Guinea Bissau | B84: =IF(COUNTRY_INFO!B84=0," ",COUNTRY_INFO!B84) -> Bafata | C84: =IF(COUNTRY_INFO!C84=0," ",COUNTRY_INFO!C84) -> Ga-mamudo | D84: =IF(COUNTRY_INFO!$T$9:$T$1000="MDA1 (IVM+ALB)", COUNTRY_INFO!$T$9:$T$1000, " ") ->  | I84: 0 | M84: 0
A85: =IF(COUNTRY_INFO!A85=0," ",COUNTRY_INFO!A85) -> Guinea Bissau | B85: =IF(COUNTRY_INFO!B85=0," ",COUNTRY_INFO!B85) -> Bafata | C85: =IF(COUNTRY_INFO!C85=0," ",COUNTRY_INFO!C85) -> Bambadinca | D85: =IF(COUNTRY_INFO!$T$9:$T$1000="MDA1 (IVM+ALB)", COUNTRY_INFO!$T$9:$T$1000, " ") ->  | I85: 0 | M85: 0
A86: =IF(COUNTRY_INFO!A86=0," ",COUNTRY_INFO!A86) -> Guinea Bissau | B86: =IF(COUNTRY_INFO!B86=0," ",COUNTRY_INFO!B86) -> Bafata | C86: =IF(COUNTRY_INFO!C86=0," ",COUNTRY_INFO!C86) -> Ga carnes | D86: =IF(COUNTRY_INFO!$T$9:$T$1000="MDA1 (IVM+ALB)", COUNTRY_INFO!$T$9:$T$1000, " ") ->  | I86: 0 | M86: 0
A87: =IF(COUNTRY_INFO!A87=0," ",COUNTRY_INFO!A87) -> Guinea Bissau | B87: =IF(COUNTRY_INFO!B87=0," ",COUNTRY_INFO!B87) -> Bafata | C87: =IF(COUNTRY_INFO!C87=0," ",COUNTRY_INFO!C87) -> Cambaju | D87: =IF(COUNTRY_INFO!$T$9:$T$1000="MDA1 (IVM+ALB)", COUNTRY_INFO!$T$9:$T$1000, " ") ->  | I87: 0 | M87: 0
A88: =IF(COUNTRY_INFO!A88=0," ",COUNTRY_INFO!A88) -> Guinea Bissau | B88: =IF(COUNTRY_INFO!B88=0," ",COUNTRY_INFO!B88) -> Bafata | C88: =IF(COUNTRY_INFO!C88=0," ",COUNTRY_INFO!C88) -> Gam ture | D88: =IF(COUNTRY_INFO!$T$9:$T$1000="MDA1 (IVM+ALB)", COUNTRY_INFO!$T$9:$T$1000, " ") ->  | I88: 0 | M88: 0
A89: =IF(COUNTRY_INFO!A89=0," ",COUNTRY_INFO!A89) -> Guinea Bissau | B89: =IF(COUNTRY_INFO!B89=0," ",COUNTRY_INFO!B89) -> Bafata | C89: =IF(COUNTRY_INFO!C89=0," ",COUNTRY_INFO!C89) -> Sare bacar | D89: =IF(COUNTRY_INFO!$T$9:$T$1000="MDA1 (IVM+ALB)", COUNTRY_INFO!$T$9:$T$1000, " ") ->  | I89: 0 | M89: 0
A90: =IF(COUNTRY_INFO!A90=0," ",COUNTRY_INFO!A90) -> Guinea Bissau | B90: =IF(COUNTRY_INFO!B90=0," ",COUNTRY_INFO!B90) -> Bafata | C90: =IF(COUNTRY_INFO!C90=0," ",COUNTRY_INFO!C90) -> Fajonquito | D90: =IF(COUNTRY_INFO!$T$9:$T$1000="MDA1 (IVM+ALB)", COUNTRY_INFO!$T$9:$T$1000, " ") ->  | I90: 0 | M90: 0
A91: =IF(COUNTRY_INFO!A91=0," ",COUNTRY_INFO!A91) -> Guinea Bissau | B91: =IF(COUNTRY_INFO!B91=0," ",COUNTRY_INFO!B91) -> Bafata | C91: =IF(COUNTRY_INFO!C91=0," ",COUNTRY_INFO!C91) -> Cosse | D91: =IF(COUNTRY_INFO!$T$9:$T$1000="MDA1 (IVM+ALB)", COUNTRY_INFO!$T$9:$T$1000, " ") ->  | I91: 0 | M91: 0
A92: =IF(COUNTRY_INFO!A92=0," ",COUNTRY_INFO!A92) -> Guinea Bissau | B92: =IF(COUNTRY_INFO!B92=0," ",COUNTRY_INFO!B92) -> Bafata | C92: =IF(COUNTRY_INFO!C92=0," ",COUNTRY_INFO!C92) -> Bafata | D92: =IF(COUNTRY_INFO!$T$9:$T$1000="MDA1 (IVM+ALB)", COUNTRY_INFO!$T$9:$T$1000, " ") ->  | I92: 0 | M92: 0
A93: =IF(COUNTRY_INFO!A93=0," ",COUNTRY_INFO!A93) -> Guinea Bissau | B93: =IF(COUNTRY_INFO!B93=0," ",COUNTRY_INFO!B93) -> Tombali | C93: =IF(COUNTRY_INFO!C93=0," ",COUNTRY_INFO!C93) -> BEDANDA | D93: =IF(COUNTRY_INFO!$T$9:$T$1000="MDA1 (IVM+ALB)", COUNTRY_INFO!$T$9:$T$1000, " ") ->  | I93: 0 | M93: 0
A94: =IF(COUNTRY_INFO!A94=0," ",COUNTRY_INFO!A94) -> Guinea Bissau | B94: =IF(COUNTRY_INFO!B94=0," ",COUNTRY_INFO!B94) -> Tombali | C94: =IF(COUNTRY_INFO!C94=0," ",COUNTRY_INFO!C94) -> CACINE | D94: =IF(COUNTRY_INFO!$T$9:$T$1000="MDA1 (IVM+ALB)", COUNTRY_INFO!$T$9:$T$1000, " ") ->  | I94: 0 | M94: 0
A95: =IF(COUNTRY_INFO!A95=0," ",COUNTRY_INFO!A95) -> Guinea Bissau | B95: =IF(COUNTRY_INFO!B95=0," ",COUNTRY_INFO!B95) -> Tombali | C95: =IF(COUNTRY_INFO!C95=0," ",COUNTRY_INFO!C95) -> CALAQUE | D95: =IF(COUNTRY_INFO!$T$9:$T$1000="MDA1 (IVM+ALB)", COUNTRY_INFO!$T$9:$T$1000, " ") ->  | I95: 0 | M95: 0
A96: =IF(COUNTRY_INFO!A96=0," ",COUNTRY_INFO!A96) -> Guinea Bissau | B96: =IF(COUNTRY_INFO!B96=0," ",COUNTRY_INFO!B96) -> Tombali | C96: =IF(COUNTRY_INFO!C96=0," ",COUNTRY_INFO!C96) -> CATIO | D96: =IF(COUNTRY_INFO!$T$9:$T$1000="MDA1 (IVM+ALB)", COUNTRY_INFO!$T$9:$T$1000, " ") ->  | I96: 0 | M96: 0
A97: =IF(COUNTRY_INFO!A97=0," ",COUNTRY_INFO!A97) -> Guinea Bissau | B97: =IF(COUNTRY_INFO!B97=0," ",COUNTRY_INFO!B97) -> Tombali | C97: =IF(COUNTRY_INFO!C97=0," ",COUNTRY_INFO!C97) -> KOMO | D97: =IF(COUNTRY_INFO!$T$9:$T$1000="MDA1 (IVM+ALB)", COUNTRY_INFO!$T$9:$T$1000, " ") ->  | I97: 0 | M97: 0
A98: =IF(COUNTRY_INFO!A98=0," ",COUNTRY_INFO!A98) -> Guinea Bissau | B98: =IF(COUNTRY_INFO!B98=0," ",COUNTRY_INFO!B98) -> Tombali | C98: =IF(COUNTRY_INFO!C98=0," ",COUNTRY_INFO!C98) -> QUEBO | D98: =IF(COUNTRY_INFO!$T$9:$T$1000="MDA1 (IVM+ALB)", COUNTRY_INFO!$T$9:$T$1000, " ") ->  | I98: 0 | M98: 0
A99: =IF(COUNTRY_INFO!A99=0," ",COUNTRY_INFO!A99) -> Guinea Bissau | B99: =IF(COUNTRY_INFO!B99=0," ",COUNTRY_INFO!B99) -> Tombali | C99: =IF(COUNTRY_INFO!C99=0," ",COUNTRY_INFO!C99) -> SANCONHA | D99: =IF(COUNTRY_INFO!$T$9:$T$1000="MDA1 (IVM+ALB)", COUNTRY_INFO!$T$9:$T$1000, " ") ->  | I99: 0 | M99: 0
A100: =IF(COUNTRY_INFO!A100=0," ",COUNTRY_INFO!A100) -> Guinea Bissau | B100: =IF(COUNTRY_INFO!B100=0," ",COUNTRY_INFO!B100) -> Tombali | C100: =IF(COUNTRY_INFO!C100=0," ",COUNTRY_INFO!C100) -> TIMBO | D100: =IF(COUNTRY_INFO!$T$9:$T$1000="MDA1 (IVM+ALB)", COUNTRY_INFO!$T$9:$T$1000, " ") ->  | I100: 0 | M100: 0
A101: =IF(COUNTRY_INFO!A101=0," ",COUNTRY_INFO!A101) -> Guinea Bissau | B101: =IF(COUNTRY_INFO!B101=0," ",COUNTRY_INFO!B101) -> Quinara | C101: =IF(COUNTRY_INFO!C101=0," ",COUNTRY_INFO!C101) -> BRANDÃO | D101: =IF(COUNTRY_INFO!$T$9:$T$1000="MDA1 (IVM+ALB)", COUNTRY_INFO!$T$9:$T$1000, " ") -> MDA1 (IVM+ALB) | E101: 04/02/2021 | G101: 2627 | H101: 5808 | I101: 8435 | K101: 2927 | L101: 2750 | M101: 5677 | O101: 111.4198706 | P101: 47.34848485 | Q101: 67.30290456
A102: =IF(COUNTRY_INFO!A102=0," ",COUNTRY_INFO!A102) -> Guinea Bissau | B102: =IF(COUNTRY_INFO!B102=0," ",COUNTRY_INFO!B102) -> Quinara | C102: =IF(COUNTRY_INFO!C102=0," ",COUNTRY_INFO!C102) -> BUBA | D102: =IF(COUNTRY_INFO!$T$9:$T$1000="MDA1 (IVM+ALB)", COUNTRY_INFO!$T$9:$T$1000, " ") -> MDA1 (IVM+ALB) | E102: 04/02/2021 | G102: 6139 | H102: 13575 | I102: 19714 | K102: 8041 | L102: 8363 | M102: 16404 | O102: 130.9822447 | P102: 61.60589319 | Q102: 83.20990159
A103: =IF(COUNTRY_INFO!A103=0," ",COUNTRY_INFO!A103) -> Guinea Bissau | B103: =IF(COUNTRY_INFO!B103=0," ",COUNTRY_INFO!B103) -> Quinara | C103: =IF(COUNTRY_INFO!C103=0," ",COUNTRY_INFO!C103) -> DAR-ES-SALAM | D103: =IF(COUNTRY_INFO!$T$9:$T$1000="MDA1 (IVM+ALB)", COUNTRY_INFO!$T$9:$T$1000, " ") -> MDA1 (IVM+ALB) | E103: 04/02/2021 | G103: 1712 | H103: 3785 | I103: 5497 | K103: 2053 | L103: 2121 | M103: 4174 | O103: 119.9182243 | P103: 56.03698811 | Q103: 75.93232672
A104: =IF(COUNTRY_INFO!A104=0," ",COUNTRY_INFO!A104) -> Guinea Bissau | B104: =IF(COUNTRY_INFO!B104=0," ",COUNTRY_INFO!B104) -> Quinara | C104: =IF(COUNTRY_INFO!C104=0," ",COUNTRY_INFO!C104) -> EMPADA | D104: =IF(COUNTRY_INFO!$T$9:$T$1000="MDA1 (IVM+ALB)", COUNTRY_INFO!$T$9:$T$1000, " ") -> MDA1 (IVM+ALB) | E104: 04/02/2021 | G104: 4480 | H104: 9907 | I104: 14387 | K104: 6440 | L104: 6355 | M104: 12795 | O104: 143.75 | P104: 64.14656304 | Q104: 88.93445472
A105: =IF(COUNTRY_INFO!A105=0," ",COUNTRY_INFO!A105) -> Guinea Bissau | B105: =IF(COUNTRY_INFO!B105=0," ",COUNTRY_INFO!B105) -> Quinara | C105: =IF(COUNTRY_INFO!C105=0," ",COUNTRY_INFO!C105) -> FULACUNDA | D105: =IF(COUNTRY_INFO!$T$9:$T$1000="MDA1 (IVM+ALB)", COUNTRY_INFO!$T$9:$T$1000, " ") -> MDA1 (IVM+ALB) | E105: 04/02/2021 | G105: 3708 | H105: 8200 | I105: 11908 | K105: 5821 | L105: 5838 | M105: 11659 | O105: 156.9848975 | P105: 71.19512195 | Q105: 97.90896876
A106: =IF(COUNTRY_INFO!A106=0," ",COUNTRY_INFO!A106) -> Guinea Bissau | B106: =IF(COUNTRY_INFO!B106=0," ",COUNTRY_INFO!B106) -> Quinara | C106: =IF(COUNTRY_INFO!C106=0," ",COUNTRY_INFO!C106) -> TITE | D106: =IF(COUNTRY_INFO!$T$9:$T$1000="MDA1 (IVM+ALB)", COUNTRY_INFO!$T$9:$T$1000, " ") -> MDA1 (IVM+ALB) | E106: 04/02/2021 | G106: 2968 | H106: 6563 | I106: 9531 | K106: 4486 | L106: 4114 | M106: 8600 | O106: 151.1455526 | P106: 62.68474783 | Q106: 90.23187493
A107: =IF(COUNTRY_INFO!A107=0," ",COUNTRY_INFO!A107) -> Guinea Bissau | B107: =IF(COUNTRY_INFO!B107=0," ",COUNTRY_INFO!B107) -> Cacheu | C107: =IF(COUNTRY_INFO!C107=0," ",COUNTRY_INFO!C107) -> Bará | D107: =IF(COUNTRY_INFO!$T$9:$T$1000="MDA1 (IVM+ALB)", COUNTRY_INFO!$T$9:$T$1000, " ") ->  | I107: 0 | M107: 0
A108: =IF(COUNTRY_INFO!A108=0," ",COUNTRY_INFO!A108) -> Guinea Bissau | B108: =IF(COUNTRY_INFO!B108=0," ",COUNTRY_INFO!B108) -> Cacheu | C108: =IF(COUNTRY_INFO!C108=0," ",COUNTRY_INFO!C108) -> Barro | D108: =IF(COUNTRY_INFO!$T$9:$T$1000="MDA1 (IVM+ALB)", COUNTRY_INFO!$T$9:$T$1000, " ") ->  | I108: 0 | M108: 0
A109: =IF(COUNTRY_INFO!A109=0," ",COUNTRY_INFO!A109) -> Guinea Bissau | B109: =IF(COUNTRY_INFO!B109=0," ",COUNTRY_INFO!B109) -> Cacheu | C109: =IF(COUNTRY_INFO!C109=0," ",COUNTRY_INFO!C109) -> Batucar | D109: =IF(COUNTRY_INFO!$T$9:$T$1000="MDA1 (IVM+ALB)", COUNTRY_INFO!$T$9:$T$1000, " ") ->  | I109: 0 | M109: 0
A110: =IF(COUNTRY_INFO!A110=0," ",COUNTRY_INFO!A110) -> Guinea Bissau | B110: =IF(COUNTRY_INFO!B110=0," ",COUNTRY_INFO!B110) -> Cacheu | C110: =IF(COUNTRY_INFO!C110=0," ",COUNTRY_INFO!C110) -> Begene | D110: =IF(COUNTRY_INFO!$T$9:$T$1000="MDA1 (IVM+ALB)", COUNTRY_INFO!$T$9:$T$1000, " ") ->  | I110: 0 | M110: 0
A111: =IF(COUNTRY_INFO!A111=0," ",COUNTRY_INFO!A111) -> Guinea Bissau | B111: =IF(COUNTRY_INFO!B111=0," ",COUNTRY_INFO!B111) -> Cacheu | C111: =IF(COUNTRY_INFO!C111=0," ",COUNTRY_INFO!C111) -> Bula | D111: =IF(COUNTRY_INFO!$T$9:$T$1000="MDA1 (IVM+ALB)", COUNTRY_INFO!$T$9:$T$1000, " ") ->  | I111: 0 | M111: 0
A112: =IF(COUNTRY_INFO!A112=0," ",COUNTRY_INFO!A112) -> Guinea Bissau | B112: =IF(COUNTRY_INFO!B112=0," ",COUNTRY_INFO!B112) -> Cacheu | C112: =IF(COUNTRY_INFO!C112=0," ",COUNTRY_INFO!C112) -> Cacheu | D112: =IF(COUNTRY_INFO!$T$9:$T$1000="MDA1 (IVM+ALB)", COUNTRY_INFO!$T$9:$T$1000, " ") ->  | I112: 0 | M112: 0
A113: =IF(COUNTRY_INFO!A113=0," ",COUNTRY_INFO!A113) -> Guinea Bissau | B113: =IF(COUNTRY_INFO!B113=0," ",COUNTRY_INFO!B113) -> Cacheu | C113: =IF(COUNTRY_INFO!C113=0," ",COUNTRY_INFO!C113) -> Caió | D113: =IF(COUNTRY_INFO!$T$9:$T$1000="MDA1 (IVM+ALB)", COUNTRY_INFO!$T$9:$T$1000, " ") ->  | I113: 0 | M113: 0
A114: =IF(COUNTRY_INFO!A114=0," ",COUNTRY_INFO!A114) -> Guinea Bissau | B114: =IF(COUNTRY_INFO!B114=0," ",COUNTRY_INFO!B114) -> Cacheu | C114: =IF(COUNTRY_INFO!C114=0," ",COUNTRY_INFO!C114) -> Calequisse | D114: =IF(COUNTRY_INFO!$T$9:$T$1000="MDA1 (IVM+ALB)", COUNTRY_INFO!$T$9:$T$1000, " ") ->  | I114: 0 | M114: 0
A115: =IF(COUNTRY_INFO!A115=0," ",COUNTRY_INFO!A115) -> Guinea Bissau | B115: =IF(COUNTRY_INFO!B115=0," ",COUNTRY_INFO!B115) -> Cacheu | C115: =IF(COUNTRY_INFO!C115=0," ",COUNTRY_INFO!C115) -> Canchungo | D115: =IF(COUNTRY_INFO!$T$9:$T$1000="MDA1 (IVM+ALB)", COUNTRY_INFO!$T$9:$T$1000, " ") ->  | I115: 0 | M115: 0
A116: =IF(COUNTRY_INFO!A116=0," ",COUNTRY_INFO!A116) -> Guinea Bissau | B116: =IF(COUNTRY_INFO!B116=0," ",COUNTRY_INFO!B116) -> Cacheu | C116: =IF(COUNTRY_INFO!C116=0," ",COUNTRY_INFO!C116) -> Carenque | D116: =IF(COUNTRY_INFO!$T$9:$T$1000="MDA1 (IVM+ALB)", COUNTRY_INFO!$T$9:$T$1000, " ") ->  | I116: 0 | M116: 0
A117: =IF(COUNTRY_INFO!A117=0," ",COUNTRY_INFO!A117) -> Guinea Bissau | B117: =IF(COUNTRY_INFO!B117=0," ",COUNTRY_INFO!B117) -> Cacheu | C117: =IF(COUNTRY_INFO!C117=0," ",COUNTRY_INFO!C117) -> Có | D117: =IF(COUNTRY_INFO!$T$9:$T$1000="MDA1 (IVM+ALB)", COUNTRY_INFO!$T$9:$T$1000, " ") ->  | I117: 0 | M117: 0
A118: =IF(COUNTRY_INFO!A118=0," ",COUNTRY_INFO!A118) -> Guinea Bissau | B118: =IF(COUNTRY_INFO!B118=0," ",COUNTRY_INFO!B118) -> Cacheu | C118: =IF(COUNTRY_INFO!C118=0," ",COUNTRY_INFO!C118) -> Ingoré | D118: =IF(COUNTRY_INFO!$T$9:$T$1000="MDA1 (IVM+ALB)", COUNTRY_INFO!$T$9:$T$1000, " ") ->  | I118: 0 | M118: 0
A119: =IF(COUNTRY_INFO!A119=0," ",COUNTRY_INFO!A119) -> Guinea Bissau | B119: =IF(COUNTRY_INFO!B119=0," ",COUNTRY_INFO!B119) -> Cacheu | C119: =IF(COUNTRY_INFO!C119=0," ",COUNTRY_INFO!C119) -> Jeta | D119: =IF(COUNTRY_INFO!$T$9:$T$1000="MDA1 (IVM+ALB)", COUNTRY_INFO!$T$9:$T$1000, " ") ->  | I119: 0 | M119: 0
A120: =IF(COUNTRY_INFO!A120=0," ",COUNTRY_INFO!A120) -> Guinea Bissau | B120: =IF(COUNTRY_INFO!B120=0," ",COUNTRY_INFO!B120) -> Cacheu | C120: =IF(COUNTRY_INFO!C120=0," ",COUNTRY_INFO!C120) -> Pecixe | D120: =IF(COUNTRY_INFO!$T$9:$T$1000="MDA1 (IVM+ALB)", COUNTRY_INFO!$T$9:$T$1000, " ") ->  | I120: 0 | M120: 0
A121: =IF(COUNTRY_INFO!A121=0," ",COUNTRY_INFO!A121) -> Guinea Bissau | B121: =IF(COUNTRY_INFO!B121=0," ",COUNTRY_INFO!B121) -> Cacheu | C121: =IF(COUNTRY_INFO!C121=0," ",COUNTRY_INFO!C121) -> Pelundo | D121: =IF(COUNTRY_INFO!$T$9:$T$1000="MDA1 (IVM+ALB)", COUNTRY_INFO!$T$9:$T$1000, " ") ->  | I121: 0 | M121: 0
A122: =IF(COUNTRY_INFO!A122=0," ",COUNTRY_INFO!A122) -> Guinea Bissau | B122: =IF(COUNTRY_INFO!B122=0," ",COUNTRY_INFO!B122) -> Cacheu | C122: =IF(COUNTRY_INFO!C122=0," ",COUNTRY_INFO!C122) -> S.Domingos | D122: =IF(COUNTRY_INFO!$T$9:$T$1000="MDA1 (IVM+ALB)", COUNTRY_INFO!$T$9:$T$1000, " ") ->  | I122: 0 | M122: 0
A123: =IF(COUNTRY_INFO!A123=0," ",COUNTRY_INFO!A123) -> Guinea Bissau | B123: =IF(COUNTRY_INFO!B123=0," ",COUNTRY_INFO!B123) -> Cacheu | C123: =IF(COUNTRY_INFO!C123=0," ",COUNTRY_INFO!C123) -> Sedengal | D123: =IF(COUNTRY_INFO!$T$9:$T$1000="MDA1 (IVM+ALB)", COUNTRY_INFO!$T$9:$T$1000, " ") ->  | I123: 0 | M123: 0
A124: =IF(COUNTRY_INFO!A124=0," ",COUNTRY_INFO!A124) -> Guinea Bissau | B124: =IF(COUNTRY_INFO!B124=0," ",COUNTRY_INFO!B124) -> Cacheu | C124: =IF(COUNTRY_INFO!C124=0," ",COUNTRY_INFO!C124) -> Suzana | D124: =IF(COUNTRY_INFO!$T$9:$T$1000="MDA1 (IVM+ALB)", COUNTRY_INFO!$T$9:$T$1000, " ") ->  | I124: 0 | M124: 0
A125: =IF(COUNTRY_INFO!A125=0," ",COUNTRY_INFO!A125) -> Guinea Bissau | B125: =IF(COUNTRY_INFO!B125=0," ",COUNTRY_INFO!B125) -> Cacheu | C125: =IF(COUNTRY_INFO!C125=0," ",COUNTRY_INFO!C125) -> Varela | D125: =IF(COUNTRY_INFO!$T$9:$T$1000="MDA1 (IVM+ALB)", COUNTRY_INFO!$T$9:$T$1000, " ") ->  | I125: 0 | M125: 0

Sheet MDA2 (hidden)
A1: MDA 2 - Diethylcarbamazine (DEC) + Albendazole (ALB)
A2: Structure administrative, population nécessitant une chimioprévention par groupe d'âge, population traitée par groupe d'âge et couverture
A4: TOTAL | F4: =SUM(F$9:F$1000) -> 0 | G4: =SUM(G$9:G$1000) -> 0 | H4: 0 | I4: 0 | J4: 0 | K4: 0 | L4: 0 | M4: 0 | N4: =IF(F4<>0, IF(J4/F4*100=0, "-", J4/F4*100), " ") ->  | O4: =IF(G4<>0, IF(K4/G4*100=0, "-", K4/G4*100), " ") ->  | P4: =IF(H4<>0, IF(L4/H4*100=0, "-", L4/H4*100), " ") ->  | Q4: =IF(I4<>0, IF(M4/I4*100=0, "-", M4/I4*100), " ") -> 
A6: Structure administrative du pays | D6: Mise en oeuvre de la CP | E6: Date | F6: Population ciblée pour MDA 2 | J6: Population traitée | N6: Couverture du Programme (%)
A7: Pays | B7: Région/Département | C7: District | F7: EAPréS | G7: EAS | H7: Adultes | I7: Total | J7: EAPréS | K7: EAS | L7: Adultes | M7: Total | N7: EAPréS | O7: EAS | P7: Adultes | Q7: Total
A9: =IF(COUNTRY_INFO!A9=0," ",COUNTRY_INFO!A9) -> Guinea Bissau | B9: =IF(COUNTRY_INFO!B9=0," ",COUNTRY_INFO!B9) -> SAB | C9: =IF(COUNTRY_INFO!C9=0," ",COUNTRY_INFO!C9) -> AJUDA | D9: =IF(COUNTRY_INFO!$T$9:$T$1000="MDA2 (DEC+ALB)", COUNTRY_INFO!$T$9:$T$1000, " ") ->  | I9: =SUM(F9:H9) -> 0 | M9: =SUM(J9:L9) -> 0 | N9: =IF(F9<>0, IF(J9/F9*100=0, "-", J9/F9*100), " ") -> 
A10: =IF(COUNTRY_INFO!A10=0," ",COUNTRY_INFO!A10) -> Guinea Bissau | B10: =IF(COUNTRY_INFO!B10=0," ",COUNTRY_INFO!B10) -> SAB | C10: =IF(COUNTRY_INFO!C10=0," ",COUNTRY_INFO!C10) -> ANTULA | D10: =IF(COUNTRY_INFO!$T$9:$T$1000="MDA2 (DEC+ALB)", COUNTRY_INFO!$T$9:$T$1000, " ") ->  | I10: =SUM(F10:H10) -> 0 | M10: =SUM(J10:L10) -> 0 | N10: =IF(F10<>0, IF(J10/F10*100=0, "-", J10/F10*100), " ") ->  | O10: =IF(G10<>0, IF(K10/G10*100=0, "-", K10/G10*100), " ") ->  | P10: =IF(H10<>0, IF(L10/H10*100=0, "-", L10/H10*100), " ") ->  | Q10: =IF(I10<>0, IF(M10/I10*100=0, "-", M10/I10*100), " ") -> 
A11: =IF(COUNTRY_INFO!A11=0," ",COUNTRY_INFO!A11) -> Guinea Bissau | B11: =IF(COUNTRY_INFO!B11=0," ",COUNTRY_INFO!B11) -> SAB | C11: =IF(COUNTRY_INFO!C11=0," ",COUNTRY_INFO!C11) -> B. MILITAR | D11: =IF(COUNTRY_INFO!$T$9:$T$1000="MDA2 (DEC+ALB)", COUNTRY_INFO!$T$9:$T$1000, " ") ->  | I11: 0 | M11: 0
A12: =IF(COUNTRY_INFO!A12=0," ",COUNTRY_INFO!A12) -> Guinea Bissau | B12: =IF(COUNTRY_INFO!B12=0," ",COUNTRY_INFO!B12) -> SAB | C12: =IF(COUNTRY_INFO!C12=0," ",COUNTRY_INFO!C12) -> BANDIM | D12: =IF(COUNTRY_INFO!$T$9:$T$1000="MDA2 (DEC+ALB)", COUNTRY_INFO!$T$9:$T$1000, " ") ->  | I12: 0 | M12: 0
A13: =IF(COUNTRY_INFO!A13=0," ",COUNTRY_INFO!A13) -> Guinea Bissau | B13: =IF(COUNTRY_INFO!B13=0," ",COUNTRY_INFO!B13) -> SAB | C13: =IF(COUNTRY_INFO!C13=0," ",COUNTRY_INFO!C13) -> BELEM | D13: =IF(COUNTRY_INFO!$T$9:$T$1000="MDA2 (DEC+ALB)", COUNTRY_INFO!$T$9:$T$1000, " ") ->  | I13: 0 | M13: 0
A14: =IF(COUNTRY_INFO!A14=0," ",COUNTRY_INFO!A14) -> Guinea Bissau | B14: =IF(COUNTRY_INFO!B14=0," ",COUNTRY_INFO!B14) -> SAB | C14: =IF(COUNTRY_INFO!C14=0," ",COUNTRY_INFO!C14) -> CMI | D14: =IF(COUNTRY_INFO!$T$9:$T$1000="MDA2 (DEC+ALB)", COUNTRY_INFO!$T$9:$T$1000, " ") ->  | I14: 0 | M14: 0
A15: =IF(COUNTRY_INFO!A15=0," ",COUNTRY_INFO!A15) -> Guinea Bissau | B15: =IF(COUNTRY_INFO!B15=0," ",COUNTRY_INFO!B15) -> SAB | C15: =IF(COUNTRY_INFO!C15=0," ",COUNTRY_INFO!C15) -> CUNTUM | D15: =IF(COUNTRY_INFO!$T$9:$T$1000="MDA2 (DEC+ALB)", COUNTRY_INFO!$T$9:$T$1000, " ") ->  | I15: 0 | M15: 0
A16: =IF(COUNTRY_INFO!A16=0," ",COUNTRY_INFO!A16) -> Guinea Bissau | B16: =IF(COUNTRY_INFO!B16=0," ",COUNTRY_INFO!B16) -> SAB | C16: =IF(COUNTRY_INFO!C16=0," ",COUNTRY_INFO!C16) -> LUANDA | D16: =IF(COUNTRY_INFO!$T$9:$T$1000="MDA2 (DEC+ALB)", COUNTRY_INFO!$T$9:$T$1000, " ") ->  | I16: 0 | M16: 0
A17: =IF(COUNTRY_INFO!A17=0," ",COUNTRY_INFO!A17) -> Guinea Bissau | B17: =IF(COUNTRY_INFO!B17=0," ",COUNTRY_INFO!B17) -> SAB | C17: =IF(COUNTRY_INFO!C17=0," ",COUNTRY_INFO!C17) -> MISSIRA | D17: =IF(COUNTRY_INFO!$T$9:$T$1000="MDA2 (DEC+ALB)", COUNTRY_INFO!$T$9:$T$1000, " ") ->  | I17: 0 | M17: 0
A18: =IF(COUNTRY_INFO!A18=0," ",COUNTRY_INFO!A18) -> Guinea Bissau | B18: =IF(COUNTRY_INFO!B18=0," ",COUNTRY_INFO!B18) -> SAB | C18: =IF(COUNTRY_INFO!C18=0," ",COUNTRY_INFO!C18) -> PEFINE | D18: =IF(COUNTRY_INFO!$T$9:$T$1000="MDA2 (DEC+ALB)", COUNTRY_INFO!$T$9:$T$1000, " ") ->  | I18: 0 | M18: 0
A19: =IF(COUNTRY_INFO!A19=0," ",COUNTRY_INFO!A19) -> Guinea Bissau | B19: =IF(COUNTRY_INFO!B19=0," ",COUNTRY_INFO!B19) -> SAB | C19: =IF(COUNTRY_INFO!C19=0," ",COUNTRY_INFO!C19) -> PLACK II | D19: =IF(COUNTRY_INFO!$T$9:$T$1000="MDA2 (DEC+ALB)", COUNTRY_INFO!$T$9:$T$1000, " ") ->  | I19: 0 | M19: 0
A20: =IF(COUNTRY_INFO!A20=0," ",COUNTRY_INFO!A20) -> Guinea Bissau | B20: =IF(COUNTRY_INFO!B20=0," ",COUNTRY_INFO!B20) -> SAB | C20: =IF(COUNTRY_INFO!C20=0," ",COUNTRY_INFO!C20) -> QUELELE | D20: =IF(COUNTRY_INFO!$T$9:$T$1000="MDA2 (DEC+ALB)", COUNTRY_INFO!$T$9:$T$1000, " ") ->  | I20: 0 | M20: 0
A21: =IF(COUNTRY_INFO!A21=0," ",COUNTRY_INFO!A21) -> Guinea Bissau | B21: =IF(COUNTRY_INFO!B21=0," ",COUNTRY_INFO!B21) -> SAB | C21: =IF(COUNTRY_INFO!C21=0," ",COUNTRY_INFO!C21) -> SANTA LUZIA | D21: =IF(COUNTRY_INFO!$T$9:$T$1000="MDA2 (DEC+ALB)", COUNTRY_INFO!$T$9:$T$1000, " ") ->  | I21: 0 | M21: 0
A22: =IF(COUNTRY_INFO!A22=0," ",COUNTRY_INFO!A22) -> Guinea Bissau | B22: =IF(COUNTRY_INFO!B22=0," ",COUNTRY_INFO!B22) -> SAB | C22: =IF(COUNTRY_INFO!C22=0," ",COUNTRY_INFO!C22) -> SINTRA NEMA | D22: =IF(COUNTRY_INFO!$T$9:$T$1000="MDA2 (DEC+ALB)", COUNTRY_INFO!$T$9:$T$1000, " ") ->  | I22: 0 | M22: 0
A23: =IF(COUNTRY_INFO!A23=0," ",COUNTRY_INFO!A23) -> Guinea Bissau | B23: =IF(COUNTRY_INFO!B23=0," ",COUNTRY_INFO!B23) -> Bijagos | C23: =IF(COUNTRY_INFO!C23=0," ",COUNTRY_INFO!C23) -> Bubaque | D23: =IF(COUNTRY_INFO!$T$9:$T$1000="MDA2 (DEC+ALB)", COUNTRY_INFO!$T$9:$T$1000, " ") ->  | I23: 0 | M23: 0
A24: =IF(COUNTRY_INFO!A24=0," ",COUNTRY_INFO!A24) -> Guinea Bissau | B24: =IF(COUNTRY_INFO!B24=0," ",COUNTRY_INFO!B24) -> Bijagos | C24: =IF(COUNTRY_INFO!C24=0," ",COUNTRY_INFO!C24) -> Canhabaque | D24: =IF(COUNTRY_INFO!$T$9:$T$1000="MDA2 (DEC+ALB)", COUNTRY_INFO!$T$9:$T$1000, " ") ->  | I24: 0 | M24: 0
A25: =IF(COUNTRY_INFO!A25=0," ",COUNTRY_INFO!A25) -> Guinea Bissau | B25: =IF(COUNTRY_INFO!B25=0," ",COUNTRY_INFO!B25) -> Bijagos | C25: =IF(COUNTRY_INFO!C25=0," ",COUNTRY_INFO!C25) -> Canogo | D25: =IF(COUNTRY_INFO!$T$9:$T$1000="MDA2 (DEC+ALB)", COUNTRY_INFO!$T$9:$T$1000, " ") ->  | I25: 0 | M25: 0
A26: =IF(COUNTRY_INFO!A26=0," ",COUNTRY_INFO!A26) -> Guinea Bissau | B26: =IF(COUNTRY_INFO!B26=0," ",COUNTRY_INFO!B26) -> Bijagos | C26: =IF(COUNTRY_INFO!C26=0," ",COUNTRY_INFO!C26) -> Caravela | D26: =IF(COUNTRY_INFO!$T$9:$T$1000="MDA2 (DEC+ALB)", COUNTRY_INFO!$T$9:$T$1000, " ") ->  | I26: 0 | M26: 0
A27: =IF(COUNTRY_INFO!A27=0," ",COUNTRY_INFO!A27) -> Guinea Bissau | B27: =IF(COUNTRY_INFO!B27=0," ",COUNTRY_INFO!B27) -> Bijagos | C27: =IF(COUNTRY_INFO!C27=0," ",COUNTRY_INFO!C27) -> Formosa | D27: =IF(COUNTRY_INFO!$T$9:$T$1000="MDA2 (DEC+ALB)", COUNTRY_INFO!$T$9:$T$1000, " ") ->  | I27: 0 | M27: 0
A28: =IF(COUNTRY_INFO!A28=0," ",COUNTRY_INFO!A28) -> Guinea Bissau | B28: =IF(COUNTRY_INFO!B28=0," ",COUNTRY_INFO!B28) -> Bijagos | C28: =IF(COUNTRY_INFO!C28=0," ",COUNTRY_INFO!C28) -> Orango Grande | D28: =IF(COUNTRY_INFO!$T$9:$T$1000="MDA2 (DEC+ALB)", COUNTRY_INFO!$T$9:$T$1000, " ") ->  | I28: 0 | M28: 0
A29: =IF(COUNTRY_INFO!A29=0," ",COUNTRY_INFO!A29) -> Guinea Bissau | B29: =IF(COUNTRY_INFO!B29=0," ",COUNTRY_INFO!B29) -> Bijagos | C29: =IF(COUNTRY_INFO!C29=0," ",COUNTRY_INFO!C29) -> Orango zinho | D29: =IF(COUNTRY_INFO!$T$9:$T$1000="MDA2 (DEC+ALB)", COUNTRY_INFO!$T$9:$T$1000, " ") ->  | I29: 0 | M29: 0
A30: =IF(COUNTRY_INFO!A30=0," ",COUNTRY_INFO!A30) -> Guinea Bissau | B30: =IF(COUNTRY_INFO!B30=0," ",COUNTRY_INFO!B30) -> Bijagos | C30: =IF(COUNTRY_INFO!C30=0," ",COUNTRY_INFO!C30) -> Soga | D30: =IF(COUNTRY_INFO!$T$9:$T$1000="MDA2 (DEC+ALB)", COUNTRY_INFO!$T$9:$T$1000, " ") ->  | I30: 0 | M30: 0
A31: =IF(COUNTRY_INFO!A31=0," ",COUNTRY_INFO!A31) -> Guinea Bissau | B31: =IF(COUNTRY_INFO!B31=0," ",COUNTRY_INFO!B31) -> Bijagos | C31: =IF(COUNTRY_INFO!C31=0," ",COUNTRY_INFO!C31) -> Unhocomo | D31: =IF(COUNTRY_INFO!$T$9:$T$1000="MDA2 (DEC+ALB)", COUNTRY_INFO!$T$9:$T$1000, " ") ->  | I31: 0 | M31: 0
A32: =IF(COUNTRY_INFO!A32=0," ",COUNTRY_INFO!A32) -> Guinea Bissau | B32: =IF(COUNTRY_INFO!B32=0," ",COUNTRY_INFO!B32) -> Bijagos | C32: =IF(COUNTRY_INFO!C32=0," ",COUNTRY_INFO!C32) -> Uno | D32: =IF(COUNTRY_INFO!$T$9:$T$1000="MDA2 (DEC+ALB)", COUNTRY_INFO!$T$9:$T$1000, " ") ->  | I32: 0 | M32: 0
A33: =IF(COUNTRY_INFO!A33=0," ",COUNTRY_INFO!A33) -> Guinea Bissau | B33: =IF(COUNTRY_INFO!B33=0," ",COUNTRY_INFO!B33) -> Bijagos | C33: =IF(COUNTRY_INFO!C33=0," ",COUNTRY_INFO!C33) -> Uracane | D33: =IF(COUNTRY_INFO!$T$9:$T$1000="MDA2 (DEC+ALB)", COUNTRY_INFO!$T$9:$T$1000, " ") ->  | I33: 0 | M33: 0
A34: =IF(COUNTRY_INFO!A34=0," ",COUNTRY_INFO!A34) -> Guinea Bissau | B34: =IF(COUNTRY_INFO!B34=0," ",COUNTRY_INFO!B34) -> Biombo | C34: =IF(COUNTRY_INFO!C34=0," ",COUNTRY_INFO!C34) -> BIJIMITA | D34: =IF(COUNTRY_INFO!$T$9:$T$1000="MDA2 (DEC+ALB)", COUNTRY_INFO!$T$9:$T$1000, " ") ->  | I34: 0 | M34: 0
A35: =IF(COUNTRY_INFO!A35=0," ",COUNTRY_INFO!A35) -> Guinea Bissau | B35: =IF(COUNTRY_INFO!B35=0," ",COUNTRY_INFO!B35) -> Biombo | C35: =IF(COUNTRY_INFO!C35=0," ",COUNTRY_INFO!C35) -> CUMURA | D35: =IF(COUNTRY_INFO!$T$9:$T$1000="MDA2 (DEC+ALB)", COUNTRY_INFO!$T$9:$T$1000, " ") ->  | I35: 0 | M35: 0
A36: =IF(COUNTRY_INFO!A36=0," ",COUNTRY_INFO!A36) -> Guinea Bissau | B36: =IF(COUNTRY_INFO!B36=0," ",COUNTRY_INFO!B36) -> Biombo | C36: =IF(COUNTRY_INFO!C36=0," ",COUNTRY_INFO!C36) -> DORSE | D36: =IF(COUNTRY_INFO!$T$9:$T$1000="MDA2 (DEC+ALB)", COUNTRY_INFO!$T$9:$T$1000, " ") ->  | I36: 0 | M36: 0
A37: =IF(COUNTRY_INFO!A37=0," ",COUNTRY_INFO!A37) -> Guinea Bissau | B37: =IF(COUNTRY_INFO!B37=0," ",COUNTRY_INFO!B37) -> Biombo | C37: =IF(COUNTRY_INFO!C37=0," ",COUNTRY_INFO!C37) -> ILONDE | D37: =IF(COUNTRY_INFO!$T$9:$T$1000="MDA2 (DEC+ALB)", COUNTRY_INFO!$T$9:$T$1000, " ") ->  | I37: 0 | M37: 0
A38: =IF(COUNTRY_INFO!A38=0," ",COUNTRY_INFO!A38) -> Guinea Bissau | B38: =IF(COUNTRY_INFO!B38=0," ",COUNTRY_INFO!B38) -> Biombo | C38: =IF(COUNTRY_INFO!C38=0," ",COUNTRY_INFO!C38) -> ONDAME | D38: =IF(COUNTRY_INFO!$T$9:$T$1000="MDA2 (DEC+ALB)", COUNTRY_INFO!$T$9:$T$1000, " ") ->  | I38: 0 | M38: 0
A39: =IF(COUNTRY_INFO!A39=0," ",COUNTRY_INFO!A39) -> Guinea Bissau | B39: =IF(COUNTRY_INFO!B39=0," ",COUNTRY_INFO!B39) -> Biombo | C39: =IF(COUNTRY_INFO!C39=0," ",COUNTRY_INFO!C39) -> PRABIS | D39: =IF(COUNTRY_INFO!$T$9:$T$1000="MDA2 (DEC+ALB)", COUNTRY_INFO!$T$9:$T$1000, " ") ->  | I39: 0 | M39: 0
A40: =IF(COUNTRY_INFO!A40=0," ",COUNTRY_INFO!A40) -> Guinea Bissau | B40: =IF(COUNTRY_INFO!B40=0," ",COUNTRY_INFO!B40) -> Biombo | C40: =IF(COUNTRY_INFO!C40=0," ",COUNTRY_INFO!C40) -> QUINHAMEL | D40: =IF(COUNTRY_INFO!$T$9:$T$1000="MDA2 (DEC+ALB)", COUNTRY_INFO!$T$9:$T$1000, " ") ->  | I40: 0 | M40: 0
A41: =IF(COUNTRY_INFO!A41=0," ",COUNTRY_INFO!A41) -> Guinea Bissau | B41: =IF(COUNTRY_INFO!B41=0," ",COUNTRY_INFO!B41) -> Biombo | C41: =IF(COUNTRY_INFO!C41=0," ",COUNTRY_INFO!C41) -> SAFIM | D41: =IF(COUNTRY_INFO!$T$9:$T$1000="MDA2 (DEC+ALB)", COUNTRY_INFO!$T$9:$T$1000, " ") ->  | I41: 0 | M41: 0
A42: =IF(COUNTRY_INFO!A42=0," ",COUNTRY_INFO!A42) -> Guinea Bissau | B42: =IF(COUNTRY_INFO!B42=0," ",COUNTRY_INFO!B42) -> Farim | C42: =IF(COUNTRY_INFO!C42=0," ",COUNTRY_INFO!C42) -> BINTA | D42: =IF(COUNTRY_INFO!$T$9:$T$1000="MDA2 (DEC+ALB)", COUNTRY_INFO!$T$9:$T$1000, " ") ->  | I42: 0 | M42: 0
A43: =IF(COUNTRY_INFO!A43=0," ",COUNTRY_INFO!A43) -> Guinea Bissau | B43: =IF(COUNTRY_INFO!B43=0," ",COUNTRY_INFO!B43) -> Farim | C43: =IF(COUNTRY_INFO!C43=0," ",COUNTRY_INFO!C43) -> CANDJAMBARI | D43: =IF(COUNTRY_INFO!$T$9:$T$1000="MDA2 (DEC+ALB)", COUNTRY_INFO!$T$9:$T$1000, " ") ->  | I43: 0 | M43: 0
A44: =IF(COUNTRY_INFO!A44=0," ",COUNTRY_INFO!A44) -> Guinea Bissau | B44: =IF(COUNTRY_INFO!B44=0," ",COUNTRY_INFO!B44) -> Farim | C44: =IF(COUNTRY_INFO!C44=0," ",COUNTRY_INFO!C44) -> CUNTIMA | D44: =IF(COUNTRY_INFO!$T$9:$T$1000="MDA2 (DEC+ALB)", COUNTRY_INFO!$T$9:$T$1000, " ") ->  | I44: 0 | M44: 0
A45: =IF(COUNTRY_INFO!A45=0," ",COUNTRY_INFO!A45) -> Guinea Bissau | B45: =IF(COUNTRY_INFO!B45=0," ",COUNTRY_INFO!B45) -> Farim | C45: =IF(COUNTRY_INFO!C45=0," ",COUNTRY_INFO!C45) -> FARIM | D45: =IF(COUNTRY_INFO!$T$9:$T$1000="MDA2 (DEC+ALB)", COUNTRY_INFO!$T$9:$T$1000, " ") ->  | I45: 0 | M45: 0
A46: =IF(COUNTRY_INFO!A46=0," ",COUNTRY_INFO!A46) -> Guinea Bissau | B46: =IF(COUNTRY_INFO!B46=0," ",COUNTRY_INFO!B46) -> Farim | C46: =IF(COUNTRY_INFO!C46=0," ",COUNTRY_INFO!C46) -> GUIDAGE | D46: =IF(COUNTRY_INFO!$T$9:$T$1000="MDA2 (DEC+ALB)", COUNTRY_INFO!$T$9:$T$1000, " ") ->  | I46: 0 | M46: 0
A47: =IF(COUNTRY_INFO!A47=0," ",COUNTRY_INFO!A47) -> Guinea Bissau | B47: =IF(COUNTRY_INFO!B47=0," ",COUNTRY_INFO!B47) -> Oio | C47: =IF(COUNTRY_INFO!C47=0," ",COUNTRY_INFO!C47) -> BINAR | D47: =IF(COUNTRY_INFO!$T$9:$T$1000="MDA2 (DEC+ALB)", COUNTRY_INFO!$T$9:$T$1000, " ") ->  | I47: 0 | M47: 0
A48: =IF(COUNTRY_INFO!A48=0," ",COUNTRY_INFO!A48) -> Guinea Bissau | B48: =IF(COUNTRY_INFO!B48=0," ",COUNTRY_INFO!B48) -> Oio | C48: =IF(COUNTRY_INFO!C48=0," ",COUNTRY_INFO!C48) -> BISSORA | D48: =IF(COUNTRY_INFO!$T$9:$T$1000="MDA2 (DEC+ALB)", COUNTRY_INFO!$T$9:$T$1000, " ") ->  | I48: 0 | M48: 0
A49: =IF(COUNTRY_INFO!A49=0," ",COUNTRY_INFO!A49) -> Guinea Bissau | B49: =IF(COUNTRY_INFO!B49=0," ",COUNTRY_INFO!B49) -> Oio | C49: =IF(COUNTRY_INFO!C49=0," ",COUNTRY_INFO!C49) -> ENCHEIA | D49: =IF(COUNTRY_INFO!$T$9:$T$1000="MDA2 (DEC+ALB)", COUNTRY_INFO!$T$9:$T$1000, " ") ->  | I49: 0 | M49: 0
A50: =IF(COUNTRY_INFO!A50=0," ",COUNTRY_INFO!A50) -> Guinea Bissau | B50: =IF(COUNTRY_INFO!B50=0," ",COUNTRY_INFO!B50) -> Oio | C50: =IF(COUNTRY_INFO!C50=0," ",COUNTRY_INFO!C50) -> GÃ-MAMUDO | D50: =IF(COUNTRY_INFO!$T$9:$T$1000="MDA2 (DEC+ALB)", COUNTRY_INFO!$T$9:$T$1000, " ") ->  | I50: 0 | M50: 0
A51: =IF(COUNTRY_INFO!A51=0," ",COUNTRY_INFO!A51) -> Guinea Bissau | B51: =IF(COUNTRY_INFO!B51=0," ",COUNTRY_INFO!B51) -> Oio | C51: =IF(COUNTRY_INFO!C51=0," ",COUNTRY_INFO!C51) -> MANSABA | D51: =IF(COUNTRY_INFO!$T$9:$T$1000="MDA2 (DEC+ALB)", COUNTRY_INFO!$T$9:$T$1000, " ") ->  | I51: 0 | M51: 0
A52: =IF(COUNTRY_INFO!A52=0," ",COUNTRY_INFO!A52) -> Guinea Bissau | B52: =IF(COUNTRY_INFO!B52=0," ",COUNTRY_INFO!B52) -> Oio | C52: =IF(COUNTRY_INFO!C52=0," ",COUNTRY_INFO!C52) -> MANSOA | D52: =IF(COUNTRY_INFO!$T$9:$T$1000="MDA2 (DEC+ALB)", COUNTRY_INFO!$T$9:$T$1000, " ") ->  | I52: 0 | M52: 0
A53: =IF(COUNTRY_INFO!A53=0," ",COUNTRY_INFO!A53) -> Guinea Bissau | B53: =IF(COUNTRY_INFO!B53=0," ",COUNTRY_INFO!B53) -> Oio | C53: =IF(COUNTRY_INFO!C53=0," ",COUNTRY_INFO!C53) -> MORES | D53: =IF(COUNTRY_INFO!$T$9:$T$1000="MDA2 (DEC+ALB)", COUNTRY_INFO!$T$9:$T$1000, " ") ->  | I53: 0 | M53: 0
A54: =IF(COUNTRY_INFO!A54=0," ",COUNTRY_INFO!A54) -> Guinea Bissau | B54: =IF(COUNTRY_INFO!B54=0," ",COUNTRY_INFO!B54) -> Oio | C54: =IF(COUNTRY_INFO!C54=0," ",COUNTRY_INFO!C54) -> NHACRA | D54: =IF(COUNTRY_INFO!$T$9:$T$1000="MDA2 (DEC+ALB)", COUNTRY_INFO!$T$9:$T$1000, " ") ->  | I54: 0 | M54: 0
A55: =IF(COUNTRY_INFO!A55=0," ",COUNTRY_INFO!A55) -> Guinea Bissau | B55: =IF(COUNTRY_INFO!B55=0," ",COUNTRY_INFO!B55) -> Oio | C55: =IF(COUNTRY_INFO!C55=0," ",COUNTRY_INFO!C55) -> OLOSSATO | D55: =IF(COUNTRY_INFO!$T$9:$T$1000="MDA2 (DEC+ALB)", COUNTRY_INFO!$T$9:$T$1000, " ") ->  | I55: 0 | M55: 0
A56: =IF(COUNTRY_INFO!A56=0," ",COUNTRY_INFO!A56) -> Guinea Bissau | B56: =IF(COUNTRY_INFO!B56=0," ",COUNTRY_INFO!B56) -> Oio | C56: =IF(COUNTRY_INFO!C56=0," ",COUNTRY_INFO!C56) -> PORTUGOL | D56: =IF(COUNTRY_INFO!$T$9:$T$1000="MDA2 (DEC+ALB)", COUNTRY_INFO!$T$9:$T$1000, " ") ->  | I56: 0 | M56: 0
A57: =IF(COUNTRY_INFO!A57=0," ",COUNTRY_INFO!A57) -> Guinea Bissau | B57: =IF(COUNTRY_INFO!B57=0," ",COUNTRY_INFO!B57) -> Bolama | C57: =IF(COUNTRY_INFO!C57=0," ",COUNTRY_INFO!C57) -> BOLAMA | D57: =IF(COUNTRY_INFO!$T$9:$T$1000="MDA2 (DEC+ALB)", COUNTRY_INFO!$T$9:$T$1000, " ") ->  | I57: 0 | M57: 0
A58: =IF(COUNTRY_INFO!A58=0," ",COUNTRY_INFO!A58) -> Guinea Bissau | B58: =IF(COUNTRY_INFO!B58=0," ",COUNTRY_INFO!B58) -> Bolama | C58: =IF(COUNTRY_INFO!C58=0," ",COUNTRY_INFO!C58) -> I. GALINHAS | D58: =IF(COUNTRY_INFO!$T$9:$T$1000="MDA2 (DEC+ALB)", COUNTRY_INFO!$T$9:$T$1000, " ") ->  | I58: 0 | M58: 0
A59: =IF(COUNTRY_INFO!A59=0," ",COUNTRY_INFO!A59) -> Guinea Bissau | B59: =IF(COUNTRY_INFO!B59=0," ",COUNTRY_INFO!B59) -> Bolama | C59: =IF(COUNTRY_INFO!C59=0," ",COUNTRY_INFO!C59) -> SÃO-JOÃO | D59: =IF(COUNTRY_INFO!$T$9:$T$1000="MDA2 (DEC+ALB)", COUNTRY_INFO!$T$9:$T$1000, " ") ->  | I59: 0 | M59: 0
A60: =IF(COUNTRY_INFO!A60=0," ",COUNTRY_INFO!A60) -> Guinea Bissau | B60: =IF(COUNTRY_INFO!B60=0," ",COUNTRY_INFO!B60) -> Gabu | C60: =IF(COUNTRY_INFO!C60=0," ",COUNTRY_INFO!C60) -> BAJOCUNDA | D60: =IF(COUNTRY_INFO!$T$9:$T$1000="MDA2 (DEC+ALB)", COUNTRY_INFO!$T$9:$T$1000, " ") ->  | I60: 0 | M60: 0
A61: =IF(COUNTRY_INFO!A61=0," ",COUNTRY_INFO!A61) -> Guinea Bissau | B61: =IF(COUNTRY_INFO!B61=0," ",COUNTRY_INFO!B61) -> Gabu | C61: =IF(COUNTRY_INFO!C61=0," ",COUNTRY_INFO!C61) -> BELI | D61: =IF(COUNTRY_INFO!$T$9:$T$1000="MDA2 (DEC+ALB)", COUNTRY_INFO!$T$9:$T$1000, " ") ->  | I61: 0 | M61: 0
A62: =IF(COUNTRY_INFO!A62=0," ",COUNTRY_INFO!A62) -> Guinea Bissau | B62: =IF(COUNTRY_INFO!B62=0," ",COUNTRY_INFO!B62) -> Gabu | C62: =IF(COUNTRY_INFO!C62=0," ",COUNTRY_INFO!C62) -> BURUNTUMA | D62: =IF(COUNTRY_INFO!$T$9:$T$1000="MDA2 (DEC+ALB)", COUNTRY_INFO!$T$9:$T$1000, " ") ->  | I62: 0 | M62: 0
A63: =IF(COUNTRY_INFO!A63=0," ",COUNTRY_INFO!A63) -> Guinea Bissau | B63: =IF(COUNTRY_INFO!B63=0," ",COUNTRY_INFO!B63) -> Gabu | C63: =IF(COUNTRY_INFO!C63=0," ",COUNTRY_INFO!C63) -> CANJADUDE | D63: =IF(COUNTRY_INFO!$T$9:$T$1000="MDA2 (DEC+ALB)", COUNTRY_INFO!$T$9:$T$1000, " ") ->  | I63: 0 | M63: 0
A64: =IF(COUNTRY_INFO!A64=0," ",COUNTRY_INFO!A64) -> Guinea Bissau | B64: =IF(COUNTRY_INFO!B64=0," ",COUNTRY_INFO!B64) -> Gabu | C64: =IF(COUNTRY_INFO!C64=0," ",COUNTRY_INFO!C64) -> CANQUELIFA | D64: =IF(COUNTRY_INFO!$T$9:$T$1000="MDA2 (DEC+ALB)", COUNTRY_INFO!$T$9:$T$1000, " ") ->  | I64: 0 | M64: 0
A65: =IF(COUNTRY_INFO!A65=0," ",COUNTRY_INFO!A65) -> Guinea Bissau | B65: =IF(COUNTRY_INFO!B65=0," ",COUNTRY_INFO!B65) -> Gabu | C65: =IF(COUNTRY_INFO!C65=0," ",COUNTRY_INFO!C65) -> CANSISSE | D65: =IF(COUNTRY_INFO!$T$9:$T$1000="MDA2 (DEC+ALB)", COUNTRY_INFO!$T$9:$T$1000, " ") ->  | I65: 0 | M65: 0
A66: =IF(COUNTRY_INFO!A66=0," ",COUNTRY_INFO!A66) -> Guinea Bissau | B66: =IF(COUNTRY_INFO!B66=0," ",COUNTRY_INFO!B66) -> Gabu | C66: =IF(COUNTRY_INFO!C66=0," ",COUNTRY_INFO!C66) -> FASSE | D66: =IF(COUNTRY_INFO!$T$9:$T$1000="MDA2 (DEC+ALB)", COUNTRY_INFO!$T$9:$T$1000, " ") ->  | I66: 0 | M66: 0
A67: =IF(COUNTRY_INFO!A67=0," ",COUNTRY_INFO!A67) -> Guinea Bissau | B67: =IF(COUNTRY_INFO!B67=0," ",COUNTRY_INFO!B67) -> Gabu | C67: =IF(COUNTRY_INFO!C67=0," ",COUNTRY_INFO!C67) -> PAUNCA | D67: =IF(COUNTRY_INFO!$T$9:$T$1000="MDA2 (DEC+ALB)", COUNTRY_INFO!$T$9:$T$1000, " ") ->  | I67: 0 | M67: 0
A68: =IF(COUNTRY_INFO!A68=0," ",COUNTRY_INFO!A68) -> Guinea Bissau | B68: =IF(COUNTRY_INFO!B68=0," ",COUNTRY_INFO!B68) -> Gabu | C68: =IF(COUNTRY_INFO!C68=0," ",COUNTRY_INFO!C68) -> PITCHE | D68: =IF(COUNTRY_INFO!$T$9:$T$1000="MDA2 (DEC+ALB)", COUNTRY_INFO!$T$9:$T$1000, " ") ->  | I68: 0 | M68: 0
A69: =IF(COUNTRY_INFO!A69=0," ",COUNTRY_INFO!A69) -> Guinea Bissau | B69: =IF(COUNTRY_INFO!B69=0," ",COUNTRY_INFO!B69) -> Gabu | C69: =IF(COUNTRY_INFO!C69=0," ",COUNTRY_INFO!C69) -> DARA | D69: =IF(COUNTRY_INFO!$T$9:$T$1000="MDA2 (DEC+ALB)", COUNTRY_INFO!$T$9:$T$1000, " ") ->  | I69: 0 | M69: 0
A70: =IF(COUNTRY_INFO!A70=0," ",COUNTRY_INFO!A70) -> Guinea Bissau | B70: =IF(COUNTRY_INFO!B70=0," ",COUNTRY_INFO!B70) -> Gabu | C70: =IF(COUNTRY_INFO!C70=0," ",COUNTRY_INFO!C70) -> PIRADA | D70: =IF(COUNTRY_INFO!$T$9:$T$1000="MDA2 (DEC+ALB)", COUNTRY_INFO!$T$9:$T$1000, " ") ->  | I70: 0 | M70: 0
A71: =IF(COUNTRY_INFO!A71=0," ",COUNTRY_INFO!A71) -> Guinea Bissau | B71: =IF(COUNTRY_INFO!B71=0," ",COUNTRY_INFO!B71) -> Gabu | C71: =IF(COUNTRY_INFO!C71=0," ",COUNTRY_INFO!C71) -> DANDUM | D71: =IF(COUNTRY_INFO!$T$9:$T$1000="MDA2 (DEC+ALB)", COUNTRY_INFO!$T$9:$T$1000, " ") ->  | I71: 0 | M71: 0
A72: =IF(COUNTRY_INFO!A72=0," ",COUNTRY_INFO!A72) -> Guinea Bissau | B72: =IF(COUNTRY_INFO!B72=0," ",COUNTRY_INFO!B72) -> Gabu | C72: =IF(COUNTRY_INFO!C72=0," ",COUNTRY_INFO!C72) -> MANSADJAM | D72: =IF(COUNTRY_INFO!$T$9:$T$1000="MDA2 (DEC+ALB)", COUNTRY_INFO!$T$9:$T$1000, " ") ->  | I72: 0 | M72: 0
A73: =IF(COUNTRY_INFO!A73=0," ",COUNTRY_INFO!A73) -> Guinea Bissau | B73: =IF(COUNTRY_INFO!B73=0," ",COUNTRY_INFO!B73) -> Gabu | C73: =IF(COUNTRY_INFO!C73=0," ",COUNTRY_INFO!C73) -> SONACO | D73: =IF(COUNTRY_INFO!$T$9:$T$1000="MDA2 (DEC+ALB)", COUNTRY_INFO!$T$9:$T$1000, " ") ->  | I73: 0 | M73: 0
A74: =IF(COUNTRY_INFO!A74=0," ",COUNTRY_INFO!A74) -> Guinea Bissau | B74: =IF(COUNTRY_INFO!B74=0," ",COUNTRY_INFO!B74) -> Gabu | C74: =IF(COUNTRY_INFO!C74=0," ",COUNTRY_INFO!C74) -> LUGADJOLE | D74: =IF(COUNTRY_INFO!$T$9:$T$1000="MDA2 (DEC+ALB)", COUNTRY_INFO!$T$9:$T$1000, " ") ->  | I74: =SUM(F74:H74) -> 0 | M74: =SUM(J74:L74) -> 0 | N74: =IF(F74<>0, IF(J74/F74*100=0, "-", J74/F74*100), " ") ->  | O74: =IF(G74<>0, IF(K74/G74*100=0, "-", K74/G74*100), " ") ->  | P74: =IF(H74<>0, IF(L74/H74*100=0, "-", L74/H74*100), " ") ->  | Q74: =IF(I74<>0, IF(M74/I74*100=0, "-", M74/I74*100), " ") -> 
A75: =IF(COUNTRY_INFO!A75=0," ",COUNTRY_INFO!A75) -> Guinea Bissau | B75: =IF(COUNTRY_INFO!B75=0," ",COUNTRY_INFO!B75) -> Gabu | C75: =IF(COUNTRY_INFO!C75=0," ",COUNTRY_INFO!C75) -> GABU | D75: =IF(COUNTRY_INFO!$T$9:$T$1000="MDA2 (DEC+ALB)", COUNTRY_INFO!$T$9:$T$1000, " ") ->  | I75: 0 | M75: 0
A76: =IF(COUNTRY_INFO!A76=0," ",COUNTRY_INFO!A76) -> Guinea Bissau | B76: =IF(COUNTRY_INFO!B76=0," ",COUNTRY_INFO!B76) -> Gabu | C76: =IF(COUNTRY_INFO!C76=0," ",COUNTRY_INFO!C76) -> CANDJUFA | D76: =IF(COUNTRY_INFO!$T$9:$T$1000="MDA2 (DEC+ALB)", COUNTRY_INFO!$T$9:$T$1000, " ") ->  | I76: 0 | M76: 0
A77: =IF(COUNTRY_INFO!A77=0," ",COUNTRY_INFO!A77) -> Guinea Bissau | B77: =IF(COUNTRY_INFO!B77=0," ",COUNTRY_INFO!B77) -> Gabu | C77: =IF(COUNTRY_INFO!C77=0," ",COUNTRY_INFO!C77) -> MAFANCO | D77: =IF(COUNTRY_INFO!$T$9:$T$1000="MDA2 (DEC+ALB)", COUNTRY_INFO!$T$9:$T$1000, " ") ->  | I77: 0 | M77: 0
A78: =IF(COUNTRY_INFO!A78=0," ",COUNTRY_INFO!A78) -> Guinea Bissau | B78: =IF(COUNTRY_INFO!B78=0," ",COUNTRY_INFO!B78) -> Gabu | C78: =IF(COUNTRY_INFO!C78=0," ",COUNTRY_INFO!C78) -> TUMANA | D78: =IF(COUNTRY_INFO!$T$9:$T$1000="MDA2 (DEC+ALB)", COUNTRY_INFO!$T$9:$T$1000, " ") ->  | I78: 0 | M78: 0
A79: =IF(COUNTRY_INFO!A79=0," ",COUNTRY_INFO!A79) -> Guinea Bissau | B79: =IF(COUNTRY_INFO!B79=0," ",COUNTRY_INFO!B79) -> Bafata | C79: =IF(COUNTRY_INFO!C79=0," ",COUNTRY_INFO!C79) -> Xitole | D79: =IF(COUNTRY_INFO!$T$9:$T$1000="MDA2 (DEC+ALB)", COUNTRY_INFO!$T$9:$T$1000, " ") ->  | I79: 0 | M79: 0
A80: =IF(COUNTRY_INFO!A80=0," ",COUNTRY_INFO!A80) -> Guinea Bissau | B80: =IF(COUNTRY_INFO!B80=0," ",COUNTRY_INFO!B80) -> Bafata | C80: =IF(COUNTRY_INFO!C80=0," ",COUNTRY_INFO!C80) -> Contubuel | D80: =IF(COUNTRY_INFO!$T$9:$T$1000="MDA2 (DEC+ALB)", COUNTRY_INFO!$T$9:$T$1000, " ") ->  | I80: 0 | M80: 0
A81: =IF(COUNTRY_INFO!A81=0," ",COUNTRY_INFO!A81) -> Guinea Bissau | B81: =IF(COUNTRY_INFO!B81=0," ",COUNTRY_INFO!B81) -> Bafata | C81: =IF(COUNTRY_INFO!C81=0," ",COUNTRY_INFO!C81) -> Tendinto | D81: =IF(COUNTRY_INFO!$T$9:$T$1000="MDA2 (DEC+ALB)", COUNTRY_INFO!$T$9:$T$1000, " ") ->  | I81: 0 | M81: 0
A82: =IF(COUNTRY_INFO!A82=0," ",COUNTRY_INFO!A82) -> Guinea Bissau | B82: =IF(COUNTRY_INFO!B82=0," ",COUNTRY_INFO!B82) -> Bafata | C82: =IF(COUNTRY_INFO!C82=0," ",COUNTRY_INFO!C82) -> Geba | D82: =IF(COUNTRY_INFO!$T$9:$T$1000="MDA2 (DEC+ALB)", COUNTRY_INFO!$T$9:$T$1000, " ") ->  | I82: 0 | M82: 0
A83: =IF(COUNTRY_INFO!A83=0," ",COUNTRY_INFO!A83) -> Guinea Bissau | B83: =IF(COUNTRY_INFO!B83=0," ",COUNTRY_INFO!B83) -> Bafata | C83: =IF(COUNTRY_INFO!C83=0," ",COUNTRY_INFO!C83) -> Tantancosse | D83: =IF(COUNTRY_INFO!$T$9:$T$1000="MDA2 (DEC+ALB)", COUNTRY_INFO!$T$9:$T$1000, " ") ->  | I83: 0 | M83: 0
A84: =IF(COUNTRY_INFO!A84=0," ",COUNTRY_INFO!A84) -> Guinea Bissau | B84: =IF(COUNTRY_INFO!B84=0," ",COUNTRY_INFO!B84) -> Bafata | C84: =IF(COUNTRY_INFO!C84=0," ",COUNTRY_INFO!C84) -> Ga-mamudo | D84: =IF(COUNTRY_INFO!$T$9:$T$1000="MDA2 (DEC+ALB)", COUNTRY_INFO!$T$9:$T$1000, " ") ->  | I84: 0 | M84: 0
A85: =IF(COUNTRY_INFO!A85=0," ",COUNTRY_INFO!A85) -> Guinea Bissau | B85: =IF(COUNTRY_INFO!B85=0," ",COUNTRY_INFO!B85) -> Bafata | C85: =IF(COUNTRY_INFO!C85=0," ",COUNTRY_INFO!C85) -> Bambadinca | D85: =IF(COUNTRY_INFO!$T$9:$T$1000="MDA2 (DEC+ALB)", COUNTRY_INFO!$T$9:$T$1000, " ") ->  | I85: 0 | M85: 0
A86: =IF(COUNTRY_INFO!A86=0," ",COUNTRY_INFO!A86) -> Guinea Bissau | B86: =IF(COUNTRY_INFO!B86=0," ",COUNTRY_INFO!B86) -> Bafata | C86: =IF(COUNTRY_INFO!C86=0," ",COUNTRY_INFO!C86) -> Ga carnes | D86: =IF(COUNTRY_INFO!$T$9:$T$1000="MDA2 (DEC+ALB)", COUNTRY_INFO!$T$9:$T$1000, " ") ->  | I86: 0 | M86: 0
A87: =IF(COUNTRY_INFO!A87=0," ",COUNTRY_INFO!A87) -> Guinea Bissau | B87: =IF(COUNTRY_INFO!B87=0," ",COUNTRY_INFO!B87) -> Bafata | C87: =IF(COUNTRY_INFO!C87=0," ",COUNTRY_INFO!C87) -> Cambaju | D87: =IF(COUNTRY_INFO!$T$9:$T$1000="MDA2 (DEC+ALB)", COUNTRY_INFO!$T$9:$T$1000, " ") ->  | I87: 0 | M87: 0
A88: =IF(COUNTRY_INFO!A88=0," ",COUNTRY_INFO!A88) -> Guinea Bissau | B88: =IF(COUNTRY_INFO!B88=0," ",COUNTRY_INFO!B88) -> Bafata | C88: =IF(COUNTRY_INFO!C88=0," ",COUNTRY_INFO!C88) -> Gam ture | D88: =IF(COUNTRY_INFO!$T$9:$T$1000="MDA2 (DEC+ALB)", COUNTRY_INFO!$T$9:$T$1000, " ") ->  | I88: 0 | M88: 0
A89: =IF(COUNTRY_INFO!A89=0," ",COUNTRY_INFO!A89) -> Guinea Bissau | B89: =IF(COUNTRY_INFO!B89=0," ",COUNTRY_INFO!B89) -> Bafata | C89: =IF(COUNTRY_INFO!C89=0," ",COUNTRY_INFO!C89) -> Sare bacar | D89: =IF(COUNTRY_INFO!$T$9:$T$1000="MDA2 (DEC+ALB)", COUNTRY_INFO!$T$9:$T$1000, " ") ->  | I89: 0 | M89: 0
A90: =IF(COUNTRY_INFO!A90=0," ",COUNTRY_INFO!A90) -> Guinea Bissau | B90: =IF(COUNTRY_INFO!B90=0," ",COUNTRY_INFO!B90) -> Bafata | C90: =IF(COUNTRY_INFO!C90=0," ",COUNTRY_INFO!C90) -> Fajonquito | D90: =IF(COUNTRY_INFO!$T$9:$T$1000="MDA2 (DEC+ALB)", COUNTRY_INFO!$T$9:$T$1000, " ") ->  | I90: 0 | M90: 0
A91: =IF(COUNTRY_INFO!A91=0," ",COUNTRY_INFO!A91) -> Guinea Bissau | B91: =IF(COUNTRY_INFO!B91=0," ",COUNTRY_INFO!B91) -> Bafata | C91: =IF(COUNTRY_INFO!C91=0," ",COUNTRY_INFO!C91) -> Cosse | D91: =IF(COUNTRY_INFO!$T$9:$T$1000="MDA2 (DEC+ALB)", COUNTRY_INFO!$T$9:$T$1000, " ") ->  | I91: 0 | M91: 0
A92: =IF(COUNTRY_INFO!A92=0," ",COUNTRY_INFO!A92) -> Guinea Bissau | B92: =IF(COUNTRY_INFO!B92=0," ",COUNTRY_INFO!B92) -> Bafata | C92: =IF(COUNTRY_INFO!C92=0," ",COUNTRY_INFO!C92) -> Bafata | D92: =IF(COUNTRY_INFO!$T$9:$T$1000="MDA2 (DEC+ALB)", COUNTRY_INFO!$T$9:$T$1000, " ") ->  | I92: 0 | M92: 0
A93: =IF(COUNTRY_INFO!A93=0," ",COUNTRY_INFO!A93) -> Guinea Bissau | B93: =IF(COUNTRY_INFO!B93=0," ",COUNTRY_INFO!B93) -> Tombali | C93: =IF(COUNTRY_INFO!C93=0," ",COUNTRY_INFO!C93) -> BEDANDA | D93: =IF(COUNTRY_INFO!$T$9:$T$1000="MDA2 (DEC+ALB)", COUNTRY_INFO!$T$9:$T$1000, " ") ->  | I93: 0 | M93: 0
A94: =IF(COUNTRY_INFO!A94=0," ",COUNTRY_INFO!A94) -> Guinea Bissau | B94: =IF(COUNTRY_INFO!B94=0," ",COUNTRY_INFO!B94) -> Tombali | C94: =IF(COUNTRY_INFO!C94=0," ",COUNTRY_INFO!C94) -> CACINE | D94: =IF(COUNTRY_INFO!$T$9:$T$1000="MDA2 (DEC+ALB)", COUNTRY_INFO!$T$9:$T$1000, " ") ->  | I94: 0 | M94: 0
A95: =IF(COUNTRY_INFO!A95=0," ",COUNTRY_INFO!A95) -> Guinea Bissau | B95: =IF(COUNTRY_INFO!B95=0," ",COUNTRY_INFO!B95) -> Tombali | C95: =IF(COUNTRY_INFO!C95=0," ",COUNTRY_INFO!C95) -> CALAQUE | D95: =IF(COUNTRY_INFO!$T$9:$T$1000="MDA2 (DEC+ALB)", COUNTRY_INFO!$T$9:$T$1000, " ") ->  | I95: 0 | M95: 0
A96: =IF(COUNTRY_INFO!A96=0," ",COUNTRY_INFO!A96) -> Guinea Bissau | B96: =IF(COUNTRY_INFO!B96=0," ",COUNTRY_INFO!B96) -> Tombali | C96: =IF(COUNTRY_INFO!C96=0," ",COUNTRY_INFO!C96) -> CATIO | D96: =IF(COUNTRY_INFO!$T$9:$T$1000="MDA2 (DEC+ALB)", COUNTRY_INFO!$T$9:$T$1000, " ") ->  | I96: 0 | M96: 0
A97: =IF(COUNTRY_INFO!A97=0," ",COUNTRY_INFO!A97) -> Guinea Bissau | B97: =IF(COUNTRY_INFO!B97=0," ",COUNTRY_INFO!B97) -> Tombali | C97: =IF(COUNTRY_INFO!C97=0," ",COUNTRY_INFO!C97) -> KOMO | D97: =IF(COUNTRY_INFO!$T$9:$T$1000="MDA2 (DEC+ALB)", COUNTRY_INFO!$T$9:$T$1000, " ") ->  | I97: 0 | M97: 0
A98: =IF(COUNTRY_INFO!A98=0," ",COUNTRY_INFO!A98) -> Guinea Bissau | B98: =IF(COUNTRY_INFO!B98=0," ",COUNTRY_INFO!B98) -> Tombali | C98: =IF(COUNTRY_INFO!C98=0," ",COUNTRY_INFO!C98) -> QUEBO | D98: =IF(COUNTRY_INFO!$T$9:$T$1000="MDA2 (DEC+ALB)", COUNTRY_INFO!$T$9:$T$1000, " ") ->  | I98: 0 | M98: 0
A99: =IF(COUNTRY_INFO!A99=0," ",COUNTRY_INFO!A99) -> Guinea Bissau | B99: =IF(COUNTRY_INFO!B99=0," ",COUNTRY_INFO!B99) -> Tombali | C99: =IF(COUNTRY_INFO!C99=0," ",COUNTRY_INFO!C99) -> SANCONHA | D99: =IF(COUNTRY_INFO!$T$9:$T$1000="MDA2 (DEC+ALB)", COUNTRY_INFO!$T$9:$T$1000, " ") ->  | I99: 0 | M99: 0
A100: =IF(COUNTRY_INFO!A100=0," ",COUNTRY_INFO!A100) -> Guinea Bissau | B100: =IF(COUNTRY_INFO!B100=0," ",COUNTRY_INFO!B100) -> Tombali | C100: =IF(COUNTRY_INFO!C100=0," ",COUNTRY_INFO!C100) -> TIMBO | D100: =IF(COUNTRY_INFO!$T$9:$T$1000="MDA2 (DEC+ALB)", COUNTRY_INFO!$T$9:$T$1000, " ") ->  | I100: 0 | M100: 0
A101: =IF(COUNTRY_INFO!A101=0," ",COUNTRY_INFO!A101) -> Guinea Bissau | B101: =IF(COUNTRY_INFO!B101=0," ",COUNTRY_INFO!B101) -> Quinara | C101: =IF(COUNTRY_INFO!C101=0," ",COUNTRY_INFO!C101) -> BRANDÃO | D101: =IF(COUNTRY_INFO!$T$9:$T$1000="MDA2 (DEC+ALB)", COUNTRY_INFO!$T$9:$T$1000, " ") ->  | I101: 0 | M101: 0
A102: =IF(COUNTRY_INFO!A102=0," ",COUNTRY_INFO!A102) -> Guinea Bissau | B102: =IF(COUNTRY_INFO!B102=0," ",COUNTRY_INFO!B102) -> Quinara | C102: =IF(COUNTRY_INFO!C102=0," ",COUNTRY_INFO!C102) -> BUBA | D102: =IF(COUNTRY_INFO!$T$9:$T$1000="MDA2 (DEC+ALB)", COUNTRY_INFO!$T$9:$T$1000, " ") ->  | I102: 0 | M102: 0
A103: =IF(COUNTRY_INFO!A103=0," ",COUNTRY_INFO!A103) -> Guinea Bissau | B103: =IF(COUNTRY_INFO!B103=0," ",COUNTRY_INFO!B103) -> Quinara | C103: =IF(COUNTRY_INFO!C103=0," ",COUNTRY_INFO!C103) -> DAR-ES-SALAM | D103: =IF(COUNTRY_INFO!$T$9:$T$1000="MDA2 (DEC+ALB)", COUNTRY_INFO!$T$9:$T$1000, " ") ->  | I103: 0 | M103: 0
A104: =IF(COUNTRY_INFO!A104=0," ",COUNTRY_INFO!A104) -> Guinea Bissau | B104: =IF(COUNTRY_INFO!B104=0," ",COUNTRY_INFO!B104) -> Quinara | C104: =IF(COUNTRY_INFO!C104=0," ",COUNTRY_INFO!C104) -> EMPADA | D104: =IF(COUNTRY_INFO!$T$9:$T$1000="MDA2 (DEC+ALB)", COUNTRY_INFO!$T$9:$T$1000, " ") ->  | I104: 0 | M104: 0
A105: =IF(COUNTRY_INFO!A105=0," ",COUNTRY_INFO!A105) -> Guinea Bissau | B105: =IF(COUNTRY_INFO!B105=0," ",COUNTRY_INFO!B105) -> Quinara | C105: =IF(COUNTRY_INFO!C105=0," ",COUNTRY_INFO!C105) -> FULACUNDA | D105: =IF(COUNTRY_INFO!$T$9:$T$1000="MDA2 (DEC+ALB)", COUNTRY_INFO!$T$9:$T$1000, " ") ->  | I105: 0 | M105: 0
A106: =IF(COUNTRY_INFO!A106=0," ",COUNTRY_INFO!A106) -> Guinea Bissau | B106: =IF(COUNTRY_INFO!B106=0," ",COUNTRY_INFO!B106) -> Quinara | C106: =IF(COUNTRY_INFO!C106=0," ",COUNTRY_INFO!C106) -> TITE | D106: =IF(COUNTRY_INFO!$T$9:$T$1000="MDA2 (DEC+ALB)", COUNTRY_INFO!$T$9:$T$1000, " ") ->  | I106: 0 | M106: 0
A107: =IF(COUNTRY_INFO!A107=0," ",COUNTRY_INFO!A107) -> Guinea Bissau | B107: =IF(COUNTRY_INFO!B107=0," ",COUNTRY_INFO!B107) -> Cacheu | C107: =IF(COUNTRY_INFO!C107=0," ",COUNTRY_INFO!C107) -> Bará | D107: =IF(COUNTRY_INFO!$T$9:$T$1000="MDA2 (DEC+ALB)", COUNTRY_INFO!$T$9:$T$1000, " ") ->  | I107: 0 | M107: 0
A108: =IF(COUNTRY_INFO!A108=0," ",COUNTRY_INFO!A108) -> Guinea Bissau | B108: =IF(COUNTRY_INFO!B108=0," ",COUNTRY_INFO!B108) -> Cacheu | C108: =IF(COUNTRY_INFO!C108=0," ",COUNTRY_INFO!C108) -> Barro | D108: =IF(COUNTRY_INFO!$T$9:$T$1000="MDA2 (DEC+ALB)", COUNTRY_INFO!$T$9:$T$1000, " ") ->  | I108: 0 | M108: 0
A109: =IF(COUNTRY_INFO!A109=0," ",COUNTRY_INFO!A109) -> Guinea Bissau | B109: =IF(COUNTRY_INFO!B109=0," ",COUNTRY_INFO!B109) -> Cacheu | C109: =IF(COUNTRY_INFO!C109=0," ",COUNTRY_INFO!C109) -> Batucar | D109: =IF(COUNTRY_INFO!$T$9:$T$1000="MDA2 (DEC+ALB)", COUNTRY_INFO!$T$9:$T$1000, " ") ->  | I109: 0 | M109: 0
A110: =IF(COUNTRY_INFO!A110=0," ",COUNTRY_INFO!A110) -> Guinea Bissau | B110: =IF(COUNTRY_INFO!B110=0," ",COUNTRY_INFO!B110) -> Cacheu | C110: =IF(COUNTRY_INFO!C110=0," ",COUNTRY_INFO!C110) -> Begene | D110: =IF(COUNTRY_INFO!$T$9:$T$1000="MDA2 (DEC+ALB)", COUNTRY_INFO!$T$9:$T$1000, " ") ->  | I110: 0 | M110: 0
A111: =IF(COUNTRY_INFO!A111=0," ",COUNTRY_INFO!A111) -> Guinea Bissau | B111: =IF(COUNTRY_INFO!B111=0," ",COUNTRY_INFO!B111) -> Cacheu | C111: =IF(COUNTRY_INFO!C111=0," ",COUNTRY_INFO!C111) -> Bula | D111: =IF(COUNTRY_INFO!$T$9:$T$1000="MDA2 (DEC+ALB)", COUNTRY_INFO!$T$9:$T$1000, " ") ->  | I111: 0 | M111: 0
A112: =IF(COUNTRY_INFO!A112=0," ",COUNTRY_INFO!A112) -> Guinea Bissau | B112: =IF(COUNTRY_INFO!B112=0," ",COUNTRY_INFO!B112) -> Cacheu | C112: =IF(COUNTRY_INFO!C112=0," ",COUNTRY_INFO!C112) -> Cacheu | D112: =IF(COUNTRY_INFO!$T$9:$T$1000="MDA2 (DEC+ALB)", COUNTRY_INFO!$T$9:$T$1000, " ") ->  | I112: 0 | M112: 0
A113: =IF(COUNTRY_INFO!A113=0," ",COUNTRY_INFO!A113) -> Guinea Bissau | B113: =IF(COUNTRY_INFO!B113=0," ",COUNTRY_INFO!B113) -> Cacheu | C113: =IF(COUNTRY_INFO!C113=0," ",COUNTRY_INFO!C113) -> Caió | D113: =IF(COUNTRY_INFO!$T$9:$T$1000="MDA2 (DEC+ALB)", COUNTRY_INFO!$T$9:$T$1000, " ") ->  | I113: 0 | M113: 0
A114: =IF(COUNTRY_INFO!A114=0," ",COUNTRY_INFO!A114) -> Guinea Bissau | B114: =IF(COUNTRY_INFO!B114=0," ",COUNTRY_INFO!B114) -> Cacheu | C114: =IF(COUNTRY_INFO!C114=0," ",COUNTRY_INFO!C114) -> Calequisse | D114: =IF(COUNTRY_INFO!$T$9:$T$1000="MDA2 (DEC+ALB)", COUNTRY_INFO!$T$9:$T$1000, " ") ->  | I114: 0 | M114: 0
A115: =IF(COUNTRY_INFO!A115=0," ",COUNTRY_INFO!A115) -> Guinea Bissau | B115: =IF(COUNTRY_INFO!B115=0," ",COUNTRY_INFO!B115) -> Cacheu | C115: =IF(COUNTRY_INFO!C115=0," ",COUNTRY_INFO!C115) -> Canchungo | D115: =IF(COUNTRY_INFO!$T$9:$T$1000="MDA2 (DEC+ALB)", COUNTRY_INFO!$T$9:$T$1000, " ") ->  | I115: 0 | M115: 0
A116: =IF(COUNTRY_INFO!A116=0," ",COUNTRY_INFO!A116) -> Guinea Bissau | B116: =IF(COUNTRY_INFO!B116=0," ",COUNTRY_INFO!B116) -> Cacheu | C116: =IF(COUNTRY_INFO!C116=0," ",COUNTRY_INFO!C116) -> Carenque | D116: =IF(COUNTRY_INFO!$T$9:$T$1000="MDA2 (DEC+ALB)", COUNTRY_INFO!$T$9:$T$1000, " ") ->  | I116: 0 | M116: 0
A117: =IF(COUNTRY_INFO!A117=0," ",COUNTRY_INFO!A117) -> Guinea Bissau | B117: =IF(COUNTRY_INFO!B117=0," ",COUNTRY_INFO!B117) -> Cacheu | C117: =IF(COUNTRY_INFO!C117=0," ",COUNTRY_INFO!C117) -> Có | D117: =IF(COUNTRY_INFO!$T$9:$T$1000="MDA2 (DEC+ALB)", COUNTRY_INFO!$T$9:$T$1000, " ") ->  | I117: 0 | M117: 0
A118: =IF(COUNTRY_INFO!A118=0," ",COUNTRY_INFO!A118) -> Guinea Bissau | B118: =IF(COUNTRY_INFO!B118=0," ",COUNTRY_INFO!B118) -> Cacheu | C118: =IF(COUNTRY_INFO!C118=0," ",COUNTRY_INFO!C118) -> Ingoré | D118: =IF(COUNTRY_INFO!$T$9:$T$1000="MDA2 (DEC+ALB)", COUNTRY_INFO!$T$9:$T$1000, " ") ->  | I118: 0 | M118: 0
A119: =IF(COUNTRY_INFO!A119=0," ",COUNTRY_INFO!A119) -> Guinea Bissau | B119: =IF(COUNTRY_INFO!B119=0," ",COUNTRY_INFO!B119) -> Cacheu | C119: =IF(COUNTRY_INFO!C119=0," ",COUNTRY_INFO!C119) -> Jeta | D119: =IF(COUNTRY_INFO!$T$9:$T$1000="MDA2 (DEC+ALB)", COUNTRY_INFO!$T$9:$T$1000, " ") ->  | I119: 0 | M119: 0
A120: =IF(COUNTRY_INFO!A120=0," ",COUNTRY_INFO!A120) -> Guinea Bissau | B120: =IF(COUNTRY_INFO!B120=0," ",COUNTRY_INFO!B120) -> Cacheu | C120: =IF(COUNTRY_INFO!C120=0," ",COUNTRY_INFO!C120) -> Pecixe | D120: =IF(COUNTRY_INFO!$T$9:$T$1000="MDA2 (DEC+ALB)", COUNTRY_INFO!$T$9:$T$1000, " ") ->  | I120: 0 | M120: 0
A121: =IF(COUNTRY_INFO!A121=0," ",COUNTRY_INFO!A121) -> Guinea Bissau | B121: =IF(COUNTRY_INFO!B121=0," ",COUNTRY_INFO!B121) -> Cacheu | C121: =IF(COUNTRY_INFO!C121=0," ",COUNTRY_INFO!C121) -> Pelundo | D121: =IF(COUNTRY_INFO!$T$9:$T$1000="MDA2 (DEC+ALB)", COUNTRY_INFO!$T$9:$T$1000, " ") ->  | I121: 0 | M121: 0
A122: =IF(COUNTRY_INFO!A122=0," ",COUNTRY_INFO!A122) -> Guinea Bissau | B122: =IF(COUNTRY_INFO!B122=0," ",COUNTRY_INFO!B122) -> Cacheu | C122: =IF(COUNTRY_INFO!C122=0," ",COUNTRY_INFO!C122) -> S.Domingos | D122: =IF(COUNTRY_INFO!$T$9:$T$1000="MDA2 (DEC+ALB)", COUNTRY_INFO!$T$9:$T$1000, " ") ->  | I122: 0 | M122: 0
A123: =IF(COUNTRY_INFO!A123=0," ",COUNTRY_INFO!A123) -> Guinea Bissau | B123: =IF(COUNTRY_INFO!B123=0," ",COUNTRY_INFO!B123) -> Cacheu | C123: =IF(COUNTRY_INFO!C123=0," ",COUNTRY_INFO!C123) -> Sedengal | D123: =IF(COUNTRY_INFO!$T$9:$T$1000="MDA2 (DEC+ALB)", COUNTRY_INFO!$T$9:$T$1000, " ") ->  | I123: 0 | M123: 0
A124: =IF(COUNTRY_INFO!A124=0," ",COUNTRY_INFO!A124) -> Guinea Bissau | B124: =IF(COUNTRY_INFO!B124=0," ",COUNTRY_INFO!B124) -> Cacheu | C124: =IF(COUNTRY_INFO!C124=0," ",COUNTRY_INFO!C124) -> Suzana | D124: =IF(COUNTRY_INFO!$T$9:$T$1000="MDA2 (DEC+ALB)", COUNTRY_INFO!$T$9:$T$1000, " ") ->  | I124: 0 | M124: 0
A125: =IF(COUNTRY_INFO!A125=0," ",COUNTRY_INFO!A125) -> Guinea Bissau | B125: =IF(COUNTRY_INFO!B125=0," ",COUNTRY_INFO!B125) -> Cacheu | C125: =IF(COUNTRY_INFO!C125=0," ",COUNTRY_INFO!C125) -> Varela | D125: =IF(COUNTRY_INFO!$T$9:$T$1000="MDA2 (DEC+ALB)", COUNTRY_INFO!$T$9:$T$1000, " ") ->  | I125: 0 | M125: 0

Sheet MDA3
A1: MDA 3 - Ivermectine (IVM)
A2: Structure administrative, population nécessitant une chimioprévention par groupe d'âge, population traitée par groupe d'âge et couverture
A4: TOTAL | F4: =SUM(F$9:F$1000) -> 0 | G4: 0 | H4: 0 | I4: 0 | J4: 0 | K4: 0 | L4: 0 | M4: 0 | N4: 0 | O4: 0 | P4: 0 | Q4: 0 | R4: =IF(F4<>0, IF(O4/F4*100=0, "-", O4/F4*100), " ") ->  | S4: =IF(G4<>0, IF(P4/G4*100=0, "-", P4/G4*100), " ") ->  | T4: =IF(H4<>0, IF(Q4/H4*100=0, "-", Q4/H4*100), " ") -> 
A6: Structure administrative du pays | D6: Mise en oeuvre de la CP | E6: Date | F6: Population ciblée pour MDA 3 | I6: Population traitée - tournée 1 | L6: Population traitée - tournée 2 | O6: Population traitée | R6: Couverture du Programme (%)
A7: Pays | B7: Région/Département | C7: District | F7: EAS | G7: Adultes | H7: Total | I7: EAS | J7: Adultes | K7: Total | L7: EAS | M7: Adultes | N7: Total | O7: EAS | P7: Adultes | Q7: Total | R7: EAS | S7: Adultes | T7: Total
A9: =IF(COUNTRY_INFO!A9=0," ",COUNTRY_INFO!A9) -> Guinea Bissau | B9: =IF(COUNTRY_INFO!B9=0," ",COUNTRY_INFO!B9) -> SAB | C9: =IF(COUNTRY_INFO!C9=0," ",COUNTRY_INFO!C9) -> AJUDA | D9: =IF(COUNTRY_INFO!$T$9:$T$1000="MDA3 (IVM)", COUNTRY_INFO!$T$9:$T$1000, " ") ->  | H9: =SUM(F9:G9) -> 0 | K9: =SUM(I9:J9) -> 0 | N9: =SUM(L9:M9) -> 0 | O9: =MAX(I9,L9) -> 0 | P9: 0 | Q9: =SUM(O9:P9) -> 0 | R9: =IF(F9<>0, IF(MAX(I9,L9)/F9*100=0, "-", MAX(I9,L9)/F9*100), " ") ->  | T9: =IF(H9<>0, IF((MAX(I9,L9)+MAX(J9,M9))/H9*100=0, "-",(MAX(I9,L9)+MAX(J9,M9))/H9*100), " ") -> 
A10: =IF(COUNTRY_INFO!A10=0," ",COUNTRY_INFO!A10) -> Guinea Bissau | B10: =IF(COUNTRY_INFO!B10=0," ",COUNTRY_INFO!B10) -> SAB | C10: =IF(COUNTRY_INFO!C10=0," ",COUNTRY_INFO!C10) -> ANTULA | D10: =IF(COUNTRY_INFO!$T$9:$T$1000="MDA3 (IVM)", COUNTRY_INFO!$T$9:$T$1000, " ") ->  | H10: =SUM(F10:G10) -> 0 | K10: =SUM(I10:J10) -> 0 | N10: =SUM(L10:M10) -> 0 | O10: =MAX(I10,L10) -> 0 | P10: =MAX(J10,M10) -> 0 | Q10: =SUM(O10:P10) -> 0 | R10: =IF(F10<>0, IF(MAX(I10,L10)/F10*100=0, "-", MAX(I10,L10)/F10*100), " ") ->  | S10: =IF(G10<>0, IF(MAX(J10,M10)/G10*100=0, "-", MAX(J10,M10)/G10*100), " ") ->  | T10: =IF(H10<>0, IF((MAX(I10,L10)+MAX(J10,M10))/H10*100=0, "-",(MAX(I10,L10)+MAX(J10,M10))/H10*100), " ") -> 
A11: =IF(COUNTRY_INFO!A11=0," ",COUNTRY_INFO!A11) -> Guinea Bissau | B11: =IF(COUNTRY_INFO!B11=0," ",COUNTRY_INFO!B11) -> SAB | C11: =IF(COUNTRY_INFO!C11=0," ",COUNTRY_INFO!C11) -> B. MILITAR | D11: =IF(COUNTRY_INFO!$T$9:$T$1000="MDA3 (IVM)", COUNTRY_INFO!$T$9:$T$1000, " ") ->  | H11: 0 | K11: 0 | N11: 0 | O11: 0 | P11: 0 | Q11: 0
A12: =IF(COUNTRY_INFO!A12=0," ",COUNTRY_INFO!A12) -> Guinea Bissau | B12: =IF(COUNTRY_INFO!B12=0," ",COUNTRY_INFO!B12) -> SAB | C12: =IF(COUNTRY_INFO!C12=0," ",COUNTRY_INFO!C12) -> BANDIM | D12: =IF(COUNTRY_INFO!$T$9:$T$1000="MDA3 (IVM)", COUNTRY_INFO!$T$9:$T$1000, " ") ->  | H12: 0 | K12: 0 | N12: 0 | O12: 0 | P12: 0 | Q12: 0
A13: =IF(COUNTRY_INFO!A13=0," ",COUNTRY_INFO!A13) -> Guinea Bissau | B13: =IF(COUNTRY_INFO!B13=0," ",COUNTRY_INFO!B13) -> SAB | C13: =IF(COUNTRY_INFO!C13=0," ",COUNTRY_INFO!C13) -> BELEM | D13: =IF(COUNTRY_INFO!$T$9:$T$1000="MDA3 (IVM)", COUNTRY_INFO!$T$9:$T$1000, " ") ->  | H13: 0 | K13: 0 | N13: 0 | O13: 0 | P13: 0 | Q13: 0
A14: =IF(COUNTRY_INFO!A14=0," ",COUNTRY_INFO!A14) -> Guinea Bissau | B14: =IF(COUNTRY_INFO!B14=0," ",COUNTRY_INFO!B14) -> SAB | C14: =IF(COUNTRY_INFO!C14=0," ",COUNTRY_INFO!C14) -> CMI | D14: =IF(COUNTRY_INFO!$T$9:$T$1000="MDA3 (IVM)", COUNTRY_INFO!$T$9:$T$1000, " ") ->  | H14: 0 | K14: 0 | N14: 0 | O14: 0 | P14: 0 | Q14: 0
A15: =IF(COUNTRY_INFO!A15=0," ",COUNTRY_INFO!A15) -> Guinea Bissau | B15: =IF(COUNTRY_INFO!B15=0," ",COUNTRY_INFO!B15) -> SAB | C15: =IF(COUNTRY_INFO!C15=0," ",COUNTRY_INFO!C15) -> CUNTUM | D15: =IF(COUNTRY_INFO!$T$9:$T$1000="MDA3 (IVM)", COUNTRY_INFO!$T$9:$T$1000, " ") ->  | H15: 0 | K15: 0 | N15: 0 | O15: 0 | P15: 0 | Q15: 0
A16: =IF(COUNTRY_INFO!A16=0," ",COUNTRY_INFO!A16) -> Guinea Bissau | B16: =IF(COUNTRY_INFO!B16=0," ",COUNTRY_INFO!B16) -> SAB | C16: =IF(COUNTRY_INFO!C16=0," ",COUNTRY_INFO!C16) -> LUANDA | D16: =IF(COUNTRY_INFO!$T$9:$T$1000="MDA3 (IVM)", COUNTRY_INFO!$T$9:$T$1000, " ") ->  | H16: 0 | K16: 0 | N16: 0 | O16: 0 | P16: 0 | Q16: 0
A17: =IF(COUNTRY_INFO!A17=0," ",COUNTRY_INFO!A17) -> Guinea Bissau | B17: =IF(COUNTRY_INFO!B17=0," ",COUNTRY_INFO!B17) -> SAB | C17: =IF(COUNTRY_INFO!C17=0," ",COUNTRY_INFO!C17) -> MISSIRA | D17: =IF(COUNTRY_INFO!$T$9:$T$1000="MDA3 (IVM)", COUNTRY_INFO!$T$9:$T$1000, " ") ->  | H17: 0 | K17: 0 | N17: 0 | O17: 0 | P17: 0 | Q17: 0
A18: =IF(COUNTRY_INFO!A18=0," ",COUNTRY_INFO!A18) -> Guinea Bissau | B18: =IF(COUNTRY_INFO!B18=0," ",COUNTRY_INFO!B18) -> SAB | C18: =IF(COUNTRY_INFO!C18=0," ",COUNTRY_INFO!C18) -> PEFINE | D18: =IF(COUNTRY_INFO!$T$9:$T$1000="MDA3 (IVM)", COUNTRY_INFO!$T$9:$T$1000, " ") ->  | H18: 0 | K18: 0 | N18: 0 | O18: 0 | P18: 0 | Q18: 0
A19: =IF(COUNTRY_INFO!A19=0," ",COUNTRY_INFO!A19) -> Guinea Bissau | B19: =IF(COUNTRY_INFO!B19=0," ",COUNTRY_INFO!B19) -> SAB | C19: =IF(COUNTRY_INFO!C19=0," ",COUNTRY_INFO!C19) -> PLACK II | D19: =IF(COUNTRY_INFO!$T$9:$T$1000="MDA3 (IVM)", COUNTRY_INFO!$T$9:$T$1000, " ") ->  | H19: 0 | K19: 0 | N19: 0 | O19: 0 | P19: 0 | Q19: 0
A20: =IF(COUNTRY_INFO!A20=0," ",COUNTRY_INFO!A20) -> Guinea Bissau | B20: =IF(COUNTRY_INFO!B20=0," ",COUNTRY_INFO!B20) -> SAB | C20: =IF(COUNTRY_INFO!C20=0," ",COUNTRY_INFO!C20) -> QUELELE | D20: =IF(COUNTRY_INFO!$T$9:$T$1000="MDA3 (IVM)", COUNTRY_INFO!$T$9:$T$1000, " ") ->  | H20: 0 | K20: 0 | N20: 0 | O20: 0 | P20: 0 | Q20: 0
A21: =IF(COUNTRY_INFO!A21=0," ",COUNTRY_INFO!A21) -> Guinea Bissau | B21: =IF(COUNTRY_INFO!B21=0," ",COUNTRY_INFO!B21) -> SAB | C21: =IF(COUNTRY_INFO!C21=0," ",COUNTRY_INFO!C21) -> SANTA LUZIA | D21: =IF(COUNTRY_INFO!$T$9:$T$1000="MDA3 (IVM)", COUNTRY_INFO!$T$9:$T$1000, " ") ->  | H21: 0 | K21: 0 | N21: 0 | O21: 0 | P21: 0 | Q21: 0
A22: =IF(COUNTRY_INFO!A22=0," ",COUNTRY_INFO!A22) -> Guinea Bissau | B22: =IF(COUNTRY_INFO!B22=0," ",COUNTRY_INFO!B22) -> SAB | C22: =IF(COUNTRY_INFO!C22=0," ",COUNTRY_INFO!C22) -> SINTRA NEMA | D22: =IF(COUNTRY_INFO!$T$9:$T$1000="MDA3 (IVM)", COUNTRY_INFO!$T$9:$T$1000, " ") ->  | H22: 0 | K22: 0 | N22: 0 | O22: 0 | P22: 0 | Q22: 0
A23: =IF(COUNTRY_INFO!A23=0," ",COUNTRY_INFO!A23) -> Guinea Bissau | B23: =IF(COUNTRY_INFO!B23=0," ",COUNTRY_INFO!B23) -> Bijagos | C23: =IF(COUNTRY_INFO!C23=0," ",COUNTRY_INFO!C23) -> Bubaque | D23: =IF(COUNTRY_INFO!$T$9:$T$1000="MDA3 (IVM)", COUNTRY_INFO!$T$9:$T$1000, " ") ->  | H23: 0 | K23: 0 | N23: 0 | O23: 0 | P23: 0 | Q23: 0
A24: =IF(COUNTRY_INFO!A24=0," ",COUNTRY_INFO!A24) -> Guinea Bissau | B24: =IF(COUNTRY_INFO!B24=0," ",COUNTRY_INFO!B24) -> Bijagos | C24: =IF(COUNTRY_INFO!C24=0," ",COUNTRY_INFO!C24) -> Canhabaque | D24: =IF(COUNTRY_INFO!$T$9:$T$1000="MDA3 (IVM)", COUNTRY_INFO!$T$9:$T$1000, " ") ->  | H24: 0 | K24: 0 | N24: 0 | O24: 0 | P24: 0 | Q24: 0
A25: =IF(COUNTRY_INFO!A25=0," ",COUNTRY_INFO!A25) -> Guinea Bissau | B25: =IF(COUNTRY_INFO!B25=0," ",COUNTRY_INFO!B25) -> Bijagos | C25: =IF(COUNTRY_INFO!C25=0," ",COUNTRY_INFO!C25) -> Canogo | D25: =IF(COUNTRY_INFO!$T$9:$T$1000="MDA3 (IVM)", COUNTRY_INFO!$T$9:$T$1000, " ") ->  | H25: 0 | K25: 0 | N25: 0 | O25: 0 | P25: 0 | Q25: 0
A26: =IF(COUNTRY_INFO!A26=0," ",COUNTRY_INFO!A26) -> Guinea Bissau | B26: =IF(COUNTRY_INFO!B26=0," ",COUNTRY_INFO!B26) -> Bijagos | C26: =IF(COUNTRY_INFO!C26=0," ",COUNTRY_INFO!C26) -> Caravela | D26: =IF(COUNTRY_INFO!$T$9:$T$1000="MDA3 (IVM)", COUNTRY_INFO!$T$9:$T$1000, " ") ->  | H26: 0 | K26: 0 | N26: 0 | O26: 0 | P26: 0 | Q26: 0
A27: =IF(COUNTRY_INFO!A27=0," ",COUNTRY_INFO!A27) -> Guinea Bissau | B27: =IF(COUNTRY_INFO!B27=0," ",COUNTRY_INFO!B27) -> Bijagos | C27: =IF(COUNTRY_INFO!C27=0," ",COUNTRY_INFO!C27) -> Formosa | D27: =IF(COUNTRY_INFO!$T$9:$T$1000="MDA3 (IVM)", COUNTRY_INFO!$T$9:$T$1000, " ") ->  | H27: 0 | K27: 0 | N27: 0 | O27: 0 | P27: 0 | Q27: 0
A28: =IF(COUNTRY_INFO!A28=0," ",COUNTRY_INFO!A28) -> Guinea Bissau | B28: =IF(COUNTRY_INFO!B28=0," ",COUNTRY_INFO!B28) -> Bijagos | C28: =IF(COUNTRY_INFO!C28=0," ",COUNTRY_INFO!C28) -> Orango Grande | D28: =IF(COUNTRY_INFO!$T$9:$T$1000="MDA3 (IVM)", COUNTRY_INFO!$T$9:$T$1000, " ") ->  | H28: 0 | K28: 0 | N28: 0 | O28: 0 | P28: 0 | Q28: 0
A29: =IF(COUNTRY_INFO!A29=0," ",COUNTRY_INFO!A29) -> Guinea Bissau | B29: =IF(COUNTRY_INFO!B29=0," ",COUNTRY_INFO!B29) -> Bijagos | C29: =IF(COUNTRY_INFO!C29=0," ",COUNTRY_INFO!C29) -> Orango zinho | D29: =IF(COUNTRY_INFO!$T$9:$T$1000="MDA3 (IVM)", COUNTRY_INFO!$T$9:$T$1000, " ") ->  | H29: 0 | K29: 0 | N29: 0 | O29: 0 | P29: 0 | Q29: 0
A30: =IF(COUNTRY_INFO!A30=0," ",COUNTRY_INFO!A30) -> Guinea Bissau | B30: =IF(COUNTRY_INFO!B30=0," ",COUNTRY_INFO!B30) -> Bijagos | C30: =IF(COUNTRY_INFO!C30=0," ",COUNTRY_INFO!C30) -> Soga | D30: =IF(COUNTRY_INFO!$T$9:$T$1000="MDA3 (IVM)", COUNTRY_INFO!$T$9:$T$1000, " ") ->  | H30: 0 | K30: 0 | N30: 0 | O30: 0 | P30: 0 | Q30: 0
A31: =IF(COUNTRY_INFO!A31=0," ",COUNTRY_INFO!A31) -> Guinea Bissau | B31: =IF(COUNTRY_INFO!B31=0," ",COUNTRY_INFO!B31) -> Bijagos | C31: =IF(COUNTRY_INFO!C31=0," ",COUNTRY_INFO!C31) -> Unhocomo | D31: =IF(COUNTRY_INFO!$T$9:$T$1000="MDA3 (IVM)", COUNTRY_INFO!$T$9:$T$1000, " ") ->  | H31: 0 | K31: 0 | N31: 0 | O31: 0 | P31: 0 | Q31: 0
A32: =IF(COUNTRY_INFO!A32=0," ",COUNTRY_INFO!A32) -> Guinea Bissau | B32: =IF(COUNTRY_INFO!B32=0," ",COUNTRY_INFO!B32) -> Bijagos | C32: =IF(COUNTRY_INFO!C32=0," ",COUNTRY_INFO!C32) -> Uno | D32: =IF(COUNTRY_INFO!$T$9:$T$1000="MDA3 (IVM)", COUNTRY_INFO!$T$9:$T$1000, " ") ->  | H32: 0 | K32: 0 | N32: 0 | O32: 0 | P32: 0 | Q32: 0
A33: =IF(COUNTRY_INFO!A33=0," ",COUNTRY_INFO!A33) -> Guinea Bissau | B33: =IF(COUNTRY_INFO!B33=0," ",COUNTRY_INFO!B33) -> Bijagos | C33: =IF(COUNTRY_INFO!C33=0," ",COUNTRY_INFO!C33) -> Uracane | D33: =IF(COUNTRY_INFO!$T$9:$T$1000="MDA3 (IVM)", COUNTRY_INFO!$T$9:$T$1000, " ") ->  | H33: 0 | K33: 0 | N33: 0 | O33: 0 | P33: 0 | Q33: 0
A34: =IF(COUNTRY_INFO!A34=0," ",COUNTRY_INFO!A34) -> Guinea Bissau | B34: =IF(COUNTRY_INFO!B34=0," ",COUNTRY_INFO!B34) -> Biombo | C34: =IF(COUNTRY_INFO!C34=0," ",COUNTRY_INFO!C34) -> BIJIMITA | D34: =IF(COUNTRY_INFO!$T$9:$T$1000="MDA3 (IVM)", COUNTRY_INFO!$T$9:$T$1000, " ") ->  | H34: 0 | K34: 0 | N34: 0 | O34: 0 | P34: 0 | Q34: 0
A35: =IF(COUNTRY_INFO!A35=0," ",COUNTRY_INFO!A35) -> Guinea Bissau | B35: =IF(COUNTRY_INFO!B35=0," ",COUNTRY_INFO!B35) -> Biombo | C35: =IF(COUNTRY_INFO!C35=0," ",COUNTRY_INFO!C35) -> CUMURA | D35: =IF(COUNTRY_INFO!$T$9:$T$1000="MDA3 (IVM)", COUNTRY_INFO!$T$9:$T$1000, " ") ->  | H35: 0 | K35: 0 | N35: 0 | O35: 0 | P35: 0 | Q35: 0
A36: =IF(COUNTRY_INFO!A36=0," ",COUNTRY_INFO!A36) -> Guinea Bissau | B36: =IF(COUNTRY_INFO!B36=0," ",COUNTRY_INFO!B36) -> Biombo | C36: =IF(COUNTRY_INFO!C36=0," ",COUNTRY_INFO!C36) -> DORSE | D36: =IF(COUNTRY_INFO!$T$9:$T$1000="MDA3 (IVM)", COUNTRY_INFO!$T$9:$T$1000, " ") ->  | H36: 0 | K36: 0 | N36: 0 | O36: 0 | P36: 0 | Q36: 0
A37: =IF(COUNTRY_INFO!A37=0," ",COUNTRY_INFO!A37) -> Guinea Bissau | B37: =IF(COUNTRY_INFO!B37=0," ",COUNTRY_INFO!B37) -> Biombo | C37: =IF(COUNTRY_INFO!C37=0," ",COUNTRY_INFO!C37) -> ILONDE | D37: =IF(COUNTRY_INFO!$T$9:$T$1000="MDA3 (IVM)", COUNTRY_INFO!$T$9:$T$1000, " ") ->  | H37: 0 | K37: 0 | N37: 0 | O37: 0 | P37: 0 | Q37: 0
A38: =IF(COUNTRY_INFO!A38=0," ",COUNTRY_INFO!A38) -> Guinea Bissau | B38: =IF(COUNTRY_INFO!B38=0," ",COUNTRY_INFO!B38) -> Biombo | C38: =IF(COUNTRY_INFO!C38=0," ",COUNTRY_INFO!C38) -> ONDAME | D38: =IF(COUNTRY_INFO!$T$9:$T$1000="MDA3 (IVM)", COUNTRY_INFO!$T$9:$T$1000, " ") ->  | H38: 0 | K38: 0 | N38: 0 | O38: 0 | P38: 0 | Q38: 0
A39: =IF(COUNTRY_INFO!A39=0," ",COUNTRY_INFO!A39) -> Guinea Bissau | B39: =IF(COUNTRY_INFO!B39=0," ",COUNTRY_INFO!B39) -> Biombo | C39: =IF(COUNTRY_INFO!C39=0," ",COUNTRY_INFO!C39) -> PRABIS | D39: =IF(COUNTRY_INFO!$T$9:$T$1000="MDA3 (IVM)", COUNTRY_INFO!$T$9:$T$1000, " ") ->  | H39: 0 | K39: 0 | N39: 0 | O39: 0 | P39: 0 | Q39: 0
A40: =IF(COUNTRY_INFO!A40=0," ",COUNTRY_INFO!A40) -> Guinea Bissau | B40: =IF(COUNTRY_INFO!B40=0," ",COUNTRY_INFO!B40) -> Biombo | C40: =IF(COUNTRY_INFO!C40=0," ",COUNTRY_INFO!C40) -> QUINHAMEL | D40: =IF(COUNTRY_INFO!$T$9:$T$1000="MDA3 (IVM)", COUNTRY_INFO!$T$9:$T$1000, " ") ->  | H40: 0 | K40: 0 | N40: 0 | O40: 0 | P40: 0 | Q40: 0
A41: =IF(COUNTRY_INFO!A41=0," ",COUNTRY_INFO!A41) -> Guinea Bissau | B41: =IF(COUNTRY_INFO!B41=0," ",COUNTRY_INFO!B41) -> Biombo | C41: =IF(COUNTRY_INFO!C41=0," ",COUNTRY_INFO!C41) -> SAFIM | D41: =IF(COUNTRY_INFO!$T$9:$T$1000="MDA3 (IVM)", COUNTRY_INFO!$T$9:$T$1000, " ") ->  | H41: 0 | K41: 0 | N41: 0 | O41: 0 | P41: 0 | Q41: 0
A42: =IF(COUNTRY_INFO!A42=0," ",COUNTRY_INFO!A42) -> Guinea Bissau | B42: =IF(COUNTRY_INFO!B42=0," ",COUNTRY_INFO!B42) -> Farim | C42: =IF(COUNTRY_INFO!C42=0," ",COUNTRY_INFO!C42) -> BINTA | D42: =IF(COUNTRY_INFO!$T$9:$T$1000="MDA3 (IVM)", COUNTRY_INFO!$T$9:$T$1000, " ") ->  | H42: 0 | K42: 0 | N42: 0 | O42: 0 | P42: 0 | Q42: 0
A43: =IF(COUNTRY_INFO!A43=0," ",COUNTRY_INFO!A43) -> Guinea Bissau | B43: =IF(COUNTRY_INFO!B43=0," ",COUNTRY_INFO!B43) -> Farim | C43: =IF(COUNTRY_INFO!C43=0," ",COUNTRY_INFO!C43) -> CANDJAMBARI | D43: =IF(COUNTRY_INFO!$T$9:$T$1000="MDA3 (IVM)", COUNTRY_INFO!$T$9:$T$1000, " ") ->  | H43: 0 | K43: 0 | N43: 0 | O43: 0 | P43: 0 | Q43: 0
A44: =IF(COUNTRY_INFO!A44=0," ",COUNTRY_INFO!A44) -> Guinea Bissau | B44: =IF(COUNTRY_INFO!B44=0," ",COUNTRY_INFO!B44) -> Farim | C44: =IF(COUNTRY_INFO!C44=0," ",COUNTRY_INFO!C44) -> CUNTIMA | D44: =IF(COUNTRY_INFO!$T$9:$T$1000="MDA3 (IVM)", COUNTRY_INFO!$T$9:$T$1000, " ") ->  | H44: 0 | K44: 0 | N44: 0 | O44: 0 | P44: 0 | Q44: 0
A45: =IF(COUNTRY_INFO!A45=0," ",COUNTRY_INFO!A45) -> Guinea Bissau | B45: =IF(COUNTRY_INFO!B45=0," ",COUNTRY_INFO!B45) -> Farim | C45: =IF(COUNTRY_INFO!C45=0," ",COUNTRY_INFO!C45) -> FARIM | D45: =IF(COUNTRY_INFO!$T$9:$T$1000="MDA3 (IVM)", COUNTRY_INFO!$T$9:$T$1000, " ") ->  | H45: 0 | K45: 0 | N45: 0 | O45: 0 | P45: 0 | Q45: 0
A46: =IF(COUNTRY_INFO!A46=0," ",COUNTRY_INFO!A46) -> Guinea Bissau | B46: =IF(COUNTRY_INFO!B46=0," ",COUNTRY_INFO!B46) -> Farim | C46: =IF(COUNTRY_INFO!C46=0," ",COUNTRY_INFO!C46) -> GUIDAGE | D46: =IF(COUNTRY_INFO!$T$9:$T$1000="MDA3 (IVM)", COUNTRY_INFO!$T$9:$T$1000, " ") ->  | H46: 0 | K46: 0 | N46: 0 | O46: 0 | P46: 0 | Q46: 0
A47: =IF(COUNTRY_INFO!A47=0," ",COUNTRY_INFO!A47) -> Guinea Bissau | B47: =IF(COUNTRY_INFO!B47=0," ",COUNTRY_INFO!B47) -> Oio | C47: =IF(COUNTRY_INFO!C47=0," ",COUNTRY_INFO!C47) -> BINAR | D47: =IF(COUNTRY_INFO!$T$9:$T$1000="MDA3 (IVM)", COUNTRY_INFO!$T$9:$T$1000, " ") ->  | H47: 0 | K47: 0 | N47: 0 | O47: 0 | P47: 0 | Q47: 0
A48: =IF(COUNTRY_INFO!A48=0," ",COUNTRY_INFO!A48) -> Guinea Bissau | B48: =IF(COUNTRY_INFO!B48=0," ",COUNTRY_INFO!B48) -> Oio | C48: =IF(COUNTRY_INFO!C48=0," ",COUNTRY_INFO!C48) -> BISSORA | D48: =IF(COUNTRY_INFO!$T$9:$T$1000="MDA3 (IVM)", COUNTRY_INFO!$T$9:$T$1000, " ") ->  | H48: 0 | K48: 0 | N48: 0 | O48: 0 | P48: 0 | Q48: 0
A49: =IF(COUNTRY_INFO!A49=0," ",COUNTRY_INFO!A49) -> Guinea Bissau | B49: =IF(COUNTRY_INFO!B49=0," ",COUNTRY_INFO!B49) -> Oio | C49: =IF(COUNTRY_INFO!C49=0," ",COUNTRY_INFO!C49) -> ENCHEIA | D49: =IF(COUNTRY_INFO!$T$9:$T$1000="MDA3 (IVM)", COUNTRY_INFO!$T$9:$T$1000, " ") ->  | H49: 0 | K49: 0 | N49: 0 | O49: 0 | P49: 0 | Q49: 0
A50: =IF(COUNTRY_INFO!A50=0," ",COUNTRY_INFO!A50) -> Guinea Bissau | B50: =IF(COUNTRY_INFO!B50=0," ",COUNTRY_INFO!B50) -> Oio | C50: =IF(COUNTRY_INFO!C50=0," ",COUNTRY_INFO!C50) -> GÃ-MAMUDO | D50: =IF(COUNTRY_INFO!$T$9:$T$1000="MDA3 (IVM)", COUNTRY_INFO!$T$9:$T$1000, " ") ->  | H50: 0 | K50: 0 | N50: 0 | O50: 0 | P50: 0 | Q50: 0
A51: =IF(COUNTRY_INFO!A51=0," ",COUNTRY_INFO!A51) -> Guinea Bissau | B51: =IF(COUNTRY_INFO!B51=0," ",COUNTRY_INFO!B51) -> Oio | C51: =IF(COUNTRY_INFO!C51=0," ",COUNTRY_INFO!C51) -> MANSABA | D51: =IF(COUNTRY_INFO!$T$9:$T$1000="MDA3 (IVM)", COUNTRY_INFO!$T$9:$T$1000, " ") ->  | H51: 0 | K51: 0 | N51: 0 | O51: 0 | P51: 0 | Q51: 0
A52: =IF(COUNTRY_INFO!A52=0," ",COUNTRY_INFO!A52) -> Guinea Bissau | B52: =IF(COUNTRY_INFO!B52=0," ",COUNTRY_INFO!B52) -> Oio | C52: =IF(COUNTRY_INFO!C52=0," ",COUNTRY_INFO!C52) -> MANSOA | D52: =IF(COUNTRY_INFO!$T$9:$T$1000="MDA3 (IVM)", COUNTRY_INFO!$T$9:$T$1000, " ") ->  | H52: 0 | K52: 0 | N52: 0 | O52: 0 | P52: 0 | Q52: 0
A53: =IF(COUNTRY_INFO!A53=0," ",COUNTRY_INFO!A53) -> Guinea Bissau | B53: =IF(COUNTRY_INFO!B53=0," ",COUNTRY_INFO!B53) -> Oio | C53: =IF(COUNTRY_INFO!C53=0," ",COUNTRY_INFO!C53) -> MORES | D53: =IF(COUNTRY_INFO!$T$9:$T$1000="MDA3 (IVM)", COUNTRY_INFO!$T$9:$T$1000, " ") ->  | H53: 0 | K53: 0 | N53: 0 | O53: 0 | P53: 0 | Q53: 0
A54: =IF(COUNTRY_INFO!A54=0," ",COUNTRY_INFO!A54) -> Guinea Bissau | B54: =IF(COUNTRY_INFO!B54=0," ",COUNTRY_INFO!B54) -> Oio | C54: =IF(COUNTRY_INFO!C54=0," ",COUNTRY_INFO!C54) -> NHACRA | D54: =IF(COUNTRY_INFO!$T$9:$T$1000="MDA3 (IVM)", COUNTRY_INFO!$T$9:$T$1000, " ") ->  | H54: 0 | K54: 0 | N54: 0 | O54: 0 | P54: 0 | Q54: 0
A55: =IF(COUNTRY_INFO!A55=0," ",COUNTRY_INFO!A55) -> Guinea Bissau | B55: =IF(COUNTRY_INFO!B55=0," ",COUNTRY_INFO!B55) -> Oio | C55: =IF(COUNTRY_INFO!C55=0," ",COUNTRY_INFO!C55) -> OLOSSATO | D55: =IF(COUNTRY_INFO!$T$9:$T$1000="MDA3 (IVM)", COUNTRY_INFO!$T$9:$T$1000, " ") ->  | H55: 0 | K55: 0 | N55: 0 | O55: 0 | P55: 0 | Q55: 0
A56: =IF(COUNTRY_INFO!A56=0," ",COUNTRY_INFO!A56) -> Guinea Bissau | B56: =IF(COUNTRY_INFO!B56=0," ",COUNTRY_INFO!B56) -> Oio | C56: =IF(COUNTRY_INFO!C56=0," ",COUNTRY_INFO!C56) -> PORTUGOL | D56: =IF(COUNTRY_INFO!$T$9:$T$1000="MDA3 (IVM)", COUNTRY_INFO!$T$9:$T$1000, " ") ->  | H56: 0 | K56: 0 | N56: 0 | O56: 0 | P56: 0 | Q56: 0
A57: =IF(COUNTRY_INFO!A57=0," ",COUNTRY_INFO!A57) -> Guinea Bissau | B57: =IF(COUNTRY_INFO!B57=0," ",COUNTRY_INFO!B57) -> Bolama | C57: =IF(COUNTRY_INFO!C57=0," ",COUNTRY_INFO!C57) -> BOLAMA | D57: =IF(COUNTRY_INFO!$T$9:$T$1000="MDA3 (IVM)", COUNTRY_INFO!$T$9:$T$1000, " ") ->  | H57: 0 | K57: 0 | N57: 0 | O57: 0 | P57: 0 | Q57: 0
A58: =IF(COUNTRY_INFO!A58=0," ",COUNTRY_INFO!A58) -> Guinea Bissau | B58: =IF(COUNTRY_INFO!B58=0," ",COUNTRY_INFO!B58) -> Bolama | C58: =IF(COUNTRY_INFO!C58=0," ",COUNTRY_INFO!C58) -> I. GALINHAS | D58: =IF(COUNTRY_INFO!$T$9:$T$1000="MDA3 (IVM)", COUNTRY_INFO!$T$9:$T$1000, " ") ->  | H58: 0 | K58: 0 | N58: 0 | O58: 0 | P58: 0 | Q58: 0
A59: =IF(COUNTRY_INFO!A59=0," ",COUNTRY_INFO!A59) -> Guinea Bissau | B59: =IF(COUNTRY_INFO!B59=0," ",COUNTRY_INFO!B59) -> Bolama | C59: =IF(COUNTRY_INFO!C59=0," ",COUNTRY_INFO!C59) -> SÃO-JOÃO | D59: =IF(COUNTRY_INFO!$T$9:$T$1000="MDA3 (IVM)", COUNTRY_INFO!$T$9:$T$1000, " ") ->  | H59: 0 | K59: 0 | N59: 0 | O59: 0 | P59: 0 | Q59: 0
A60: =IF(COUNTRY_INFO!A60=0," ",COUNTRY_INFO!A60) -> Guinea Bissau | B60: =IF(COUNTRY_INFO!B60=0," ",COUNTRY_INFO!B60) -> Gabu | C60: =IF(COUNTRY_INFO!C60=0," ",COUNTRY_INFO!C60) -> BAJOCUNDA | D60: =IF(COUNTRY_INFO!$T$9:$T$1000="MDA3 (IVM)", COUNTRY_INFO!$T$9:$T$1000, " ") ->  | H60: 0 | K60: 0 | N60: 0 | O60: 0 | P60: 0 | Q60: 0
A61: =IF(COUNTRY_INFO!A61=0," ",COUNTRY_INFO!A61) -> Guinea Bissau | B61: =IF(COUNTRY_INFO!B61=0," ",COUNTRY_INFO!B61) -> Gabu | C61: =IF(COUNTRY_INFO!C61=0," ",COUNTRY_INFO!C61) -> BELI | D61: =IF(COUNTRY_INFO!$T$9:$T$1000="MDA3 (IVM)", COUNTRY_INFO!$T$9:$T$1000, " ") ->  | H61: 0 | K61: 0 | N61: 0 | O61: 0 | P61: 0 | Q61: 0
A62: =IF(COUNTRY_INFO!A62=0," ",COUNTRY_INFO!A62) -> Guinea Bissau | B62: =IF(COUNTRY_INFO!B62=0," ",COUNTRY_INFO!B62) -> Gabu | C62: =IF(COUNTRY_INFO!C62=0," ",COUNTRY_INFO!C62) -> BURUNTUMA | D62: =IF(COUNTRY_INFO!$T$9:$T$1000="MDA3 (IVM)", COUNTRY_INFO!$T$9:$T$1000, " ") ->  | H62: 0 | K62: 0 | N62: 0 | O62: 0 | P62: 0 | Q62: 0
A63: =IF(COUNTRY_INFO!A63=0," ",COUNTRY_INFO!A63) -> Guinea Bissau | B63: =IF(COUNTRY_INFO!B63=0," ",COUNTRY_INFO!B63) -> Gabu | C63: =IF(COUNTRY_INFO!C63=0," ",COUNTRY_INFO!C63) -> CANJADUDE | D63: =IF(COUNTRY_INFO!$T$9:$T$1000="MDA3 (IVM)", COUNTRY_INFO!$T$9:$T$1000, " ") ->  | H63: 0 | K63: 0 | N63: 0 | O63: 0 | P63: 0 | Q63: 0
A64: =IF(COUNTRY_INFO!A64=0," ",COUNTRY_INFO!A64) -> Guinea Bissau | B64: =IF(COUNTRY_INFO!B64=0," ",COUNTRY_INFO!B64) -> Gabu | C64: =IF(COUNTRY_INFO!C64=0," ",COUNTRY_INFO!C64) -> CANQUELIFA | D64: =IF(COUNTRY_INFO!$T$9:$T$1000="MDA3 (IVM)", COUNTRY_INFO!$T$9:$T$1000, " ") ->  | H64: 0 | K64: 0 | N64: 0 | O64: 0 | P64: 0 | Q64: 0
A65: =IF(COUNTRY_INFO!A65=0," ",COUNTRY_INFO!A65) -> Guinea Bissau | B65: =IF(COUNTRY_INFO!B65=0," ",COUNTRY_INFO!B65) -> Gabu | C65: =IF(COUNTRY_INFO!C65=0," ",COUNTRY_INFO!C65) -> CANSISSE | D65: =IF(COUNTRY_INFO!$T$9:$T$1000="MDA3 (IVM)", COUNTRY_INFO!$T$9:$T$1000, " ") ->  | H65: 0 | K65: 0 | N65: 0 | O65: 0 | P65: 0 | Q65: 0
A66: =IF(COUNTRY_INFO!A66=0," ",COUNTRY_INFO!A66) -> Guinea Bissau | B66: =IF(COUNTRY_INFO!B66=0," ",COUNTRY_INFO!B66) -> Gabu | C66: =IF(COUNTRY_INFO!C66=0," ",COUNTRY_INFO!C66) -> FASSE | D66: =IF(COUNTRY_INFO!$T$9:$T$1000="MDA3 (IVM)", COUNTRY_INFO!$T$9:$T$1000, " ") ->  | H66: 0 | K66: 0 | N66: 0 | O66: 0 | P66: 0 | Q66: 0
A67: =IF(COUNTRY_INFO!A67=0," ",COUNTRY_INFO!A67) -> Guinea Bissau | B67: =IF(COUNTRY_INFO!B67=0," ",COUNTRY_INFO!B67) -> Gabu | C67: =IF(COUNTRY_INFO!C67=0," ",COUNTRY_INFO!C67) -> PAUNCA | D67: =IF(COUNTRY_INFO!$T$9:$T$1000="MDA3 (IVM)", COUNTRY_INFO!$T$9:$T$1000, " ") ->  | H67: 0 | K67: 0 | N67: 0 | O67: 0 | P67: 0 | Q67: 0
A68: =IF(COUNTRY_INFO!A68=0," ",COUNTRY_INFO!A68) -> Guinea Bissau | B68: =IF(COUNTRY_INFO!B68=0," ",COUNTRY_INFO!B68) -> Gabu | C68: =IF(COUNTRY_INFO!C68=0," ",COUNTRY_INFO!C68) -> PITCHE | D68: =IF(COUNTRY_INFO!$T$9:$T$1000="MDA3 (IVM)", COUNTRY_INFO!$T$9:$T$1000, " ") ->  | H68: 0 | K68: 0 | N68: 0 | O68: 0 | P68: 0 | Q68: 0
A69: =IF(COUNTRY_INFO!A69=0," ",COUNTRY_INFO!A69) -> Guinea Bissau | B69: =IF(COUNTRY_INFO!B69=0," ",COUNTRY_INFO!B69) -> Gabu | C69: =IF(COUNTRY_INFO!C69=0," ",COUNTRY_INFO!C69) -> DARA | D69: =IF(COUNTRY_INFO!$T$9:$T$1000="MDA3 (IVM)", COUNTRY_INFO!$T$9:$T$1000, " ") ->  | H69: 0 | K69: 0 | N69: 0 | O69: 0 | P69: 0 | Q69: 0
A70: =IF(COUNTRY_INFO!A70=0," ",COUNTRY_INFO!A70) -> Guinea Bissau | B70: =IF(COUNTRY_INFO!B70=0," ",COUNTRY_INFO!B70) -> Gabu | C70: =IF(COUNTRY_INFO!C70=0," ",COUNTRY_INFO!C70) -> PIRADA | D70: =IF(COUNTRY_INFO!$T$9:$T$1000="MDA3 (IVM)", COUNTRY_INFO!$T$9:$T$1000, " ") ->  | H70: 0 | K70: 0 | N70: 0 | O70: 0 | P70: 0 | Q70: 0
A71: =IF(COUNTRY_INFO!A71=0," ",COUNTRY_INFO!A71) -> Guinea Bissau | B71: =IF(COUNTRY_INFO!B71=0," ",COUNTRY_INFO!B71) -> Gabu | C71: =IF(COUNTRY_INFO!C71=0," ",COUNTRY_INFO!C71) -> DANDUM | D71: =IF(COUNTRY_INFO!$T$9:$T$1000="MDA3 (IVM)", COUNTRY_INFO!$T$9:$T$1000, " ") ->  | H71: 0 | K71: 0 | N71: 0 | O71: 0 | P71: 0 | Q71: 0
A72: =IF(COUNTRY_INFO!A72=0," ",COUNTRY_INFO!A72) -> Guinea Bissau | B72: =IF(COUNTRY_INFO!B72=0," ",COUNTRY_INFO!B72) -> Gabu | C72: =IF(COUNTRY_INFO!C72=0," ",COUNTRY_INFO!C72) -> MANSADJAM | D72: =IF(COUNTRY_INFO!$T$9:$T$1000="MDA3 (IVM)", COUNTRY_INFO!$T$9:$T$1000, " ") ->  | H72: 0 | K72: 0 | N72: 0 | O72: 0 | P72: 0 | Q72: 0
A73: =IF(COUNTRY_INFO!A73=0," ",COUNTRY_INFO!A73) -> Guinea Bissau | B73: =IF(COUNTRY_INFO!B73=0," ",COUNTRY_INFO!B73) -> Gabu | C73: =IF(COUNTRY_INFO!C73=0," ",COUNTRY_INFO!C73) -> SONACO | D73: =IF(COUNTRY_INFO!$T$9:$T$1000="MDA3 (IVM)", COUNTRY_INFO!$T$9:$T$1000, " ") ->  | H73: 0 | K73: 0 | N73: 0 | O73: 0 | P73: 0 | Q73: 0
A74: =IF(COUNTRY_INFO!A74=0," ",COUNTRY_INFO!A74) -> Guinea Bissau | B74: =IF(COUNTRY_INFO!B74=0," ",COUNTRY_INFO!B74) -> Gabu | C74: =IF(COUNTRY_INFO!C74=0," ",COUNTRY_INFO!C74) -> LUGADJOLE | D74: =IF(COUNTRY_INFO!$T$9:$T$1000="MDA3 (IVM)", COUNTRY_INFO!$T$9:$T$1000, " ") ->  | H74: =SUM(F74:G74) -> 0 | K74: =SUM(I74:J74) -> 0 | N74: =SUM(L74:M74) -> 0 | O74: =MAX(I74,L74) -> 0 | P74: =MAX(J74,M74) -> 0 | Q74: =SUM(O74:P74) -> 0 | R74: =IF(F74<>0, IF(MAX(I74,L74)/F74*100=0, "-", MAX(I74,L74)/F74*100), " ") ->  | S74: =IF(G74<>0, IF(MAX(J74,M74)/G74*100=0, "-", MAX(J74,M74)/G74*100), " ") ->  | T74: =IF(H74<>0, IF((MAX(I74,L74)+MAX(J74,M74))/H74*100=0, "-",(MAX(I74,L74)+MAX(J74,M74))/H74*100), " ") -> 
A75: =IF(COUNTRY_INFO!A75=0," ",COUNTRY_INFO!A75) -> Guinea Bissau | B75: =IF(COUNTRY_INFO!B75=0," ",COUNTRY_INFO!B75) -> Gabu | C75: =IF(COUNTRY_INFO!C75=0," ",COUNTRY_INFO!C75) -> GABU | D75: =IF(COUNTRY_INFO!$T$9:$T$1000="MDA3 (IVM)", COUNTRY_INFO!$T$9:$T$1000, " ") ->  | H75: 0 | K75: 0 | N75: 0 | O75: 0 | P75: 0 | Q75: 0
A76: =IF(COUNTRY_INFO!A76=0," ",COUNTRY_INFO!A76) -> Guinea Bissau | B76: =IF(COUNTRY_INFO!B76=0," ",COUNTRY_INFO!B76) -> Gabu | C76: =IF(COUNTRY_INFO!C76=0," ",COUNTRY_INFO!C76) -> CANDJUFA | D76: =IF(COUNTRY_INFO!$T$9:$T$1000="MDA3 (IVM)", COUNTRY_INFO!$T$9:$T$1000, " ") ->  | H76: 0 | K76: 0 | N76: 0 | O76: 0 | P76: 0 | Q76: 0
A77: =IF(COUNTRY_INFO!A77=0," ",COUNTRY_INFO!A77) -> Guinea Bissau | B77: =IF(COUNTRY_INFO!B77=0," ",COUNTRY_INFO!B77) -> Gabu | C77: =IF(COUNTRY_INFO!C77=0," ",COUNTRY_INFO!C77) -> MAFANCO | D77: =IF(COUNTRY_INFO!$T$9:$T$1000="MDA3 (IVM)", COUNTRY_INFO!$T$9:$T$1000, " ") ->  | H77: 0 | K77: 0 | N77: 0 | O77: 0 | P77: 0 | Q77: 0
A78: =IF(COUNTRY_INFO!A78=0," ",COUNTRY_INFO!A78) -> Guinea Bissau | B78: =IF(COUNTRY_INFO!B78=0," ",COUNTRY_INFO!B78) -> Gabu | C78: =IF(COUNTRY_INFO!C78=0," ",COUNTRY_INFO!C78) -> TUMANA | D78: =IF(COUNTRY_INFO!$T$9:$T$1000="MDA3 (IVM)", COUNTRY_INFO!$T$9:$T$1000, " ") ->  | H78: 0 | K78: 0 | N78: 0 | O78: 0 | P78: 0 | Q78: 0
A79: =IF(COUNTRY_INFO!A79=0," ",COUNTRY_INFO!A79) -> Guinea Bissau | B79: =IF(COUNTRY_INFO!B79=0," ",COUNTRY_INFO!B79) -> Bafata | C79: =IF(COUNTRY_INFO!C79=0," ",COUNTRY_INFO!C79) -> Xitole | D79: =IF(COUNTRY_INFO!$T$9:$T$1000="MDA3 (IVM)", COUNTRY_INFO!$T$9:$T$1000, " ") ->  | H79: 0 | K79: 0 | N79: 0 | O79: 0 | P79: 0 | Q79: 0
A80: =IF(COUNTRY_INFO!A80=0," ",COUNTRY_INFO!A80) -> Guinea Bissau | B80: =IF(COUNTRY_INFO!B80=0," ",COUNTRY_INFO!B80) -> Bafata | C80: =IF(COUNTRY_INFO!C80=0," ",COUNTRY_INFO!C80) -> Contubuel | D80: =IF(COUNTRY_INFO!$T$9:$T$1000="MDA3 (IVM)", COUNTRY_INFO!$T$9:$T$1000, " ") ->  | H80: 0 | K80: 0 | N80: 0 | O80: 0 | P80: 0 | Q80: 0
A81: =IF(COUNTRY_INFO!A81=0," ",COUNTRY_INFO!A81) -> Guinea Bissau | B81: =IF(COUNTRY_INFO!B81=0," ",COUNTRY_INFO!B81) -> Bafata | C81: =IF(COUNTRY_INFO!C81=0," ",COUNTRY_INFO!C81) -> Tendinto | D81: =IF(COUNTRY_INFO!$T$9:$T$1000="MDA3 (IVM)", COUNTRY_INFO!$T$9:$T$1000, " ") ->  | H81: 0 | K81: 0 | N81: 0 | O81: 0 | P81: 0 | Q81: 0
A82: =IF(COUNTRY_INFO!A82=0," ",COUNTRY_INFO!A82) -> Guinea Bissau | B82: =IF(COUNTRY_INFO!B82=0," ",COUNTRY_INFO!B82) -> Bafata | C82: =IF(COUNTRY_INFO!C82=0," ",COUNTRY_INFO!C82) -> Geba | D82: =IF(COUNTRY_INFO!$T$9:$T$1000="MDA3 (IVM)", COUNTRY_INFO!$T$9:$T$1000, " ") ->  | H82: 0 | K82: 0 | N82: 0 | O82: 0 | P82: 0 | Q82: 0
A83: =IF(COUNTRY_INFO!A83=0," ",COUNTRY_INFO!A83) -> Guinea Bissau | B83: =IF(COUNTRY_INFO!B83=0," ",COUNTRY_INFO!B83) -> Bafata | C83: =IF(COUNTRY_INFO!C83=0," ",COUNTRY_INFO!C83) -> Tantancosse | D83: =IF(COUNTRY_INFO!$T$9:$T$1000="MDA3 (IVM)", COUNTRY_INFO!$T$9:$T$1000, " ") ->  | H83: 0 | K83: 0 | N83: 0 | O83: 0 | P83: 0 | Q83: 0
A84: =IF(COUNTRY_INFO!A84=0," ",COUNTRY_INFO!A84) -> Guinea Bissau | B84: =IF(COUNTRY_INFO!B84=0," ",COUNTRY_INFO!B84) -> Bafata | C84: =IF(COUNTRY_INFO!C84=0," ",COUNTRY_INFO!C84) -> Ga-mamudo | D84: =IF(COUNTRY_INFO!$T$9:$T$1000="MDA3 (IVM)", COUNTRY_INFO!$T$9:$T$1000, " ") ->  | H84: 0 | K84: 0 | N84: 0 | O84: 0 | P84: 0 | Q84: 0
A85: =IF(COUNTRY_INFO!A85=0," ",COUNTRY_INFO!A85) -> Guinea Bissau | B85: =IF(COUNTRY_INFO!B85=0," ",COUNTRY_INFO!B85) -> Bafata | C85: =IF(COUNTRY_INFO!C85=0," ",COUNTRY_INFO!C85) -> Bambadinca | D85: =IF(COUNTRY_INFO!$T$9:$T$1000="MDA3 (IVM)", COUNTRY_INFO!$T$9:$T$1000, " ") ->  | H85: 0 | K85: 0 | N85: 0 | O85: 0 | P85: 0 | Q85: 0
A86: =IF(COUNTRY_INFO!A86=0," ",COUNTRY_INFO!A86) -> Guinea Bissau | B86: =IF(COUNTRY_INFO!B86=0," ",COUNTRY_INFO!B86) -> Bafata | C86: =IF(COUNTRY_INFO!C86=0," ",COUNTRY_INFO!C86) -> Ga carnes | D86: =IF(COUNTRY_INFO!$T$9:$T$1000="MDA3 (IVM)", COUNTRY_INFO!$T$9:$T$1000, " ") ->  | H86: 0 | K86: 0 | N86: 0 | O86: 0 | P86: 0 | Q86: 0
A87: =IF(COUNTRY_INFO!A87=0," ",COUNTRY_INFO!A87) -> Guinea Bissau | B87: =IF(COUNTRY_INFO!B87=0," ",COUNTRY_INFO!B87) -> Bafata | C87: =IF(COUNTRY_INFO!C87=0," ",COUNTRY_INFO!C87) -> Cambaju | D87: =IF(COUNTRY_INFO!$T$9:$T$1000="MDA3 (IVM)", COUNTRY_INFO!$T$9:$T$1000, " ") ->  | H87: 0 | K87: 0 | N87: 0 | O87: 0 | P87: 0 | Q87: 0
A88: =IF(COUNTRY_INFO!A88=0," ",COUNTRY_INFO!A88) -> Guinea Bissau | B88: =IF(COUNTRY_INFO!B88=0," ",COUNTRY_INFO!B88) -> Bafata | C88: =IF(COUNTRY_INFO!C88=0," ",COUNTRY_INFO!C88) -> Gam ture | D88: =IF(COUNTRY_INFO!$T$9:$T$1000="MDA3 (IVM)", COUNTRY_INFO!$T$9:$T$1000, " ") ->  | H88: 0 | K88: 0 | N88: 0 | O88: 0 | P88: 0 | Q88: 0
A89: =IF(COUNTRY_INFO!A89=0," ",COUNTRY_INFO!A89) -> Guinea Bissau | B89: =IF(COUNTRY_INFO!B89=0," ",COUNTRY_INFO!B89) -> Bafata | C89: =IF(COUNTRY_INFO!C89=0," ",COUNTRY_INFO!C89) -> Sare bacar | D89: =IF(COUNTRY_INFO!$T$9:$T$1000="MDA3 (IVM)", COUNTRY_INFO!$T$9:$T$1000, " ") ->  | H89: 0 | K89: 0 | N89: 0 | O89: 0 | P89: 0 | Q89: 0
A90: =IF(COUNTRY_INFO!A90=0," ",COUNTRY_INFO!A90) -> Guinea Bissau | B90: =IF(COUNTRY_INFO!B90=0," ",COUNTRY_INFO!B90) -> Bafata | C90: =IF(COUNTRY_INFO!C90=0," ",COUNTRY_INFO!C90) -> Fajonquito | D90: =IF(COUNTRY_INFO!$T$9:$T$1000="MDA3 (IVM)", COUNTRY_INFO!$T$9:$T$1000, " ") ->  | H90: 0 | K90: 0 | N90: 0 | O90: 0 | P90: 0 | Q90: 0
A91: =IF(COUNTRY_INFO!A91=0," ",COUNTRY_INFO!A91) -> Guinea Bissau | B91: =IF(COUNTRY_INFO!B91=0," ",COUNTRY_INFO!B91) -> Bafata | C91: =IF(COUNTRY_INFO!C91=0," ",COUNTRY_INFO!C91) -> Cosse | D91: =IF(COUNTRY_INFO!$T$9:$T$1000="MDA3 (IVM)", COUNTRY_INFO!$T$9:$T$1000, " ") ->  | H91: 0 | K91: 0 | N91: 0 | O91: 0 | P91: 0 | Q91: 0
A92: =IF(COUNTRY_INFO!A92=0," ",COUNTRY_INFO!A92) -> Guinea Bissau | B92: =IF(COUNTRY_INFO!B92=0," ",COUNTRY_INFO!B92) -> Bafata | C92: =IF(COUNTRY_INFO!C92=0," ",COUNTRY_INFO!C92) -> Bafata | D92: =IF(COUNTRY_INFO!$T$9:$T$1000="MDA3 (IVM)", COUNTRY_INFO!$T$9:$T$1000, " ") ->  | H92: 0 | K92: 0 | N92: 0 | O92: 0 | P92: 0 | Q92: 0
A93: =IF(COUNTRY_INFO!A93=0," ",COUNTRY_INFO!A93) -> Guinea Bissau | B93: =IF(COUNTRY_INFO!B93=0," ",COUNTRY_INFO!B93) -> Tombali | C93: =IF(COUNTRY_INFO!C93=0," ",COUNTRY_INFO!C93) -> BEDANDA | D93: =IF(COUNTRY_INFO!$T$9:$T$1000="MDA3 (IVM)", COUNTRY_INFO!$T$9:$T$1000, " ") ->  | H93: 0 | K93: 0 | N93: 0 | O93: 0 | P93: 0 | Q93: 0
A94: =IF(COUNTRY_INFO!A94=0," ",COUNTRY_INFO!A94) -> Guinea Bissau | B94: =IF(COUNTRY_INFO!B94=0," ",COUNTRY_INFO!B94) -> Tombali | C94: =IF(COUNTRY_INFO!C94=0," ",COUNTRY_INFO!C94) -> CACINE | D94: =IF(COUNTRY_INFO!$T$9:$T$1000="MDA3 (IVM)", COUNTRY_INFO!$T$9:$T$1000, " ") ->  | H94: 0 | K94: 0 | N94: 0 | O94: 0 | P94: 0 | Q94: 0
A95: =IF(COUNTRY_INFO!A95=0," ",COUNTRY_INFO!A95) -> Guinea Bissau | B95: =IF(COUNTRY_INFO!B95=0," ",COUNTRY_INFO!B95) -> Tombali | C95: =IF(COUNTRY_INFO!C95=0," ",COUNTRY_INFO!C95) -> CALAQUE | D95: =IF(COUNTRY_INFO!$T$9:$T$1000="MDA3 (IVM)", COUNTRY_INFO!$T$9:$T$1000, " ") ->  | H95: 0 | K95: 0 | N95: 0 | O95: 0 | P95: 0 | Q95: 0
A96: =IF(COUNTRY_INFO!A96=0," ",COUNTRY_INFO!A96) -> Guinea Bissau | B96: =IF(COUNTRY_INFO!B96=0," ",COUNTRY_INFO!B96) -> Tombali | C96: =IF(COUNTRY_INFO!C96=0," ",COUNTRY_INFO!C96) -> CATIO | D96: =IF(COUNTRY_INFO!$T$9:$T$1000="MDA3 (IVM)", COUNTRY_INFO!$T$9:$T$1000, " ") ->  | H96: 0 | K96: 0 | N96: 0 | O96: 0 | P96: 0 | Q96: 0
A97: =IF(COUNTRY_INFO!A97=0," ",COUNTRY_INFO!A97) -> Guinea Bissau | B97: =IF(COUNTRY_INFO!B97=0," ",COUNTRY_INFO!B97) -> Tombali | C97: =IF(COUNTRY_INFO!C97=0," ",COUNTRY_INFO!C97) -> KOMO | D97: =IF(COUNTRY_INFO!$T$9:$T$1000="MDA3 (IVM)", COUNTRY_INFO!$T$9:$T$1000, " ") ->  | H97: 0 | K97: 0 | N97: 0 | O97: 0 | P97: 0 | Q97: 0
A98: =IF(COUNTRY_INFO!A98=0," ",COUNTRY_INFO!A98) -> Guinea Bissau | B98: =IF(COUNTRY_INFO!B98=0," ",COUNTRY_INFO!B98) -> Tombali | C98: =IF(COUNTRY_INFO!C98=0," ",COUNTRY_INFO!C98) -> QUEBO | D98: =IF(COUNTRY_INFO!$T$9:$T$1000="MDA3 (IVM)", COUNTRY_INFO!$T$9:$T$1000, " ") ->  | H98: 0 | K98: 0 | N98: 0 | O98: 0 | P98: 0 | Q98: 0
A99: =IF(COUNTRY_INFO!A99=0," ",COUNTRY_INFO!A99) -> Guinea Bissau | B99: =IF(COUNTRY_INFO!B99=0," ",COUNTRY_INFO!B99) -> Tombali | C99: =IF(COUNTRY_INFO!C99=0," ",COUNTRY_INFO!C99) -> SANCONHA | D99: =IF(COUNTRY_INFO!$T$9:$T$1000="MDA3 (IVM)", COUNTRY_INFO!$T$9:$T$1000, " ") ->  | H99: 0 | K99: 0 | N99: 0 | O99: 0 | P99: 0 | Q99: 0
A100: =IF(COUNTRY_INFO!A100=0," ",COUNTRY_INFO!A100) -> Guinea Bissau | B100: =IF(COUNTRY_INFO!B100=0," ",COUNTRY_INFO!B100) -> Tombali | C100: =IF(COUNTRY_INFO!C100=0," ",COUNTRY_INFO!C100) -> TIMBO | D100: =IF(COUNTRY_INFO!$T$9:$T$1000="MDA3 (IVM)", COUNTRY_INFO!$T$9:$T$1000, " ") ->  | H100: 0 | K100: 0 | N100: 0 | O100: 0 | P100: 0 | Q100: 0
A101: =IF(COUNTRY_INFO!A101=0," ",COUNTRY_INFO!A101) -> Guinea Bissau | B101: =IF(COUNTRY_INFO!B101=0," ",COUNTRY_INFO!B101) -> Quinara | C101: =IF(COUNTRY_INFO!C101=0," ",COUNTRY_INFO!C101) -> BRANDÃO | D101: =IF(COUNTRY_INFO!$T$9:$T$1000="MDA3 (IVM)", COUNTRY_INFO!$T$9:$T$1000, " ") ->  | H101: 0 | K101: 0 | N101: 0 | O101: 0 | P101: 0 | Q101: 0
A102: =IF(COUNTRY_INFO!A102=0," ",COUNTRY_INFO!A102) -> Guinea Bissau | B102: =IF(COUNTRY_INFO!B102=0," ",COUNTRY_INFO!B102) -> Quinara | C102: =IF(COUNTRY_INFO!C102=0," ",COUNTRY_INFO!C102) -> BUBA | D102: =IF(COUNTRY_INFO!$T$9:$T$1000="MDA3 (IVM)", COUNTRY_INFO!$T$9:$T$1000, " ") ->  | H102: 0 | K102: 0 | N102: 0 | O102: 0 | P102: 0 | Q102: 0
A103: =IF(COUNTRY_INFO!A103=0," ",COUNTRY_INFO!A103) -> Guinea Bissau | B103: =IF(COUNTRY_INFO!B103=0," ",COUNTRY_INFO!B103) -> Quinara | C103: =IF(COUNTRY_INFO!C103=0," ",COUNTRY_INFO!C103) -> DAR-ES-SALAM | D103: =IF(COUNTRY_INFO!$T$9:$T$1000="MDA3 (IVM)", COUNTRY_INFO!$T$9:$T$1000, " ") ->  | H103: 0 | K103: 0 | N103: 0 | O103: 0 | P103: 0 | Q103: 0
A104: =IF(COUNTRY_INFO!A104=0," ",COUNTRY_INFO!A104) -> Guinea Bissau | B104: =IF(COUNTRY_INFO!B104=0," ",COUNTRY_INFO!B104) -> Quinara | C104: =IF(COUNTRY_INFO!C104=0," ",COUNTRY_INFO!C104) -> EMPADA | D104: =IF(COUNTRY_INFO!$T$9:$T$1000="MDA3 (IVM)", COUNTRY_INFO!$T$9:$T$1000, " ") ->  | H104: 0 | K104: 0 | N104: 0 | O104: 0 | P104: 0 | Q104: 0
A105: =IF(COUNTRY_INFO!A105=0," ",COUNTRY_INFO!A105) -> Guinea Bissau | B105: =IF(COUNTRY_INFO!B105=0," ",COUNTRY_INFO!B105) -> Quinara | C105: =IF(COUNTRY_INFO!C105=0," ",COUNTRY_INFO!C105) -> FULACUNDA | D105: =IF(COUNTRY_INFO!$T$9:$T$1000="MDA3 (IVM)", COUNTRY_INFO!$T$9:$T$1000, " ") ->  | H105: 0 | K105: 0 | N105: 0 | O105: 0 | P105: 0 | Q105: 0
A106: =IF(COUNTRY_INFO!A106=0," ",COUNTRY_INFO!A106) -> Guinea Bissau | B106: =IF(COUNTRY_INFO!B106=0," ",COUNTRY_INFO!B106) -> Quinara | C106: =IF(COUNTRY_INFO!C106=0," ",COUNTRY_INFO!C106) -> TITE | D106: =IF(COUNTRY_INFO!$T$9:$T$1000="MDA3 (IVM)", COUNTRY_INFO!$T$9:$T$1000, " ") ->  | H106: 0 | K106: 0 | N106: 0 | O106: 0 | P106: 0 | Q106: 0
A107: =IF(COUNTRY_INFO!A107=0," ",COUNTRY_INFO!A107) -> Guinea Bissau | B107: =IF(COUNTRY_INFO!B107=0," ",COUNTRY_INFO!B107) -> Cacheu | C107: =IF(COUNTRY_INFO!C107=0," ",COUNTRY_INFO!C107) -> Bará | D107: =IF(COUNTRY_INFO!$T$9:$T$1000="MDA3 (IVM)", COUNTRY_INFO!$T$9:$T$1000, " ") ->  | H107: 0 | K107: 0 | N107: 0 | O107: 0 | P107: 0 | Q107: 0
A108: =IF(COUNTRY_INFO!A108=0," ",COUNTRY_INFO!A108) -> Guinea Bissau | B108: =IF(COUNTRY_INFO!B108=0," ",COUNTRY_INFO!B108) -> Cacheu | C108: =IF(COUNTRY_INFO!C108=0," ",COUNTRY_INFO!C108) -> Barro | D108: =IF(COUNTRY_INFO!$T$9:$T$1000="MDA3 (IVM)", COUNTRY_INFO!$T$9:$T$1000, " ") ->  | H108: 0 | K108: 0 | N108: 0 | O108: 0 | P108: 0 | Q108: 0
A109: =IF(COUNTRY_INFO!A109=0," ",COUNTRY_INFO!A109) -> Guinea Bissau | B109: =IF(COUNTRY_INFO!B109=0," ",COUNTRY_INFO!B109) -> Cacheu | C109: =IF(COUNTRY_INFO!C109=0," ",COUNTRY_INFO!C109) -> Batucar | D109: =IF(COUNTRY_INFO!$T$9:$T$1000="MDA3 (IVM)", COUNTRY_INFO!$T$9:$T$1000, " ") ->  | H109: 0 | K109: 0 | N109: 0 | O109: 0 | P109: 0 | Q109: 0
A110: =IF(COUNTRY_INFO!A110=0," ",COUNTRY_INFO!A110) -> Guinea Bissau | B110: =IF(COUNTRY_INFO!B110=0," ",COUNTRY_INFO!B110) -> Cacheu | C110: =IF(COUNTRY_INFO!C110=0," ",COUNTRY_INFO!C110) -> Begene | D110: =IF(COUNTRY_INFO!$T$9:$T$1000="MDA3 (IVM)", COUNTRY_INFO!$T$9:$T$1000, " ") ->  | H110: 0 | K110: 0 | N110: 0 | O110: 0 | P110: 0 | Q110: 0
A111: =IF(COUNTRY_INFO!A111=0," ",COUNTRY_INFO!A111) -> Guinea Bissau | B111: =IF(COUNTRY_INFO!B111=0," ",COUNTRY_INFO!B111) -> Cacheu | C111: =IF(COUNTRY_INFO!C111=0," ",COUNTRY_INFO!C111) -> Bula | D111: =IF(COUNTRY_INFO!$T$9:$T$1000="MDA3 (IVM)", COUNTRY_INFO!$T$9:$T$1000, " ") ->  | H111: 0 | K111: 0 | N111: 0 | O111: 0 | P111: 0 | Q111: 0
A112: =IF(COUNTRY_INFO!A112=0," ",COUNTRY_INFO!A112) -> Guinea Bissau | B112: =IF(COUNTRY_INFO!B112=0," ",COUNTRY_INFO!B112) -> Cacheu | C112: =IF(COUNTRY_INFO!C112=0," ",COUNTRY_INFO!C112) -> Cacheu | D112: =IF(COUNTRY_INFO!$T$9:$T$1000="MDA3 (IVM)", COUNTRY_INFO!$T$9:$T$1000, " ") ->  | H112: 0 | K112: 0 | N112: 0 | O112: 0 | P112: 0 | Q112: 0
A113: =IF(COUNTRY_INFO!A113=0," ",COUNTRY_INFO!A113) -> Guinea Bissau | B113: =IF(COUNTRY_INFO!B113=0," ",COUNTRY_INFO!B113) -> Cacheu | C113: =IF(COUNTRY_INFO!C113=0," ",COUNTRY_INFO!C113) -> Caió | D113: =IF(COUNTRY_INFO!$T$9:$T$1000="MDA3 (IVM)", COUNTRY_INFO!$T$9:$T$1000, " ") ->  | H113: 0 | K113: 0 | N113: 0 | O113: 0 | P113: 0 | Q113: 0
A114: =IF(COUNTRY_INFO!A114=0," ",COUNTRY_INFO!A114) -> Guinea Bissau | B114: =IF(COUNTRY_INFO!B114=0," ",COUNTRY_INFO!B114) -> Cacheu | C114: =IF(COUNTRY_INFO!C114=0," ",COUNTRY_INFO!C114) -> Calequisse | D114: =IF(COUNTRY_INFO!$T$9:$T$1000="MDA3 (IVM)", COUNTRY_INFO!$T$9:$T$1000, " ") ->  | H114: 0 | K114: 0 | N114: 0 | O114: 0 | P114: 0 | Q114: 0
A115: =IF(COUNTRY_INFO!A115=0," ",COUNTRY_INFO!A115) -> Guinea Bissau | B115: =IF(COUNTRY_INFO!B115=0," ",COUNTRY_INFO!B115) -> Cacheu | C115: =IF(COUNTRY_INFO!C115=0," ",COUNTRY_INFO!C115) -> Canchungo | D115: =IF(COUNTRY_INFO!$T$9:$T$1000="MDA3 (IVM)", COUNTRY_INFO!$T$9:$T$1000, " ") ->  | H115: 0 | K115: 0 | N115: 0 | O115: 0 | P115: 0 | Q115: 0
A116: =IF(COUNTRY_INFO!A116=0," ",COUNTRY_INFO!A116) -> Guinea Bissau | B116: =IF(COUNTRY_INFO!B116=0," ",COUNTRY_INFO!B116) -> Cacheu | C116: =IF(COUNTRY_INFO!C116=0," ",COUNTRY_INFO!C116) -> Carenque | D116: =IF(COUNTRY_INFO!$T$9:$T$1000="MDA3 (IVM)", COUNTRY_INFO!$T$9:$T$1000, " ") ->  | H116: 0 | K116: 0 | N116: 0 | O116: 0 | P116: 0 | Q116: 0
A117: =IF(COUNTRY_INFO!A117=0," ",COUNTRY_INFO!A117) -> Guinea Bissau | B117: =IF(COUNTRY_INFO!B117=0," ",COUNTRY_INFO!B117) -> Cacheu | C117: =IF(COUNTRY_INFO!C117=0," ",COUNTRY_INFO!C117) -> Có | D117: =IF(COUNTRY_INFO!$T$9:$T$1000="MDA3 (IVM)", COUNTRY_INFO!$T$9:$T$1000, " ") ->  | H117: 0 | K117: 0 | N117: 0 | O117: 0 | P117: 0 | Q117: 0
A118: =IF(COUNTRY_INFO!A118=0," ",COUNTRY_INFO!A118) -> Guinea Bissau | B118: =IF(COUNTRY_INFO!B118=0," ",COUNTRY_INFO!B118) -> Cacheu | C118: =IF(COUNTRY_INFO!C118=0," ",COUNTRY_INFO!C118) -> Ingoré | D118: =IF(COUNTRY_INFO!$T$9:$T$1000="MDA3 (IVM)", COUNTRY_INFO!$T$9:$T$1000, " ") ->  | H118: 0 | K118: 0 | N118: 0 | O118: 0 | P118: 0 | Q118: 0
A119: =IF(COUNTRY_INFO!A119=0," ",COUNTRY_INFO!A119) -> Guinea Bissau | B119: =IF(COUNTRY_INFO!B119=0," ",COUNTRY_INFO!B119) -> Cacheu | C119: =IF(COUNTRY_INFO!C119=0," ",COUNTRY_INFO!C119) -> Jeta | D119: =IF(COUNTRY_INFO!$T$9:$T$1000="MDA3 (IVM)", COUNTRY_INFO!$T$9:$T$1000, " ") ->  | H119: 0 | K119: 0 | N119: 0 | O119: 0 | P119: 0 | Q119: 0
A120: =IF(COUNTRY_INFO!A120=0," ",COUNTRY_INFO!A120) -> Guinea Bissau | B120: =IF(COUNTRY_INFO!B120=0," ",COUNTRY_INFO!B120) -> Cacheu | C120: =IF(COUNTRY_INFO!C120=0," ",COUNTRY_INFO!C120) -> Pecixe | D120: =IF(COUNTRY_INFO!$T$9:$T$1000="MDA3 (IVM)", COUNTRY_INFO!$T$9:$T$1000, " ") ->  | H120: 0 | K120: 0 | N120: 0 | O120: 0 | P120: 0 | Q120: 0
A121: =IF(COUNTRY_INFO!A121=0," ",COUNTRY_INFO!A121) -> Guinea Bissau | B121: =IF(COUNTRY_INFO!B121=0," ",COUNTRY_INFO!B121) -> Cacheu | C121: =IF(COUNTRY_INFO!C121=0," ",COUNTRY_INFO!C121) -> Pelundo | D121: =IF(COUNTRY_INFO!$T$9:$T$1000="MDA3 (IVM)", COUNTRY_INFO!$T$9:$T$1000, " ") ->  | H121: 0 | K121: 0 | N121: 0 | O121: 0 | P121: 0 | Q121: 0
A122: =IF(COUNTRY_INFO!A122=0," ",COUNTRY_INFO!A122) -> Guinea Bissau | B122: =IF(COUNTRY_INFO!B122=0," ",COUNTRY_INFO!B122) -> Cacheu | C122: =IF(COUNTRY_INFO!C122=0," ",COUNTRY_INFO!C122) -> S.Domingos | D122: =IF(COUNTRY_INFO!$T$9:$T$1000="MDA3 (IVM)", COUNTRY_INFO!$T$9:$T$1000, " ") ->  | H122: 0 | K122: 0 | N122: 0 | O122: 0 | P122: 0 | Q122: 0
A123: =IF(COUNTRY_INFO!A123=0," ",COUNTRY_INFO!A123) -> Guinea Bissau | B123: =IF(COUNTRY_INFO!B123=0," ",COUNTRY_INFO!B123) -> Cacheu | C123: =IF(COUNTRY_INFO!C123=0," ",COUNTRY_INFO!C123) -> Sedengal | D123: =IF(COUNTRY_INFO!$T$9:$T$1000="MDA3 (IVM)", COUNTRY_INFO!$T$9:$T$1000, " ") ->  | H123: 0 | K123: 0 | N123: 0 | O123: 0 | P123: 0 | Q123: 0
A124: =IF(COUNTRY_INFO!A124=0," ",COUNTRY_INFO!A124) -> Guinea Bissau | B124: =IF(COUNTRY_INFO!B124=0," ",COUNTRY_INFO!B124) -> Cacheu | C124: =IF(COUNTRY_INFO!C124=0," ",COUNTRY_INFO!C124) -> Suzana | D124: =IF(COUNTRY_INFO!$T$9:$T$1000="MDA3 (IVM)", COUNTRY_INFO!$T$9:$T$1000, " ") ->  | H124: 0 | K124: 0 | N124: 0 | O124: 0 | P124: 0 | Q124: 0
A125: =IF(COUNTRY_INFO!A125=0," ",COUNTRY_INFO!A125) -> Guinea Bissau | B125: =IF(COUNTRY_INFO!B125=0," ",COUNTRY_INFO!B125) -> Cacheu | C125: =IF(COUNTRY_INFO!C125=0," ",COUNTRY_INFO!C125) -> Varela | D125: =IF(COUNTRY_INFO!$T$9:$T$1000="MDA3 (IVM)", COUNTRY_INFO!$T$9:$T$1000, " ") ->  | H125: 0 | K125: 0 | N125: 0 | O125: 0 | P125: 0 | Q125: 0

Sheet T1
A1: T 1 - Praziquantel (PZQ) et Albendazole (ALB) ou Mebendazole (MBD)
A2: Structure administrative, population nécessitant une chimioprévention par groupe d'âge, population traitée par groupe d'âge et couverture
A4: TOTAL | G4: =SUM(G$9:G$1000) -> 0 | H4: 0 | I4: 0 | J4: 0 | K4: =SUM(K$9:K$1000) -> 0 | L4: 0 | M4: 0 | N4: 0 | O4: 0 | P4: =IF(G4<>0, IF(L4/G4*100=0, "-", L4/G4*100), " ") ->  | Q4: =IF(OR(I4<>0,H4<>0), IF(M4/MAX(H4,I4)*100=0, "-", M4/MAX(H4,I4)*100), " ") ->  | R4: =IF(J4<>0, IF(N4/J4*100=0, "-", N4/J4*100), " ") ->  | S4: =IF(K4<>0, IF(O4/K4*100=0, "-", O4/K4*100), " ") -> 
A6: Structure administrative du pays | D6: Mise en oeuvre de la CP | E6: Médica-ment | F6: Date | G6: Population ciblée pour T1 | L6: Population traitée | P6: Couverture du Programme (%)
A7: Pays | B7: Région/Département | C7: District | G7: EAPréS (ALB) | H7: EAS (ALB) | I7: EAS (PZQ) | J7: Adultes (PZQ) | K7: Total | L7: EAPréS | M7: EAS | N7: Adultes | O7: Total | P7: EAPréS | Q7: EAS | R7: Adultes | S7: Total
A9: =IF(COUNTRY_INFO!A9=0," ",COUNTRY_INFO!A9) -> Guinea Bissau | B9: =IF(COUNTRY_INFO!B9=0," ",COUNTRY_INFO!B9) -> SAB | C9: =IF(COUNTRY_INFO!C9=0," ",COUNTRY_INFO!C9) -> AJUDA | D9: =IF(OR(COUNTRY_INFO!$T$9:$T$1000="T1 (PZQ+ALB/MBD)",COUNTRY_INFO!$U$9:$U$1000="T1 (PZQ+ALB/MBD)"), "T1 (PZQ+ALB/MBD)", " ") ->  | K9: =MAX(H9:I9)+G9+J9 -> 0 | O9: =SUM(L9:N9) -> 0 | P9: =IF(G9<>0, IF(L9/G9*100=0, "-", L9/G9*100), " ") ->  | Q9: =IF(OR(I9<>0,H9<>0), IF(M9/MAX(H9,I9)*100=0, "-", M9/MAX(H9,I9)*100), " ") ->  | R9: =IF(J9<>0, IF(N9/J9*100=0, "-", N9/J9*100), " ") -> 
A10: =IF(COUNTRY_INFO!A10=0," ",COUNTRY_INFO!A10) -> Guinea Bissau | B10: =IF(COUNTRY_INFO!B10=0," ",COUNTRY_INFO!B10) -> SAB | C10: =IF(COUNTRY_INFO!C10=0," ",COUNTRY_INFO!C10) -> ANTULA | D10: =IF(OR(COUNTRY_INFO!$T$9:$T$1000="T1 (PZQ+ALB/MBD)",COUNTRY_INFO!$U$9:$U$1000="T1 (PZQ+ALB/MBD)"), "T1 (PZQ+ALB/MBD)", " ") ->  | K10: =MAX(H10:I10)+G10+J10 -> 0 | O10: =SUM(L10:N10) -> 0 | P10: =IF(G10<>0, IF(L10/G10*100=0, "-", L10/G10*100), " ") ->  | Q10: =IF(OR(I10<>0,H10<>0), IF(M10/MAX(H10,I10)*100=0, "-", M10/MAX(H10,I10)*100), " ") ->  | R10: =IF(J10<>0, IF(N10/J10*100=0, "-", N10/J10*100), " ") ->  | S10: =IF(K10<>0, IF(O10/K10*100=0, "-", O10/K10*100), " ") -> 
A11: =IF(COUNTRY_INFO!A11=0," ",COUNTRY_INFO!A11) -> Guinea Bissau | B11: =IF(COUNTRY_INFO!B11=0," ",COUNTRY_INFO!B11) -> SAB | C11: =IF(COUNTRY_INFO!C11=0," ",COUNTRY_INFO!C11) -> B. MILITAR | D11: =IF(OR(COUNTRY_INFO!$T$9:$T$1000="T1 (PZQ+ALB/MBD)",COUNTRY_INFO!$U$9:$U$1000="T1 (PZQ+ALB/MBD)"), "T1 (PZQ+ALB/MBD)", " ") ->  | K11: 0 | O11: 0
A12: =IF(COUNTRY_INFO!A12=0," ",COUNTRY_INFO!A12) -> Guinea Bissau | B12: =IF(COUNTRY_INFO!B12=0," ",COUNTRY_INFO!B12) -> SAB | C12: =IF(COUNTRY_INFO!C12=0," ",COUNTRY_INFO!C12) -> BANDIM | D12: =IF(OR(COUNTRY_INFO!$T$9:$T$1000="T1 (PZQ+ALB/MBD)",COUNTRY_INFO!$U$9:$U$1000="T1 (PZQ+ALB/MBD)"), "T1 (PZQ+ALB/MBD)", " ") ->  | K12: 0 | O12: 0
A13: =IF(COUNTRY_INFO!A13=0," ",COUNTRY_INFO!A13) -> Guinea Bissau | B13: =IF(COUNTRY_INFO!B13=0," ",COUNTRY_INFO!B13) -> SAB | C13: =IF(COUNTRY_INFO!C13=0," ",COUNTRY_INFO!C13) -> BELEM | D13: =IF(OR(COUNTRY_INFO!$T$9:$T$1000="T1 (PZQ+ALB/MBD)",COUNTRY_INFO!$U$9:$U$1000="T1 (PZQ+ALB/MBD)"), "T1 (PZQ+ALB/MBD)", " ") ->  | K13: 0 | O13: 0
A14: =IF(COUNTRY_INFO!A14=0," ",COUNTRY_INFO!A14) -> Guinea Bissau | B14: =IF(COUNTRY_INFO!B14=0," ",COUNTRY_INFO!B14) -> SAB | C14: =IF(COUNTRY_INFO!C14=0," ",COUNTRY_INFO!C14) -> CMI | D14: =IF(OR(COUNTRY_INFO!$T$9:$T$1000="T1 (PZQ+ALB/MBD)",COUNTRY_INFO!$U$9:$U$1000="T1 (PZQ+ALB/MBD)"), "T1 (PZQ+ALB/MBD)", " ") ->  | K14: 0 | O14: 0
A15: =IF(COUNTRY_INFO!A15=0," ",COUNTRY_INFO!A15) -> Guinea Bissau | B15: =IF(COUNTRY_INFO!B15=0," ",COUNTRY_INFO!B15) -> SAB | C15: =IF(COUNTRY_INFO!C15=0," ",COUNTRY_INFO!C15) -> CUNTUM | D15: =IF(OR(COUNTRY_INFO!$T$9:$T$1000="T1 (PZQ+ALB/MBD)",COUNTRY_INFO!$U$9:$U$1000="T1 (PZQ+ALB/MBD)"), "T1 (PZQ+ALB/MBD)", " ") ->  | K15: 0 | O15: 0
A16: =IF(COUNTRY_INFO!A16=0," ",COUNTRY_INFO!A16) -> Guinea Bissau | B16: =IF(COUNTRY_INFO!B16=0," ",COUNTRY_INFO!B16) -> SAB | C16: =IF(COUNTRY_INFO!C16=0," ",COUNTRY_INFO!C16) -> LUANDA | D16: =IF(OR(COUNTRY_INFO!$T$9:$T$1000="T1 (PZQ+ALB/MBD)",COUNTRY_INFO!$U$9:$U$1000="T1 (PZQ+ALB/MBD)"), "T1 (PZQ+ALB/MBD)", " ") ->  | K16: 0 | O16: 0
A17: =IF(COUNTRY_INFO!A17=0," ",COUNTRY_INFO!A17) -> Guinea Bissau | B17: =IF(COUNTRY_INFO!B17=0," ",COUNTRY_INFO!B17) -> SAB | C17: =IF(COUNTRY_INFO!C17=0," ",COUNTRY_INFO!C17) -> MISSIRA | D17: =IF(OR(COUNTRY_INFO!$T$9:$T$1000="T1 (PZQ+ALB/MBD)",COUNTRY_INFO!$U$9:$U$1000="T1 (PZQ+ALB/MBD)"), "T1 (PZQ+ALB/MBD)", " ") ->  | K17: 0 | O17: 0
A18: =IF(COUNTRY_INFO!A18=0," ",COUNTRY_INFO!A18) -> Guinea Bissau | B18: =IF(COUNTRY_INFO!B18=0," ",COUNTRY_INFO!B18) -> SAB | C18: =IF(COUNTRY_INFO!C18=0," ",COUNTRY_INFO!C18) -> PEFINE | D18: =IF(OR(COUNTRY_INFO!$T$9:$T$1000="T1 (PZQ+ALB/MBD)",COUNTRY_INFO!$U$9:$U$1000="T1 (PZQ+ALB/MBD)"), "T1 (PZQ+ALB/MBD)", " ") ->  | K18: 0 | O18: 0
A19: =IF(COUNTRY_INFO!A19=0," ",COUNTRY_INFO!A19) -> Guinea Bissau | B19: =IF(COUNTRY_INFO!B19=0," ",COUNTRY_INFO!B19) -> SAB | C19: =IF(COUNTRY_INFO!C19=0," ",COUNTRY_INFO!C19) -> PLACK II | D19: =IF(OR(COUNTRY_INFO!$T$9:$T$1000="T1 (PZQ+ALB/MBD)",COUNTRY_INFO!$U$9:$U$1000="T1 (PZQ+ALB/MBD)"), "T1 (PZQ+ALB/MBD)", " ") ->  | K19: 0 | O19: 0
A20: =IF(COUNTRY_INFO!A20=0," ",COUNTRY_INFO!A20) -> Guinea Bissau | B20: =IF(COUNTRY_INFO!B20=0," ",COUNTRY_INFO!B20) -> SAB | C20: =IF(COUNTRY_INFO!C20=0," ",COUNTRY_INFO!C20) -> QUELELE | D20: =IF(OR(COUNTRY_INFO!$T$9:$T$1000="T1 (PZQ+ALB/MBD)",COUNTRY_INFO!$U$9:$U$1000="T1 (PZQ+ALB/MBD)"), "T1 (PZQ+ALB/MBD)", " ") ->  | K20: 0 | O20: 0
A21: =IF(COUNTRY_INFO!A21=0," ",COUNTRY_INFO!A21) -> Guinea Bissau | B21: =IF(COUNTRY_INFO!B21=0," ",COUNTRY_INFO!B21) -> SAB | C21: =IF(COUNTRY_INFO!C21=0," ",COUNTRY_INFO!C21) -> SANTA LUZIA | D21: =IF(OR(COUNTRY_INFO!$T$9:$T$1000="T1 (PZQ+ALB/MBD)",COUNTRY_INFO!$U$9:$U$1000="T1 (PZQ+ALB/MBD)"), "T1 (PZQ+ALB/MBD)", " ") ->  | K21: 0 | O21: 0
A22: =IF(COUNTRY_INFO!A22=0," ",COUNTRY_INFO!A22) -> Guinea Bissau | B22: =IF(COUNTRY_INFO!B22=0," ",COUNTRY_INFO!B22) -> SAB | C22: =IF(COUNTRY_INFO!C22=0," ",COUNTRY_INFO!C22) -> SINTRA NEMA | D22: =IF(OR(COUNTRY_INFO!$T$9:$T$1000="T1 (PZQ+ALB/MBD)",COUNTRY_INFO!$U$9:$U$1000="T1 (PZQ+ALB/MBD)"), "T1 (PZQ+ALB/MBD)", " ") ->  | K22: 0 | O22: 0
A23: =IF(COUNTRY_INFO!A23=0," ",COUNTRY_INFO!A23) -> Guinea Bissau | B23: =IF(COUNTRY_INFO!B23=0," ",COUNTRY_INFO!B23) -> Bijagos | C23: =IF(COUNTRY_INFO!C23=0," ",COUNTRY_INFO!C23) -> Bubaque | D23: =IF(OR(COUNTRY_INFO!$T$9:$T$1000="T1 (PZQ+ALB/MBD)",COUNTRY_INFO!$U$9:$U$1000="T1 (PZQ+ALB/MBD)"), "T1 (PZQ+ALB/MBD)", " ") ->  | K23: 0 | O23: 0
A24: =IF(COUNTRY_INFO!A24=0," ",COUNTRY_INFO!A24) -> Guinea Bissau | B24: =IF(COUNTRY_INFO!B24=0," ",COUNTRY_INFO!B24) -> Bijagos | C24: =IF(COUNTRY_INFO!C24=0," ",COUNTRY_INFO!C24) -> Canhabaque | D24: =IF(OR(COUNTRY_INFO!$T$9:$T$1000="T1 (PZQ+ALB/MBD)",COUNTRY_INFO!$U$9:$U$1000="T1 (PZQ+ALB/MBD)"), "T1 (PZQ+ALB/MBD)", " ") ->  | K24: 0 | O24: 0
A25: =IF(COUNTRY_INFO!A25=0," ",COUNTRY_INFO!A25) -> Guinea Bissau | B25: =IF(COUNTRY_INFO!B25=0," ",COUNTRY_INFO!B25) -> Bijagos | C25: =IF(COUNTRY_INFO!C25=0," ",COUNTRY_INFO!C25) -> Canogo | D25: =IF(OR(COUNTRY_INFO!$T$9:$T$1000="T1 (PZQ+ALB/MBD)",COUNTRY_INFO!$U$9:$U$1000="T1 (PZQ+ALB/MBD)"), "T1 (PZQ+ALB/MBD)", " ") ->  | K25: 0 | O25: 0
A26: =IF(COUNTRY_INFO!A26=0," ",COUNTRY_INFO!A26) -> Guinea Bissau | B26: =IF(COUNTRY_INFO!B26=0," ",COUNTRY_INFO!B26) -> Bijagos | C26: =IF(COUNTRY_INFO!C26=0," ",COUNTRY_INFO!C26) -> Caravela | D26: =IF(OR(COUNTRY_INFO!$T$9:$T$1000="T1 (PZQ+ALB/MBD)",COUNTRY_INFO!$U$9:$U$1000="T1 (PZQ+ALB/MBD)"), "T1 (PZQ+ALB/MBD)", " ") ->  | K26: 0 | O26: 0
A27: =IF(COUNTRY_INFO!A27=0," ",COUNTRY_INFO!A27) -> Guinea Bissau | B27: =IF(COUNTRY_INFO!B27=0," ",COUNTRY_INFO!B27) -> Bijagos | C27: =IF(COUNTRY_INFO!C27=0," ",COUNTRY_INFO!C27) -> Formosa | D27: =IF(OR(COUNTRY_INFO!$T$9:$T$1000="T1 (PZQ+ALB/MBD)",COUNTRY_INFO!$U$9:$U$1000="T1 (PZQ+ALB/MBD)"), "T1 (PZQ+ALB/MBD)", " ") ->  | K27: 0 | O27: 0
A28: =IF(COUNTRY_INFO!A28=0," ",COUNTRY_INFO!A28) -> Guinea Bissau | B28: =IF(COUNTRY_INFO!B28=0," ",COUNTRY_INFO!B28) -> Bijagos | C28: =IF(COUNTRY_INFO!C28=0," ",COUNTRY_INFO!C28) -> Orango Grande | D28: =IF(OR(COUNTRY_INFO!$T$9:$T$1000="T1 (PZQ+ALB/MBD)",COUNTRY_INFO!$U$9:$U$1000="T1 (PZQ+ALB/MBD)"), "T1 (PZQ+ALB/MBD)", " ") ->  | K28: 0 | O28: 0
A29: =IF(COUNTRY_INFO!A29=0," ",COUNTRY_INFO!A29) -> Guinea Bissau | B29: =IF(COUNTRY_INFO!B29=0," ",COUNTRY_INFO!B29) -> Bijagos | C29: =IF(COUNTRY_INFO!C29=0," ",COUNTRY_INFO!C29) -> Orango zinho | D29: =IF(OR(COUNTRY_INFO!$T$9:$T$1000="T1 (PZQ+ALB/MBD)",COUNTRY_INFO!$U$9:$U$1000="T1 (PZQ+ALB/MBD)"), "T1 (PZQ+ALB/MBD)", " ") ->  | K29: 0 | O29: 0
A30: =IF(COUNTRY_INFO!A30=0," ",COUNTRY_INFO!A30) -> Guinea Bissau | B30: =IF(COUNTRY_INFO!B30=0," ",COUNTRY_INFO!B30) -> Bijagos | C30: =IF(COUNTRY_INFO!C30=0," ",COUNTRY_INFO!C30) -> Soga | D30: =IF(OR(COUNTRY_INFO!$T$9:$T$1000="T1 (PZQ+ALB/MBD)",COUNTRY_INFO!$U$9:$U$1000="T1 (PZQ+ALB/MBD)"), "T1 (PZQ+ALB/MBD)", " ") ->  | K30: 0 | O30: 0
A31: =IF(COUNTRY_INFO!A31=0," ",COUNTRY_INFO!A31) -> Guinea Bissau | B31: =IF(COUNTRY_INFO!B31=0," ",COUNTRY_INFO!B31) -> Bijagos | C31: =IF(COUNTRY_INFO!C31=0," ",COUNTRY_INFO!C31) -> Unhocomo | D31: =IF(OR(COUNTRY_INFO!$T$9:$T$1000="T1 (PZQ+ALB/MBD)",COUNTRY_INFO!$U$9:$U$1000="T1 (PZQ+ALB/MBD)"), "T1 (PZQ+ALB/MBD)", " ") ->  | K31: 0 | O31: 0
A32: =IF(COUNTRY_INFO!A32=0," ",COUNTRY_INFO!A32) -> Guinea Bissau | B32: =IF(COUNTRY_INFO!B32=0," ",COUNTRY_INFO!B32) -> Bijagos | C32: =IF(COUNTRY_INFO!C32=0," ",COUNTRY_INFO!C32) -> Uno | D32: =IF(OR(COUNTRY_INFO!$T$9:$T$1000="T1 (PZQ+ALB/MBD)",COUNTRY_INFO!$U$9:$U$1000="T1 (PZQ+ALB/MBD)"), "T1 (PZQ+ALB/MBD)", " ") ->  | K32: 0 | O32: 0
A33: =IF(COUNTRY_INFO!A33=0," ",COUNTRY_INFO!A33) -> Guinea Bissau | B33: =IF(COUNTRY_INFO!B33=0," ",COUNTRY_INFO!B33) -> Bijagos | C33: =IF(COUNTRY_INFO!C33=0," ",COUNTRY_INFO!C33) -> Uracane | D33: =IF(OR(COUNTRY_INFO!$T$9:$T$1000="T1 (PZQ+ALB/MBD)",COUNTRY_INFO!$U$9:$U$1000="T1 (PZQ+ALB/MBD)"), "T1 (PZQ+ALB/MBD)", " ") ->  | K33: 0 | O33: 0
A34: =IF(COUNTRY_INFO!A34=0," ",COUNTRY_INFO!A34) -> Guinea Bissau | B34: =IF(COUNTRY_INFO!B34=0," ",COUNTRY_INFO!B34) -> Biombo | C34: =IF(COUNTRY_INFO!C34=0," ",COUNTRY_INFO!C34) -> BIJIMITA | D34: =IF(OR(COUNTRY_INFO!$T$9:$T$1000="T1 (PZQ+ALB/MBD)",COUNTRY_INFO!$U$9:$U$1000="T1 (PZQ+ALB/MBD)"), "T1 (PZQ+ALB/MBD)", " ") ->  | K34: 0 | O34: 0
A35: =IF(COUNTRY_INFO!A35=0," ",COUNTRY_INFO!A35) -> Guinea Bissau | B35: =IF(COUNTRY_INFO!B35=0," ",COUNTRY_INFO!B35) -> Biombo | C35: =IF(COUNTRY_INFO!C35=0," ",COUNTRY_INFO!C35) -> CUMURA | D35: =IF(OR(COUNTRY_INFO!$T$9:$T$1000="T1 (PZQ+ALB/MBD)",COUNTRY_INFO!$U$9:$U$1000="T1 (PZQ+ALB/MBD)"), "T1 (PZQ+ALB/MBD)", " ") ->  | K35: 0 | O35: 0
A36: =IF(COUNTRY_INFO!A36=0," ",COUNTRY_INFO!A36) -> Guinea Bissau | B36: =IF(COUNTRY_INFO!B36=0," ",COUNTRY_INFO!B36) -> Biombo | C36: =IF(COUNTRY_INFO!C36=0," ",COUNTRY_INFO!C36) -> DORSE | D36: =IF(OR(COUNTRY_INFO!$T$9:$T$1000="T1 (PZQ+ALB/MBD)",COUNTRY_INFO!$U$9:$U$1000="T1 (PZQ+ALB/MBD)"), "T1 (PZQ+ALB/MBD)", " ") ->  | K36: 0 | O36: 0
A37: =IF(COUNTRY_INFO!A37=0," ",COUNTRY_INFO!A37) -> Guinea Bissau | B37: =IF(COUNTRY_INFO!B37=0," ",COUNTRY_INFO!B37) -> Biombo | C37: =IF(COUNTRY_INFO!C37=0," ",COUNTRY_INFO!C37) -> ILONDE | D37: =IF(OR(COUNTRY_INFO!$T$9:$T$1000="T1 (PZQ+ALB/MBD)",COUNTRY_INFO!$U$9:$U$1000="T1 (PZQ+ALB/MBD)"), "T1 (PZQ+ALB/MBD)", " ") ->  | K37: 0 | O37: 0
A38: =IF(COUNTRY_INFO!A38=0," ",COUNTRY_INFO!A38) -> Guinea Bissau | B38: =IF(COUNTRY_INFO!B38=0," ",COUNTRY_INFO!B38) -> Biombo | C38: =IF(COUNTRY_INFO!C38=0," ",COUNTRY_INFO!C38) -> ONDAME | D38: =IF(OR(COUNTRY_INFO!$T$9:$T$1000="T1 (PZQ+ALB/MBD)",COUNTRY_INFO!$U$9:$U$1000="T1 (PZQ+ALB/MBD)"), "T1 (PZQ+ALB/MBD)", " ") ->  | K38: 0 | O38: 0
A39: =IF(COUNTRY_INFO!A39=0," ",COUNTRY_INFO!A39) -> Guinea Bissau | B39: =IF(COUNTRY_INFO!B39=0," ",COUNTRY_INFO!B39) -> Biombo | C39: =IF(COUNTRY_INFO!C39=0," ",COUNTRY_INFO!C39) -> PRABIS | D39: =IF(OR(COUNTRY_INFO!$T$9:$T$1000="T1 (PZQ+ALB/MBD)",COUNTRY_INFO!$U$9:$U$1000="T1 (PZQ+ALB/MBD)"), "T1 (PZQ+ALB/MBD)", " ") ->  | K39: 0 | O39: 0
A40: =IF(COUNTRY_INFO!A40=0," ",COUNTRY_INFO!A40) -> Guinea Bissau | B40: =IF(COUNTRY_INFO!B40=0," ",COUNTRY_INFO!B40) -> Biombo | C40: =IF(COUNTRY_INFO!C40=0," ",COUNTRY_INFO!C40) -> QUINHAMEL | D40: =IF(OR(COUNTRY_INFO!$T$9:$T$1000="T1 (PZQ+ALB/MBD)",COUNTRY_INFO!$U$9:$U$1000="T1 (PZQ+ALB/MBD)"), "T1 (PZQ+ALB/MBD)", " ") ->  | K40: 0 | O40: 0
A41: =IF(COUNTRY_INFO!A41=0," ",COUNTRY_INFO!A41) -> Guinea Bissau | B41: =IF(COUNTRY_INFO!B41=0," ",COUNTRY_INFO!B41) -> Biombo | C41: =IF(COUNTRY_INFO!C41=0," ",COUNTRY_INFO!C41) -> SAFIM | D41: =IF(OR(COUNTRY_INFO!$T$9:$T$1000="T1 (PZQ+ALB/MBD)",COUNTRY_INFO!$U$9:$U$1000="T1 (PZQ+ALB/MBD)"), "T1 (PZQ+ALB/MBD)", " ") ->  | K41: 0 | O41: 0
A42: =IF(COUNTRY_INFO!A42=0," ",COUNTRY_INFO!A42) -> Guinea Bissau | B42: =IF(COUNTRY_INFO!B42=0," ",COUNTRY_INFO!B42) -> Farim | C42: =IF(COUNTRY_INFO!C42=0," ",COUNTRY_INFO!C42) -> BINTA | D42: =IF(OR(COUNTRY_INFO!$T$9:$T$1000="T1 (PZQ+ALB/MBD)",COUNTRY_INFO!$U$9:$U$1000="T1 (PZQ+ALB/MBD)"), "T1 (PZQ+ALB/MBD)", " ") ->  | K42: 0 | O42: 0
A43: =IF(COUNTRY_INFO!A43=0," ",COUNTRY_INFO!A43) -> Guinea Bissau | B43: =IF(COUNTRY_INFO!B43=0," ",COUNTRY_INFO!B43) -> Farim | C43: =IF(COUNTRY_INFO!C43=0," ",COUNTRY_INFO!C43) -> CANDJAMBARI | D43: =IF(OR(COUNTRY_INFO!$T$9:$T$1000="T1 (PZQ+ALB/MBD)",COUNTRY_INFO!$U$9:$U$1000="T1 (PZQ+ALB/MBD)"), "T1 (PZQ+ALB/MBD)", " ") ->  | K43: 0 | O43: 0
A44: =IF(COUNTRY_INFO!A44=0," ",COUNTRY_INFO!A44) -> Guinea Bissau | B44: =IF(COUNTRY_INFO!B44=0," ",COUNTRY_INFO!B44) -> Farim | C44: =IF(COUNTRY_INFO!C44=0," ",COUNTRY_INFO!C44) -> CUNTIMA | D44: =IF(OR(COUNTRY_INFO!$T$9:$T$1000="T1 (PZQ+ALB/MBD)",COUNTRY_INFO!$U$9:$U$1000="T1 (PZQ+ALB/MBD)"), "T1 (PZQ+ALB/MBD)", " ") ->  | K44: 0 | O44: 0
A45: =IF(COUNTRY_INFO!A45=0," ",COUNTRY_INFO!A45) -> Guinea Bissau | B45: =IF(COUNTRY_INFO!B45=0," ",COUNTRY_INFO!B45) -> Farim | C45: =IF(COUNTRY_INFO!C45=0," ",COUNTRY_INFO!C45) -> FARIM | D45: =IF(OR(COUNTRY_INFO!$T$9:$T$1000="T1 (PZQ+ALB/MBD)",COUNTRY_INFO!$U$9:$U$1000="T1 (PZQ+ALB/MBD)"), "T1 (PZQ+ALB/MBD)", " ") ->  | K45: 0 | O45: 0
A46: =IF(COUNTRY_INFO!A46=0," ",COUNTRY_INFO!A46) -> Guinea Bissau | B46: =IF(COUNTRY_INFO!B46=0," ",COUNTRY_INFO!B46) -> Farim | C46: =IF(COUNTRY_INFO!C46=0," ",COUNTRY_INFO!C46) -> GUIDAGE | D46: =IF(OR(COUNTRY_INFO!$T$9:$T$1000="T1 (PZQ+ALB/MBD)",COUNTRY_INFO!$U$9:$U$1000="T1 (PZQ+ALB/MBD)"), "T1 (PZQ+ALB/MBD)", " ") ->  | K46: 0 | O46: 0
A47: =IF(COUNTRY_INFO!A47=0," ",COUNTRY_INFO!A47) -> Guinea Bissau | B47: =IF(COUNTRY_INFO!B47=0," ",COUNTRY_INFO!B47) -> Oio | C47: =IF(COUNTRY_INFO!C47=0," ",COUNTRY_INFO!C47) -> BINAR | D47: =IF(OR(COUNTRY_INFO!$T$9:$T$1000="T1 (PZQ+ALB/MBD)",COUNTRY_INFO!$U$9:$U$1000="T1 (PZQ+ALB/MBD)"), "T1 (PZQ+ALB/MBD)", " ") ->  | K47: 0 | O47: 0
A48: =IF(COUNTRY_INFO!A48=0," ",COUNTRY_INFO!A48) -> Guinea Bissau | B48: =IF(COUNTRY_INFO!B48=0," ",COUNTRY_INFO!B48) -> Oio | C48: =IF(COUNTRY_INFO!C48=0," ",COUNTRY_INFO!C48) -> BISSORA | D48: =IF(OR(COUNTRY_INFO!$T$9:$T$1000="T1 (PZQ+ALB/MBD)",COUNTRY_INFO!$U$9:$U$1000="T1 (PZQ+ALB/MBD)"), "T1 (PZQ+ALB/MBD)", " ") ->  | K48: 0 | O48: 0
A49: =IF(COUNTRY_INFO!A49=0," ",COUNTRY_INFO!A49) -> Guinea Bissau | B49: =IF(COUNTRY_INFO!B49=0," ",COUNTRY_INFO!B49) -> Oio | C49: =IF(COUNTRY_INFO!C49=0," ",COUNTRY_INFO!C49) -> ENCHEIA | D49: =IF(OR(COUNTRY_INFO!$T$9:$T$1000="T1 (PZQ+ALB/MBD)",COUNTRY_INFO!$U$9:$U$1000="T1 (PZQ+ALB/MBD)"), "T1 (PZQ+ALB/MBD)", " ") ->  | K49: 0 | O49: 0
A50: =IF(COUNTRY_INFO!A50=0," ",COUNTRY_INFO!A50) -> Guinea Bissau | B50: =IF(COUNTRY_INFO!B50=0," ",COUNTRY_INFO!B50) -> Oio | C50: =IF(COUNTRY_INFO!C50=0," ",COUNTRY_INFO!C50) -> GÃ-MAMUDO | D50: =IF(OR(COUNTRY_INFO!$T$9:$T$1000="T1 (PZQ+ALB/MBD)",COUNTRY_INFO!$U$9:$U$1000="T1 (PZQ+ALB/MBD)"), "T1 (PZQ+ALB/MBD)", " ") ->  | K50: 0 | O50: 0
A51: =IF(COUNTRY_INFO!A51=0," ",COUNTRY_INFO!A51) -> Guinea Bissau | B51: =IF(COUNTRY_INFO!B51=0," ",COUNTRY_INFO!B51) -> Oio | C51: =IF(COUNTRY_INFO!C51=0," ",COUNTRY_INFO!C51) -> MANSABA | D51: =IF(OR(COUNTRY_INFO!$T$9:$T$1000="T1 (PZQ+ALB/MBD)",COUNTRY_INFO!$U$9:$U$1000="T1 (PZQ+ALB/MBD)"), "T1 (PZQ+ALB/MBD)", " ") ->  | K51: 0 | O51: 0
A52: =IF(COUNTRY_INFO!A52=0," ",COUNTRY_INFO!A52) -> Guinea Bissau | B52: =IF(COUNTRY_INFO!B52=0," ",COUNTRY_INFO!B52) -> Oio | C52: =IF(COUNTRY_INFO!C52=0," ",COUNTRY_INFO!C52) -> MANSOA | D52: =IF(OR(COUNTRY_INFO!$T$9:$T$1000="T1 (PZQ+ALB/MBD)",COUNTRY_INFO!$U$9:$U$1000="T1 (PZQ+ALB/MBD)"), "T1 (PZQ+ALB/MBD)", " ") ->  | K52: 0 | O52: 0
A53: =IF(COUNTRY_INFO!A53=0," ",COUNTRY_INFO!A53) -> Guinea Bissau | B53: =IF(COUNTRY_INFO!B53=0," ",COUNTRY_INFO!B53) -> Oio | C53: =IF(COUNTRY_INFO!C53=0," ",COUNTRY_INFO!C53) -> MORES | D53: =IF(OR(COUNTRY_INFO!$T$9:$T$1000="T1 (PZQ+ALB/MBD)",COUNTRY_INFO!$U$9:$U$1000="T1 (PZQ+ALB/MBD)"), "T1 (PZQ+ALB/MBD)", " ") ->  | K53: 0 | O53: 0
A54: =IF(COUNTRY_INFO!A54=0," ",COUNTRY_INFO!A54) -> Guinea Bissau | B54: =IF(COUNTRY_INFO!B54=0," ",COUNTRY_INFO!B54) -> Oio | C54: =IF(COUNTRY_INFO!C54=0," ",COUNTRY_INFO!C54) -> NHACRA | D54: =IF(OR(COUNTRY_INFO!$T$9:$T$1000="T1 (PZQ+ALB/MBD)",COUNTRY_INFO!$U$9:$U$1000="T1 (PZQ+ALB/MBD)"), "T1 (PZQ+ALB/MBD)", " ") ->  | K54: 0 | O54: 0
A55: =IF(COUNTRY_INFO!A55=0," ",COUNTRY_INFO!A55) -> Guinea Bissau | B55: =IF(COUNTRY_INFO!B55=0," ",COUNTRY_INFO!B55) -> Oio | C55: =IF(COUNTRY_INFO!C55=0," ",COUNTRY_INFO!C55) -> OLOSSATO | D55: =IF(OR(COUNTRY_INFO!$T$9:$T$1000="T1 (PZQ+ALB/MBD)",COUNTRY_INFO!$U$9:$U$1000="T1 (PZQ+ALB/MBD)"), "T1 (PZQ+ALB/MBD)", " ") ->  | K55: 0 | O55: 0
A56: =IF(COUNTRY_INFO!A56=0," ",COUNTRY_INFO!A56) -> Guinea Bissau | B56: =IF(COUNTRY_INFO!B56=0," ",COUNTRY_INFO!B56) -> Oio | C56: =IF(COUNTRY_INFO!C56=0," ",COUNTRY_INFO!C56) -> PORTUGOL | D56: =IF(OR(COUNTRY_INFO!$T$9:$T$1000="T1 (PZQ+ALB/MBD)",COUNTRY_INFO!$U$9:$U$1000="T1 (PZQ+ALB/MBD)"), "T1 (PZQ+ALB/MBD)", " ") ->  | K56: 0 | O56: 0
A57: =IF(COUNTRY_INFO!A57=0," ",COUNTRY_INFO!A57) -> Guinea Bissau | B57: =IF(COUNTRY_INFO!B57=0," ",COUNTRY_INFO!B57) -> Bolama | C57: =IF(COUNTRY_INFO!C57=0," ",COUNTRY_INFO!C57) -> BOLAMA | D57: =IF(OR(COUNTRY_INFO!$T$9:$T$1000="T1 (PZQ+ALB/MBD)",COUNTRY_INFO!$U$9:$U$1000="T1 (PZQ+ALB/MBD)"), "T1 (PZQ+ALB/MBD)", " ") ->  | K57: 0 | O57: 0
A58: =IF(COUNTRY_INFO!A58=0," ",COUNTRY_INFO!A58) -> Guinea Bissau | B58: =IF(COUNTRY_INFO!B58=0," ",COUNTRY_INFO!B58) -> Bolama | C58: =IF(COUNTRY_INFO!C58=0," ",COUNTRY_INFO!C58) -> I. GALINHAS | D58: =IF(OR(COUNTRY_INFO!$T$9:$T$1000="T1 (PZQ+ALB/MBD)",COUNTRY_INFO!$U$9:$U$1000="T1 (PZQ+ALB/MBD)"), "T1 (PZQ+ALB/MBD)", " ") ->  | K58: 0 | O58: 0
A59: =IF(COUNTRY_INFO!A59=0," ",COUNTRY_INFO!A59) -> Guinea Bissau | B59: =IF(COUNTRY_INFO!B59=0," ",COUNTRY_INFO!B59) -> Bolama | C59: =IF(COUNTRY_INFO!C59=0," ",COUNTRY_INFO!C59) -> SÃO-JOÃO | D59: =IF(OR(COUNTRY_INFO!$T$9:$T$1000="T1 (PZQ+ALB/MBD)",COUNTRY_INFO!$U$9:$U$1000="T1 (PZQ+ALB/MBD)"), "T1 (PZQ+ALB/MBD)", " ") ->  | K59: 0 | O59: 0
A60: =IF(COUNTRY_INFO!A60=0," ",COUNTRY_INFO!A60) -> Guinea Bissau | B60: =IF(COUNTRY_INFO!B60=0," ",COUNTRY_INFO!B60) -> Gabu | C60: =IF(COUNTRY_INFO!C60=0," ",COUNTRY_INFO!C60) -> BAJOCUNDA | D60: =IF(OR(COUNTRY_INFO!$T$9:$T$1000="T1 (PZQ+ALB/MBD)",COUNTRY_INFO!$U$9:$U$1000="T1 (PZQ+ALB/MBD)"), "T1 (PZQ+ALB/MBD)", " ") ->  | K60: 0 | O60: 0
A61: =IF(COUNTRY_INFO!A61=0," ",COUNTRY_INFO!A61) -> Guinea Bissau | B61: =IF(COUNTRY_INFO!B61=0," ",COUNTRY_INFO!B61) -> Gabu | C61: =IF(COUNTRY_INFO!C61=0," ",COUNTRY_INFO!C61) -> BELI | D61: =IF(OR(COUNTRY_INFO!$T$9:$T$1000="T1 (PZQ+ALB/MBD)",COUNTRY_INFO!$U$9:$U$1000="T1 (PZQ+ALB/MBD)"), "T1 (PZQ+ALB/MBD)", " ") ->  | K61: 0 | O61: 0
A62: =IF(COUNTRY_INFO!A62=0," ",COUNTRY_INFO!A62) -> Guinea Bissau | B62: =IF(COUNTRY_INFO!B62=0," ",COUNTRY_INFO!B62) -> Gabu | C62: =IF(COUNTRY_INFO!C62=0," ",COUNTRY_INFO!C62) -> BURUNTUMA | D62: =IF(OR(COUNTRY_INFO!$T$9:$T$1000="T1 (PZQ+ALB/MBD)",COUNTRY_INFO!$U$9:$U$1000="T1 (PZQ+ALB/MBD)"), "T1 (PZQ+ALB/MBD)", " ") ->  | K62: 0 | O62: 0
A63: =IF(COUNTRY_INFO!A63=0," ",COUNTRY_INFO!A63) -> Guinea Bissau | B63: =IF(COUNTRY_INFO!B63=0," ",COUNTRY_INFO!B63) -> Gabu | C63: =IF(COUNTRY_INFO!C63=0," ",COUNTRY_INFO!C63) -> CANJADUDE | D63: =IF(OR(COUNTRY_INFO!$T$9:$T$1000="T1 (PZQ+ALB/MBD)",COUNTRY_INFO!$U$9:$U$1000="T1 (PZQ+ALB/MBD)"), "T1 (PZQ+ALB/MBD)", " ") ->  | K63: 0 | O63: 0
A64: =IF(COUNTRY_INFO!A64=0," ",COUNTRY_INFO!A64) -> Guinea Bissau | B64: =IF(COUNTRY_INFO!B64=0," ",COUNTRY_INFO!B64) -> Gabu | C64: =IF(COUNTRY_INFO!C64=0," ",COUNTRY_INFO!C64) -> CANQUELIFA | D64: =IF(OR(COUNTRY_INFO!$T$9:$T$1000="T1 (PZQ+ALB/MBD)",COUNTRY_INFO!$U$9:$U$1000="T1 (PZQ+ALB/MBD)"), "T1 (PZQ+ALB/MBD)", " ") ->  | K64: 0 | O64: 0
A65: =IF(COUNTRY_INFO!A65=0," ",COUNTRY_INFO!A65) -> Guinea Bissau | B65: =IF(COUNTRY_INFO!B65=0," ",COUNTRY_INFO!B65) -> Gabu | C65: =IF(COUNTRY_INFO!C65=0," ",COUNTRY_INFO!C65) -> CANSISSE | D65: =IF(OR(COUNTRY_INFO!$T$9:$T$1000="T1 (PZQ+ALB/MBD)",COUNTRY_INFO!$U$9:$U$1000="T1 (PZQ+ALB/MBD)"), "T1 (PZQ+ALB/MBD)", " ") ->  | K65: 0 | O65: 0
A66: =IF(COUNTRY_INFO!A66=0," ",COUNTRY_INFO!A66) -> Guinea Bissau | B66: =IF(COUNTRY_INFO!B66=0," ",COUNTRY_INFO!B66) -> Gabu | C66: =IF(COUNTRY_INFO!C66=0," ",COUNTRY_INFO!C66) -> FASSE | D66: =IF(OR(COUNTRY_INFO!$T$9:$T$1000="T1 (PZQ+ALB/MBD)",COUNTRY_INFO!$U$9:$U$1000="T1 (PZQ+ALB/MBD)"), "T1 (PZQ+ALB/MBD)", " ") ->  | K66: 0 | O66: 0
A67: =IF(COUNTRY_INFO!A67=0," ",COUNTRY_INFO!A67) -> Guinea Bissau | B67: =IF(COUNTRY_INFO!B67=0," ",COUNTRY_INFO!B67) -> Gabu | C67: =IF(COUNTRY_INFO!C67=0," ",COUNTRY_INFO!C67) -> PAUNCA | D67: =IF(OR(COUNTRY_INFO!$T$9:$T$1000="T1 (PZQ+ALB/MBD)",COUNTRY_INFO!$U$9:$U$1000="T1 (PZQ+ALB/MBD)"), "T1 (PZQ+ALB/MBD)", " ") ->  | K67: 0 | O67: 0
A68: =IF(COUNTRY_INFO!A68=0," ",COUNTRY_INFO!A68) -> Guinea Bissau | B68: =IF(COUNTRY_INFO!B68=0," ",COUNTRY_INFO!B68) -> Gabu | C68: =IF(COUNTRY_INFO!C68=0," ",COUNTRY_INFO!C68) -> PITCHE | D68: =IF(OR(COUNTRY_INFO!$T$9:$T$1000="T1 (PZQ+ALB/MBD)",COUNTRY_INFO!$U$9:$U$1000="T1 (PZQ+ALB/MBD)"), "T1 (PZQ+ALB/MBD)", " ") ->  | K68: 0 | O68: 0
A69: =IF(COUNTRY_INFO!A69=0," ",COUNTRY_INFO!A69) -> Guinea Bissau | B69: =IF(COUNTRY_INFO!B69=0," ",COUNTRY_INFO!B69) -> Gabu | C69: =IF(COUNTRY_INFO!C69=0," ",COUNTRY_INFO!C69) -> DARA | D69: =IF(OR(COUNTRY_INFO!$T$9:$T$1000="T1 (PZQ+ALB/MBD)",COUNTRY_INFO!$U$9:$U$1000="T1 (PZQ+ALB/MBD)"), "T1 (PZQ+ALB/MBD)", " ") ->  | K69: 0 | O69: 0
A70: =IF(COUNTRY_INFO!A70=0," ",COUNTRY_INFO!A70) -> Guinea Bissau | B70: =IF(COUNTRY_INFO!B70=0," ",COUNTRY_INFO!B70) -> Gabu | C70: =IF(COUNTRY_INFO!C70=0," ",COUNTRY_INFO!C70) -> PIRADA | D70: =IF(OR(COUNTRY_INFO!$T$9:$T$1000="T1 (PZQ+ALB/MBD)",COUNTRY_INFO!$U$9:$U$1000="T1 (PZQ+ALB/MBD)"), "T1 (PZQ+ALB/MBD)", " ") ->  | K70: 0 | O70: 0
A71: =IF(COUNTRY_INFO!A71=0," ",COUNTRY_INFO!A71) -> Guinea Bissau | B71: =IF(COUNTRY_INFO!B71=0," ",COUNTRY_INFO!B71) -> Gabu | C71: =IF(COUNTRY_INFO!C71=0," ",COUNTRY_INFO!C71) -> DANDUM | D71: =IF(OR(COUNTRY_INFO!$T$9:$T$1000="T1 (PZQ+ALB/MBD)",COUNTRY_INFO!$U$9:$U$1000="T1 (PZQ+ALB/MBD)"), "T1 (PZQ+ALB/MBD)", " ") ->  | K71: 0 | O71: 0
A72: =IF(COUNTRY_INFO!A72=0," ",COUNTRY_INFO!A72) -> Guinea Bissau | B72: =IF(COUNTRY_INFO!B72=0," ",COUNTRY_INFO!B72) -> Gabu | C72: =IF(COUNTRY_INFO!C72=0," ",COUNTRY_INFO!C72) -> MANSADJAM | D72: =IF(OR(COUNTRY_INFO!$T$9:$T$1000="T1 (PZQ+ALB/MBD)",COUNTRY_INFO!$U$9:$U$1000="T1 (PZQ+ALB/MBD)"), "T1 (PZQ+ALB/MBD)", " ") ->  | K72: 0 | O72: 0
A73: =IF(COUNTRY_INFO!A73=0," ",COUNTRY_INFO!A73) -> Guinea Bissau | B73: =IF(COUNTRY_INFO!B73=0," ",COUNTRY_INFO!B73) -> Gabu | C73: =IF(COUNTRY_INFO!C73=0," ",COUNTRY_INFO!C73) -> SONACO | D73: =IF(OR(COUNTRY_INFO!$T$9:$T$1000="T1 (PZQ+ALB/MBD)",COUNTRY_INFO!$U$9:$U$1000="T1 (PZQ+ALB/MBD)"), "T1 (PZQ+ALB/MBD)", " ") ->  | K73: 0 | O73: 0
A74: =IF(COUNTRY_INFO!A74=0," ",COUNTRY_INFO!A74) -> Guinea Bissau | B74: =IF(COUNTRY_INFO!B74=0," ",COUNTRY_INFO!B74) -> Gabu | C74: =IF(COUNTRY_INFO!C74=0," ",COUNTRY_INFO!C74) -> LUGADJOLE | D74: =IF(OR(COUNTRY_INFO!$T$9:$T$1000="T1 (PZQ+ALB/MBD)",COUNTRY_INFO!$U$9:$U$1000="T1 (PZQ+ALB/MBD)"), "T1 (PZQ+ALB/MBD)", " ") ->  | K74: =MAX(H74:I74)+G74+J74 -> 0 | O74: =SUM(L74:N74) -> 0 | P74: =IF(G74<>0, IF(L74/G74*100=0, "-", L74/G74*100), " ") ->  | Q74: =IF(OR(I74<>0,H74<>0), IF(M74/MAX(H74,I74)*100=0, "-", M74/MAX(H74,I74)*100), " ") ->  | R74: =IF(J74<>0, IF(N74/J74*100=0, "-", N74/J74*100), " ") ->  | S74: =IF(K74<>0, IF(O74/K74*100=0, "-", O74/K74*100), " ") -> 
A75: =IF(COUNTRY_INFO!A75=0," ",COUNTRY_INFO!A75) -> Guinea Bissau | B75: =IF(COUNTRY_INFO!B75=0," ",COUNTRY_INFO!B75) -> Gabu | C75: =IF(COUNTRY_INFO!C75=0," ",COUNTRY_INFO!C75) -> GABU | D75: =IF(OR(COUNTRY_INFO!$T$9:$T$1000="T1 (PZQ+ALB/MBD)",COUNTRY_INFO!$U$9:$U$1000="T1 (PZQ+ALB/MBD)"), "T1 (PZQ+ALB/MBD)", " ") ->  | K75: 0 | O75: 0
A76: =IF(COUNTRY_INFO!A76=0," ",COUNTRY_INFO!A76) -> Guinea Bissau | B76: =IF(COUNTRY_INFO!B76=0," ",COUNTRY_INFO!B76) -> Gabu | C76: =IF(COUNTRY_INFO!C76=0," ",COUNTRY_INFO!C76) -> CANDJUFA | D76: =IF(OR(COUNTRY_INFO!$T$9:$T$1000="T1 (PZQ+ALB/MBD)",COUNTRY_INFO!$U$9:$U$1000="T1 (PZQ+ALB/MBD)"), "T1 (PZQ+ALB/MBD)", " ") ->  | K76: 0 | O76: 0
A77: =IF(COUNTRY_INFO!A77=0," ",COUNTRY_INFO!A77) -> Guinea Bissau | B77: =IF(COUNTRY_INFO!B77=0," ",COUNTRY_INFO!B77) -> Gabu | C77: =IF(COUNTRY_INFO!C77=0," ",COUNTRY_INFO!C77) -> MAFANCO | D77: =IF(OR(COUNTRY_INFO!$T$9:$T$1000="T1 (PZQ+ALB/MBD)",COUNTRY_INFO!$U$9:$U$1000="T1 (PZQ+ALB/MBD)"), "T1 (PZQ+ALB/MBD)", " ") ->  | K77: 0 | O77: 0
A78: =IF(COUNTRY_INFO!A78=0," ",COUNTRY_INFO!A78) -> Guinea Bissau | B78: =IF(COUNTRY_INFO!B78=0," ",COUNTRY_INFO!B78) -> Gabu | C78: =IF(COUNTRY_INFO!C78=0," ",COUNTRY_INFO!C78) -> TUMANA | D78: =IF(OR(COUNTRY_INFO!$T$9:$T$1000="T1 (PZQ+ALB/MBD)",COUNTRY_INFO!$U$9:$U$1000="T1 (PZQ+ALB/MBD)"), "T1 (PZQ+ALB/MBD)", " ") ->  | K78: 0 | O78: 0
A79: =IF(COUNTRY_INFO!A79=0," ",COUNTRY_INFO!A79) -> Guinea Bissau | B79: =IF(COUNTRY_INFO!B79=0," ",COUNTRY_INFO!B79) -> Bafata | C79: =IF(COUNTRY_INFO!C79=0," ",COUNTRY_INFO!C79) -> Xitole | D79: =IF(OR(COUNTRY_INFO!$T$9:$T$1000="T1 (PZQ+ALB/MBD)",COUNTRY_INFO!$U$9:$U$1000="T1 (PZQ+ALB/MBD)"), "T1 (PZQ+ALB/MBD)", " ") ->  | K79: 0 | O79: 0
A80: =IF(COUNTRY_INFO!A80=0," ",COUNTRY_INFO!A80) -> Guinea Bissau | B80: =IF(COUNTRY_INFO!B80=0," ",COUNTRY_INFO!B80) -> Bafata | C80: =IF(COUNTRY_INFO!C80=0," ",COUNTRY_INFO!C80) -> Contubuel | D80: =IF(OR(COUNTRY_INFO!$T$9:$T$1000="T1 (PZQ+ALB/MBD)",COUNTRY_INFO!$U$9:$U$1000="T1 (PZQ+ALB/MBD)"), "T1 (PZQ+ALB/MBD)", " ") ->  | K80: 0 | O80: 0
A81: =IF(COUNTRY_INFO!A81=0," ",COUNTRY_INFO!A81) -> Guinea Bissau | B81: =IF(COUNTRY_INFO!B81=0," ",COUNTRY_INFO!B81) -> Bafata | C81: =IF(COUNTRY_INFO!C81=0," ",COUNTRY_INFO!C81) -> Tendinto | D81: =IF(OR(COUNTRY_INFO!$T$9:$T$1000="T1 (PZQ+ALB/MBD)",COUNTRY_INFO!$U$9:$U$1000="T1 (PZQ+ALB/MBD)"), "T1 (PZQ+ALB/MBD)", " ") ->  | K81: 0 | O81: 0
A82: =IF(COUNTRY_INFO!A82=0," ",COUNTRY_INFO!A82) -> Guinea Bissau | B82: =IF(COUNTRY_INFO!B82=0," ",COUNTRY_INFO!B82) -> Bafata | C82: =IF(COUNTRY_INFO!C82=0," ",COUNTRY_INFO!C82) -> Geba | D82: =IF(OR(COUNTRY_INFO!$T$9:$T$1000="T1 (PZQ+ALB/MBD)",COUNTRY_INFO!$U$9:$U$1000="T1 (PZQ+ALB/MBD)"), "T1 (PZQ+ALB/MBD)", " ") ->  | K82: 0 | O82: 0
A83: =IF(COUNTRY_INFO!A83=0," ",COUNTRY_INFO!A83) -> Guinea Bissau | B83: =IF(COUNTRY_INFO!B83=0," ",COUNTRY_INFO!B83) -> Bafata | C83: =IF(COUNTRY_INFO!C83=0," ",COUNTRY_INFO!C83) -> Tantancosse | D83: =IF(OR(COUNTRY_INFO!$T$9:$T$1000="T1 (PZQ+ALB/MBD)",COUNTRY_INFO!$U$9:$U$1000="T1 (PZQ+ALB/MBD)"), "T1 (PZQ+ALB/MBD)", " ") ->  | K83: 0 | O83: 0
A84: =IF(COUNTRY_INFO!A84=0," ",COUNTRY_INFO!A84) -> Guinea Bissau | B84: =IF(COUNTRY_INFO!B84=0," ",COUNTRY_INFO!B84) -> Bafata | C84: =IF(COUNTRY_INFO!C84=0," ",COUNTRY_INFO!C84) -> Ga-mamudo | D84: =IF(OR(COUNTRY_INFO!$T$9:$T$1000="T1 (PZQ+ALB/MBD)",COUNTRY_INFO!$U$9:$U$1000="T1 (PZQ+ALB/MBD)"), "T1 (PZQ+ALB/MBD)", " ") ->  | K84: 0 | O84: 0
A85: =IF(COUNTRY_INFO!A85=0," ",COUNTRY_INFO!A85) -> Guinea Bissau | B85: =IF(COUNTRY_INFO!B85=0," ",COUNTRY_INFO!B85) -> Bafata | C85: =IF(COUNTRY_INFO!C85=0," ",COUNTRY_INFO!C85) -> Bambadinca | D85: =IF(OR(COUNTRY_INFO!$T$9:$T$1000="T1 (PZQ+ALB/MBD)",COUNTRY_INFO!$U$9:$U$1000="T1 (PZQ+ALB/MBD)"), "T1 (PZQ+ALB/MBD)", " ") ->  | K85: 0 | O85: 0
A86: =IF(COUNTRY_INFO!A86=0," ",COUNTRY_INFO!A86) -> Guinea Bissau | B86: =IF(COUNTRY_INFO!B86=0," ",COUNTRY_INFO!B86) -> Bafata | C86: =IF(COUNTRY_INFO!C86=0," ",COUNTRY_INFO!C86) -> Ga carnes | D86: =IF(OR(COUNTRY_INFO!$T$9:$T$1000="T1 (PZQ+ALB/MBD)",COUNTRY_INFO!$U$9:$U$1000="T1 (PZQ+ALB/MBD)"), "T1 (PZQ+ALB/MBD)", " ") ->  | K86: 0 | O86: 0
A87: =IF(COUNTRY_INFO!A87=0," ",COUNTRY_INFO!A87) -> Guinea Bissau | B87: =IF(COUNTRY_INFO!B87=0," ",COUNTRY_INFO!B87) -> Bafata | C87: =IF(COUNTRY_INFO!C87=0," ",COUNTRY_INFO!C87) -> Cambaju | D87: =IF(OR(COUNTRY_INFO!$T$9:$T$1000="T1 (PZQ+ALB/MBD)",COUNTRY_INFO!$U$9:$U$1000="T1 (PZQ+ALB/MBD)"), "T1 (PZQ+ALB/MBD)", " ") ->  | K87: 0 | O87: 0
A88: =IF(COUNTRY_INFO!A88=0," ",COUNTRY_INFO!A88) -> Guinea Bissau | B88: =IF(COUNTRY_INFO!B88=0," ",COUNTRY_INFO!B88) -> Bafata | C88: =IF(COUNTRY_INFO!C88=0," ",COUNTRY_INFO!C88) -> Gam ture | D88: =IF(OR(COUNTRY_INFO!$T$9:$T$1000="T1 (PZQ+ALB/MBD)",COUNTRY_INFO!$U$9:$U$1000="T1 (PZQ+ALB/MBD)"), "T1 (PZQ+ALB/MBD)", " ") ->  | K88: 0 | O88: 0
A89: =IF(COUNTRY_INFO!A89=0," ",COUNTRY_INFO!A89) -> Guinea Bissau | B89: =IF(COUNTRY_INFO!B89=0," ",COUNTRY_INFO!B89) -> Bafata | C89: =IF(COUNTRY_INFO!C89=0," ",COUNTRY_INFO!C89) -> Sare bacar | D89: =IF(OR(COUNTRY_INFO!$T$9:$T$1000="T1 (PZQ+ALB/MBD)",COUNTRY_INFO!$U$9:$U$1000="T1 (PZQ+ALB/MBD)"), "T1 (PZQ+ALB/MBD)", " ") ->  | K89: 0 | O89: 0
A90: =IF(COUNTRY_INFO!A90=0," ",COUNTRY_INFO!A90) -> Guinea Bissau | B90: =IF(COUNTRY_INFO!B90=0," ",COUNTRY_INFO!B90) -> Bafata | C90: =IF(COUNTRY_INFO!C90=0," ",COUNTRY_INFO!C90) -> Fajonquito | D90: =IF(OR(COUNTRY_INFO!$T$9:$T$1000="T1 (PZQ+ALB/MBD)",COUNTRY_INFO!$U$9:$U$1000="T1 (PZQ+ALB/MBD)"), "T1 (PZQ+ALB/MBD)", " ") ->  | K90: 0 | O90: 0
A91: =IF(COUNTRY_INFO!A91=0," ",COUNTRY_INFO!A91) -> Guinea Bissau | B91: =IF(COUNTRY_INFO!B91=0," ",COUNTRY_INFO!B91) -> Bafata | C91: =IF(COUNTRY_INFO!C91=0," ",COUNTRY_INFO!C91) -> Cosse | D91: =IF(OR(COUNTRY_INFO!$T$9:$T$1000="T1 (PZQ+ALB/MBD)",COUNTRY_INFO!$U$9:$U$1000="T1 (PZQ+ALB/MBD)"), "T1 (PZQ+ALB/MBD)", " ") ->  | K91: 0 | O91: 0
A92: =IF(COUNTRY_INFO!A92=0," ",COUNTRY_INFO!A92) -> Guinea Bissau | B92: =IF(COUNTRY_INFO!B92=0," ",COUNTRY_INFO!B92) -> Bafata | C92: =IF(COUNTRY_INFO!C92=0," ",COUNTRY_INFO!C92) -> Bafata | D92: =IF(OR(COUNTRY_INFO!$T$9:$T$1000="T1 (PZQ+ALB/MBD)",COUNTRY_INFO!$U$9:$U$1000="T1 (PZQ+ALB/MBD)"), "T1 (PZQ+ALB/MBD)", " ") ->  | K92: 0 | O92: 0
A93: =IF(COUNTRY_INFO!A93=0," ",COUNTRY_INFO!A93) -> Guinea Bissau | B93: =IF(COUNTRY_INFO!B93=0," ",COUNTRY_INFO!B93) -> Tombali | C93: =IF(COUNTRY_INFO!C93=0," ",COUNTRY_INFO!C93) -> BEDANDA | D93: =IF(OR(COUNTRY_INFO!$T$9:$T$1000="T1 (PZQ+ALB/MBD)",COUNTRY_INFO!$U$9:$U$1000="T1 (PZQ+ALB/MBD)"), "T1 (PZQ+ALB/MBD)", " ") ->  | K93: 0 | O93: 0
A94: =IF(COUNTRY_INFO!A94=0," ",COUNTRY_INFO!A94) -> Guinea Bissau | B94: =IF(COUNTRY_INFO!B94=0," ",COUNTRY_INFO!B94) -> Tombali | C94: =IF(COUNTRY_INFO!C94=0," ",COUNTRY_INFO!C94) -> CACINE | D94: =IF(OR(COUNTRY_INFO!$T$9:$T$1000="T1 (PZQ+ALB/MBD)",COUNTRY_INFO!$U$9:$U$1000="T1 (PZQ+ALB/MBD)"), "T1 (PZQ+ALB/MBD)", " ") ->  | K94: 0 | O94: 0
A95: =IF(COUNTRY_INFO!A95=0," ",COUNTRY_INFO!A95) -> Guinea Bissau | B95: =IF(COUNTRY_INFO!B95=0," ",COUNTRY_INFO!B95) -> Tombali | C95: =IF(COUNTRY_INFO!C95=0," ",COUNTRY_INFO!C95) -> CALAQUE | D95: =IF(OR(COUNTRY_INFO!$T$9:$T$1000="T1 (PZQ+ALB/MBD)",COUNTRY_INFO!$U$9:$U$1000="T1 (PZQ+ALB/MBD)"), "T1 (PZQ+ALB/MBD)", " ") ->  | K95: 0 | O95: 0
A96: =IF(COUNTRY_INFO!A96=0," ",COUNTRY_INFO!A96) -> Guinea Bissau | B96: =IF(COUNTRY_INFO!B96=0," ",COUNTRY_INFO!B96) -> Tombali | C96: =IF(COUNTRY_INFO!C96=0," ",COUNTRY_INFO!C96) -> CATIO | D96: =IF(OR(COUNTRY_INFO!$T$9:$T$1000="T1 (PZQ+ALB/MBD)",COUNTRY_INFO!$U$9:$U$1000="T1 (PZQ+ALB/MBD)"), "T1 (PZQ+ALB/MBD)", " ") ->  | K96: 0 | O96: 0
A97: =IF(COUNTRY_INFO!A97=0," ",COUNTRY_INFO!A97) -> Guinea Bissau | B97: =IF(COUNTRY_INFO!B97=0," ",COUNTRY_INFO!B97) -> Tombali | C97: =IF(COUNTRY_INFO!C97=0," ",COUNTRY_INFO!C97) -> KOMO | D97: =IF(OR(COUNTRY_INFO!$T$9:$T$1000="T1 (PZQ+ALB/MBD)",COUNTRY_INFO!$U$9:$U$1000="T1 (PZQ+ALB/MBD)"), "T1 (PZQ+ALB/MBD)", " ") ->  | K97: 0 | O97: 0
A98: =IF(COUNTRY_INFO!A98=0," ",COUNTRY_INFO!A98) -> Guinea Bissau | B98: =IF(COUNTRY_INFO!B98=0," ",COUNTRY_INFO!B98) -> Tombali | C98: =IF(COUNTRY_INFO!C98=0," ",COUNTRY_INFO!C98) -> QUEBO | D98: =IF(OR(COUNTRY_INFO!$T$9:$T$1000="T1 (PZQ+ALB/MBD)",COUNTRY_INFO!$U$9:$U$1000="T1 (PZQ+ALB/MBD)"), "T1 (PZQ+ALB/MBD)", " ") ->  | K98: 0 | O98: 0
A99: =IF(COUNTRY_INFO!A99=0," ",COUNTRY_INFO!A99) -> Guinea Bissau | B99: =IF(COUNTRY_INFO!B99=0," ",COUNTRY_INFO!B99) -> Tombali | C99: =IF(COUNTRY_INFO!C99=0," ",COUNTRY_INFO!C99) -> SANCONHA | D99: =IF(OR(COUNTRY_INFO!$T$9:$T$1000="T1 (PZQ+ALB/MBD)",COUNTRY_INFO!$U$9:$U$1000="T1 (PZQ+ALB/MBD)"), "T1 (PZQ+ALB/MBD)", " ") ->  | K99: 0 | O99: 0
A100: =IF(COUNTRY_INFO!A100=0," ",COUNTRY_INFO!A100) -> Guinea Bissau | B100: =IF(COUNTRY_INFO!B100=0," ",COUNTRY_INFO!B100) -> Tombali | C100: =IF(COUNTRY_INFO!C100=0," ",COUNTRY_INFO!C100) -> TIMBO | D100: =IF(OR(COUNTRY_INFO!$T$9:$T$1000="T1 (PZQ+ALB/MBD)",COUNTRY_INFO!$U$9:$U$1000="T1 (PZQ+ALB/MBD)"), "T1 (PZQ+ALB/MBD)", " ") ->  | K100: 0 | O100: 0
A101: =IF(COUNTRY_INFO!A101=0," ",COUNTRY_INFO!A101) -> Guinea Bissau | B101: =IF(COUNTRY_INFO!B101=0," ",COUNTRY_INFO!B101) -> Quinara | C101: =IF(COUNTRY_INFO!C101=0," ",COUNTRY_INFO!C101) -> BRANDÃO | D101: =IF(OR(COUNTRY_INFO!$T$9:$T$1000="T1 (PZQ+ALB/MBD)",COUNTRY_INFO!$U$9:$U$1000="T1 (PZQ+ALB/MBD)"), "T1 (PZQ+ALB/MBD)", " ") ->  | K101: 0 | O101: 0
A102: =IF(COUNTRY_INFO!A102=0," ",COUNTRY_INFO!A102) -> Guinea Bissau | B102: =IF(COUNTRY_INFO!B102=0," ",COUNTRY_INFO!B102) -> Quinara | C102: =IF(COUNTRY_INFO!C102=0," ",COUNTRY_INFO!C102) -> BUBA | D102: =IF(OR(COUNTRY_INFO!$T$9:$T$1000="T1 (PZQ+ALB/MBD)",COUNTRY_INFO!$U$9:$U$1000="T1 (PZQ+ALB/MBD)"), "T1 (PZQ+ALB/MBD)", " ") ->  | K102: 0 | O102: 0
A103: =IF(COUNTRY_INFO!A103=0," ",COUNTRY_INFO!A103) -> Guinea Bissau | B103: =IF(COUNTRY_INFO!B103=0," ",COUNTRY_INFO!B103) -> Quinara | C103: =IF(COUNTRY_INFO!C103=0," ",COUNTRY_INFO!C103) -> DAR-ES-SALAM | D103: =IF(OR(COUNTRY_INFO!$T$9:$T$1000="T1 (PZQ+ALB/MBD)",COUNTRY_INFO!$U$9:$U$1000="T1 (PZQ+ALB/MBD)"), "T1 (PZQ+ALB/MBD)", " ") ->  | K103: 0 | O103: 0
A104: =IF(COUNTRY_INFO!A104=0," ",COUNTRY_INFO!A104) -> Guinea Bissau | B104: =IF(COUNTRY_INFO!B104=0," ",COUNTRY_INFO!B104) -> Quinara | C104: =IF(COUNTRY_INFO!C104=0," ",COUNTRY_INFO!C104) -> EMPADA | D104: =IF(OR(COUNTRY_INFO!$T$9:$T$1000="T1 (PZQ+ALB/MBD)",COUNTRY_INFO!$U$9:$U$1000="T1 (PZQ+ALB/MBD)"), "T1 (PZQ+ALB/MBD)", " ") ->  | K104: 0 | O104: 0
A105: =IF(COUNTRY_INFO!A105=0," ",COUNTRY_INFO!A105) -> Guinea Bissau | B105: =IF(COUNTRY_INFO!B105=0," ",COUNTRY_INFO!B105) -> Quinara | C105: =IF(COUNTRY_INFO!C105=0," ",COUNTRY_INFO!C105) -> FULACUNDA | D105: =IF(OR(COUNTRY_INFO!$T$9:$T$1000="T1 (PZQ+ALB/MBD)",COUNTRY_INFO!$U$9:$U$1000="T1 (PZQ+ALB/MBD)"), "T1 (PZQ+ALB/MBD)", " ") ->  | K105: 0 | O105: 0
A106: =IF(COUNTRY_INFO!A106=0," ",COUNTRY_INFO!A106) -> Guinea Bissau | B106: =IF(COUNTRY_INFO!B106=0," ",COUNTRY_INFO!B106) -> Quinara | C106: =IF(COUNTRY_INFO!C106=0," ",COUNTRY_INFO!C106) -> TITE | D106: =IF(OR(COUNTRY_INFO!$T$9:$T$1000="T1 (PZQ+ALB/MBD)",COUNTRY_INFO!$U$9:$U$1000="T1 (PZQ+ALB/MBD)"), "T1 (PZQ+ALB/MBD)", " ") ->  | K106: 0 | O106: 0
A107: =IF(COUNTRY_INFO!A107=0," ",COUNTRY_INFO!A107) -> Guinea Bissau | B107: =IF(COUNTRY_INFO!B107=0," ",COUNTRY_INFO!B107) -> Cacheu | C107: =IF(COUNTRY_INFO!C107=0," ",COUNTRY_INFO!C107) -> Bará | D107: =IF(OR(COUNTRY_INFO!$T$9:$T$1000="T1 (PZQ+ALB/MBD)",COUNTRY_INFO!$U$9:$U$1000="T1 (PZQ+ALB/MBD)"), "T1 (PZQ+ALB/MBD)", " ") ->  | K107: 0 | O107: 0
A108: =IF(COUNTRY_INFO!A108=0," ",COUNTRY_INFO!A108) -> Guinea Bissau | B108: =IF(COUNTRY_INFO!B108=0," ",COUNTRY_INFO!B108) -> Cacheu | C108: =IF(COUNTRY_INFO!C108=0," ",COUNTRY_INFO!C108) -> Barro | D108: =IF(OR(COUNTRY_INFO!$T$9:$T$1000="T1 (PZQ+ALB/MBD)",COUNTRY_INFO!$U$9:$U$1000="T1 (PZQ+ALB/MBD)"), "T1 (PZQ+ALB/MBD)", " ") ->  | K108: 0 | O108: 0
A109: =IF(COUNTRY_INFO!A109=0," ",COUNTRY_INFO!A109) -> Guinea Bissau | B109: =IF(COUNTRY_INFO!B109=0," ",COUNTRY_INFO!B109) -> Cacheu | C109: =IF(COUNTRY_INFO!C109=0," ",COUNTRY_INFO!C109) -> Batucar | D109: =IF(OR(COUNTRY_INFO!$T$9:$T$1000="T1 (PZQ+ALB/MBD)",COUNTRY_INFO!$U$9:$U$1000="T1 (PZQ+ALB/MBD)"), "T1 (PZQ+ALB/MBD)", " ") ->  | K109: 0 | O109: 0
A110: =IF(COUNTRY_INFO!A110=0," ",COUNTRY_INFO!A110) -> Guinea Bissau | B110: =IF(COUNTRY_INFO!B110=0," ",COUNTRY_INFO!B110) -> Cacheu | C110: =IF(COUNTRY_INFO!C110=0," ",COUNTRY_INFO!C110) -> Begene | D110: =IF(OR(COUNTRY_INFO!$T$9:$T$1000="T1 (PZQ+ALB/MBD)",COUNTRY_INFO!$U$9:$U$1000="T1 (PZQ+ALB/MBD)"), "T1 (PZQ+ALB/MBD)", " ") ->  | K110: 0 | O110: 0
A111: =IF(COUNTRY_INFO!A111=0," ",COUNTRY_INFO!A111) -> Guinea Bissau | B111: =IF(COUNTRY_INFO!B111=0," ",COUNTRY_INFO!B111) -> Cacheu | C111: =IF(COUNTRY_INFO!C111=0," ",COUNTRY_INFO!C111) -> Bula | D111: =IF(OR(COUNTRY_INFO!$T$9:$T$1000="T1 (PZQ+ALB/MBD)",COUNTRY_INFO!$U$9:$U$1000="T1 (PZQ+ALB/MBD)"), "T1 (PZQ+ALB/MBD)", " ") ->  | K111: 0 | O111: 0
A112: =IF(COUNTRY_INFO!A112=0," ",COUNTRY_INFO!A112) -> Guinea Bissau | B112: =IF(COUNTRY_INFO!B112=0," ",COUNTRY_INFO!B112) -> Cacheu | C112: =IF(COUNTRY_INFO!C112=0," ",COUNTRY_INFO!C112) -> Cacheu | D112: =IF(OR(COUNTRY_INFO!$T$9:$T$1000="T1 (PZQ+ALB/MBD)",COUNTRY_INFO!$U$9:$U$1000="T1 (PZQ+ALB/MBD)"), "T1 (PZQ+ALB/MBD)", " ") ->  | K112: 0 | O112: 0
A113: =IF(COUNTRY_INFO!A113=0," ",COUNTRY_INFO!A113) -> Guinea Bissau | B113: =IF(COUNTRY_INFO!B113=0," ",COUNTRY_INFO!B113) -> Cacheu | C113: =IF(COUNTRY_INFO!C113=0," ",COUNTRY_INFO!C113) -> Caió | D113: =IF(OR(COUNTRY_INFO!$T$9:$T$1000="T1 (PZQ+ALB/MBD)",COUNTRY_INFO!$U$9:$U$1000="T1 (PZQ+ALB/MBD)"), "T1 (PZQ+ALB/MBD)", " ") ->  | K113: 0 | O113: 0
A114: =IF(COUNTRY_INFO!A114=0," ",COUNTRY_INFO!A114) -> Guinea Bissau | B114: =IF(COUNTRY_INFO!B114=0," ",COUNTRY_INFO!B114) -> Cacheu | C114: =IF(COUNTRY_INFO!C114=0," ",COUNTRY_INFO!C114) -> Calequisse | D114: =IF(OR(COUNTRY_INFO!$T$9:$T$1000="T1 (PZQ+ALB/MBD)",COUNTRY_INFO!$U$9:$U$1000="T1 (PZQ+ALB/MBD)"), "T1 (PZQ+ALB/MBD)", " ") ->  | K114: 0 | O114: 0
A115: =IF(COUNTRY_INFO!A115=0," ",COUNTRY_INFO!A115) -> Guinea Bissau | B115: =IF(COUNTRY_INFO!B115=0," ",COUNTRY_INFO!B115) -> Cacheu | C115: =IF(COUNTRY_INFO!C115=0," ",COUNTRY_INFO!C115) -> Canchungo | D115: =IF(OR(COUNTRY_INFO!$T$9:$T$1000="T1 (PZQ+ALB/MBD)",COUNTRY_INFO!$U$9:$U$1000="T1 (PZQ+ALB/MBD)"), "T1 (PZQ+ALB/MBD)", " ") ->  | K115: 0 | O115: 0
A116: =IF(COUNTRY_INFO!A116=0," ",COUNTRY_INFO!A116) -> Guinea Bissau | B116: =IF(COUNTRY_INFO!B116=0," ",COUNTRY_INFO!B116) -> Cacheu | C116: =IF(COUNTRY_INFO!C116=0," ",COUNTRY_INFO!C116) -> Carenque | D116: =IF(OR(COUNTRY_INFO!$T$9:$T$1000="T1 (PZQ+ALB/MBD)",COUNTRY_INFO!$U$9:$U$1000="T1 (PZQ+ALB/MBD)"), "T1 (PZQ+ALB/MBD)", " ") ->  | K116: 0 | O116: 0
A117: =IF(COUNTRY_INFO!A117=0," ",COUNTRY_INFO!A117) -> Guinea Bissau | B117: =IF(COUNTRY_INFO!B117=0," ",COUNTRY_INFO!B117) -> Cacheu | C117: =IF(COUNTRY_INFO!C117=0," ",COUNTRY_INFO!C117) -> Có | D117: =IF(OR(COUNTRY_INFO!$T$9:$T$1000="T1 (PZQ+ALB/MBD)",COUNTRY_INFO!$U$9:$U$1000="T1 (PZQ+ALB/MBD)"), "T1 (PZQ+ALB/MBD)", " ") ->  | K117: 0 | O117: 0
A118: =IF(COUNTRY_INFO!A118=0," ",COUNTRY_INFO!A118) -> Guinea Bissau | B118: =IF(COUNTRY_INFO!B118=0," ",COUNTRY_INFO!B118) -> Cacheu | C118: =IF(COUNTRY_INFO!C118=0," ",COUNTRY_INFO!C118) -> Ingoré | D118: =IF(OR(COUNTRY_INFO!$T$9:$T$1000="T1 (PZQ+ALB/MBD)",COUNTRY_INFO!$U$9:$U$1000="T1 (PZQ+ALB/MBD)"), "T1 (PZQ+ALB/MBD)", " ") ->  | K118: 0 | O118: 0
A119: =IF(COUNTRY_INFO!A119=0," ",COUNTRY_INFO!A119) -> Guinea Bissau | B119: =IF(COUNTRY_INFO!B119=0," ",COUNTRY_INFO!B119) -> Cacheu | C119: =IF(COUNTRY_INFO!C119=0," ",COUNTRY_INFO!C119) -> Jeta | D119: =IF(OR(COUNTRY_INFO!$T$9:$T$1000="T1 (PZQ+ALB/MBD)",COUNTRY_INFO!$U$9:$U$1000="T1 (PZQ+ALB/MBD)"), "T1 (PZQ+ALB/MBD)", " ") ->  | K119: 0 | O119: 0
A120: =IF(COUNTRY_INFO!A120=0," ",COUNTRY_INFO!A120) -> Guinea Bissau | B120: =IF(COUNTRY_INFO!B120=0," ",COUNTRY_INFO!B120) -> Cacheu | C120: =IF(COUNTRY_INFO!C120=0," ",COUNTRY_INFO!C120) -> Pecixe | D120: =IF(OR(COUNTRY_INFO!$T$9:$T$1000="T1 (PZQ+ALB/MBD)",COUNTRY_INFO!$U$9:$U$1000="T1 (PZQ+ALB/MBD)"), "T1 (PZQ+ALB/MBD)", " ") ->  | K120: 0 | O120: 0
A121: =IF(COUNTRY_INFO!A121=0," ",COUNTRY_INFO!A121) -> Guinea Bissau | B121: =IF(COUNTRY_INFO!B121=0," ",COUNTRY_INFO!B121) -> Cacheu | C121: =IF(COUNTRY_INFO!C121=0," ",COUNTRY_INFO!C121) -> Pelundo | D121: =IF(OR(COUNTRY_INFO!$T$9:$T$1000="T1 (PZQ+ALB/MBD)",COUNTRY_INFO!$U$9:$U$1000="T1 (PZQ+ALB/MBD)"), "T1 (PZQ+ALB/MBD)", " ") ->  | K121: 0 | O121: 0
A122: =IF(COUNTRY_INFO!A122=0," ",COUNTRY_INFO!A122) -> Guinea Bissau | B122: =IF(COUNTRY_INFO!B122=0," ",COUNTRY_INFO!B122) -> Cacheu | C122: =IF(COUNTRY_INFO!C122=0," ",COUNTRY_INFO!C122) -> S.Domingos | D122: =IF(OR(COUNTRY_INFO!$T$9:$T$1000="T1 (PZQ+ALB/MBD)",COUNTRY_INFO!$U$9:$U$1000="T1 (PZQ+ALB/MBD)"), "T1 (PZQ+ALB/MBD)", " ") ->  | K122: 0 | O122: 0
A123: =IF(COUNTRY_INFO!A123=0," ",COUNTRY_INFO!A123) -> Guinea Bissau | B123: =IF(COUNTRY_INFO!B123=0," ",COUNTRY_INFO!B123) -> Cacheu | C123: =IF(COUNTRY_INFO!C123=0," ",COUNTRY_INFO!C123) -> Sedengal | D123: =IF(OR(COUNTRY_INFO!$T$9:$T$1000="T1 (PZQ+ALB/MBD)",COUNTRY_INFO!$U$9:$U$1000="T1 (PZQ+ALB/MBD)"), "T1 (PZQ+ALB/MBD)", " ") ->  | K123: 0 | O123: 0
A124: =IF(COUNTRY_INFO!A124=0," ",COUNTRY_INFO!A124) -> Guinea Bissau | B124: =IF(COUNTRY_INFO!B124=0," ",COUNTRY_INFO!B124) -> Cacheu | C124: =IF(COUNTRY_INFO!C124=0," ",COUNTRY_INFO!C124) -> Suzana | D124: =IF(OR(COUNTRY_INFO!$T$9:$T$1000="T1 (PZQ+ALB/MBD)",COUNTRY_INFO!$U$9:$U$1000="T1 (PZQ+ALB/MBD)"), "T1 (PZQ+ALB/MBD)", " ") ->  | K124: 0 | O124: 0
A125: =IF(COUNTRY_INFO!A125=0," ",COUNTRY_INFO!A125) -> Guinea Bissau | B125: =IF(COUNTRY_INFO!B125=0," ",COUNTRY_INFO!B125) -> Cacheu | C125: =IF(COUNTRY_INFO!C125=0," ",COUNTRY_INFO!C125) -> Varela | D125: =IF(OR(COUNTRY_INFO!$T$9:$T$1000="T1 (PZQ+ALB/MBD)",COUNTRY_INFO!$U$9:$U$1000="T1 (PZQ+ALB/MBD)"), "T1 (PZQ+ALB/MBD)", " ") ->  | K125: 0 | O125: 0

Sheet T2
A1: T 2 - Praziquantel (PZQ)
A2: Structure administrative, population nécessitant une chimioprévention par groupe d'âge, population traitée par groupe d'âge et couverture
A4: TOTAL | F4: =SUM(F$9:F$1000) -> 0 | G4: 83717 | H4: 0 | I4: 83717 | J4: 0 | K4: 83515 | L4: 0 | M4: 83515 | N4: =IF(F4<>0, IF(J4/F4*100=0, "-", J4/F4*100), " ") ->  | O4: =IF(G4<>0, IF(K4/G4*100=0, "-", K4/G4*100), " ") -> 99.7587109 | P4: =IF(H4<>0, IF(L4/H4*100=0, "-", L4/H4*100), " ") ->  | Q4: =IF(I4<>0, IF(M4/I4*100=0, "-", M4/I4*100), " ") -> 99.7587109
A6: Structure administrative du pays | D6: Mise en oeuvre de la CP | E6: Date | F6: Population ciblée pour T2 | J6: Population traitée | N6: Couverture du Programme (%)
A7: Pays | B7: Région/Département | C7: District | F7: EAPréS | G7: EAS | H7: Adultes | I7: Total | J7: EAPréS | K7: EAS | L7: Adultes | M7: Total | N7: EAPréS | O7: EAS | P7: Adultes | Q7: Total
A9: =IF(COUNTRY_INFO!A9=0," ",COUNTRY_INFO!A9) -> Guinea Bissau | B9: =IF(COUNTRY_INFO!B9=0," ",COUNTRY_INFO!B9) -> SAB | C9: =IF(COUNTRY_INFO!C9=0," ",COUNTRY_INFO!C9) -> AJUDA | D9: =IF(OR(COUNTRY_INFO!$T$9:$T$1000="T2 (PZQ)",COUNTRY_INFO!$U$9:$U$1000="T2 (PZQ)"), "T2 (PZQ)", " ") ->  | I9: =SUM(F9:H9) -> 0 | M9: =SUM(J9:L9) -> 0 | N9: =IF(F9<>0, IF(J9/F9*100=0, "-", J9/F9*100), " ") -> 
A10: =IF(COUNTRY_INFO!A10=0," ",COUNTRY_INFO!A10) -> Guinea Bissau | B10: =IF(COUNTRY_INFO!B10=0," ",COUNTRY_INFO!B10) -> SAB | C10: =IF(COUNTRY_INFO!C10=0," ",COUNTRY_INFO!C10) -> ANTULA | D10: =IF(OR(COUNTRY_INFO!$T$9:$T$1000="T2 (PZQ)",COUNTRY_INFO!$U$9:$U$1000="T2 (PZQ)"), "T2 (PZQ)", " ") ->  | I10: =SUM(F10:H10) -> 0 | M10: =SUM(J10:L10) -> 0 | N10: =IF(F10<>0, IF(J10/F10*100=0, "-", J10/F10*100), " ") ->  | O10: =IF(G10<>0, IF(K10/G10*100=0, "-", K10/G10*100), " ") ->  | P10: =IF(H10<>0, IF(L10/H10*100=0, "-", L10/H10*100), " ") ->  | Q10: =IF(I10<>0, IF(M10/I10*100=0, "-", M10/I10*100), " ") -> 
A11: =IF(COUNTRY_INFO!A11=0," ",COUNTRY_INFO!A11) -> Guinea Bissau | B11: =IF(COUNTRY_INFO!B11=0," ",COUNTRY_INFO!B11) -> SAB | C11: =IF(COUNTRY_INFO!C11=0," ",COUNTRY_INFO!C11) -> B. MILITAR | D11: =IF(OR(COUNTRY_INFO!$T$9:$T$1000="T2 (PZQ)",COUNTRY_INFO!$U$9:$U$1000="T2 (PZQ)"), "T2 (PZQ)", " ") ->  | I11: 0 | M11: 0
A12: =IF(COUNTRY_INFO!A12=0," ",COUNTRY_INFO!A12) -> Guinea Bissau | B12: =IF(COUNTRY_INFO!B12=0," ",COUNTRY_INFO!B12) -> SAB | C12: =IF(COUNTRY_INFO!C12=0," ",COUNTRY_INFO!C12) -> BANDIM | D12: =IF(OR(COUNTRY_INFO!$T$9:$T$1000="T2 (PZQ)",COUNTRY_INFO!$U$9:$U$1000="T2 (PZQ)"), "T2 (PZQ)", " ") ->  | I12: 0 | M12: 0
A13: =IF(COUNTRY_INFO!A13=0," ",COUNTRY_INFO!A13) -> Guinea Bissau | B13: =IF(COUNTRY_INFO!B13=0," ",COUNTRY_INFO!B13) -> SAB | C13: =IF(COUNTRY_INFO!C13=0," ",COUNTRY_INFO!C13) -> BELEM | D13: =IF(OR(COUNTRY_INFO!$T$9:$T$1000="T2 (PZQ)",COUNTRY_INFO!$U$9:$U$1000="T2 (PZQ)"), "T2 (PZQ)", " ") ->  | I13: 0 | M13: 0
A14: =IF(COUNTRY_INFO!A14=0," ",COUNTRY_INFO!A14) -> Guinea Bissau | B14: =IF(COUNTRY_INFO!B14=0," ",COUNTRY_INFO!B14) -> SAB | C14: =IF(COUNTRY_INFO!C14=0," ",COUNTRY_INFO!C14) -> CMI | D14: =IF(OR(COUNTRY_INFO!$T$9:$T$1000="T2 (PZQ)",COUNTRY_INFO!$U$9:$U$1000="T2 (PZQ)"), "T2 (PZQ)", " ") ->  | I14: 0 | M14: 0
A15: =IF(COUNTRY_INFO!A15=0," ",COUNTRY_INFO!A15) -> Guinea Bissau | B15: =IF(COUNTRY_INFO!B15=0," ",COUNTRY_INFO!B15) -> SAB | C15: =IF(COUNTRY_INFO!C15=0," ",COUNTRY_INFO!C15) -> CUNTUM | D15: =IF(OR(COUNTRY_INFO!$T$9:$T$1000="T2 (PZQ)",COUNTRY_INFO!$U$9:$U$1000="T2 (PZQ)"), "T2 (PZQ)", " ") ->  | I15: 0 | M15: 0
A16: =IF(COUNTRY_INFO!A16=0," ",COUNTRY_INFO!A16) -> Guinea Bissau | B16: =IF(COUNTRY_INFO!B16=0," ",COUNTRY_INFO!B16) -> SAB | C16: =IF(COUNTRY_INFO!C16=0," ",COUNTRY_INFO!C16) -> LUANDA | D16: =IF(OR(COUNTRY_INFO!$T$9:$T$1000="T2 (PZQ)",COUNTRY_INFO!$U$9:$U$1000="T2 (PZQ)"), "T2 (PZQ)", " ") ->  | I16: 0 | M16: 0
